Workbook

Sheet ACCUEILPRO
A1: Accueil
F7: =ACCUEIL!F7 -> 2021-06-20

Sheet ACCUEILPREM
A1: Accueil
F7: =ACCUEIL!F7 -> 2021-06-20

Sheet ACCUEILGP
A1: Accueil
F7: =ACCUEIL!F7 -> 2021-06-20

Sheet ACCUEIL
F7: 2021-06-20

Sheet Accueilagence
A1: Accueil
E7: =ACCUEIL!F7 -> 2021-06-20

Sheet Accueilsecteur
A1: Accueil
E7: =ACCUEIL!F7 -> 2021-06-20

Sheet AccueilDircom
A1: Accueil
E7: =ACCUEIL!F7 -> 2021-06-20

Sheet DC_FICHE
A1: Accueil
A2: BAROMETRE BDD
A4: UNITE: | B4: DIRECTION REGIONALE | E4: ETP perf : | F4: =VLOOKUP(A5,'RECAP DIRCOM'!$G$6:$I$12,3,FALSE) -> 254.47
A5: =VLOOKUP(B5,LISTES!$M$6:$N$12,2,FALSE) -> 262 | B5: BAS-RHIN
C6: Coefficient du critére | E6: Résultats | I6: Ecart au 1ier | M6: Evolution | O6: Rang
E7: du 1ier | G7: DIRECTION | I7: Du mois | K7: Au 31/12/2019
A9: RANG au CLASSEMENT GENERAL | K9: =VLOOKUP($A$5,#REF!,168,FALSE) ->  | M9: =+K9-O9 ->  | O9: =VLOOKUP($A$5,'RECAP DIRCOM'!$G$6:$DG$312,168,FALSE) -> 
A11: CRITERE CLIENTS | C11: 15% | O11: =VLOOKUP($A$5,'RECAP DIRCOM'!$G$6:$DG$312,23,FALSE) -> 20.52879336
B12: PNB Evolution nette Clients BP | C12: 4% | E12: ='RECAP DIRCOM'!#REF! ->  | G12: =VLOOKUP($A$5,'RECAP DIRCOM'!$G$6:$DG$312,6,FALSE) -> 0.5 | I12: =VLOOKUP($A$5,'RECAP DIRCOM'!$G$6:$DG$312,7,FALSE) -> 600% | K12: =VLOOKUP($A$5,#REF!,7,FALSE) ->  | M12: =+K12-I12 ->  | O12: =VLOOKUP($A$5,'RECAP DIRCOM'!$G$6:$DG$312,8,FALSE) -> 0.514670755
B13: PNB Evolution nette Clients PREMIUM | C13: 5% | E13: ='RECAP DIRCOM'!#REF! ->  | G13: =VLOOKUP($A$5,'RECAP DIRCOM'!$G$6:$DG$312,10,FALSE) -> 6.0 | I13: =VLOOKUP($A$5,'RECAP DIRCOM'!$G$6:$DG$312,11,FALSE) -> 37% | K13: =VLOOKUP($A$5,#REF!,11,FALSE) ->  | M13: =+K13-I13 ->  | O13: =VLOOKUP($A$5,'RECAP DIRCOM'!$G$6:$DG$312,12,FALSE) -> 0.3699612626
B14: PNB Evolution nette Clients Jeunes Equipés | C14: 3% | E14: ='RECAP DIRCOM'!#REF! ->  | G14: =VLOOKUP($A$5,'RECAP DIRCOM'!$G$6:$DG$312,14,FALSE) -> 0.0 | I14: =VLOOKUP($A$5,'RECAP DIRCOM'!$G$6:$DG$312,15,FALSE) -> 0% | K14: =VLOOKUP($A$5,#REF!,15,FALSE) ->  | M14: =+K14-I14 ->  | O14: =VLOOKUP($A$5,'RECAP DIRCOM'!$G$6:$DG$312,16,FALSE) -> 0
B15: PNB Evolution nette Clients Pro Actifs Equipés | C15: 3% | E15: ='RECAP DIRCOM'!W4 -> 0.0 | G15: =VLOOKUP($A$5,'RECAP DIRCOM'!$G$6:$DG$312,18,FALSE) -> 11223.8 | I15: =VLOOKUP($A$5,'RECAP DIRCOM'!$G$6:$DG$312,19,FALSE) -> 4411% | K15: =VLOOKUP($A$5,#REF!,19,FALSE) ->  | M15: =+K15-I15 ->  | O15: =VLOOKUP($A$5,'RECAP DIRCOM'!$G$6:$DG$312,20,FALSE) -> 0.06381498762
A17: CRITERE BANCARISATION | C17: 15% | O17: =VLOOKUP($A$5,'RECAP DIRCOM'!$G$6:$DG$312,48,FALSE) -> 1
B18: PNB Ventes nettes forfaits | C18: 4% | E18: ='RECAP DIRCOM'!X4 -> 47.1 | G18: =VLOOKUP($A$5,'RECAP DIRCOM'!$G$6:$DG$312,31,FALSE) -> -1.3 | I18: =VLOOKUP($A$5,'RECAP DIRCOM'!$G$6:$DG$312,32,FALSE) -> 23% | K18: =VLOOKUP($A$5,#REF!,32,FALSE) ->  | M18: =+K18-I18 ->  | O18: =VLOOKUP($A$5,'RECAP DIRCOM'!$G$6:$DG$312,33,FALSE) -> 7
B19: PNB Ventes nettes IZICARTES Débit Différé | C19: 4% | E19: ='RECAP DIRCOM'!AB4 -> 24.7 | G19: =VLOOKUP($A$5,'RECAP DIRCOM'!$G$6:$DG$312,35,FALSE) -> 0.2 | I19: =VLOOKUP($A$5,'RECAP DIRCOM'!$G$6:$DG$312,36,FALSE) -> 200% | K19: =VLOOKUP($A$5,#REF!,36,FALSE) ->  | M19: =+K19-I19 ->  | O19: =VLOOKUP($A$5,'RECAP DIRCOM'!$G$6:$DG$312,37,FALSE) -> 0
B20: PNB Ventes nettes cartes HDG Débit Différé | C20: 4% | E20: ='RECAP DIRCOM'!AF4 -> 7.1 | G20: =VLOOKUP($A$5,'RECAP DIRCOM'!$G$6:$DG$312,39,FALSE) -> 0.0 | I20: =VLOOKUP($A$5,'RECAP DIRCOM'!$G$6:$DG$312,40,FALSE) -> 0% | K20: =VLOOKUP($A$5,#REF!,40,FALSE) ->  | M20: =+K20-I20 ->  | O20: =VLOOKUP($A$5,'RECAP DIRCOM'!$G$6:$DG$312,41,FALSE) -> 78503.5164
B21: PNB Ventes nettes Forfaits Pro, Carte pro | C21: 3% | E21: ='RECAP DIRCOM'!AJ4 -> -1.1 | G21: =VLOOKUP($A$5,'RECAP DIRCOM'!$G$6:$DG$312,43,FALSE) -> 0.1 | I21: =VLOOKUP($A$5,'RECAP DIRCOM'!$G$6:$DG$312,44,FALSE) -> 300% | K21: =VLOOKUP($A$5,#REF!,44,FALSE) ->  | M21: =+K21-I21 ->  | O21: =VLOOKUP($A$5,'RECAP DIRCOM'!$G$6:$DG$312,45,FALSE) -> 3581
A23: CRITERE EPARGNE | C23: 10% | O23: =VLOOKUP($A$5,'RECAP DIRCOM'!$G$6:$DG$312,69,FALSE) -> 0.3232651943
B24: PNB Epargne Liquide | C24: 3% | E24: ='RECAP DIRCOM'!AU4 -> 336.1 | G24: =VLOOKUP($A$5,'RECAP DIRCOM'!$G$6:$DG$312,56,FALSE) -> 15979.1 | I24: =VLOOKUP($A$5,'RECAP DIRCOM'!$G$6:$DG$312,57,FALSE) -> 6279% | K24: =VLOOKUP($A$5,#REF!,57,FALSE) ->  | M24: =+K24-I24 ->  | O24: =VLOOKUP($A$5,'RECAP DIRCOM'!$G$6:$DG$312,58,FALSE) -> 0.4899855472
B25: PNB CA UC + arbitrage | C25: 4% | E25: ='RECAP DIRCOM'!AY4 -> 14.1 | G25: =VLOOKUP($A$5,'RECAP DIRCOM'!$G$6:$DG$312,60,FALSE) -> 7549.0 | I25: =VLOOKUP($A$5,'RECAP DIRCOM'!$G$6:$DG$312,61,FALSE) -> 2967% | K25: =VLOOKUP($A$5,#REF!,61,FALSE) ->  | M25: =+K25-I25 ->  | O25: =VLOOKUP($A$5,'RECAP DIRCOM'!$G$6:$DG$312,62,FALSE) -> 0.130662958
B26: PNB Excédent assurance vie | C26: 3% | E26: ='RECAP DIRCOM'!#REF! ->  | G26: =VLOOKUP($A$5,'RECAP DIRCOM'!$G$6:$DG$312,64,FALSE) -> 1841.0 | I26: =VLOOKUP($A$5,'RECAP DIRCOM'!$G$6:$DG$312,65,FALSE) -> 723% | K26: =VLOOKUP($A$5,#REF!,65,FALSE) ->  | M26: =+K26-I26 ->  | O26: =VLOOKUP($A$5,'RECAP DIRCOM'!$G$6:$DG$312,66,FALSE) -> 0.3378003006
A28: CRITERE CREDITS | C28: 15% | O28: =VLOOKUP($A$5,'RECAP DIRCOM'!$G$6:$DG$312,102,FALSE) -> 0.1878506527
B29: PNB crédit conso | C29: 4% | E29: ='RECAP DIRCOM'!BJ4 -> 123.1 | G29: =VLOOKUP($A$5,'RECAP DIRCOM'!$G$6:$DG$312,77,FALSE) -> 0.0 | I29: =VLOOKUP($A$5,'RECAP DIRCOM'!$G$6:$DG$312,78,FALSE) -> 300% | K29: =VLOOKUP($A$5,#REF!,78,FALSE) ->  | M29: =+K29-I29 ->  | O29: =VLOOKUP($A$5,'RECAP DIRCOM'!$G$6:$DG$312,79,FALSE) -> 4704
B30: PNB ADE crédit conso | C30: 1% | E30: ='RECAP DIRCOM'!#REF! ->  | G30: =VLOOKUP($A$5,'RECAP DIRCOM'!$G$6:$DG$312,81,FALSE) -> 0.2 | I30: =VLOOKUP($A$5,'RECAP DIRCOM'!$G$6:$DG$312,82,FALSE) -> 500% | K30: =VLOOKUP($A$5,#REF!,82,FALSE) ->  | O30: =VLOOKUP($A$5,'RECAP DIRCOM'!$G$6:$DG$312,83,FALSE) -> 0.06023520635
B31: PNB crédit immo | C31: 4% | E31: ='RECAP DIRCOM'!BN4 -> 34.1 | G31: =VLOOKUP($A$5,'RECAP DIRCOM'!$G$6:$DG$312,85,FALSE) -> 4.0 | I31: =VLOOKUP($A$5,'RECAP DIRCOM'!$G$6:$DG$312,86,FALSE) -> 0% | K31: =VLOOKUP($A$5,#REF!,86,FALSE) ->  | O31: =VLOOKUP($A$5,'RECAP DIRCOM'!$G$6:$DG$312,87,FALSE) -> 0
B32: PNB ADE crédit immo | C32: 2% | E32: ='RECAP DIRCOM'!#REF! ->  | G32: =VLOOKUP($A$5,'RECAP DIRCOM'!$G$6:$DG$312,89,FALSE) -> 0.0 | I32: =VLOOKUP($A$5,'RECAP DIRCOM'!$G$6:$DG$312,90,FALSE) -> 0% | K32: =VLOOKUP($A$5,#REF!,90,FALSE) ->  | O32: =VLOOKUP($A$5,'RECAP DIRCOM'!$G$6:$DG$312,91,FALSE) -> 0
B33: PNB SACCEF | C33: 2% | E33: ='RECAP DIRCOM'!#REF! ->  | G33: =VLOOKUP($A$5,'RECAP DIRCOM'!$G$6:$DG$312,93,FALSE) -> 0.0 | I33: =VLOOKUP($A$5,'RECAP DIRCOM'!$G$6:$DG$312,94,FALSE) -> 0% | K33: =VLOOKUP($A$5,#REF!,94,FALSE) ->  | O33: =VLOOKUP($A$5,'RECAP DIRCOM'!$G$6:$DG$312,95,FALSE) -> 0
B34: PNB Crédit MLT + Crédit Bail | C34: 2% | E34: ='RECAP DIRCOM'!BR4 -> 10.9 | G34: =VLOOKUP($A$5,'RECAP DIRCOM'!$G$6:$DG$312,97,FALSE) -> 0.0 | I34: =VLOOKUP($A$5,'RECAP DIRCOM'!$G$6:$DG$312,98,FALSE) -> 0% | K34: =VLOOKUP($A$5,#REF!,98,FALSE) ->  | O34: =VLOOKUP($A$5,'RECAP DIRCOM'!$G$6:$DG$312,99,FALSE) -> 0
A36: CRITERE IARD PREVOYANCE | C36: 15% | O36: =VLOOKUP($A$5,'RECAP DIRCOM'!$G$6:$DG$312,119,FALSE) -> 
B37: PNB Ventes nettes IARD | C37: 9% | E37: ='RECAP DIRCOM'!CC4 -> 122.5 | G37: =VLOOKUP($A$5,'RECAP DIRCOM'!$G$6:$DG$312,110,FALSE) ->  | I37: =VLOOKUP($A$5,'RECAP DIRCOM'!$G$6:$DG$312,111,FALSE) ->  | K37: =VLOOKUP($A$5,#REF!,111,FALSE) ->  | M37: =+K37-I37 ->  | O37: =VLOOKUP($A$5,'RECAP DIRCOM'!$G$6:$DG$312,112,FALSE) -> 
B38: PNB Ventes nettes Prévoyance | C38: 6% | E38: ='RECAP DIRCOM'!CG4 -> 22.6 | G38: =VLOOKUP($A$5,'RECAP DIRCOM'!$G$6:$DG$312,114,FALSE) ->  | I38: =VLOOKUP($A$5,'RECAP DIRCOM'!$G$6:$DG$312,115,FALSE) ->  | K38: =VLOOKUP($A$5,#REF!,115,FALSE) ->  | M38: =+K38-I38 ->  | O38: =VLOOKUP($A$5,'RECAP DIRCOM'!$G$6:$DG$312,116,FALSE) -> 
A40: CRITERE ACCELERATEURS PNB | C40: 15% | O40: =VLOOKUP($A$5,'RECAP DIRCOM'!$G$6:$DG$312,144,FALSE) -> 
B41: PNB Ventes brutes SED Finalisées | C41: 6% | E41: ='RECAP DIRCOM'!#REF! ->  | G41: =VLOOKUP($A$5,'RECAP DIRCOM'!$G$6:$DG$312,127,FALSE) ->  | I41: =VLOOKUP($A$5,'RECAP DIRCOM'!$G$6:$DG$312,128,FALSE) ->  | K41: =VLOOKUP($A$5,#REF!,128,FALSE) ->  | M41: =+K41-I41 ->  | O41: =VLOOKUP($A$5,'RECAP DIRCOM'!$G$6:$DG$312,129,FALSE) -> 
B42: PNB clients équipés E documents | C42: 3% | E42: ='RECAP DIRCOM'!#REF! ->  | G42: =VLOOKUP($A$5,'RECAP DIRCOM'!$G$6:$DG$312,131,FALSE) ->  | I42: =VLOOKUP($A$5,'RECAP DIRCOM'!$G$6:$DG$312,132,FALSE) ->  | K42: =VLOOKUP($A$5,#REF!,132,FALSE) ->  | M42: =+K42-I42 ->  | O42: =VLOOKUP($A$5,'RECAP DIRCOM'!$G$6:$DG$312,133,FALSE) -> 
B43: Economie opt'in | C43: 3% | E43: ='RECAP DIRCOM'!#REF! ->  | G43: =VLOOKUP($A$5,'RECAP DIRCOM'!$G$6:$DG$312,135,FALSE) ->  | I43: =VLOOKUP($A$5,'RECAP DIRCOM'!$G$6:$DG$312,136,FALSE) ->  | K43: =VLOOKUP($A$5,#REF!,136,FALSE) ->  | M43: =+K43-I43 ->  | O43: =VLOOKUP($A$5,'RECAP DIRCOM'!$G$6:$DG$312,137,FALSE) -> 
B44: Remises commerciales | C44: 3% | E44: ='RECAP DIRCOM'!#REF! ->  | G44: =VLOOKUP($A$5,'RECAP DIRCOM'!$G$6:$DG$312,139,FALSE) ->  | I44: =VLOOKUP($A$5,'RECAP DIRCOM'!$G$6:$DG$312,140,FALSE) ->  | K44: =VLOOKUP($A$5,#REF!,140,FALSE) ->  | M44: =+K44-I44 ->  | O44: =VLOOKUP($A$5,'RECAP DIRCOM'!$G$6:$DG$312,141,FALSE) -> 
A46: CRITERE Qualité-Satisfaction Clients | C46: 15% | O46: =VLOOKUP($A$5,'RECAP DIRCOM'!$G$6:$DG$312,159,FALSE) -> 
B47: Objectifs NPS* | C47: 8% | E47: ='RECAP DIRCOM'!K4 -> 22 | G47: =VLOOKUP($A$5,'RECAP DIRCOM'!$G$6:$DG$312,151,FALSE) ->  | I47: =VLOOKUP($A$5,'RECAP DIRCOM'!$G$6:$DG$312,152,FALSE) ->  | K47: =VLOOKUP($A$5,#REF!,152,FALSE) ->  | M47: =+K47-I47 ->  | O47: =VLOOKUP($A$5,'RECAP DIRCOM'!$G$6:$DG$312,153,FALSE) -> 
B48: Enquête Qualité Haute Définition | C48: 7% | E48: ='RECAP DIRCOM'!N4 -> 68% | G48: =VLOOKUP($A$5,'RECAP DIRCOM'!$G$6:$DG$312,154,FALSE) ->  | I48: =VLOOKUP($A$5,'RECAP DIRCOM'!$G$6:$DG$312,155,FALSE) ->  | K48: =VLOOKUP($A$5,#REF!,155,FALSE) ->  | M48: =+K48-I48 ->  | O48: =VLOOKUP($A$5,'RECAP DIRCOM'!$G$6:$DG$312,156,FALSE) -> 

Sheet DC_TOTAL
B1: Accueil | D1: BAROMETRE BDD - DIRECTIONS REGIONALES
D2: TOTAL GENERAL
D3: =ACCUEIL!F7 -> 2021-06-20
D7: TOTAL GENERAL | G7: Total Satisfaction Clients | J7: Total Bancarisation | M7: Total Epargne | P7: Total IARD Prévoyance | S7: Total Crédits
E8: coef | F8: 100% | H8: coef | I8: =DC_SATISFACTION!L8 -> 20% | K8: coef | L8: =DC_BANCA!V8 -> 20% | N8: coef | O8: =DC_EPARGNE!N8 -> 20% | Q8: coef | R8: =DC_IARD!N8 -> 20% | T8: coef | U8: =DC_CREDIT!R8 -> 20%
A9: eds | B9: Direction | C9: ="ETP perf "&DATEMAJ!$C$28 -> ETP perf 30-avr | D9: Moyenne ecart au 1er | E9: % Ecart au 1er | F9: Rang CEGEE | G9: Moyenne ecart au 1er | H9: % Ecart au 1er | I9: Rang CEGEE | J9: Moyenne ecart au 1er | K9: % Ecart au 1er | L9: Rang CEGEE | M9: Moyenne ecart au 1er | N9: % Ecart au 1er | O9: Rang CEGEE | P9: Moyenne ecart au 1er | Q9: % Ecart au 1er | R9: Rang CEGEE | S9: Moyenne ecart au 1er | T9: % Ecart au 1er | U9: Rang CEGEE
A10: 50 | B10: Meurthe et Moselle Meuse | C10: 242 | D10: 6% | E10: 0% | F10: 1 | G10: 31% | H10: 31% | I10: 5 | J10: 2% | K10: 0% | L10: 1 | M10: 3% | N10: 0% | O10: 1 | P10: 0% | Q10: 0% | R10: 1 | S10: 1% | T10: 0% | U10: 1
A11: 262 | B11: Marne-Ardennes | C11: 226 | D11: 13% | E11: 7% | F11: 2 | G11: 16% | H11: 16% | I11: 2 | J11: 21% | K11: 19% | L11: 4 | M11: 18% | N11: 16% | O11: 5 | P11: 4% | Q11: 4% | R11: 2 | S11: 11% | T11: 10% | U11: 2
A12: 264 | B12: Vosges | C12: 132 | D12: 17% | E12: 11% | F12: 3 | G12: 0% | H12: 0% | I12: 1 | J12: 34% | K12: 33% | L12: 6 | M12: 16% | N12: 14% | O12: 4 | P12: 9% | Q12: 9% | R12: 5 | S12: 30% | T12: 29% | U12: 5
A13: 30 | B13: Moselle | C13: 266 | D13: 18% | E13: 11% | F13: 4 | G13: 31% | H13: 31% | I13: 4 | J13: 19% | K13: 18% | L13: 3 | M13: 16% | N13: 13% | O13: 3 | P13: 5% | Q13: 5% | R13: 3 | S13: 23% | T13: 21% | U13: 3
A14: 110 | B14: Bas-Rhin | C14: 254 | D14: 19% | E14: 13% | F14: 5 | G14: 37% | H14: 37% | I14: 6 | J14: 17% | K14: 16% | L14: 2 | M14: 6% | N14: 3% | O14: 2 | P14: 6% | Q14: 6% | R14: 4 | S14: 34% | T14: 32% | U14: 6
A15: 160 | B15: Aube Haute Marne | C15: 127 | D15: 28% | E15: 21% | F15: 6 | G15: 22% | H15: 22% | I15: 3 | J15: 22% | K15: 21% | L15: 5 | M15: 49% | N15: 46% | O15: 7 | P15: 22% | Q15: 22% | R15: 6 | S15: 29% | T15: 28% | U15: 4
A16: 80 | B16: Haut-Rhin | C16: 157 | D16: 44% | E16: 38% | F16: 7 | G16: 56% | H16: 56% | I16: 7 | J16: 45% | K16: 44% | L16: 7 | M16: 48% | N16: 46% | O16: 6 | P16: 30% | Q16: 30% | R16: 7 | S16: 46% | T16: 45% | U16: 7
B17: Total CEGEE Directions Régionales | C17: =SUM(C10:C16) -> 1406

Sheet DC_BANCA
B1: Accueil | D1: BAROMETRE BDD - DIRECTIONS REGIONALES
D2: BANCARISATION
D3: =ACCUEIL!F7 -> 2021-06-20
D7: Ventes Nettes produits pondérés | H7: Ventes sur client non détenteur de l’univers | L7: Mobilité Macron | P7: Remises commerciales | T7: Total Bancarisation
D8: =DATEMAJ!C8 -> au 20/06 | F8: coef | G8: ='RECAP DIRCOM'!AA4 -> 10% | H8: =DATEMAJ!C9 -> au 20/06 | J8: coef | K8: ='RECAP DIRCOM'!AE4 -> 4% | L8: =DATEMAJ!C10 -> au 20/06 | N8: coef | O8: ='RECAP DIRCOM'!AI4 -> 3% | P8: =DATEMAJ!C11 -> au 30/04 | R8: coef | S8: ='RECAP DIRCOM'!AM4 -> 3% | U8: coef | V8: ='RECAP DIRCOM'!AP4 -> 20%
B9: Direction | C9: ="ETP perf "&DATEMAJ!$C$28 -> ETP perf 30-avr | D9: VN | E9: VN / ETP | F9: % Ecart au 1er | G9: Rang | H9: VB | I9: VB / ETP | J9: % Ecart au 1er | K9: Rang | L9: Nb | M9: Nb / ETP | N9: % Ecart au 1er | O9: Rang | P9: Montant | Q9: Montant / ETP | R9: % Ecart au 1er | S9: Rang | T9: Moyenne ecart au 1er | U9: % Ecart au 1er | V9: Rang CEGEE
A10: 50 | B10: Aube Haute Marne | C10: =VLOOKUP($A10,'RECAP DIRCOM'!$G$6:$DC$12,3,FALSE) -> 127 | D10: =VLOOKUP($A10,'RECAP DIRCOM'!$G$6:$DC$12,18,FALSE) -> 4,448 | E10: =VLOOKUP($A10,'RECAP DIRCOM'!$G$6:$DC$12,19,FALSE) -> 35.12 | F10: =VLOOKUP($A10,'RECAP DIRCOM'!$G$6:$DC$12,20,FALSE) -> 25% | G10: =VLOOKUP($A10,'RECAP DIRCOM'!$G$6:$DC$12,21,FALSE) -> 4 | H10: =VLOOKUP($A10,'RECAP DIRCOM'!$G$6:$DC$12,22,FALSE) -> 2,619 | I10: =VLOOKUP($A10,'RECAP DIRCOM'!$G$6:$DC$12,23,FALSE) -> 20.68 | J10: =VLOOKUP($A10,'RECAP DIRCOM'!$G$6:$DC$12,24,FALSE) -> 16% | K10: =VLOOKUP($A10,'RECAP DIRCOM'!$G$6:$DC$12,25,FALSE) -> 4 | L10: =VLOOKUP($A10,'RECAP DIRCOM'!$G$6:$DC$12,26,FALSE) -> 508 | M10: =VLOOKUP($A10,'RECAP DIRCOM'!$G$6:$DC$12,27,FALSE) -> 4.01 | N10: =VLOOKUP($A10,'RECAP DIRCOM'!$G$6:$DC$12,28,FALSE) -> 43% | O10: =VLOOKUP($A10,'RECAP DIRCOM'!$G$6:$DC$12,29,FALSE) -> 3 | P10: =VLOOKUP($A10,'RECAP DIRCOM'!$G$6:$DC$12,30,FALSE) -> -135 | Q10: =VLOOKUP($A10,'RECAP DIRCOM'!$G$6:$DC$12,31,FALSE) -> -1.07 | R10: =VLOOKUP($A10,'RECAP DIRCOM'!$G$6:$DC$12,32,FALSE) -> 0% | S10: =VLOOKUP($A10,'RECAP DIRCOM'!$G$6:$DC$12,33,FALSE) -> 1 | T10: =VLOOKUP($A10,'RECAP DIRCOM'!$G$6:$DC$12,34,FALSE) -> 22% | U10: =VLOOKUP($A10,'RECAP DIRCOM'!$G$6:$DC$12,35,FALSE) -> 21% | V10: =VLOOKUP($A10,'RECAP DIRCOM'!$G$6:$DC$12,36,FALSE) -> 5
A11: 262 | B11: Bas-Rhin | C11: =VLOOKUP($A11,'RECAP DIRCOM'!$G$6:$DC$12,3,FALSE) -> 254 | D11: =VLOOKUP($A11,'RECAP DIRCOM'!$G$6:$DC$12,18,FALSE) -> 11,224 | E11: =VLOOKUP($A11,'RECAP DIRCOM'!$G$6:$DC$12,19,FALSE) -> 44.11 | F11: =VLOOKUP($A11,'RECAP DIRCOM'!$G$6:$DC$12,20,FALSE) -> 6% | G11: =VLOOKUP($A11,'RECAP DIRCOM'!$G$6:$DC$12,21,FALSE) -> 2 | H11: =VLOOKUP($A11,'RECAP DIRCOM'!$G$6:$DC$12,22,FALSE) -> 5,224 | I11: =VLOOKUP($A11,'RECAP DIRCOM'!$G$6:$DC$12,23,FALSE) -> 20.53 | J11: =VLOOKUP($A11,'RECAP DIRCOM'!$G$6:$DC$12,24,FALSE) -> 17% | K11: =VLOOKUP($A11,'RECAP DIRCOM'!$G$6:$DC$12,25,FALSE) -> 5 | L11: =VLOOKUP($A11,'RECAP DIRCOM'!$G$6:$DC$12,26,FALSE) -> 926 | M11: =VLOOKUP($A11,'RECAP DIRCOM'!$G$6:$DC$12,27,FALSE) -> 3.64 | N11: =VLOOKUP($A11,'RECAP DIRCOM'!$G$6:$DC$12,28,FALSE) -> 49% | O11: =VLOOKUP($A11,'RECAP DIRCOM'!$G$6:$DC$12,29,FALSE) -> 4 | P11: =VLOOKUP($A11,'RECAP DIRCOM'!$G$6:$DC$12,30,FALSE) -> -336 | Q11: =VLOOKUP($A11,'RECAP DIRCOM'!$G$6:$DC$12,31,FALSE) -> -1.32 | R11: =VLOOKUP($A11,'RECAP DIRCOM'!$G$6:$DC$12,32,FALSE) -> 23% | S11: =VLOOKUP($A11,'RECAP DIRCOM'!$G$6:$DC$12,33,FALSE) -> 7 | T11: =VLOOKUP($A11,'RECAP DIRCOM'!$G$6:$DC$12,34,FALSE) -> 17% | U11: =VLOOKUP($A11,'RECAP DIRCOM'!$G$6:$DC$12,35,FALSE) -> 16% | V11: =VLOOKUP($A11,'RECAP DIRCOM'!$G$6:$DC$12,36,FALSE) -> 2
A12: 264 | B12: Haut-Rhin | C12: =VLOOKUP($A12,'RECAP DIRCOM'!$G$6:$DC$12,3,FALSE) -> 157 | D12: =VLOOKUP($A12,'RECAP DIRCOM'!$G$6:$DC$12,18,FALSE) -> 3,336 | E12: =VLOOKUP($A12,'RECAP DIRCOM'!$G$6:$DC$12,19,FALSE) -> 21.21 | F12: =VLOOKUP($A12,'RECAP DIRCOM'!$G$6:$DC$12,20,FALSE) -> 55% | G12: =VLOOKUP($A12,'RECAP DIRCOM'!$G$6:$DC$12,21,FALSE) -> 7 | H12: =VLOOKUP($A12,'RECAP DIRCOM'!$G$6:$DC$12,22,FALSE) -> 2,794 | I12: =VLOOKUP($A12,'RECAP DIRCOM'!$G$6:$DC$12,23,FALSE) -> 17.76 | J12: =VLOOKUP($A12,'RECAP DIRCOM'!$G$6:$DC$12,24,FALSE) -> 28% | K12: =VLOOKUP($A12,'RECAP DIRCOM'!$G$6:$DC$12,25,FALSE) -> 7 | L12: =VLOOKUP($A12,'RECAP DIRCOM'!$G$6:$DC$12,26,FALSE) -> 302 | M12: =VLOOKUP($A12,'RECAP DIRCOM'!$G$6:$DC$12,27,FALSE) -> 1.92 | N12: =VLOOKUP($A12,'RECAP DIRCOM'!$G$6:$DC$12,28,FALSE) -> 73% | O12: =VLOOKUP($A12,'RECAP DIRCOM'!$G$6:$DC$12,29,FALSE) -> 7 | P12: =VLOOKUP($A12,'RECAP DIRCOM'!$G$6:$DC$12,30,FALSE) -> -182 | Q12: =VLOOKUP($A12,'RECAP DIRCOM'!$G$6:$DC$12,31,FALSE) -> -1.16 | R12: =VLOOKUP($A12,'RECAP DIRCOM'!$G$6:$DC$12,32,FALSE) -> 9% | S12: =VLOOKUP($A12,'RECAP DIRCOM'!$G$6:$DC$12,33,FALSE) -> 3 | T12: =VLOOKUP($A12,'RECAP DIRCOM'!$G$6:$DC$12,34,FALSE) -> 45% | U12: =VLOOKUP($A12,'RECAP DIRCOM'!$G$6:$DC$12,35,FALSE) -> 44% | V12: =VLOOKUP($A12,'RECAP DIRCOM'!$G$6:$DC$12,36,FALSE) -> 7
A13: 30 | B13: Marne-Ardennes | C13: =VLOOKUP($A13,'RECAP DIRCOM'!$G$6:$DC$12,3,FALSE) -> 226 | D13: =VLOOKUP($A13,'RECAP DIRCOM'!$G$6:$DC$12,18,FALSE) -> 6,864 | E13: =VLOOKUP($A13,'RECAP DIRCOM'!$G$6:$DC$12,19,FALSE) -> 30.31 | F13: =VLOOKUP($A13,'RECAP DIRCOM'!$G$6:$DC$12,20,FALSE) -> 36% | G13: =VLOOKUP($A13,'RECAP DIRCOM'!$G$6:$DC$12,21,FALSE) -> 5 | H13: =VLOOKUP($A13,'RECAP DIRCOM'!$G$6:$DC$12,22,FALSE) -> 5,145 | I13: =VLOOKUP($A13,'RECAP DIRCOM'!$G$6:$DC$12,23,FALSE) -> 22.72 | J13: =VLOOKUP($A13,'RECAP DIRCOM'!$G$6:$DC$12,24,FALSE) -> 8% | K13: =VLOOKUP($A13,'RECAP DIRCOM'!$G$6:$DC$12,25,FALSE) -> 2 | L13: =VLOOKUP($A13,'RECAP DIRCOM'!$G$6:$DC$12,26,FALSE) -> 1,590 | M13: =VLOOKUP($A13,'RECAP DIRCOM'!$G$6:$DC$12,27,FALSE) -> 7.02 | N13: =VLOOKUP($A13,'RECAP DIRCOM'!$G$6:$DC$12,28,FALSE) -> 1% | O13: =VLOOKUP($A13,'RECAP DIRCOM'!$G$6:$DC$12,29,FALSE) -> 2 | P13: =VLOOKUP($A13,'RECAP DIRCOM'!$G$6:$DC$12,30,FALSE) -> -265 | Q13: =VLOOKUP($A13,'RECAP DIRCOM'!$G$6:$DC$12,31,FALSE) -> -1.17 | R13: =VLOOKUP($A13,'RECAP DIRCOM'!$G$6:$DC$12,32,FALSE) -> 10% | S13: =VLOOKUP($A13,'RECAP DIRCOM'!$G$6:$DC$12,33,FALSE) -> 4 | T13: =VLOOKUP($A13,'RECAP DIRCOM'!$G$6:$DC$12,34,FALSE) -> 21% | U13: =VLOOKUP($A13,'RECAP DIRCOM'!$G$6:$DC$12,35,FALSE) -> 19% | V13: =VLOOKUP($A13,'RECAP DIRCOM'!$G$6:$DC$12,36,FALSE) -> 4
A14: 110 | B14: Meurthe et Moselle Meuse | C14: =VLOOKUP($A14,'RECAP DIRCOM'!$G$6:$DC$12,3,FALSE) -> 242 | D14: =VLOOKUP($A14,'RECAP DIRCOM'!$G$6:$DC$12,18,FALSE) -> 11,423 | E14: =VLOOKUP($A14,'RECAP DIRCOM'!$G$6:$DC$12,19,FALSE) -> 47.11 | F14: =VLOOKUP($A14,'RECAP DIRCOM'!$G$6:$DC$12,20,FALSE) -> 0% | G14: =VLOOKUP($A14,'RECAP DIRCOM'!$G$6:$DC$12,21,FALSE) -> 1 | H14: =VLOOKUP($A14,'RECAP DIRCOM'!$G$6:$DC$12,22,FALSE) -> 5,977 | I14: =VLOOKUP($A14,'RECAP DIRCOM'!$G$6:$DC$12,23,FALSE) -> 24.65 | J14: =VLOOKUP($A14,'RECAP DIRCOM'!$G$6:$DC$12,24,FALSE) -> 0% | K14: =VLOOKUP($A14,'RECAP DIRCOM'!$G$6:$DC$12,25,FALSE) -> 1 | L14: =VLOOKUP($A14,'RECAP DIRCOM'!$G$6:$DC$12,26,FALSE) -> 1,721 | M14: =VLOOKUP($A14,'RECAP DIRCOM'!$G$6:$DC$12,27,FALSE) -> 7.10 | N14: =VLOOKUP($A14,'RECAP DIRCOM'!$G$6:$DC$12,28,FALSE) -> 0% | O14: =VLOOKUP($A14,'RECAP DIRCOM'!$G$6:$DC$12,29,FALSE) -> 1 | P14: =VLOOKUP($A14,'RECAP DIRCOM'!$G$6:$DC$12,30,FALSE) -> -287 | Q14: =VLOOKUP($A14,'RECAP DIRCOM'!$G$6:$DC$12,31,FALSE) -> -1.18 | R14: =VLOOKUP($A14,'RECAP DIRCOM'!$G$6:$DC$12,32,FALSE) -> 11% | S14: =VLOOKUP($A14,'RECAP DIRCOM'!$G$6:$DC$12,33,FALSE) -> 5 | T14: =VLOOKUP($A14,'RECAP DIRCOM'!$G$6:$DC$12,34,FALSE) -> 2% | U14: =VLOOKUP($A14,'RECAP DIRCOM'!$G$6:$DC$12,35,FALSE) -> 0% | V14: =VLOOKUP($A14,'RECAP DIRCOM'!$G$6:$DC$12,36,FALSE) -> 1
A15: 160 | B15: Moselle | C15: =VLOOKUP($A15,'RECAP DIRCOM'!$G$6:$DC$12,3,FALSE) -> 266 | D15: =VLOOKUP($A15,'RECAP DIRCOM'!$G$6:$DC$12,18,FALSE) -> 10,742 | E15: =VLOOKUP($A15,'RECAP DIRCOM'!$G$6:$DC$12,19,FALSE) -> 40.42 | F15: =VLOOKUP($A15,'RECAP DIRCOM'!$G$6:$DC$12,20,FALSE) -> 14% | G15: =VLOOKUP($A15,'RECAP DIRCOM'!$G$6:$DC$12,21,FALSE) -> 3 | H15: =VLOOKUP($A15,'RECAP DIRCOM'!$G$6:$DC$12,22,FALSE) -> 5,538 | I15: =VLOOKUP($A15,'RECAP DIRCOM'!$G$6:$DC$12,23,FALSE) -> 20.84 | J15: =VLOOKUP($A15,'RECAP DIRCOM'!$G$6:$DC$12,24,FALSE) -> 15% | K15: =VLOOKUP($A15,'RECAP DIRCOM'!$G$6:$DC$12,25,FALSE) -> 3 | L15: =VLOOKUP($A15,'RECAP DIRCOM'!$G$6:$DC$12,26,FALSE) -> 854 | M15: =VLOOKUP($A15,'RECAP DIRCOM'!$G$6:$DC$12,27,FALSE) -> 3.21 | N15: =VLOOKUP($A15,'RECAP DIRCOM'!$G$6:$DC$12,28,FALSE) -> 55% | O15: =VLOOKUP($A15,'RECAP DIRCOM'!$G$6:$DC$12,29,FALSE) -> 6 | P15: =VLOOKUP($A15,'RECAP DIRCOM'!$G$6:$DC$12,30,FALSE) -> -299 | Q15: =VLOOKUP($A15,'RECAP DIRCOM'!$G$6:$DC$12,31,FALSE) -> -1.12 | R15: =VLOOKUP($A15,'RECAP DIRCOM'!$G$6:$DC$12,32,FALSE) -> 5% | S15: =VLOOKUP($A15,'RECAP DIRCOM'!$G$6:$DC$12,33,FALSE) -> 2 | T15: =VLOOKUP($A15,'RECAP DIRCOM'!$G$6:$DC$12,34,FALSE) -> 19% | U15: =VLOOKUP($A15,'RECAP DIRCOM'!$G$6:$DC$12,35,FALSE) -> 18% | V15: =VLOOKUP($A15,'RECAP DIRCOM'!$G$6:$DC$12,36,FALSE) -> 3
A16: 80 | B16: Vosges | C16: =VLOOKUP($A16,'RECAP DIRCOM'!$G$6:$DC$12,3,FALSE) -> 132 | D16: =VLOOKUP($A16,'RECAP DIRCOM'!$G$6:$DC$12,18,FALSE) -> 3,685 | E16: =VLOOKUP($A16,'RECAP DIRCOM'!$G$6:$DC$12,19,FALSE) -> 27.83 | F16: =VLOOKUP($A16,'RECAP DIRCOM'!$G$6:$DC$12,20,FALSE) -> 41% | G16: =VLOOKUP($A16,'RECAP DIRCOM'!$G$6:$DC$12,21,FALSE) -> 6 | H16: =VLOOKUP($A16,'RECAP DIRCOM'!$G$6:$DC$12,22,FALSE) -> 2,600 | I16: =VLOOKUP($A16,'RECAP DIRCOM'!$G$6:$DC$12,23,FALSE) -> 19.64 | J16: =VLOOKUP($A16,'RECAP DIRCOM'!$G$6:$DC$12,24,FALSE) -> 20% | K16: =VLOOKUP($A16,'RECAP DIRCOM'!$G$6:$DC$12,25,FALSE) -> 6 | L16: =VLOOKUP($A16,'RECAP DIRCOM'!$G$6:$DC$12,26,FALSE) -> 454 | M16: =VLOOKUP($A16,'RECAP DIRCOM'!$G$6:$DC$12,27,FALSE) -> 3.43 | N16: =VLOOKUP($A16,'RECAP DIRCOM'!$G$6:$DC$12,28,FALSE) -> 52% | O16: =VLOOKUP($A16,'RECAP DIRCOM'!$G$6:$DC$12,29,FALSE) -> 5 | P16: =VLOOKUP($A16,'RECAP DIRCOM'!$G$6:$DC$12,30,FALSE) -> -162 | Q16: =VLOOKUP($A16,'RECAP DIRCOM'!$G$6:$DC$12,31,FALSE) -> -1.22 | R16: =VLOOKUP($A16,'RECAP DIRCOM'!$G$6:$DC$12,32,FALSE) -> 15% | S16: =VLOOKUP($A16,'RECAP DIRCOM'!$G$6:$DC$12,33,FALSE) -> 6 | T16: =VLOOKUP($A16,'RECAP DIRCOM'!$G$6:$DC$12,34,FALSE) -> 34% | U16: =VLOOKUP($A16,'RECAP DIRCOM'!$G$6:$DC$12,35,FALSE) -> 33% | V16: =VLOOKUP($A16,'RECAP DIRCOM'!$G$6:$DC$12,36,FALSE) -> 6
B17: Total CEGEE Directions Régionales | C17: =SUM(C10:C16) -> 1406

Sheet DC_EPARGNE
B1: Accueil | D1: BAROMETRE BDD - DIRECTIONS REGIONALES
D2: EPARGNE
D3: =ACCUEIL!F7 -> 2021-06-20
D7: Excédent Epargne y/c DAV pondéré | H7: Ventes sur client non détenteur de l’univers | L7: Total Epargne
D8: =DATEMAJ!C14 -> au 20/06 | F8: coef | G8: ='RECAP DIRCOM'!AX4 -> 14% | H8: =DATEMAJ!C15 -> au 20/06 | J8: coef | K8: ='RECAP DIRCOM'!BB4 -> 6% | M8: coef | N8: ='RECAP DIRCOM'!BE4 -> 20%
B9: Direction | C9: ="ETP perf "&DATEMAJ!$C$28 -> ETP perf 30-avr | D9: Excédent | E9: Excédent / ETP | F9: % Ecart au 1er | G9: Rang | H9: VB | I9: VB / ETP | J9: % Ecart au 1er | K9: Rang | L9: Moyenne ecart au 1er | M9: % Ecart au 1er | N9: Rang CEGEE
A10: 50 | B10: Aube Haute Marne | C10: =VLOOKUP($A10,'RECAP DIRCOM'!$G$6:$DC$12,3,FALSE) -> 127 | D10: =VLOOKUP($A10,'RECAP DIRCOM'!$G$6:$DC$12,41,FALSE) -> 16,729 | E10: =VLOOKUP($A10,'RECAP DIRCOM'!$G$6:$DC$12,42,FALSE) -> 132.06 | F10: =VLOOKUP($A10,'RECAP DIRCOM'!$G$6:$DC$12,43,FALSE) -> 61% | G10: =VLOOKUP($A10,'RECAP DIRCOM'!$G$6:$DC$12,44,FALSE) -> 7 | H10: =VLOOKUP($A10,'RECAP DIRCOM'!$G$6:$DC$12,45,FALSE) -> 1,399 | I10: =VLOOKUP($A10,'RECAP DIRCOM'!$G$6:$DC$12,46,FALSE) -> 11.04 | J10: =VLOOKUP($A10,'RECAP DIRCOM'!$G$6:$DC$12,47,FALSE) -> 22% | K10: =VLOOKUP($A10,'RECAP DIRCOM'!$G$6:$DC$12,48,FALSE) -> 5 | L10: =VLOOKUP($A10,'RECAP DIRCOM'!$G$6:$DC$12,49,FALSE) -> 49% | M10: =VLOOKUP($A10,'RECAP DIRCOM'!$G$6:$DC$12,50,FALSE) -> 46% | N10: =VLOOKUP($A10,'RECAP DIRCOM'!$G$6:$DC$12,51,FALSE) -> 7
A11: 262 | B11: Bas-Rhin | C11: =VLOOKUP($A11,'RECAP DIRCOM'!$G$6:$DC$12,3,FALSE) -> 254 | D11: =VLOOKUP($A11,'RECAP DIRCOM'!$G$6:$DC$12,41,FALSE) -> 78,504 | E11: =VLOOKUP($A11,'RECAP DIRCOM'!$G$6:$DC$12,42,FALSE) -> 308.50 | F11: =VLOOKUP($A11,'RECAP DIRCOM'!$G$6:$DC$12,43,FALSE) -> 8% | G11: =VLOOKUP($A11,'RECAP DIRCOM'!$G$6:$DC$12,44,FALSE) -> 3 | H11: =VLOOKUP($A11,'RECAP DIRCOM'!$G$6:$DC$12,45,FALSE) -> 3,581 | I11: =VLOOKUP($A11,'RECAP DIRCOM'!$G$6:$DC$12,46,FALSE) -> 14.07 | J11: =VLOOKUP($A11,'RECAP DIRCOM'!$G$6:$DC$12,47,FALSE) -> 0% | K11: =VLOOKUP($A11,'RECAP DIRCOM'!$G$6:$DC$12,48,FALSE) -> 1 | L11: =VLOOKUP($A11,'RECAP DIRCOM'!$G$6:$DC$12,49,FALSE) -> 6% | M11: =VLOOKUP($A11,'RECAP DIRCOM'!$G$6:$DC$12,50,FALSE) -> 3% | N11: =VLOOKUP($A11,'RECAP DIRCOM'!$G$6:$DC$12,51,FALSE) -> 2
A12: 264 | B12: Haut-Rhin | C12: =VLOOKUP($A12,'RECAP DIRCOM'!$G$6:$DC$12,3,FALSE) -> 157 | D12: =VLOOKUP($A12,'RECAP DIRCOM'!$G$6:$DC$12,41,FALSE) -> 22,451 | E12: =VLOOKUP($A12,'RECAP DIRCOM'!$G$6:$DC$12,42,FALSE) -> 142.74 | F12: =VLOOKUP($A12,'RECAP DIRCOM'!$G$6:$DC$12,43,FALSE) -> 58% | G12: =VLOOKUP($A12,'RECAP DIRCOM'!$G$6:$DC$12,44,FALSE) -> 6 | H12: =VLOOKUP($A12,'RECAP DIRCOM'!$G$6:$DC$12,45,FALSE) -> 1,612 | I12: =VLOOKUP($A12,'RECAP DIRCOM'!$G$6:$DC$12,46,FALSE) -> 10.25 | J12: =VLOOKUP($A12,'RECAP DIRCOM'!$G$6:$DC$12,47,FALSE) -> 27% | K12: =VLOOKUP($A12,'RECAP DIRCOM'!$G$6:$DC$12,48,FALSE) -> 6 | L12: =VLOOKUP($A12,'RECAP DIRCOM'!$G$6:$DC$12,49,FALSE) -> 48% | M12: =VLOOKUP($A12,'RECAP DIRCOM'!$G$6:$DC$12,50,FALSE) -> 46% | N12: =VLOOKUP($A12,'RECAP DIRCOM'!$G$6:$DC$12,51,FALSE) -> 6
A13: 30 | B13: Marne-Ardennes | C13: =VLOOKUP($A13,'RECAP DIRCOM'!$G$6:$DC$12,3,FALSE) -> 226 | D13: =VLOOKUP($A13,'RECAP DIRCOM'!$G$6:$DC$12,41,FALSE) -> 57,584 | E13: =VLOOKUP($A13,'RECAP DIRCOM'!$G$6:$DC$12,42,FALSE) -> 254.27 | F13: =VLOOKUP($A13,'RECAP DIRCOM'!$G$6:$DC$12,43,FALSE) -> 24% | G13: =VLOOKUP($A13,'RECAP DIRCOM'!$G$6:$DC$12,44,FALSE) -> 5 | H13: =VLOOKUP($A13,'RECAP DIRCOM'!$G$6:$DC$12,45,FALSE) -> 3,066 | I13: =VLOOKUP($A13,'RECAP DIRCOM'!$G$6:$DC$12,46,FALSE) -> 13.54 | J13: =VLOOKUP($A13,'RECAP DIRCOM'!$G$6:$DC$12,47,FALSE) -> 4% | K13: =VLOOKUP($A13,'RECAP DIRCOM'!$G$6:$DC$12,48,FALSE) -> 3 | L13: =VLOOKUP($A13,'RECAP DIRCOM'!$G$6:$DC$12,49,FALSE) -> 18% | M13: =VLOOKUP($A13,'RECAP DIRCOM'!$G$6:$DC$12,50,FALSE) -> 16% | N13: =VLOOKUP($A13,'RECAP DIRCOM'!$G$6:$DC$12,51,FALSE) -> 5
A14: 110 | B14: Meurthe et Moselle Meuse | C14: =VLOOKUP($A14,'RECAP DIRCOM'!$G$6:$DC$12,3,FALSE) -> 242 | D14: =VLOOKUP($A14,'RECAP DIRCOM'!$G$6:$DC$12,41,FALSE) -> 81,493 | E14: =VLOOKUP($A14,'RECAP DIRCOM'!$G$6:$DC$12,42,FALSE) -> 336.10 | F14: =VLOOKUP($A14,'RECAP DIRCOM'!$G$6:$DC$12,43,FALSE) -> 0% | G14: =VLOOKUP($A14,'RECAP DIRCOM'!$G$6:$DC$12,44,FALSE) -> 1 | H14: =VLOOKUP($A14,'RECAP DIRCOM'!$G$6:$DC$12,45,FALSE) -> 3,122 | I14: =VLOOKUP($A14,'RECAP DIRCOM'!$G$6:$DC$12,46,FALSE) -> 12.88 | J14: =VLOOKUP($A14,'RECAP DIRCOM'!$G$6:$DC$12,47,FALSE) -> 9% | K14: =VLOOKUP($A14,'RECAP DIRCOM'!$G$6:$DC$12,48,FALSE) -> 4 | L14: =VLOOKUP($A14,'RECAP DIRCOM'!$G$6:$DC$12,49,FALSE) -> 3% | M14: =VLOOKUP($A14,'RECAP DIRCOM'!$G$6:$DC$12,50,FALSE) -> 0% | N14: =VLOOKUP($A14,'RECAP DIRCOM'!$G$6:$DC$12,51,FALSE) -> 1
A15: 160 | B15: Moselle | C15: =VLOOKUP($A15,'RECAP DIRCOM'!$G$6:$DC$12,3,FALSE) -> 266 | D15: =VLOOKUP($A15,'RECAP DIRCOM'!$G$6:$DC$12,41,FALSE) -> 69,653 | E15: =VLOOKUP($A15,'RECAP DIRCOM'!$G$6:$DC$12,42,FALSE) -> 262.12 | F15: =VLOOKUP($A15,'RECAP DIRCOM'!$G$6:$DC$12,43,FALSE) -> 22% | G15: =VLOOKUP($A15,'RECAP DIRCOM'!$G$6:$DC$12,44,FALSE) -> 4 | H15: =VLOOKUP($A15,'RECAP DIRCOM'!$G$6:$DC$12,45,FALSE) -> 3,701 | I15: =VLOOKUP($A15,'RECAP DIRCOM'!$G$6:$DC$12,46,FALSE) -> 13.93 | J15: =VLOOKUP($A15,'RECAP DIRCOM'!$G$6:$DC$12,47,FALSE) -> 1% | K15: =VLOOKUP($A15,'RECAP DIRCOM'!$G$6:$DC$12,48,FALSE) -> 2 | L15: =VLOOKUP($A15,'RECAP DIRCOM'!$G$6:$DC$12,49,FALSE) -> 16% | M15: =VLOOKUP($A15,'RECAP DIRCOM'!$G$6:$DC$12,50,FALSE) -> 13% | N15: =VLOOKUP($A15,'RECAP DIRCOM'!$G$6:$DC$12,51,FALSE) -> 3
A16: 80 | B16: Vosges | C16: =VLOOKUP($A16,'RECAP DIRCOM'!$G$6:$DC$12,3,FALSE) -> 132 | D16: =VLOOKUP($A16,'RECAP DIRCOM'!$G$6:$DC$12,41,FALSE) -> 41,619 | E16: =VLOOKUP($A16,'RECAP DIRCOM'!$G$6:$DC$12,42,FALSE) -> 314.33 | F16: =VLOOKUP($A16,'RECAP DIRCOM'!$G$6:$DC$12,43,FALSE) -> 6% | G16: =VLOOKUP($A16,'RECAP DIRCOM'!$G$6:$DC$12,44,FALSE) -> 2 | H16: =VLOOKUP($A16,'RECAP DIRCOM'!$G$6:$DC$12,45,FALSE) -> 1,122 | I16: =VLOOKUP($A16,'RECAP DIRCOM'!$G$6:$DC$12,46,FALSE) -> 8.47 | J16: =VLOOKUP($A16,'RECAP DIRCOM'!$G$6:$DC$12,47,FALSE) -> 40% | K16: =VLOOKUP($A16,'RECAP DIRCOM'!$G$6:$DC$12,48,FALSE) -> 7 | L16: =VLOOKUP($A16,'RECAP DIRCOM'!$G$6:$DC$12,49,FALSE) -> 16% | M16: =VLOOKUP($A16,'RECAP DIRCOM'!$G$6:$DC$12,50,FALSE) -> 14% | N16: =VLOOKUP($A16,'RECAP DIRCOM'!$G$6:$DC$12,51,FALSE) -> 4
B17: Total CEGEE Directions Régionales | C17: =SUM(C10:C16) -> 1406

Sheet DC_CREDIT
B1: Accueil | D1: BAROMETRE BDD - DIRECTIONS REGIONALES
D2: CREDITS
D3: =ACCUEIL!F7 -> 2021-06-20
D7: Engagements et ventes accessoires pondérés Immo | H7: Engagements et ventes accessoires pondérés Conso | L7: Ventes sur client non détenteur de l’univers | P7: Total Crédits
D8: =DATEMAJ!C18 -> au 20/06 | F8: coef | G8: ='RECAP DIRCOM'!BM4 -> 8% | H8: =DATEMAJ!C19 -> au 20/06 | J8: coef | K8: ='RECAP DIRCOM'!BQ4 -> 6% | L8: =DATEMAJ!C20 -> au 20/06 | N8: coef | O8: ='RECAP DIRCOM'!BU4 -> 6% | Q8: coef | R8: ='RECAP DIRCOM'!BX4 -> 20%
B9: Direction | C9: ="ETP perf "&DATEMAJ!$C$28 -> ETP perf 30-avr | D9: PNB | E9: PNB / ETP | F9: % Ecart au 1er | G9: Rang | H9: PNB | I9: PNB / ETP | J9: % Ecart au 1er | K9: Rang | L9: VB | M9: VB / ETP | N9: % Ecart au 1er | O9: Rang | P9: Moyenne ecart au 1er | Q9: % Ecart au 1er | R9: Rang CEGEE
A10: 50 | B10: Aube Haute Marne | C10: =VLOOKUP($A10,'RECAP DIRCOM'!$G$6:$DC$12,3,FALSE) -> 127 | D10: =VLOOKUP($A10,'RECAP DIRCOM'!$G$6:$DC$12,56,FALSE) -> 7,726 | E10: =VLOOKUP($A10,'RECAP DIRCOM'!$G$6:$DC$12,57,FALSE) -> 60.99 | F10: =VLOOKUP($A10,'RECAP DIRCOM'!$G$6:$DC$12,58,FALSE) -> 50% | G10: =VLOOKUP($A10,'RECAP DIRCOM'!$G$6:$DC$12,59,FALSE) -> 6 | H10: =VLOOKUP($A10,'RECAP DIRCOM'!$G$6:$DC$12,60,FALSE) -> 4,121 | I10: =VLOOKUP($A10,'RECAP DIRCOM'!$G$6:$DC$12,61,FALSE) -> 32.54 | J10: =VLOOKUP($A10,'RECAP DIRCOM'!$G$6:$DC$12,62,FALSE) -> 5% | K10: =VLOOKUP($A10,'RECAP DIRCOM'!$G$6:$DC$12,63,FALSE) -> 3 | L10: =VLOOKUP($A10,'RECAP DIRCOM'!$G$6:$DC$12,64,FALSE) -> 1,035 | M10: =VLOOKUP($A10,'RECAP DIRCOM'!$G$6:$DC$12,65,FALSE) -> 8.17 | N10: =VLOOKUP($A10,'RECAP DIRCOM'!$G$6:$DC$12,66,FALSE) -> 25% | O10: =VLOOKUP($A10,'RECAP DIRCOM'!$G$6:$DC$12,67,FALSE) -> 4 | P10: =VLOOKUP($A10,'RECAP DIRCOM'!$G$6:$DC$12,68,FALSE) -> 29% | Q10: =VLOOKUP($A10,'RECAP DIRCOM'!$G$6:$DC$12,69,FALSE) -> 28% | R10: =VLOOKUP($A10,'RECAP DIRCOM'!$G$6:$DC$12,70,FALSE) -> 4
A11: 262 | B11: Bas-Rhin | C11: =VLOOKUP($A11,'RECAP DIRCOM'!$G$6:$DC$12,3,FALSE) -> 254 | D11: =VLOOKUP($A11,'RECAP DIRCOM'!$G$6:$DC$12,56,FALSE) -> 15,979 | E11: =VLOOKUP($A11,'RECAP DIRCOM'!$G$6:$DC$12,57,FALSE) -> 62.79 | F11: =VLOOKUP($A11,'RECAP DIRCOM'!$G$6:$DC$12,58,FALSE) -> 49% | G11: =VLOOKUP($A11,'RECAP DIRCOM'!$G$6:$DC$12,59,FALSE) -> 5 | H11: =VLOOKUP($A11,'RECAP DIRCOM'!$G$6:$DC$12,60,FALSE) -> 7,549 | I11: =VLOOKUP($A11,'RECAP DIRCOM'!$G$6:$DC$12,61,FALSE) -> 29.67 | J11: =VLOOKUP($A11,'RECAP DIRCOM'!$G$6:$DC$12,62,FALSE) -> 13% | K11: =VLOOKUP($A11,'RECAP DIRCOM'!$G$6:$DC$12,63,FALSE) -> 6 | L11: =VLOOKUP($A11,'RECAP DIRCOM'!$G$6:$DC$12,64,FALSE) -> 1,841 | M11: =VLOOKUP($A11,'RECAP DIRCOM'!$G$6:$DC$12,65,FALSE) -> 7.23 | N11: =VLOOKUP($A11,'RECAP DIRCOM'!$G$6:$DC$12,66,FALSE) -> 34% | O11: =VLOOKUP($A11,'RECAP DIRCOM'!$G$6:$DC$12,67,FALSE) -> 6 | P11: =VLOOKUP($A11,'RECAP DIRCOM'!$G$6:$DC$12,68,FALSE) -> 34% | Q11: =VLOOKUP($A11,'RECAP DIRCOM'!$G$6:$DC$12,69,FALSE) -> 32% | R11: =VLOOKUP($A11,'RECAP DIRCOM'!$G$6:$DC$12,70,FALSE) -> 6
A12: 264 | B12: Haut-Rhin | C12: =VLOOKUP($A12,'RECAP DIRCOM'!$G$6:$DC$12,3,FALSE) -> 157 | D12: =VLOOKUP($A12,'RECAP DIRCOM'!$G$6:$DC$12,56,FALSE) -> 7,285 | E12: =VLOOKUP($A12,'RECAP DIRCOM'!$G$6:$DC$12,57,FALSE) -> 46.31 | F12: =VLOOKUP($A12,'RECAP DIRCOM'!$G$6:$DC$12,58,FALSE) -> 62% | G12: =VLOOKUP($A12,'RECAP DIRCOM'!$G$6:$DC$12,59,FALSE) -> 7 | H12: =VLOOKUP($A12,'RECAP DIRCOM'!$G$6:$DC$12,60,FALSE) -> 4,100 | I12: =VLOOKUP($A12,'RECAP DIRCOM'!$G$6:$DC$12,61,FALSE) -> 26.07 | J12: =VLOOKUP($A12,'RECAP DIRCOM'!$G$6:$DC$12,62,FALSE) -> 24% | K12: =VLOOKUP($A12,'RECAP DIRCOM'!$G$6:$DC$12,63,FALSE) -> 7 | L12: =VLOOKUP($A12,'RECAP DIRCOM'!$G$6:$DC$12,64,FALSE) -> 903 | M12: =VLOOKUP($A12,'RECAP DIRCOM'!$G$6:$DC$12,65,FALSE) -> 5.74 | N12: =VLOOKUP($A12,'RECAP DIRCOM'!$G$6:$DC$12,66,FALSE) -> 47% | O12: =VLOOKUP($A12,'RECAP DIRCOM'!$G$6:$DC$12,67,FALSE) -> 7 | P12: =VLOOKUP($A12,'RECAP DIRCOM'!$G$6:$DC$12,68,FALSE) -> 46% | Q12: =VLOOKUP($A12,'RECAP DIRCOM'!$G$6:$DC$12,69,FALSE) -> 45% | R12: =VLOOKUP($A12,'RECAP DIRCOM'!$G$6:$DC$12,70,FALSE) -> 7
A13: 30 | B13: Marne-Ardennes | C13: =VLOOKUP($A13,'RECAP DIRCOM'!$G$6:$DC$12,3,FALSE) -> 226 | D13: =VLOOKUP($A13,'RECAP DIRCOM'!$G$6:$DC$12,56,FALSE) -> 24,673 | E13: =VLOOKUP($A13,'RECAP DIRCOM'!$G$6:$DC$12,57,FALSE) -> 108.95 | F13: =VLOOKUP($A13,'RECAP DIRCOM'!$G$6:$DC$12,58,FALSE) -> 12% | G13: =VLOOKUP($A13,'RECAP DIRCOM'!$G$6:$DC$12,59,FALSE) -> 2 | H13: =VLOOKUP($A13,'RECAP DIRCOM'!$G$6:$DC$12,60,FALSE) -> 6,755 | I13: =VLOOKUP($A13,'RECAP DIRCOM'!$G$6:$DC$12,61,FALSE) -> 29.83 | J13: =VLOOKUP($A13,'RECAP DIRCOM'!$G$6:$DC$12,62,FALSE) -> 13% | K13: =VLOOKUP($A13,'RECAP DIRCOM'!$G$6:$DC$12,63,FALSE) -> 4 | L13: =VLOOKUP($A13,'RECAP DIRCOM'!$G$6:$DC$12,64,FALSE) -> 2,227 | M13: =VLOOKUP($A13,'RECAP DIRCOM'!$G$6:$DC$12,65,FALSE) -> 9.83 | N13: =VLOOKUP($A13,'RECAP DIRCOM'!$G$6:$DC$12,66,FALSE) -> 10% | O13: =VLOOKUP($A13,'RECAP DIRCOM'!$G$6:$DC$12,67,FALSE) -> 2 | P13: =VLOOKUP($A13,'RECAP DIRCOM'!$G$6:$DC$12,68,FALSE) -> 11% | Q13: =VLOOKUP($A13,'RECAP DIRCOM'!$G$6:$DC$12,69,FALSE) -> 10% | R13: =VLOOKUP($A13,'RECAP DIRCOM'!$G$6:$DC$12,70,FALSE) -> 2
A14: 110 | B14: Meurthe et Moselle Meuse | C14: =VLOOKUP($A14,'RECAP DIRCOM'!$G$6:$DC$12,3,FALSE) -> 242 | D14: =VLOOKUP($A14,'RECAP DIRCOM'!$G$6:$DC$12,56,FALSE) -> 29,853 | E14: =VLOOKUP($A14,'RECAP DIRCOM'!$G$6:$DC$12,57,FALSE) -> 123.12 | F14: =VLOOKUP($A14,'RECAP DIRCOM'!$G$6:$DC$12,58,FALSE) -> 0% | G14: =VLOOKUP($A14,'RECAP DIRCOM'!$G$6:$DC$12,59,FALSE) -> 1 | H14: =VLOOKUP($A14,'RECAP DIRCOM'!$G$6:$DC$12,60,FALSE) -> 7,908 | I14: =VLOOKUP($A14,'RECAP DIRCOM'!$G$6:$DC$12,61,FALSE) -> 32.61 | J14: =VLOOKUP($A14,'RECAP DIRCOM'!$G$6:$DC$12,62,FALSE) -> 4% | K14: =VLOOKUP($A14,'RECAP DIRCOM'!$G$6:$DC$12,63,FALSE) -> 2 | L14: =VLOOKUP($A14,'RECAP DIRCOM'!$G$6:$DC$12,64,FALSE) -> 2,649 | M14: =VLOOKUP($A14,'RECAP DIRCOM'!$G$6:$DC$12,65,FALSE) -> 10.93 | N14: =VLOOKUP($A14,'RECAP DIRCOM'!$G$6:$DC$12,66,FALSE) -> 0% | O14: =VLOOKUP($A14,'RECAP DIRCOM'!$G$6:$DC$12,67,FALSE) -> 1 | P14: =VLOOKUP($A14,'RECAP DIRCOM'!$G$6:$DC$12,68,FALSE) -> 1% | Q14: =VLOOKUP($A14,'RECAP DIRCOM'!$G$6:$DC$12,69,FALSE) -> 0% | R14: =VLOOKUP($A14,'RECAP DIRCOM'!$G$6:$DC$12,70,FALSE) -> 1
A15: 160 | B15: Moselle | C15: =VLOOKUP($A15,'RECAP DIRCOM'!$G$6:$DC$12,3,FALSE) -> 266 | D15: =VLOOKUP($A15,'RECAP DIRCOM'!$G$6:$DC$12,56,FALSE) -> 20,859 | E15: =VLOOKUP($A15,'RECAP DIRCOM'!$G$6:$DC$12,57,FALSE) -> 78.50 | F15: =VLOOKUP($A15,'RECAP DIRCOM'!$G$6:$DC$12,58,FALSE) -> 36% | G15: =VLOOKUP($A15,'RECAP DIRCOM'!$G$6:$DC$12,59,FALSE) -> 3 | H15: =VLOOKUP($A15,'RECAP DIRCOM'!$G$6:$DC$12,60,FALSE) -> 9,068 | I15: =VLOOKUP($A15,'RECAP DIRCOM'!$G$6:$DC$12,61,FALSE) -> 34.12 | J15: =VLOOKUP($A15,'RECAP DIRCOM'!$G$6:$DC$12,62,FALSE) -> 0% | K15: =VLOOKUP($A15,'RECAP DIRCOM'!$G$6:$DC$12,63,FALSE) -> 1 | L15: =VLOOKUP($A15,'RECAP DIRCOM'!$G$6:$DC$12,64,FALSE) -> 2,104 | M15: =VLOOKUP($A15,'RECAP DIRCOM'!$G$6:$DC$12,65,FALSE) -> 7.92 | N15: =VLOOKUP($A15,'RECAP DIRCOM'!$G$6:$DC$12,66,FALSE) -> 28% | O15: =VLOOKUP($A15,'RECAP DIRCOM'!$G$6:$DC$12,67,FALSE) -> 5 | P15: =VLOOKUP($A15,'RECAP DIRCOM'!$G$6:$DC$12,68,FALSE) -> 23% | Q15: =VLOOKUP($A15,'RECAP DIRCOM'!$G$6:$DC$12,69,FALSE) -> 21% | R15: =VLOOKUP($A15,'RECAP DIRCOM'!$G$6:$DC$12,70,FALSE) -> 3
A16: 80 | B16: Vosges | C16: =VLOOKUP($A16,'RECAP DIRCOM'!$G$6:$DC$12,3,FALSE) -> 132 | D16: =VLOOKUP($A16,'RECAP DIRCOM'!$G$6:$DC$12,56,FALSE) -> 8,357 | E16: =VLOOKUP($A16,'RECAP DIRCOM'!$G$6:$DC$12,57,FALSE) -> 63.12 | F16: =VLOOKUP($A16,'RECAP DIRCOM'!$G$6:$DC$12,58,FALSE) -> 49% | G16: =VLOOKUP($A16,'RECAP DIRCOM'!$G$6:$DC$12,59,FALSE) -> 4 | H16: =VLOOKUP($A16,'RECAP DIRCOM'!$G$6:$DC$12,60,FALSE) -> 3,940 | I16: =VLOOKUP($A16,'RECAP DIRCOM'!$G$6:$DC$12,61,FALSE) -> 29.76 | J16: =VLOOKUP($A16,'RECAP DIRCOM'!$G$6:$DC$12,62,FALSE) -> 13% | K16: =VLOOKUP($A16,'RECAP DIRCOM'!$G$6:$DC$12,63,FALSE) -> 5 | L16: =VLOOKUP($A16,'RECAP DIRCOM'!$G$6:$DC$12,64,FALSE) -> 1,131 | M16: =VLOOKUP($A16,'RECAP DIRCOM'!$G$6:$DC$12,65,FALSE) -> 8.54 | N16: =VLOOKUP($A16,'RECAP DIRCOM'!$G$6:$DC$12,66,FALSE) -> 22% | O16: =VLOOKUP($A16,'RECAP DIRCOM'!$G$6:$DC$12,67,FALSE) -> 3 | P16: =VLOOKUP($A16,'RECAP DIRCOM'!$G$6:$DC$12,68,FALSE) -> 30% | Q16: =VLOOKUP($A16,'RECAP DIRCOM'!$G$6:$DC$12,69,FALSE) -> 29% | R16: =VLOOKUP($A16,'RECAP DIRCOM'!$G$6:$DC$12,70,FALSE) -> 5
B17: Total CEGEE Directions Régionales | C17: =SUM(C10:C16) -> 1406

Sheet DC_IARD
B1: Accueil | D1: BAROMETRE BDD - DIRECTIONS REGIONALES
D2: IARD ET PREVOYANCE
D3: =ACCUEIL!F7 -> 2021-06-20
D7: Ventes Nettes produits pondérés | H7: Ventes sur client non détenteur de l’univers | L7: Total IARD Prévoyance
D8: =DATEMAJ!C23 -> au 20/06 | F8: coef | G8: ='RECAP DIRCOM'!CF4 -> 14% | H8: =DATEMAJ!C24 -> au 20/06 | J8: coef | K8: ='RECAP DIRCOM'!CJ4 -> 6% | M8: coef | N8: ='RECAP DIRCOM'!CM4 -> 20%
B9: Direction | C9: ="ETP perf "&DATEMAJ!$C$28 -> ETP perf 30-avr | D9: VN | E9: VN / ETP | F9: % Ecart au 1er | G9: Rang | H9: VB | I9: VB / ETP | J9: % Ecart au 1er | K9: Rang | L9: Moyenne ecart au 1er | M9: % Ecart au 1er | N9: Rang CEGEE
A10: 50 | B10: Aube Haute Marne | C10: =VLOOKUP($A10,'RECAP DIRCOM'!$G$6:$DC$12,3,FALSE) -> 127 | D10: =VLOOKUP($A10,'RECAP DIRCOM'!$G$6:$DC$12,75,FALSE) -> 11,755 | E10: =VLOOKUP($A10,'RECAP DIRCOM'!$G$6:$DC$12,76,FALSE) -> 92.80 | F10: =VLOOKUP($A10,'RECAP DIRCOM'!$G$6:$DC$12,77,FALSE) -> 24% | G10: =VLOOKUP($A10,'RECAP DIRCOM'!$G$6:$DC$12,78,FALSE) -> 6 | H10: =VLOOKUP($A10,'RECAP DIRCOM'!$G$6:$DC$12,79,FALSE) -> 2,388 | I10: =VLOOKUP($A10,'RECAP DIRCOM'!$G$6:$DC$12,80,FALSE) -> 18.85 | J10: =VLOOKUP($A10,'RECAP DIRCOM'!$G$6:$DC$12,81,FALSE) -> 17% | K10: =VLOOKUP($A10,'RECAP DIRCOM'!$G$6:$DC$12,82,FALSE) -> 4 | L10: =VLOOKUP($A10,'RECAP DIRCOM'!$G$6:$DC$12,83,FALSE) -> 22% | M10: =VLOOKUP($A10,'RECAP DIRCOM'!$G$6:$DC$12,84,FALSE) -> 22% | N10: =VLOOKUP($A10,'RECAP DIRCOM'!$G$6:$DC$12,85,FALSE) -> 6
A11: 262 | B11: Bas-Rhin | C11: =VLOOKUP($A11,'RECAP DIRCOM'!$G$6:$DC$12,3,FALSE) -> 254 | D11: =VLOOKUP($A11,'RECAP DIRCOM'!$G$6:$DC$12,75,FALSE) -> 30,931 | E11: =VLOOKUP($A11,'RECAP DIRCOM'!$G$6:$DC$12,76,FALSE) -> 121.55 | F11: =VLOOKUP($A11,'RECAP DIRCOM'!$G$6:$DC$12,77,FALSE) -> 1% | G11: =VLOOKUP($A11,'RECAP DIRCOM'!$G$6:$DC$12,78,FALSE) -> 3 | H11: =VLOOKUP($A11,'RECAP DIRCOM'!$G$6:$DC$12,79,FALSE) -> 4,704 | I11: =VLOOKUP($A11,'RECAP DIRCOM'!$G$6:$DC$12,80,FALSE) -> 18.49 | J11: =VLOOKUP($A11,'RECAP DIRCOM'!$G$6:$DC$12,81,FALSE) -> 18% | K11: =VLOOKUP($A11,'RECAP DIRCOM'!$G$6:$DC$12,82,FALSE) -> 5 | L11: =VLOOKUP($A11,'RECAP DIRCOM'!$G$6:$DC$12,83,FALSE) -> 6% | M11: =VLOOKUP($A11,'RECAP DIRCOM'!$G$6:$DC$12,84,FALSE) -> 6% | N11: =VLOOKUP($A11,'RECAP DIRCOM'!$G$6:$DC$12,85,FALSE) -> 4
A12: 264 | B12: Haut-Rhin | C12: =VLOOKUP($A12,'RECAP DIRCOM'!$G$6:$DC$12,3,FALSE) -> 157 | D12: =VLOOKUP($A12,'RECAP DIRCOM'!$G$6:$DC$12,75,FALSE) -> 13,319 | E12: =VLOOKUP($A12,'RECAP DIRCOM'!$G$6:$DC$12,76,FALSE) -> 84.68 | F12: =VLOOKUP($A12,'RECAP DIRCOM'!$G$6:$DC$12,77,FALSE) -> 31% | G12: =VLOOKUP($A12,'RECAP DIRCOM'!$G$6:$DC$12,78,FALSE) -> 7 | H12: =VLOOKUP($A12,'RECAP DIRCOM'!$G$6:$DC$12,79,FALSE) -> 2,528 | I12: =VLOOKUP($A12,'RECAP DIRCOM'!$G$6:$DC$12,80,FALSE) -> 16.07 | J12: =VLOOKUP($A12,'RECAP DIRCOM'!$G$6:$DC$12,81,FALSE) -> 29% | K12: =VLOOKUP($A12,'RECAP DIRCOM'!$G$6:$DC$12,82,FALSE) -> 7 | L12: =VLOOKUP($A12,'RECAP DIRCOM'!$G$6:$DC$12,83,FALSE) -> 30% | M12: =VLOOKUP($A12,'RECAP DIRCOM'!$G$6:$DC$12,84,FALSE) -> 30% | N12: =VLOOKUP($A12,'RECAP DIRCOM'!$G$6:$DC$12,85,FALSE) -> 7
A13: 30 | B13: Marne-Ardennes | C13: =VLOOKUP($A13,'RECAP DIRCOM'!$G$6:$DC$12,3,FALSE) -> 226 | D13: =VLOOKUP($A13,'RECAP DIRCOM'!$G$6:$DC$12,75,FALSE) -> 27,748 | E13: =VLOOKUP($A13,'RECAP DIRCOM'!$G$6:$DC$12,76,FALSE) -> 122.53 | F13: =VLOOKUP($A13,'RECAP DIRCOM'!$G$6:$DC$12,77,FALSE) -> 0% | G13: =VLOOKUP($A13,'RECAP DIRCOM'!$G$6:$DC$12,78,FALSE) -> 1 | H13: =VLOOKUP($A13,'RECAP DIRCOM'!$G$6:$DC$12,79,FALSE) -> 4,445 | I13: =VLOOKUP($A13,'RECAP DIRCOM'!$G$6:$DC$12,80,FALSE) -> 19.63 | J13: =VLOOKUP($A13,'RECAP DIRCOM'!$G$6:$DC$12,81,FALSE) -> 13% | K13: =VLOOKUP($A13,'RECAP DIRCOM'!$G$6:$DC$12,82,FALSE) -> 3 | L13: =VLOOKUP($A13,'RECAP DIRCOM'!$G$6:$DC$12,83,FALSE) -> 4% | M13: =VLOOKUP($A13,'RECAP DIRCOM'!$G$6:$DC$12,84,FALSE) -> 4% | N13: =VLOOKUP($A13,'RECAP DIRCOM'!$G$6:$DC$12,85,FALSE) -> 2
A14: 110 | B14: Meurthe et Moselle Meuse | C14: =VLOOKUP($A14,'RECAP DIRCOM'!$G$6:$DC$12,3,FALSE) -> 242 | D14: =VLOOKUP($A14,'RECAP DIRCOM'!$G$6:$DC$12,75,FALSE) -> 29,559 | E14: =VLOOKUP($A14,'RECAP DIRCOM'!$G$6:$DC$12,76,FALSE) -> 121.91 | F14: =VLOOKUP($A14,'RECAP DIRCOM'!$G$6:$DC$12,77,FALSE) -> 1% | G14: =VLOOKUP($A14,'RECAP DIRCOM'!$G$6:$DC$12,78,FALSE) -> 2 | H14: =VLOOKUP($A14,'RECAP DIRCOM'!$G$6:$DC$12,79,FALSE) -> 5,481 | I14: =VLOOKUP($A14,'RECAP DIRCOM'!$G$6:$DC$12,80,FALSE) -> 22.60 | J14: =VLOOKUP($A14,'RECAP DIRCOM'!$G$6:$DC$12,81,FALSE) -> 0% | K14: =VLOOKUP($A14,'RECAP DIRCOM'!$G$6:$DC$12,82,FALSE) -> 1 | L14: =VLOOKUP($A14,'RECAP DIRCOM'!$G$6:$DC$12,83,FALSE) -> 0% | M14: =VLOOKUP($A14,'RECAP DIRCOM'!$G$6:$DC$12,84,FALSE) -> 0% | N14: =VLOOKUP($A14,'RECAP DIRCOM'!$G$6:$DC$12,85,FALSE) -> 1
A15: 160 | B15: Moselle | C15: =VLOOKUP($A15,'RECAP DIRCOM'!$G$6:$DC$12,3,FALSE) -> 266 | D15: =VLOOKUP($A15,'RECAP DIRCOM'!$G$6:$DC$12,75,FALSE) -> 31,735 | E15: =VLOOKUP($A15,'RECAP DIRCOM'!$G$6:$DC$12,76,FALSE) -> 119.42 | F15: =VLOOKUP($A15,'RECAP DIRCOM'!$G$6:$DC$12,77,FALSE) -> 3% | G15: =VLOOKUP($A15,'RECAP DIRCOM'!$G$6:$DC$12,78,FALSE) -> 4 | H15: =VLOOKUP($A15,'RECAP DIRCOM'!$G$6:$DC$12,79,FALSE) -> 5,315 | I15: =VLOOKUP($A15,'RECAP DIRCOM'!$G$6:$DC$12,80,FALSE) -> 20.00 | J15: =VLOOKUP($A15,'RECAP DIRCOM'!$G$6:$DC$12,81,FALSE) -> 12% | K15: =VLOOKUP($A15,'RECAP DIRCOM'!$G$6:$DC$12,82,FALSE) -> 2 | L15: =VLOOKUP($A15,'RECAP DIRCOM'!$G$6:$DC$12,83,FALSE) -> 5% | M15: =VLOOKUP($A15,'RECAP DIRCOM'!$G$6:$DC$12,84,FALSE) -> 5% | N15: =VLOOKUP($A15,'RECAP DIRCOM'!$G$6:$DC$12,85,FALSE) -> 3
A16: 80 | B16: Vosges | C16: =VLOOKUP($A16,'RECAP DIRCOM'!$G$6:$DC$12,3,FALSE) -> 132 | D16: =VLOOKUP($A16,'RECAP DIRCOM'!$G$6:$DC$12,75,FALSE) -> 15,727 | E16: =VLOOKUP($A16,'RECAP DIRCOM'!$G$6:$DC$12,76,FALSE) -> 118.78 | F16: =VLOOKUP($A16,'RECAP DIRCOM'!$G$6:$DC$12,77,FALSE) -> 3% | G16: =VLOOKUP($A16,'RECAP DIRCOM'!$G$6:$DC$12,78,FALSE) -> 5 | H16: =VLOOKUP($A16,'RECAP DIRCOM'!$G$6:$DC$12,79,FALSE) -> 2,283 | I16: =VLOOKUP($A16,'RECAP DIRCOM'!$G$6:$DC$12,80,FALSE) -> 17.24 | J16: =VLOOKUP($A16,'RECAP DIRCOM'!$G$6:$DC$12,81,FALSE) -> 24% | K16: =VLOOKUP($A16,'RECAP DIRCOM'!$G$6:$DC$12,82,FALSE) -> 6 | L16: =VLOOKUP($A16,'RECAP DIRCOM'!$G$6:$DC$12,83,FALSE) -> 9% | M16: =VLOOKUP($A16,'RECAP DIRCOM'!$G$6:$DC$12,84,FALSE) -> 9% | N16: =VLOOKUP($A16,'RECAP DIRCOM'!$G$6:$DC$12,85,FALSE) -> 5
B17: Total CEGEE Directions Régionales | C17: =SUM(C10:C16) -> 1406

Sheet DC_SATISFACTION
B1: Accueil | D1: BAROMETRE BDD - DIRECTIONS REGIONALES
D2: SATISFACTION
D3: =ACCUEIL!F7 -> 2021-06-20
D7: NPS à froid (SAE) | G7: NPS à chaud (QHD) | J7: Total Satisfaction Clients
D8: =DATEMAJ!E4 -> au 30/04 | E8: coef | F8: ='RECAP DIRCOM'!M4 -> 10% | G8: =DATEMAJ!C5 -> au 30/04 | H8: coef | I8: ='RECAP DIRCOM'!P4 -> 10% | K8: coef | L8: ='RECAP DIRCOM'!S4 -> 20%
B9: Direction | C9: ="ETP perf "&DATEMAJ!$C$28 -> ETP perf 30-avr | E9: % Ecart au 1er | F9: Rang | H9: % Ecart au 1er | I9: Rang | J9: Moyenne ecart au 1er | K9: % Ecart au 1er | L9: Rang CEGEE
A10: 50 | B10: Aube Haute Marne | C10: =VLOOKUP($A10,'RECAP DIRCOM'!$G$6:$DC$12,3,FALSE) -> 127 | D10: =VLOOKUP($A10,'RECAP DIRCOM'!$G$6:$DC$12,5,FALSE) -> 16 | E10: =VLOOKUP($A10,'RECAP DIRCOM'!$G$6:$DC$12,6,FALSE) -> 27% | F10: =VLOOKUP($A10,'RECAP DIRCOM'!$G$6:$DC$12,7,FALSE) -> 2 | G10: =VLOOKUP($A10,'RECAP DIRCOM'!$G$6:$DC$12,8,FALSE) -> 56% | H10: =VLOOKUP($A10,'RECAP DIRCOM'!$G$6:$DC$12,9,FALSE) -> 17% | I10: =VLOOKUP($A10,'RECAP DIRCOM'!$G$6:$DC$12,10,FALSE) -> 4 | J10: =VLOOKUP($A10,'RECAP DIRCOM'!$G$6:$DC$12,11,FALSE) -> 22% | K10: =VLOOKUP($A10,'RECAP DIRCOM'!$G$6:$DC$12,12,FALSE) -> 22% | L10: =VLOOKUP($A10,'RECAP DIRCOM'!$G$6:$DC$12,13,FALSE) -> 3
A11: 262 | B11: Bas-Rhin | C11: =VLOOKUP($A11,'RECAP DIRCOM'!$G$6:$DC$12,3,FALSE) -> 254 | D11: =VLOOKUP($A11,'RECAP DIRCOM'!$G$6:$DC$12,5,FALSE) -> 11 | E11: =VLOOKUP($A11,'RECAP DIRCOM'!$G$6:$DC$12,6,FALSE) -> 50% | F11: =VLOOKUP($A11,'RECAP DIRCOM'!$G$6:$DC$12,7,FALSE) -> 6 | G11: =VLOOKUP($A11,'RECAP DIRCOM'!$G$6:$DC$12,8,FALSE) -> 51% | H11: =VLOOKUP($A11,'RECAP DIRCOM'!$G$6:$DC$12,9,FALSE) -> 24% | I11: =VLOOKUP($A11,'RECAP DIRCOM'!$G$6:$DC$12,10,FALSE) -> 6 | J11: =VLOOKUP($A11,'RECAP DIRCOM'!$G$6:$DC$12,11,FALSE) -> 37% | K11: =VLOOKUP($A11,'RECAP DIRCOM'!$G$6:$DC$12,12,FALSE) -> 37% | L11: =VLOOKUP($A11,'RECAP DIRCOM'!$G$6:$DC$12,13,FALSE) -> 6
A12: 264 | B12: Haut-Rhin | C12: =VLOOKUP($A12,'RECAP DIRCOM'!$G$6:$DC$12,3,FALSE) -> 157 | D12: =VLOOKUP($A12,'RECAP DIRCOM'!$G$6:$DC$12,5,FALSE) -> 7 | E12: =VLOOKUP($A12,'RECAP DIRCOM'!$G$6:$DC$12,6,FALSE) -> 68% | F12: =VLOOKUP($A12,'RECAP DIRCOM'!$G$6:$DC$12,7,FALSE) -> 7 | G12: =VLOOKUP($A12,'RECAP DIRCOM'!$G$6:$DC$12,8,FALSE) -> 38% | H12: =VLOOKUP($A12,'RECAP DIRCOM'!$G$6:$DC$12,9,FALSE) -> 44% | I12: =VLOOKUP($A12,'RECAP DIRCOM'!$G$6:$DC$12,10,FALSE) -> 7 | J12: =VLOOKUP($A12,'RECAP DIRCOM'!$G$6:$DC$12,11,FALSE) -> 56% | K12: =VLOOKUP($A12,'RECAP DIRCOM'!$G$6:$DC$12,12,FALSE) -> 56% | L12: =VLOOKUP($A12,'RECAP DIRCOM'!$G$6:$DC$12,13,FALSE) -> 7
A13: 30 | B13: Marne-Ardennes | C13: =VLOOKUP($A13,'RECAP DIRCOM'!$G$6:$DC$12,3,FALSE) -> 226 | D13: =VLOOKUP($A13,'RECAP DIRCOM'!$G$6:$DC$12,5,FALSE) -> 16 | E13: =VLOOKUP($A13,'RECAP DIRCOM'!$G$6:$DC$12,6,FALSE) -> 27% | F13: =VLOOKUP($A13,'RECAP DIRCOM'!$G$6:$DC$12,7,FALSE) -> 2 | G13: =VLOOKUP($A13,'RECAP DIRCOM'!$G$6:$DC$12,8,FALSE) -> 65% | H13: =VLOOKUP($A13,'RECAP DIRCOM'!$G$6:$DC$12,9,FALSE) -> 4% | I13: =VLOOKUP($A13,'RECAP DIRCOM'!$G$6:$DC$12,10,FALSE) -> 2 | J13: =VLOOKUP($A13,'RECAP DIRCOM'!$G$6:$DC$12,11,FALSE) -> 16% | K13: =VLOOKUP($A13,'RECAP DIRCOM'!$G$6:$DC$12,12,FALSE) -> 16% | L13: =VLOOKUP($A13,'RECAP DIRCOM'!$G$6:$DC$12,13,FALSE) -> 2
A14: 110 | B14: Meurthe et Moselle Meuse | C14: =VLOOKUP($A14,'RECAP DIRCOM'!$G$6:$DC$12,3,FALSE) -> 242 | D14: =VLOOKUP($A14,'RECAP DIRCOM'!$G$6:$DC$12,5,FALSE) -> 12 | E14: =VLOOKUP($A14,'RECAP DIRCOM'!$G$6:$DC$12,6,FALSE) -> 45% | F14: =VLOOKUP($A14,'RECAP DIRCOM'!$G$6:$DC$12,7,FALSE) -> 4 | G14: =VLOOKUP($A14,'RECAP DIRCOM'!$G$6:$DC$12,8,FALSE) -> 56% | H14: =VLOOKUP($A14,'RECAP DIRCOM'!$G$6:$DC$12,9,FALSE) -> 17% | I14: =VLOOKUP($A14,'RECAP DIRCOM'!$G$6:$DC$12,10,FALSE) -> 5 | J14: =VLOOKUP($A14,'RECAP DIRCOM'!$G$6:$DC$12,11,FALSE) -> 31% | K14: =VLOOKUP($A14,'RECAP DIRCOM'!$G$6:$DC$12,12,FALSE) -> 31% | L14: =VLOOKUP($A14,'RECAP DIRCOM'!$G$6:$DC$12,13,FALSE) -> 5
A15: 160 | B15: Moselle | C15: =VLOOKUP($A15,'RECAP DIRCOM'!$G$6:$DC$12,3,FALSE) -> 266 | D15: =VLOOKUP($A15,'RECAP DIRCOM'!$G$6:$DC$12,5,FALSE) -> 12 | E15: =VLOOKUP($A15,'RECAP DIRCOM'!$G$6:$DC$12,6,FALSE) -> 45% | F15: =VLOOKUP($A15,'RECAP DIRCOM'!$G$6:$DC$12,7,FALSE) -> 4 | G15: =VLOOKUP($A15,'RECAP DIRCOM'!$G$6:$DC$12,8,FALSE) -> 57% | H15: =VLOOKUP($A15,'RECAP DIRCOM'!$G$6:$DC$12,9,FALSE) -> 16% | I15: =VLOOKUP($A15,'RECAP DIRCOM'!$G$6:$DC$12,10,FALSE) -> 3 | J15: =VLOOKUP($A15,'RECAP DIRCOM'!$G$6:$DC$12,11,FALSE) -> 31% | K15: =VLOOKUP($A15,'RECAP DIRCOM'!$G$6:$DC$12,12,FALSE) -> 31% | L15: =VLOOKUP($A15,'RECAP DIRCOM'!$G$6:$DC$12,13,FALSE) -> 4
A16: 80 | B16: Vosges | C16: =VLOOKUP($A16,'RECAP DIRCOM'!$G$6:$DC$12,3,FALSE) -> 132 | D16: =VLOOKUP($A16,'RECAP DIRCOM'!$G$6:$DC$12,5,FALSE) -> 22 | E16: =VLOOKUP($A16,'RECAP DIRCOM'!$G$6:$DC$12,6,FALSE) -> 0% | F16: =VLOOKUP($A16,'RECAP DIRCOM'!$G$6:$DC$12,7,FALSE) -> 1 | G16: =VLOOKUP($A16,'RECAP DIRCOM'!$G$6:$DC$12,8,FALSE) -> 68% | H16: =VLOOKUP($A16,'RECAP DIRCOM'!$G$6:$DC$12,9,FALSE) -> 0% | I16: =VLOOKUP($A16,'RECAP DIRCOM'!$G$6:$DC$12,10,FALSE) -> 1 | J16: =VLOOKUP($A16,'RECAP DIRCOM'!$G$6:$DC$12,11,FALSE) -> 0% | K16: =VLOOKUP($A16,'RECAP DIRCOM'!$G$6:$DC$12,12,FALSE) -> 0% | L16: =VLOOKUP($A16,'RECAP DIRCOM'!$G$6:$DC$12,13,FALSE) -> 1
B17: Total CEGEE Directions Régionales | C17: =SUM(C10:C16) -> 1406

Sheet SE_FICHE
A1: Accueil
A2: BAROMETRE BDD
A4: UNITE: | B4: TERRITOIRE | E4: ETP perf : | F4: =VLOOKUP(A5,'RECAP SECT'!$G$6:$I$23,3,FALSE) -> 61.60
A5: =VLOOKUP(B5,LISTES!$H$6:$I$23,2,FALSE) -> 5130 | B5: COLMAR
C6: Coefficient du critére | E6: Résultats | I6: Ecart au 1ier | M6: Evolution | O6: Rang
E7: du 1ier | G7: du territoire | I7: Du mois | K7: Au 31/12/2019
A9: RANG au CLASSEMENT GENERAL | K9: =VLOOKUP($A$5,#REF!,168,FALSE) ->  | M9: =+K9-O9 ->  | O9: =VLOOKUP($A$5,'RECAP SECT'!$G$6:$DG$312,168,FALSE) ->  | S9: =VLOOKUP($A$5,#REF!,154,FALSE) ->  | U9: =+S9-O9 -> 
A11: CRITERE CONQUETE | C11: 15% | O11: =VLOOKUP($A$5,'RECAP SECT'!$G$6:$DG$312,23,FALSE) -> 23.22914143
B12: PNB Evolution nette Clients BP | C12: 4% | E12: ='RECAP SECT'!#REF! ->  | G12: =VLOOKUP($A$5,'RECAP SECT'!$G$6:$DG$312,6,FALSE) -> 0.7 | I12: =VLOOKUP($A$5,'RECAP SECT'!$G$6:$DG$312,7,FALSE) -> 1600% | K12: =VLOOKUP($A$5,#REF!,7,FALSE) ->  | M12: =+K12-I12 ->  | O12: =VLOOKUP($A$5,'RECAP SECT'!$G$6:$DG$312,8,FALSE) -> 0.4696745462 | S12: =VLOOKUP($A$5,#REF!,6,FALSE) ->  | U12: =+S12-I12 -> 
B13: PNB Evolution nette Clients PREMIUM | C13: 5% | E13: ='RECAP SECT'!#REF! ->  | G13: =VLOOKUP($A$5,'RECAP SECT'!$G$6:$DG$312,10,FALSE) -> 17.0 | I13: =VLOOKUP($A$5,'RECAP SECT'!$G$6:$DG$312,11,FALSE) -> 51% | K13: =VLOOKUP($A$5,#REF!,11,FALSE) ->  | M13: =+K13-I13 ->  | O13: =VLOOKUP($A$5,'RECAP SECT'!$G$6:$DG$312,12,FALSE) -> 0.4730433037 | S13: =VLOOKUP($A$5,#REF!,9,FALSE) ->  | U13: =+S13-I13 -> 
B14: PNB Evolution nette Clients Jeunes Equipés | C14: 3% | E14: ='RECAP SECT'!#REF! ->  | G14: =VLOOKUP($A$5,'RECAP SECT'!$G$6:$DG$312,14,FALSE) -> 0.0 | I14: =VLOOKUP($A$5,'RECAP SECT'!$G$6:$DG$312,15,FALSE) -> 0% | K14: =VLOOKUP($A$5,#REF!,15,FALSE) ->  | M14: =+K14-I14 ->  | O14: =VLOOKUP($A$5,'RECAP SECT'!$G$6:$DG$312,16,FALSE) -> 0 | S14: =VLOOKUP($A$5,#REF!,12,FALSE) ->  | U14: =+S14-I14 -> 
B15: PNB Evolution nette Clients Pro Actifs Equipés | C15: 3% | E15: ='RECAP SECT'!W4 -> 0.0 | G15: =VLOOKUP($A$5,'RECAP SECT'!$G$6:$DG$312,18,FALSE) -> 2343.0 | I15: =VLOOKUP($A$5,'RECAP SECT'!$G$6:$DG$312,19,FALSE) -> 3803% | K15: =VLOOKUP($A$5,#REF!,19,FALSE) ->  | M15: =+K15-I15 ->  | O15: =VLOOKUP($A$5,'RECAP SECT'!$G$6:$DG$312,20,FALSE) -> 0.3760679391 | S15: =VLOOKUP($A$5,#REF!,15,FALSE) ->  | U15: =+S15-I15 -> 
A17: CRITERE BANCARISATION | C17: 15% | O17: =VLOOKUP($A$5,'RECAP SECT'!$G$6:$DG$312,48,FALSE) -> 16
B18: PNB Ventes nettes forfaits | C18: 4% | E18: ='RECAP SECT'!X4 -> 61.0 | G18: =VLOOKUP($A$5,'RECAP SECT'!$G$6:$DG$312,31,FALSE) -> -1.4 | I18: =VLOOKUP($A$5,'RECAP SECT'!$G$6:$DG$312,32,FALSE) -> 15% | K18: =VLOOKUP($A$5,#REF!,32,FALSE) ->  | M18: =+K18-I18 ->  | O18: =VLOOKUP($A$5,'RECAP SECT'!$G$6:$DG$312,33,FALSE) -> 7 | S18: =VLOOKUP($A$5,#REF!,27,FALSE) ->  | U18: =+S18-I18 -> 
B19: PNB Ventes nettes IZICARTES Débit Différé | C19: 4% | E19: ='RECAP SECT'!AB4 -> 33.0 | G19: =VLOOKUP($A$5,'RECAP SECT'!$G$6:$DG$312,35,FALSE) -> 0.3 | I19: =VLOOKUP($A$5,'RECAP SECT'!$G$6:$DG$312,36,FALSE) -> 1500% | K19: =VLOOKUP($A$5,#REF!,36,FALSE) ->  | M19: =+K19-I19 ->  | O19: =VLOOKUP($A$5,'RECAP SECT'!$G$6:$DG$312,37,FALSE) -> 0 | S19: =VLOOKUP($A$5,#REF!,30,FALSE) ->  | U19: =+S19-I19 -> 
B20: PNB Ventes nettes cartes HDG Débit Différé | C20: 4% | E20: ='RECAP SECT'!AF4 -> 11.4 | G20: =VLOOKUP($A$5,'RECAP SECT'!$G$6:$DG$312,39,FALSE) -> 0.0 | I20: =VLOOKUP($A$5,'RECAP SECT'!$G$6:$DG$312,40,FALSE) -> 0% | K20: =VLOOKUP($A$5,#REF!,40,FALSE) ->  | M20: =+K20-I20 ->  | O20: =VLOOKUP($A$5,'RECAP SECT'!$G$6:$DG$312,41,FALSE) -> 16320.38379 | S20: =VLOOKUP($A$5,#REF!,33,FALSE) ->  | U20: =+S20-I20 -> 
B21: PNB Ventes nettes Forfaits Pro, Carte pro | C21: 3% | E21: ='RECAP SECT'!AJ4 -> -1.2 | G21: =VLOOKUP($A$5,'RECAP SECT'!$G$6:$DG$312,43,FALSE) -> 0.4 | I21: =VLOOKUP($A$5,'RECAP SECT'!$G$6:$DG$312,44,FALSE) -> 1400% | K21: =VLOOKUP($A$5,#REF!,44,FALSE) ->  | M21: =+K21-I21 ->  | O21: =VLOOKUP($A$5,'RECAP SECT'!$G$6:$DG$312,45,FALSE) -> 750 | S21: =VLOOKUP($A$5,#REF!,39,FALSE) ->  | U21: =+S21-I21 -> 
A23: CRITERE EPARGNE | C23: 10% | O23: =VLOOKUP($A$5,'RECAP SECT'!$G$6:$DG$312,69,FALSE) -> 0.4696186286
B24: PNB Epargne Liquide | C24: 3% | E24: ='RECAP SECT'!AU4 -> 446.7 | G24: =VLOOKUP($A$5,'RECAP SECT'!$G$6:$DG$312,56,FALSE) -> 3127.5 | I24: =VLOOKUP($A$5,'RECAP SECT'!$G$6:$DG$312,57,FALSE) -> 5077% | K24: =VLOOKUP($A$5,#REF!,57,FALSE) ->  | M24: =+K24-I24 ->  | O24: =VLOOKUP($A$5,'RECAP SECT'!$G$6:$DG$312,58,FALSE) -> 0.6982489687 | S24: =VLOOKUP($A$5,#REF!,51,FALSE) ->  | U24: =+S24-I24 -> 
B25: PNB CA UC + arbitrage | C25: 4% | E25: ='RECAP SECT'!AY4 -> 19.3 | G25: =VLOOKUP($A$5,'RECAP SECT'!$G$6:$DG$312,60,FALSE) -> 2045.4 | I25: =VLOOKUP($A$5,'RECAP SECT'!$G$6:$DG$312,61,FALSE) -> 3320% | K25: =VLOOKUP($A$5,#REF!,61,FALSE) ->  | M25: =+K25-I25 ->  | O25: =VLOOKUP($A$5,'RECAP SECT'!$G$6:$DG$312,62,FALSE) -> 0.3362756837 | S25: =VLOOKUP($A$5,#REF!,57,FALSE) ->  | U25: =+S25-I25 -> 
B26: PNB Excédent assurance vie | C26: 3% | E26: ='RECAP SECT'!#REF! ->  | G26: =VLOOKUP($A$5,'RECAP SECT'!$G$6:$DG$312,64,FALSE) -> 445.0 | I26: =VLOOKUP($A$5,'RECAP SECT'!$G$6:$DG$312,65,FALSE) -> 722% | K26: =VLOOKUP($A$5,#REF!,65,FALSE) ->  | M26: =+K26-I26 ->  | O26: =VLOOKUP($A$5,'RECAP SECT'!$G$6:$DG$312,66,FALSE) -> 0.5219977222 | S26: =VLOOKUP($A$5,#REF!,60,FALSE) ->  | U26: =+S26-I26 -> 
A28: CRITERE CREDITS | C28: 15% | O28: =VLOOKUP($A$5,'RECAP SECT'!$G$6:$DG$312,102,FALSE) -> 0.3775630242
B29: PNB crédit conso | C29: 4% | E29: ='RECAP SECT'!BJ4 -> 168.2 | G29: =VLOOKUP($A$5,'RECAP SECT'!$G$6:$DG$312,77,FALSE) -> 0.2 | I29: =VLOOKUP($A$5,'RECAP SECT'!$G$6:$DG$312,78,FALSE) -> 1200% | K29: =VLOOKUP($A$5,#REF!,78,FALSE) ->  | M29: =+K29-I29 ->  | O29: =VLOOKUP($A$5,'RECAP SECT'!$G$6:$DG$312,79,FALSE) -> 1208 | S29: =VLOOKUP($A$5,#REF!,75,FALSE) ->  | U29: =+S29-I29 -> 
B30: PNB ADE crédit conso | C30: 1% | E30: ='RECAP SECT'!#REF! ->  | G30: =VLOOKUP($A$5,'RECAP SECT'!$G$6:$DG$312,81,FALSE) -> 0.4 | I30: =VLOOKUP($A$5,'RECAP SECT'!$G$6:$DG$312,82,FALSE) -> 1700% | K30: =VLOOKUP($A$5,#REF!,82,FALSE) ->  | O30: =VLOOKUP($A$5,'RECAP SECT'!$G$6:$DG$312,83,FALSE) -> 0.2791408297 | S30: =VLOOKUP($A$5,#REF!,78,FALSE) -> 
B31: PNB crédit immo | C31: 4% | E31: ='RECAP SECT'!BN4 -> 50.0 | G31: =VLOOKUP($A$5,'RECAP SECT'!$G$6:$DG$312,85,FALSE) -> 13.0 | I31: =VLOOKUP($A$5,'RECAP SECT'!$G$6:$DG$312,86,FALSE) -> 0% | K31: =VLOOKUP($A$5,#REF!,86,FALSE) ->  | O31: =VLOOKUP($A$5,'RECAP SECT'!$G$6:$DG$312,87,FALSE) -> 0 | S31: =VLOOKUP($A$5,#REF!,81,FALSE) -> 
B32: PNB ADE crédit immo | C32: 2% | E32: ='RECAP SECT'!#REF! ->  | G32: =VLOOKUP($A$5,'RECAP SECT'!$G$6:$DG$312,89,FALSE) -> 0.0 | I32: =VLOOKUP($A$5,'RECAP SECT'!$G$6:$DG$312,90,FALSE) -> 0% | K32: =VLOOKUP($A$5,#REF!,90,FALSE) ->  | O32: =VLOOKUP($A$5,'RECAP SECT'!$G$6:$DG$312,91,FALSE) -> 0 | S32: =VLOOKUP($A$5,#REF!,84,FALSE) -> 
B33: PNB SACCEF | C33: 2% | E33: ='RECAP SECT'!#REF! ->  | G33: =VLOOKUP($A$5,'RECAP SECT'!$G$6:$DG$312,93,FALSE) -> 0.0 | I33: =VLOOKUP($A$5,'RECAP SECT'!$G$6:$DG$312,94,FALSE) -> 0% | K33: =VLOOKUP($A$5,#REF!,94,FALSE) ->  | O33: =VLOOKUP($A$5,'RECAP SECT'!$G$6:$DG$312,95,FALSE) -> 0 | S33: =VLOOKUP($A$5,#REF!,87,FALSE) -> 
B34: PNB Crédit MLT + Crédit Bail | C34: 2% | E34: ='RECAP SECT'!BR4 -> 15.1 | G34: =VLOOKUP($A$5,'RECAP SECT'!$G$6:$DG$312,97,FALSE) -> 0.0 | I34: =VLOOKUP($A$5,'RECAP SECT'!$G$6:$DG$312,98,FALSE) -> 0% | K34: =VLOOKUP($A$5,#REF!,98,FALSE) ->  | O34: =VLOOKUP($A$5,'RECAP SECT'!$G$6:$DG$312,99,FALSE) -> 0 | S34: =VLOOKUP($A$5,#REF!,90,FALSE) -> 
A36: CRITERE IARD PREVOYANCE | C36: 15% | O36: =VLOOKUP($A$5,'RECAP SECT'!$G$6:$DG$312,119,FALSE) -> 
B37: PNB Ventes nettes IARD | C37: 9% | E37: ='RECAP SECT'!CC4 -> 182.2 | G37: =VLOOKUP($A$5,'RECAP SECT'!$G$6:$DG$312,110,FALSE) ->  | I37: =VLOOKUP($A$5,'RECAP SECT'!$G$6:$DG$312,111,FALSE) ->  | K37: =VLOOKUP($A$5,#REF!,111,FALSE) ->  | M37: =+K37-I37 ->  | O37: =VLOOKUP($A$5,'RECAP SECT'!$G$6:$DG$312,112,FALSE) ->  | S37: =VLOOKUP($A$5,#REF!,102,FALSE) ->  | U37: =+S37-I37 -> 
B38: PNB Ventes nettes Prévoyance | C38: 6% | E38: ='RECAP SECT'!CG4 -> 30.6 | G38: =VLOOKUP($A$5,'RECAP SECT'!$G$6:$DG$312,114,FALSE) ->  | I38: =VLOOKUP($A$5,'RECAP SECT'!$G$6:$DG$312,115,FALSE) ->  | K38: =VLOOKUP($A$5,#REF!,115,FALSE) ->  | M38: =+K38-I38 ->  | O38: =VLOOKUP($A$5,'RECAP SECT'!$G$6:$DG$312,116,FALSE) ->  | S38: =VLOOKUP($A$5,#REF!,105,FALSE) ->  | U38: =+S38-I38 -> 
A40: CRITERE ACCELERATEURS PNB | C40: 15% | O40: =VLOOKUP($A$5,'RECAP SECT'!$G$6:$DG$312,144,FALSE) -> 
B41: PNB Ventes brutes SED Finalisées | C41: 6% | E41: ='RECAP SECT'!#REF! ->  | G41: =VLOOKUP($A$5,'RECAP SECT'!$G$6:$DG$312,127,FALSE) ->  | I41: =VLOOKUP($A$5,'RECAP SECT'!$G$6:$DG$312,128,FALSE) ->  | K41: =VLOOKUP($A$5,#REF!,128,FALSE) ->  | M41: =+K41-I41 ->  | O41: =VLOOKUP($A$5,'RECAP SECT'!$G$6:$DG$312,129,FALSE) ->  | S41: =VLOOKUP($A$5,#REF!,120,FALSE) ->  | U41: =+S41-I41 -> 
B42: PNB clients équipés E documents | C42: 3% | E42: ='RECAP SECT'!#REF! ->  | G42: =VLOOKUP($A$5,'RECAP SECT'!$G$6:$DG$312,131,FALSE) ->  | I42: =VLOOKUP($A$5,'RECAP SECT'!$G$6:$DG$312,132,FALSE) ->  | K42: =VLOOKUP($A$5,#REF!,132,FALSE) ->  | M42: =+K42-I42 ->  | O42: =VLOOKUP($A$5,'RECAP SECT'!$G$6:$DG$312,133,FALSE) ->  | S42: =VLOOKUP($A$5,#REF!,123,FALSE) ->  | U42: =+S42-I42 -> 
B43: Economie opt'in | C43: 3% | E43: ='RECAP SECT'!#REF! ->  | G43: =VLOOKUP($A$5,'RECAP SECT'!$G$6:$DG$312,135,FALSE) ->  | I43: =VLOOKUP($A$5,'RECAP SECT'!$G$6:$DG$312,136,FALSE) ->  | K43: =VLOOKUP($A$5,#REF!,136,FALSE) ->  | M43: =+K43-I43 ->  | O43: =VLOOKUP($A$5,'RECAP SECT'!$G$6:$DG$312,137,FALSE) -> 
B44: Remises commerciales | C44: 3% | E44: ='RECAP SECT'!#REF! ->  | G44: =VLOOKUP($A$5,'RECAP SECT'!$G$6:$DG$312,139,FALSE) ->  | I44: =VLOOKUP($A$5,'RECAP SECT'!$G$6:$DG$312,140,FALSE) ->  | K44: =VLOOKUP($A$5,#REF!,140,FALSE) ->  | M44: =+K44-I44 ->  | O44: =VLOOKUP($A$5,'RECAP SECT'!$G$6:$DG$312,141,FALSE) ->  | S44: =VLOOKUP($A$5,#REF!,126,FALSE) ->  | U44: =+S44-I44 -> 
A46: CRITERE Satisfaction Clients | C46: 15% | O46: =VLOOKUP($A$5,'RECAP SECT'!$G$6:$DG$312,159,FALSE) -> 
B47: Objectifs NPS* | C47: 8% | E47: ='RECAP SECT'!K4 -> 24 | G47: =VLOOKUP($A$5,'RECAP SECT'!$G$6:$DG$312,151,FALSE) ->  | I47: =VLOOKUP($A$5,'RECAP SECT'!$G$6:$DG$312,152,FALSE) ->  | K47: =VLOOKUP($A$5,#REF!,152,FALSE) ->  | M47: =+K47-I47 ->  | O47: =VLOOKUP($A$5,'RECAP SECT'!$G$6:$DG$312,153,FALSE) ->  | S47: =VLOOKUP($A$5,#REF!,138,FALSE) ->  | U47: =+S47-I47 -> 
B48: Enquête Qualité Haute Définition | C48: 7% | E48: ='RECAP SECT'!N4 -> 72% | G48: =VLOOKUP($A$5,'RECAP SECT'!$G$6:$DG$312,154,FALSE) ->  | I48: =VLOOKUP($A$5,'RECAP SECT'!$G$6:$DG$312,155,FALSE) ->  | K48: =VLOOKUP($A$5,#REF!,155,FALSE) ->  | M48: =+K48-I48 ->  | O48: =VLOOKUP($A$5,'RECAP SECT'!$G$6:$DG$312,156,FALSE) ->  | S48: =VLOOKUP($A$5,#REF!,141,FALSE) ->  | U48: =+S48-I48 -> 

Sheet SE_TOTAL
B1: Accueil | F1: BAROMETRE BDD - TERRITOIRES
F2: TOTAL GENERAL
F3: =ACCUEIL!F7 -> 2021-06-20
F7: TOTAL GENERAL | I7: Total Satisfaction Clients | L7: Total Bancarisation | O7: Total Epargne | R7: Total IARD Prévoyance | U7: Total Crédits
G8: coef | H8: 100% | J8: coef | K8: =SE_SATISFACTION!N8 -> 20% | M8: coef | N8: =SE_BANCA!X8 -> 20% | P8: coef | Q8: =SE_EPARGNE!P8 -> 20% | S8: coef | T8: =SE_IARD!P8 -> 20% | V8: coef | W8: =SE_CREDIT!T8 -> 20%
B9: Direction | C9: eds | D9: Territoire | E9: ="ETP perf "&DATEMAJ!$C$28 -> ETP perf 30-avr | F9: Moyenne ecart au 1er | G9: % Ecart au 1er | H9: Rang CEGEE | I9: Moyenne ecart au 1er | J9: % Ecart au 1er | K9: Rang CEGEE | L9: Moyenne ecart au 1er | M9: % Ecart au 1er | N9: Rang CEGEE | O9: Moyenne ecart au 1er | P9: % Ecart au 1er | Q9: Rang CEGEE | R9: Moyenne ecart au 1er | S9: % Ecart au 1er | T9: Rang CEGEE | U9: Moyenne ecart au 1er | V9: % Ecart au 1er | W9: Rang CEGEE
A10: 50 | B10: MEURTHE ET MOSELLE MEUSE | C10: 26 | D10: NANCY | E10: 66.5 | F10: 7% | G10: 0% | H10: 1 | I10: 38% | J10: 34% | K10: 10 | L10: 7% | M10: 0% | N10: 1 | O10: 2% | P10: 0% | Q10: 1 | R10: 3% | S10: 0% | T10: 1 | U10: 7% | V10: 0% | W10: 1
A11: 50 | B11: MARNE-ARDENNES | C11: 2 | D11: CHARLEVILLE MEZIERES | E11: 55.8 | F11: 12% | G11: 5% | H11: 2 | I11: 7% | J11: 3% | K11: 3 | L11: 29% | M11: 21% | N11: 11 | O11: 10% | P11: 8% | Q11: 4 | R11: 16% | S11: 13% | T11: 4 | U11: 20% | V11: 13% | W11: 4
A12: 262 | B12: MEURTHE ET MOSELLE MEUSE | C12: 27 | D12: PONT A MOUSSON | E12: 76.0 | F12: 14% | G12: 7% | H12: 3 | I12: 44% | J12: 41% | K12: 14 | L12: 9% | M12: 1% | N12: 2 | O12: 8% | P12: 7% | Q12: 3 | R12: 17% | S12: 15% | T12: 7 | U12: 12% | V12: 5% | W12: 2
A13: 262 | B13: MEURTHE ET MOSELLE MEUSE | C13: 31 | D13: VERDUN | E13: 54.9 | F13: 18% | G13: 11% | H13: 4 | I13: 20% | J13: 16% | K13: 5 | L13: 17% | M13: 10% | N13: 3 | O13: 25% | P13: 23% | Q13: 10 | R13: 28% | S13: 25% | T13: 12 | U13: 23% | V13: 17% | W13: 5
A14: 262 | B14: BAS-RHIN | C14: 5006 | D14: STRASBOURG | E14: 76.2 | F14: 18% | G14: 11% | H14: 5 | I14: 40% | J14: 37% | K14: 13 | L14: 20% | M14: 13% | N14: 4 | O14: 10% | P14: 9% | Q14: 5 | R14: 5% | S14: 2% | T14: 2 | U14: 37% | V14: 31% | W14: 10
A15: 264 | B15: MARNE-ARDENNES | C15: 6 | D15: CHALONS EN CHAMPAGNE | E15: 44.5 | F15: 20% | G15: 13% | H15: 6 | I15: 6% | J15: 3% | K15: 2 | L15: 29% | M15: 22% | N15: 13 | O15: 32% | P15: 30% | Q15: 14 | R15: 23% | S15: 20% | T15: 11 | U15: 31% | V15: 25% | W15: 7
A16: 264 | B16: VOSGES | C16: 57 | D16: EPINAL | E16: 61.0 | F16: 20% | G16: 13% | H16: 7 | I16: 4% | J16: 0% | K16: 1 | L16: 40% | M16: 32% | N16: 16 | O16: 22% | P16: 21% | Q16: 7 | R16: 17% | S16: 14% | T16: 6 | U16: 39% | V16: 32% | W16: 14
A17: 30 | B17: MARNE-ARDENNES | C17: 11 | D17: REIMS | E17: 80.4 | F17: 21% | G17: 14% | H17: 8 | I17: 40% | J17: 36% | K17: 12 | L17: 27% | M17: 20% | N17: 9 | O17: 29% | P17: 27% | Q17: 12 | R17: 14% | S17: 12% | T17: 3 | U17: 15% | V17: 8% | W17: 3
A18: 30 | B18: MOSELLE | C18: 44 | D18: MOSELLE NORD | E18: 65.4 | F18: 22% | G18: 15% | H18: 9 | I18: 47% | J18: 43% | K18: 15 | L18: 22% | M18: 15% | N18: 5 | O18: 17% | P18: 15% | Q18: 6 | R18: 18% | S18: 16% | T18: 10 | U18: 28% | V18: 22% | W18: 6
A19: 30 | B19: MOSELLE | C19: 42 | D19: MOSELLE EST | E19: 69.8 | F19: 23% | G19: 16% | H19: 10 | I19: 26% | J19: 23% | K19: 7 | L19: 23% | M19: 16% | N19: 6 | O19: 31% | P19: 29% | Q19: 13 | R19: 18% | S19: 15% | T19: 9 | U19: 37% | V19: 31% | W19: 9
A20: 110 | B20: BAS-RHIN | C20: 5101 | D20: SELESTAT | E20: 60.3 | F20: 24% | G20: 17% | H20: 11 | I20: 50% | J20: 46% | K20: 16 | L20: 24% | M20: 16% | N20: 7 | O20: 5% | P20: 3% | Q20: 2 | R20: 18% | S20: 15% | T20: 8 | U20: 47% | V20: 40% | W20: 16
A21: 110 | B21: AUBE HAUTE MARNE | C21: 21 | D21: CHAUMONT | E21: 33.5 | F21: 25% | G21: 18% | H21: 12 | I21: 33% | J21: 30% | K21: 8 | L21: 27% | M21: 20% | N21: 8 | O21: 39% | P21: 37% | Q21: 15 | R21: 16% | S21: 13% | T21: 5 | U21: 32% | V21: 25% | W21: 8
A22: 110 | B22: VOSGES | C22: 55 | D22: SAINT DIE | E22: 46.8 | F22: 25% | G22: 18% | H22: 13 | I22: 11% | J22: 8% | K22: 4 | L22: 41% | M22: 34% | N22: 17 | O22: 25% | P22: 23% | Q22: 9 | R22: 32% | S22: 29% | T22: 15 | U22: 39% | V22: 32% | W22: 13
A23: 160 | B23: MOSELLE | C23: 45 | D23: METZ | E23: 89.6 | F23: 28% | G23: 22% | H23: 14 | I23: 33% | J23: 30% | K23: 9 | L23: 34% | M23: 27% | N23: 14 | O23: 29% | P23: 27% | Q23: 11 | R23: 29% | S23: 26% | T23: 14 | U23: 39% | V23: 32% | W23: 12
A24: 160 | B24: BAS-RHIN | C24: 5060 | D24: HAGUENAU | E24: 70.0 | F24: 30% | G24: 23% | H24: 15 | I24: 39% | J24: 35% | K24: 11 | L24: 29% | M24: 21% | N24: 12 | O24: 24% | P24: 23% | Q24: 8 | R24: 39% | S24: 36% | T24: 17 | U24: 43% | V24: 36% | W24: 15
A25: 160 | B25: AUBE HAUTE MARNE | C25: 14 | D25: TROYES | E25: 65.9 | F25: 33% | G25: 27% | H25: 16 | I25: 26% | J25: 23% | K25: 6 | L25: 28% | M25: 20% | N25: 10 | O25: 58% | P25: 57% | Q25: 17 | R25: 39% | S25: 36% | T25: 16 | U25: 38% | V25: 31% | W25: 11
A26: 80 | B26: HAUT-RHIN | C26: 5130 | D26: COLMAR | E26: 61.6 | F26: 38% | G26: 31% | H26: 17 | I26: 51% | J26: 47% | K26: 17 | L26: 39% | M26: 31% | N26: 15 | O26: 40% | P26: 38% | Q26: 16 | R26: 28% | S26: 25% | T26: 13 | U26: 54% | V26: 47% | W26: 18
A27: 80 | B27: HAUT-RHIN | C27: 5169 | D27: MULHOUSE | E27: 61.0 | F27: 53% | G27: 46% | H27: 18 | I27: 69% | J27: 66% | K27: 18 | L27: 59% | M27: 52% | N27: 18 | O27: 62% | P27: 61% | Q27: 18 | R27: 48% | S27: 46% | T27: 18 | U27: 49% | V27: 42% | W27: 17
A28: Total CEGEE Directions Régionales | E28: =SUM(E10:E27) -> 1139

Sheet SE_BANCA
B1: Accueil | F1: BAROMETRE BDD - TERRITOIRES
F2: BANCARISATION
F3: =ACCUEIL!F7 -> 2021-06-20
F7: Ventes Nettes produits pondérés | J7: Ventes sur client non détenteur de l’univers | N7: Mobilité Macron | R7: Remises commerciales | V7: Total Bancarisation
F8: =DATEMAJ!C8 -> au 20/06 | H8: coef | I8: ='RECAP DIRCOM'!AA4 -> 10% | J8: =DATEMAJ!C9 -> au 20/06 | L8: coef | M8: ='RECAP DIRCOM'!AE4 -> 4% | N8: =DATEMAJ!C10 -> au 20/06 | P8: coef | Q8: ='RECAP DIRCOM'!AI4 -> 3% | R8: =DATEMAJ!C11 -> au 30/04 | T8: coef | U8: ='RECAP DIRCOM'!AM4 -> 3% | W8: coef | X8: ='RECAP DIRCOM'!AP4 -> 20%
B9: Direction | C9: eds | D9: Territoire | E9: ="ETP perf "&DATEMAJ!$C$28 -> ETP perf 30-avr | F9: VN | G9: VN / ETP | H9: % Ecart au 1er | I9: Rang | J9: VB | K9: VB / ETP | L9: % Ecart au 1er | M9: Rang | N9: Nb | O9: Nb / ETP | P9: % Ecart au 1er | Q9: Rang | R9: Montant | S9: Montant / ETP | T9: % Ecart au 1er | U9: Rang | V9: Moyenne ecart au 1er | W9: % Ecart au 1er | X9: Rang CEGEE
A10: 50 | B10: AUBE HAUTE MARNE | C10: 21 | D10: CHAUMONT | E10: =VLOOKUP($C10,'RECAP SECT'!$G$6:$DC$253,3,FALSE) -> 33.5 | F10: =VLOOKUP($C10,'RECAP SECT'!$G$6:$DC$253,18,FALSE) -> 1,511 | G10: =VLOOKUP($C10,'RECAP SECT'!$G$6:$DC$253,19,FALSE) -> 45.16 | H10: =VLOOKUP($C10,'RECAP SECT'!$G$6:$DC$253,20,FALSE) -> 26% | I10: =VLOOKUP($C10,'RECAP SECT'!$G$6:$DC$253,21,FALSE) -> 9 | J10: =VLOOKUP($C10,'RECAP SECT'!$G$6:$DC$253,22,FALSE) -> 929 | K10: =VLOOKUP($C10,'RECAP SECT'!$G$6:$DC$253,23,FALSE) -> 27.77 | L10: =VLOOKUP($C10,'RECAP SECT'!$G$6:$DC$253,24,FALSE) -> 16% | M10: =VLOOKUP($C10,'RECAP SECT'!$G$6:$DC$253,25,FALSE) -> 6 | N10: =VLOOKUP($C10,'RECAP SECT'!$G$6:$DC$253,26,FALSE) -> 170 | O10: =VLOOKUP($C10,'RECAP SECT'!$G$6:$DC$253,27,FALSE) -> 5.08 | P10: =VLOOKUP($C10,'RECAP SECT'!$G$6:$DC$253,28,FALSE) -> 56% | Q10: =VLOOKUP($C10,'RECAP SECT'!$G$6:$DC$253,29,FALSE) -> 9 | R10: =VLOOKUP($C10,'RECAP SECT'!$G$6:$DC$253,30,FALSE) -> -47.5 | S10: =VLOOKUP($C10,'RECAP SECT'!$G$6:$DC$253,31,FALSE) -> -1.42 | T10: =VLOOKUP($C10,'RECAP SECT'!$G$6:$DC$253,32,FALSE) -> 16% | U10: =VLOOKUP($C10,'RECAP SECT'!$G$6:$DC$253,33,FALSE) -> 9 | V10: =VLOOKUP($C10,'RECAP SECT'!$G$6:$DC$253,34,FALSE) -> 27% | W10: =VLOOKUP($C10,'RECAP SECT'!$G$6:$DC$253,35,FALSE) -> 20% | X10: =VLOOKUP($C10,'RECAP SECT'!$G$6:$DC$253,36,FALSE) -> 8
A11: 50 | B11: AUBE HAUTE MARNE | C11: 14 | D11: TROYES | E11: =VLOOKUP($C11,'RECAP SECT'!$G$6:$DC$253,3,FALSE) -> 65.9 | F11: =VLOOKUP($C11,'RECAP SECT'!$G$6:$DC$253,18,FALSE) -> 2,937 | G11: =VLOOKUP($C11,'RECAP SECT'!$G$6:$DC$253,19,FALSE) -> 44.55 | H11: =VLOOKUP($C11,'RECAP SECT'!$G$6:$DC$253,20,FALSE) -> 27% | I11: =VLOOKUP($C11,'RECAP SECT'!$G$6:$DC$253,21,FALSE) -> 10 | J11: =VLOOKUP($C11,'RECAP SECT'!$G$6:$DC$253,22,FALSE) -> 1,690 | K11: =VLOOKUP($C11,'RECAP SECT'!$G$6:$DC$253,23,FALSE) -> 25.63 | L11: =VLOOKUP($C11,'RECAP SECT'!$G$6:$DC$253,24,FALSE) -> 22% | M11: =VLOOKUP($C11,'RECAP SECT'!$G$6:$DC$253,25,FALSE) -> 9 | N11: =VLOOKUP($C11,'RECAP SECT'!$G$6:$DC$253,26,FALSE) -> 338 | O11: =VLOOKUP($C11,'RECAP SECT'!$G$6:$DC$253,27,FALSE) -> 5.13 | P11: =VLOOKUP($C11,'RECAP SECT'!$G$6:$DC$253,28,FALSE) -> 55% | Q11: =VLOOKUP($C11,'RECAP SECT'!$G$6:$DC$253,29,FALSE) -> 8 | R11: =VLOOKUP($C11,'RECAP SECT'!$G$6:$DC$253,30,FALSE) -> -87.8 | S11: =VLOOKUP($C11,'RECAP SECT'!$G$6:$DC$253,31,FALSE) -> -1.33 | T11: =VLOOKUP($C11,'RECAP SECT'!$G$6:$DC$253,32,FALSE) -> 9% | U11: =VLOOKUP($C11,'RECAP SECT'!$G$6:$DC$253,33,FALSE) -> 5 | V11: =VLOOKUP($C11,'RECAP SECT'!$G$6:$DC$253,34,FALSE) -> 28% | W11: =VLOOKUP($C11,'RECAP SECT'!$G$6:$DC$253,35,FALSE) -> 20% | X11: =VLOOKUP($C11,'RECAP SECT'!$G$6:$DC$253,36,FALSE) -> 10
A12: 262 | B12: BAS-RHIN | C12: 5060 | D12: HAGUENAU | E12: =VLOOKUP($C12,'RECAP SECT'!$G$6:$DC$253,3,FALSE) -> 70.0 | F12: =VLOOKUP($C12,'RECAP SECT'!$G$6:$DC$253,18,FALSE) -> 3,550 | G12: =VLOOKUP($C12,'RECAP SECT'!$G$6:$DC$253,19,FALSE) -> 50.74 | H12: =VLOOKUP($C12,'RECAP SECT'!$G$6:$DC$253,20,FALSE) -> 17% | I12: =VLOOKUP($C12,'RECAP SECT'!$G$6:$DC$253,21,FALSE) -> 7 | J12: =VLOOKUP($C12,'RECAP SECT'!$G$6:$DC$253,22,FALSE) -> 1,511 | K12: =VLOOKUP($C12,'RECAP SECT'!$G$6:$DC$253,23,FALSE) -> 21.60 | L12: =VLOOKUP($C12,'RECAP SECT'!$G$6:$DC$253,24,FALSE) -> 35% | M12: =VLOOKUP($C12,'RECAP SECT'!$G$6:$DC$253,25,FALSE) -> 18 | N12: =VLOOKUP($C12,'RECAP SECT'!$G$6:$DC$253,26,FALSE) -> 244 | O12: =VLOOKUP($C12,'RECAP SECT'!$G$6:$DC$253,27,FALSE) -> 3.49 | P12: =VLOOKUP($C12,'RECAP SECT'!$G$6:$DC$253,28,FALSE) -> 70% | Q12: =VLOOKUP($C12,'RECAP SECT'!$G$6:$DC$253,29,FALSE) -> 14 | R12: =VLOOKUP($C12,'RECAP SECT'!$G$6:$DC$253,30,FALSE) -> -102.2 | S12: =VLOOKUP($C12,'RECAP SECT'!$G$6:$DC$253,31,FALSE) -> -1.46 | T12: =VLOOKUP($C12,'RECAP SECT'!$G$6:$DC$253,32,FALSE) -> 20% | U12: =VLOOKUP($C12,'RECAP SECT'!$G$6:$DC$253,33,FALSE) -> 11 | V12: =VLOOKUP($C12,'RECAP SECT'!$G$6:$DC$253,34,FALSE) -> 29% | W12: =VLOOKUP($C12,'RECAP SECT'!$G$6:$DC$253,35,FALSE) -> 21% | X12: =VLOOKUP($C12,'RECAP SECT'!$G$6:$DC$253,36,FALSE) -> 12
A13: 262 | B13: BAS-RHIN | C13: 5101 | D13: SELESTAT | E13: =VLOOKUP($C13,'RECAP SECT'!$G$6:$DC$253,3,FALSE) -> 60.3 | F13: =VLOOKUP($C13,'RECAP SECT'!$G$6:$DC$253,18,FALSE) -> 3,443 | G13: =VLOOKUP($C13,'RECAP SECT'!$G$6:$DC$253,19,FALSE) -> 57.14 | H13: =VLOOKUP($C13,'RECAP SECT'!$G$6:$DC$253,20,FALSE) -> 6% | I13: =VLOOKUP($C13,'RECAP SECT'!$G$6:$DC$253,21,FALSE) -> 3 | J13: =VLOOKUP($C13,'RECAP SECT'!$G$6:$DC$253,22,FALSE) -> 1,371 | K13: =VLOOKUP($C13,'RECAP SECT'!$G$6:$DC$253,23,FALSE) -> 22.75 | L13: =VLOOKUP($C13,'RECAP SECT'!$G$6:$DC$253,24,FALSE) -> 31% | M13: =VLOOKUP($C13,'RECAP SECT'!$G$6:$DC$253,25,FALSE) -> 16 | N13: =VLOOKUP($C13,'RECAP SECT'!$G$6:$DC$253,26,FALSE) -> 219 | O13: =VLOOKUP($C13,'RECAP SECT'!$G$6:$DC$253,27,FALSE) -> 3.63 | P13: =VLOOKUP($C13,'RECAP SECT'!$G$6:$DC$253,28,FALSE) -> 68% | Q13: =VLOOKUP($C13,'RECAP SECT'!$G$6:$DC$253,29,FALSE) -> 13 | R13: =VLOOKUP($C13,'RECAP SECT'!$G$6:$DC$253,30,FALSE) -> -93.6 | S13: =VLOOKUP($C13,'RECAP SECT'!$G$6:$DC$253,31,FALSE) -> -1.55 | T13: =VLOOKUP($C13,'RECAP SECT'!$G$6:$DC$253,32,FALSE) -> 27% | U13: =VLOOKUP($C13,'RECAP SECT'!$G$6:$DC$253,33,FALSE) -> 13 | V13: =VLOOKUP($C13,'RECAP SECT'!$G$6:$DC$253,34,FALSE) -> 24% | W13: =VLOOKUP($C13,'RECAP SECT'!$G$6:$DC$253,35,FALSE) -> 16% | X13: =VLOOKUP($C13,'RECAP SECT'!$G$6:$DC$253,36,FALSE) -> 7
A14: 262 | B14: BAS-RHIN | C14: 5006 | D14: STRASBOURG | E14: =VLOOKUP($C14,'RECAP SECT'!$G$6:$DC$253,3,FALSE) -> 76.2 | F14: =VLOOKUP($C14,'RECAP SECT'!$G$6:$DC$253,18,FALSE) -> 4,231 | G14: =VLOOKUP($C14,'RECAP SECT'!$G$6:$DC$253,19,FALSE) -> 55.51 | H14: =VLOOKUP($C14,'RECAP SECT'!$G$6:$DC$253,20,FALSE) -> 9% | I14: =VLOOKUP($C14,'RECAP SECT'!$G$6:$DC$253,21,FALSE) -> 4 | J14: =VLOOKUP($C14,'RECAP SECT'!$G$6:$DC$253,22,FALSE) -> 2,342 | K14: =VLOOKUP($C14,'RECAP SECT'!$G$6:$DC$253,23,FALSE) -> 30.72 | L14: =VLOOKUP($C14,'RECAP SECT'!$G$6:$DC$253,24,FALSE) -> 7% | M14: =VLOOKUP($C14,'RECAP SECT'!$G$6:$DC$253,25,FALSE) -> 2 | N14: =VLOOKUP($C14,'RECAP SECT'!$G$6:$DC$253,26,FALSE) -> 463 | O14: =VLOOKUP($C14,'RECAP SECT'!$G$6:$DC$253,27,FALSE) -> 6.07 | P14: =VLOOKUP($C14,'RECAP SECT'!$G$6:$DC$253,28,FALSE) -> 47% | Q14: =VLOOKUP($C14,'RECAP SECT'!$G$6:$DC$253,29,FALSE) -> 6 | R14: =VLOOKUP($C14,'RECAP SECT'!$G$6:$DC$253,30,FALSE) -> -139.9 | S14: =VLOOKUP($C14,'RECAP SECT'!$G$6:$DC$253,31,FALSE) -> -1.83 | T14: =VLOOKUP($C14,'RECAP SECT'!$G$6:$DC$253,32,FALSE) -> 50% | U14: =VLOOKUP($C14,'RECAP SECT'!$G$6:$DC$253,33,FALSE) -> 18 | V14: =VLOOKUP($C14,'RECAP SECT'!$G$6:$DC$253,34,FALSE) -> 20% | W14: =VLOOKUP($C14,'RECAP SECT'!$G$6:$DC$253,35,FALSE) -> 13% | X14: =VLOOKUP($C14,'RECAP SECT'!$G$6:$DC$253,36,FALSE) -> 4
A15: 264 | B15: HAUT-RHIN | C15: 5130 | D15: COLMAR | E15: =VLOOKUP($C15,'RECAP SECT'!$G$6:$DC$253,3,FALSE) -> 61.6 | F15: =VLOOKUP($C15,'RECAP SECT'!$G$6:$DC$253,18,FALSE) -> 2,343 | G15: =VLOOKUP($C15,'RECAP SECT'!$G$6:$DC$253,19,FALSE) -> 38.03 | H15: =VLOOKUP($C15,'RECAP SECT'!$G$6:$DC$253,20,FALSE) -> 38% | I15: =VLOOKUP($C15,'RECAP SECT'!$G$6:$DC$253,21,FALSE) -> 14 | J15: =VLOOKUP($C15,'RECAP SECT'!$G$6:$DC$253,22,FALSE) -> 1,431 | K15: =VLOOKUP($C15,'RECAP SECT'!$G$6:$DC$253,23,FALSE) -> 23.23 | L15: =VLOOKUP($C15,'RECAP SECT'!$G$6:$DC$253,24,FALSE) -> 30% | M15: =VLOOKUP($C15,'RECAP SECT'!$G$6:$DC$253,25,FALSE) -> 14 | N15: =VLOOKUP($C15,'RECAP SECT'!$G$6:$DC$253,26,FALSE) -> 149 | O15: =VLOOKUP($C15,'RECAP SECT'!$G$6:$DC$253,27,FALSE) -> 2.42 | P15: =VLOOKUP($C15,'RECAP SECT'!$G$6:$DC$253,28,FALSE) -> 79% | Q15: =VLOOKUP($C15,'RECAP SECT'!$G$6:$DC$253,29,FALSE) -> 18 | R15: =VLOOKUP($C15,'RECAP SECT'!$G$6:$DC$253,30,FALSE) -> -86.3 | S15: =VLOOKUP($C15,'RECAP SECT'!$G$6:$DC$253,31,FALSE) -> -1.40 | T15: =VLOOKUP($C15,'RECAP SECT'!$G$6:$DC$253,32,FALSE) -> 15% | U15: =VLOOKUP($C15,'RECAP SECT'!$G$6:$DC$253,33,FALSE) -> 7 | V15: =VLOOKUP($C15,'RECAP SECT'!$G$6:$DC$253,34,FALSE) -> 39% | W15: =VLOOKUP($C15,'RECAP SECT'!$G$6:$DC$253,35,FALSE) -> 31% | X15: =VLOOKUP($C15,'RECAP SECT'!$G$6:$DC$253,36,FALSE) -> 15
A16: 264 | B16: HAUT-RHIN | C16: 5169 | D16: MULHOUSE | E16: =VLOOKUP($C16,'RECAP SECT'!$G$6:$DC$253,3,FALSE) -> 61.0 | F16: =VLOOKUP($C16,'RECAP SECT'!$G$6:$DC$253,18,FALSE) -> 993 | G16: =VLOOKUP($C16,'RECAP SECT'!$G$6:$DC$253,19,FALSE) -> 16.27 | H16: =VLOOKUP($C16,'RECAP SECT'!$G$6:$DC$253,20,FALSE) -> 73% | I16: =VLOOKUP($C16,'RECAP SECT'!$G$6:$DC$253,21,FALSE) -> 18 | J16: =VLOOKUP($C16,'RECAP SECT'!$G$6:$DC$253,22,FALSE) -> 1,363 | K16: =VLOOKUP($C16,'RECAP SECT'!$G$6:$DC$253,23,FALSE) -> 22.34 | L16: =VLOOKUP($C16,'RECAP SECT'!$G$6:$DC$253,24,FALSE) -> 32% | M16: =VLOOKUP($C16,'RECAP SECT'!$G$6:$DC$253,25,FALSE) -> 17 | N16: =VLOOKUP($C16,'RECAP SECT'!$G$6:$DC$253,26,FALSE) -> 153 | O16: =VLOOKUP($C16,'RECAP SECT'!$G$6:$DC$253,27,FALSE) -> 2.51 | P16: =VLOOKUP($C16,'RECAP SECT'!$G$6:$DC$253,28,FALSE) -> 78% | Q16: =VLOOKUP($C16,'RECAP SECT'!$G$6:$DC$253,29,FALSE) -> 17 | R16: =VLOOKUP($C16,'RECAP SECT'!$G$6:$DC$253,30,FALSE) -> -96.0 | S16: =VLOOKUP($C16,'RECAP SECT'!$G$6:$DC$253,31,FALSE) -> -1.57 | T16: =VLOOKUP($C16,'RECAP SECT'!$G$6:$DC$253,32,FALSE) -> 29% | U16: =VLOOKUP($C16,'RECAP SECT'!$G$6:$DC$253,33,FALSE) -> 14 | V16: =VLOOKUP($C16,'RECAP SECT'!$G$6:$DC$253,34,FALSE) -> 59% | W16: =VLOOKUP($C16,'RECAP SECT'!$G$6:$DC$253,35,FALSE) -> 52% | X16: =VLOOKUP($C16,'RECAP SECT'!$G$6:$DC$253,36,FALSE) -> 18
A17: 30 | B17: MARNE-ARDENNES | C17: 6 | D17: CHALONS EN CHAMPAGNE | E17: =VLOOKUP($C17,'RECAP SECT'!$G$6:$DC$253,3,FALSE) -> 44.5 | F17: =VLOOKUP($C17,'RECAP SECT'!$G$6:$DC$253,18,FALSE) -> 1,713 | G17: =VLOOKUP($C17,'RECAP SECT'!$G$6:$DC$253,19,FALSE) -> 38.50 | H17: =VLOOKUP($C17,'RECAP SECT'!$G$6:$DC$253,20,FALSE) -> 37% | I17: =VLOOKUP($C17,'RECAP SECT'!$G$6:$DC$253,21,FALSE) -> 13 | J17: =VLOOKUP($C17,'RECAP SECT'!$G$6:$DC$253,22,FALSE) -> 1,141 | K17: =VLOOKUP($C17,'RECAP SECT'!$G$6:$DC$253,23,FALSE) -> 25.65 | L17: =VLOOKUP($C17,'RECAP SECT'!$G$6:$DC$253,24,FALSE) -> 22% | M17: =VLOOKUP($C17,'RECAP SECT'!$G$6:$DC$253,25,FALSE) -> 8 | N17: =VLOOKUP($C17,'RECAP SECT'!$G$6:$DC$253,26,FALSE) -> 375 | O17: =VLOOKUP($C17,'RECAP SECT'!$G$6:$DC$253,27,FALSE) -> 8.43 | P17: =VLOOKUP($C17,'RECAP SECT'!$G$6:$DC$253,28,FALSE) -> 26% | Q17: =VLOOKUP($C17,'RECAP SECT'!$G$6:$DC$253,29,FALSE) -> 4 | R17: =VLOOKUP($C17,'RECAP SECT'!$G$6:$DC$253,30,FALSE) -> -63.0 | S17: =VLOOKUP($C17,'RECAP SECT'!$G$6:$DC$253,31,FALSE) -> -1.42 | T17: =VLOOKUP($C17,'RECAP SECT'!$G$6:$DC$253,32,FALSE) -> 16% | U17: =VLOOKUP($C17,'RECAP SECT'!$G$6:$DC$253,33,FALSE) -> 8 | V17: =VLOOKUP($C17,'RECAP SECT'!$G$6:$DC$253,34,FALSE) -> 29% | W17: =VLOOKUP($C17,'RECAP SECT'!$G$6:$DC$253,35,FALSE) -> 22% | X17: =VLOOKUP($C17,'RECAP SECT'!$G$6:$DC$253,36,FALSE) -> 13
A18: 30 | B18: MARNE-ARDENNES | C18: 2 | D18: CHARLEVILLE MEZIERES | E18: =VLOOKUP($C18,'RECAP SECT'!$G$6:$DC$253,3,FALSE) -> 55.8 | F18: =VLOOKUP($C18,'RECAP SECT'!$G$6:$DC$253,18,FALSE) -> 1,865 | G18: =VLOOKUP($C18,'RECAP SECT'!$G$6:$DC$253,19,FALSE) -> 33.42 | H18: =VLOOKUP($C18,'RECAP SECT'!$G$6:$DC$253,20,FALSE) -> 45% | I18: =VLOOKUP($C18,'RECAP SECT'!$G$6:$DC$253,21,FALSE) -> 17 | J18: =VLOOKUP($C18,'RECAP SECT'!$G$6:$DC$253,22,FALSE) -> 1,665 | K18: =VLOOKUP($C18,'RECAP SECT'!$G$6:$DC$253,23,FALSE) -> 29.83 | L18: =VLOOKUP($C18,'RECAP SECT'!$G$6:$DC$253,24,FALSE) -> 10% | M18: =VLOOKUP($C18,'RECAP SECT'!$G$6:$DC$253,25,FALSE) -> 4 | N18: =VLOOKUP($C18,'RECAP SECT'!$G$6:$DC$253,26,FALSE) -> 462 | O18: =VLOOKUP($C18,'RECAP SECT'!$G$6:$DC$253,27,FALSE) -> 8.28 | P18: =VLOOKUP($C18,'RECAP SECT'!$G$6:$DC$253,28,FALSE) -> 28% | Q18: =VLOOKUP($C18,'RECAP SECT'!$G$6:$DC$253,29,FALSE) -> 5 | R18: =VLOOKUP($C18,'RECAP SECT'!$G$6:$DC$253,30,FALSE) -> -68.1 | S18: =VLOOKUP($C18,'RECAP SECT'!$G$6:$DC$253,31,FALSE) -> -1.22 | T18: =VLOOKUP($C18,'RECAP SECT'!$G$6:$DC$253,32,FALSE) -> 0% | U18: =VLOOKUP($C18,'RECAP SECT'!$G$6:$DC$253,33,FALSE) -> 1 | V18: =VLOOKUP($C18,'RECAP SECT'!$G$6:$DC$253,34,FALSE) -> 29% | W18: =VLOOKUP($C18,'RECAP SECT'!$G$6:$DC$253,35,FALSE) -> 21% | X18: =VLOOKUP($C18,'RECAP SECT'!$G$6:$DC$253,36,FALSE) -> 11
A19: 30 | B19: MARNE-ARDENNES | C19: 11 | D19: REIMS | E19: =VLOOKUP($C19,'RECAP SECT'!$G$6:$DC$253,3,FALSE) -> 80.4 | F19: =VLOOKUP($C19,'RECAP SECT'!$G$6:$DC$253,18,FALSE) -> 3,286 | G19: =VLOOKUP($C19,'RECAP SECT'!$G$6:$DC$253,19,FALSE) -> 40.87 | H19: =VLOOKUP($C19,'RECAP SECT'!$G$6:$DC$253,20,FALSE) -> 33% | I19: =VLOOKUP($C19,'RECAP SECT'!$G$6:$DC$253,21,FALSE) -> 12 | J19: =VLOOKUP($C19,'RECAP SECT'!$G$6:$DC$253,22,FALSE) -> 2,339 | K19: =VLOOKUP($C19,'RECAP SECT'!$G$6:$DC$253,23,FALSE) -> 29.09 | L19: =VLOOKUP($C19,'RECAP SECT'!$G$6:$DC$253,24,FALSE) -> 12% | M19: =VLOOKUP($C19,'RECAP SECT'!$G$6:$DC$253,25,FALSE) -> 5 | N19: =VLOOKUP($C19,'RECAP SECT'!$G$6:$DC$253,26,FALSE) -> 753 | O19: =VLOOKUP($C19,'RECAP SECT'!$G$6:$DC$253,27,FALSE) -> 9.37 | P19: =VLOOKUP($C19,'RECAP SECT'!$G$6:$DC$253,28,FALSE) -> 18% | Q19: =VLOOKUP($C19,'RECAP SECT'!$G$6:$DC$253,29,FALSE) -> 2 | R19: =VLOOKUP($C19,'RECAP SECT'!$G$6:$DC$253,30,FALSE) -> -134.3 | S19: =VLOOKUP($C19,'RECAP SECT'!$G$6:$DC$253,31,FALSE) -> -1.67 | T19: =VLOOKUP($C19,'RECAP SECT'!$G$6:$DC$253,32,FALSE) -> 37% | U19: =VLOOKUP($C19,'RECAP SECT'!$G$6:$DC$253,33,FALSE) -> 17 | V19: =VLOOKUP($C19,'RECAP SECT'!$G$6:$DC$253,34,FALSE) -> 27% | W19: =VLOOKUP($C19,'RECAP SECT'!$G$6:$DC$253,35,FALSE) -> 20% | X19: =VLOOKUP($C19,'RECAP SECT'!$G$6:$DC$253,36,FALSE) -> 9
A20: 110 | B20: MEURTHE ET MOSELLE MEUSE | C20: 26 | D20: NANCY | E20: =VLOOKUP($C20,'RECAP SECT'!$G$6:$DC$253,3,FALSE) -> 66.5 | F20: =VLOOKUP($C20,'RECAP SECT'!$G$6:$DC$253,18,FALSE) -> 3,830 | G20: =VLOOKUP($C20,'RECAP SECT'!$G$6:$DC$253,19,FALSE) -> 57.59 | H20: =VLOOKUP($C20,'RECAP SECT'!$G$6:$DC$253,20,FALSE) -> 6% | I20: =VLOOKUP($C20,'RECAP SECT'!$G$6:$DC$253,21,FALSE) -> 2 | J20: =VLOOKUP($C20,'RECAP SECT'!$G$6:$DC$253,22,FALSE) -> 2,197 | K20: =VLOOKUP($C20,'RECAP SECT'!$G$6:$DC$253,23,FALSE) -> 33.04 | L20: =VLOOKUP($C20,'RECAP SECT'!$G$6:$DC$253,24,FALSE) -> 0% | M20: =VLOOKUP($C20,'RECAP SECT'!$G$6:$DC$253,25,FALSE) -> 1 | N20: =VLOOKUP($C20,'RECAP SECT'!$G$6:$DC$253,26,FALSE) -> 761 | O20: =VLOOKUP($C20,'RECAP SECT'!$G$6:$DC$253,27,FALSE) -> 11.44 | P20: =VLOOKUP($C20,'RECAP SECT'!$G$6:$DC$253,28,FALSE) -> 0% | Q20: =VLOOKUP($C20,'RECAP SECT'!$G$6:$DC$253,29,FALSE) -> 1 | R20: =VLOOKUP($C20,'RECAP SECT'!$G$6:$DC$253,30,FALSE) -> -106.1 | S20: =VLOOKUP($C20,'RECAP SECT'!$G$6:$DC$253,31,FALSE) -> -1.60 | T20: =VLOOKUP($C20,'RECAP SECT'!$G$6:$DC$253,32,FALSE) -> 31% | U20: =VLOOKUP($C20,'RECAP SECT'!$G$6:$DC$253,33,FALSE) -> 15 | V20: =VLOOKUP($C20,'RECAP SECT'!$G$6:$DC$253,34,FALSE) -> 7% | W20: =VLOOKUP($C20,'RECAP SECT'!$G$6:$DC$253,35,FALSE) -> 0% | X20: =VLOOKUP($C20,'RECAP SECT'!$G$6:$DC$253,36,FALSE) -> 1
A21: 110 | B21: MEURTHE ET MOSELLE MEUSE | C21: 27 | D21: PONT A MOUSSON | E21: =VLOOKUP($C21,'RECAP SECT'!$G$6:$DC$253,3,FALSE) -> 76.0 | F21: =VLOOKUP($C21,'RECAP SECT'!$G$6:$DC$253,18,FALSE) -> 4,633 | G21: =VLOOKUP($C21,'RECAP SECT'!$G$6:$DC$253,19,FALSE) -> 60.96 | H21: =VLOOKUP($C21,'RECAP SECT'!$G$6:$DC$253,20,FALSE) -> 0% | I21: =VLOOKUP($C21,'RECAP SECT'!$G$6:$DC$253,21,FALSE) -> 1 | J21: =VLOOKUP($C21,'RECAP SECT'!$G$6:$DC$253,22,FALSE) -> 2,287 | K21: =VLOOKUP($C21,'RECAP SECT'!$G$6:$DC$253,23,FALSE) -> 30.09 | L21: =VLOOKUP($C21,'RECAP SECT'!$G$6:$DC$253,24,FALSE) -> 9% | M21: =VLOOKUP($C21,'RECAP SECT'!$G$6:$DC$253,25,FALSE) -> 3 | N21: =VLOOKUP($C21,'RECAP SECT'!$G$6:$DC$253,26,FALSE) -> 652 | O21: =VLOOKUP($C21,'RECAP SECT'!$G$6:$DC$253,27,FALSE) -> 8.58 | P21: =VLOOKUP($C21,'RECAP SECT'!$G$6:$DC$253,28,FALSE) -> 25% | Q21: =VLOOKUP($C21,'RECAP SECT'!$G$6:$DC$253,29,FALSE) -> 3 | R21: =VLOOKUP($C21,'RECAP SECT'!$G$6:$DC$253,30,FALSE) -> -112.4 | S21: =VLOOKUP($C21,'RECAP SECT'!$G$6:$DC$253,31,FALSE) -> -1.48 | T21: =VLOOKUP($C21,'RECAP SECT'!$G$6:$DC$253,32,FALSE) -> 21% | U21: =VLOOKUP($C21,'RECAP SECT'!$G$6:$DC$253,33,FALSE) -> 12 | V21: =VLOOKUP($C21,'RECAP SECT'!$G$6:$DC$253,34,FALSE) -> 9% | W21: =VLOOKUP($C21,'RECAP SECT'!$G$6:$DC$253,35,FALSE) -> 1% | X21: =VLOOKUP($C21,'RECAP SECT'!$G$6:$DC$253,36,FALSE) -> 2
A22: 110 | B22: MEURTHE ET MOSELLE MEUSE | C22: 31 | D22: VERDUN | E22: =VLOOKUP($C22,'RECAP SECT'!$G$6:$DC$253,3,FALSE) -> 54.9 | F22: =VLOOKUP($C22,'RECAP SECT'!$G$6:$DC$253,18,FALSE) -> 2,961 | G22: =VLOOKUP($C22,'RECAP SECT'!$G$6:$DC$253,19,FALSE) -> 53.91 | H22: =VLOOKUP($C22,'RECAP SECT'!$G$6:$DC$253,20,FALSE) -> 12% | I22: =VLOOKUP($C22,'RECAP SECT'!$G$6:$DC$253,21,FALSE) -> 5 | J22: =VLOOKUP($C22,'RECAP SECT'!$G$6:$DC$253,22,FALSE) -> 1,493 | K22: =VLOOKUP($C22,'RECAP SECT'!$G$6:$DC$253,23,FALSE) -> 27.18 | L22: =VLOOKUP($C22,'RECAP SECT'!$G$6:$DC$253,24,FALSE) -> 18% | M22: =VLOOKUP($C22,'RECAP SECT'!$G$6:$DC$253,25,FALSE) -> 7 | N22: =VLOOKUP($C22,'RECAP SECT'!$G$6:$DC$253,26,FALSE) -> 308 | O22: =VLOOKUP($C22,'RECAP SECT'!$G$6:$DC$253,27,FALSE) -> 5.61 | P22: =VLOOKUP($C22,'RECAP SECT'!$G$6:$DC$253,28,FALSE) -> 51% | Q22: =VLOOKUP($C22,'RECAP SECT'!$G$6:$DC$253,29,FALSE) -> 7 | R22: =VLOOKUP($C22,'RECAP SECT'!$G$6:$DC$253,30,FALSE) -> -68.7 | S22: =VLOOKUP($C22,'RECAP SECT'!$G$6:$DC$253,31,FALSE) -> -1.25 | T22: =VLOOKUP($C22,'RECAP SECT'!$G$6:$DC$253,32,FALSE) -> 2% | U22: =VLOOKUP($C22,'RECAP SECT'!$G$6:$DC$253,33,FALSE) -> 3 | V22: =VLOOKUP($C22,'RECAP SECT'!$G$6:$DC$253,34,FALSE) -> 17% | W22: =VLOOKUP($C22,'RECAP SECT'!$G$6:$DC$253,35,FALSE) -> 10% | X22: =VLOOKUP($C22,'RECAP SECT'!$G$6:$DC$253,36,FALSE) -> 3
A23: 160 | B23: MOSELLE | C23: 45 | D23: METZ | E23: =VLOOKUP($C23,'RECAP SECT'!$G$6:$DC$253,3,FALSE) -> 89.6 | F23: =VLOOKUP($C23,'RECAP SECT'!$G$6:$DC$253,18,FALSE) -> 3,708 | G23: =VLOOKUP($C23,'RECAP SECT'!$G$6:$DC$253,19,FALSE) -> 41.37 | H23: =VLOOKUP($C23,'RECAP SECT'!$G$6:$DC$253,20,FALSE) -> 32% | I23: =VLOOKUP($C23,'RECAP SECT'!$G$6:$DC$253,21,FALSE) -> 11 | J23: =VLOOKUP($C23,'RECAP SECT'!$G$6:$DC$253,22,FALSE) -> 2,141 | K23: =VLOOKUP($C23,'RECAP SECT'!$G$6:$DC$253,23,FALSE) -> 23.88 | L23: =VLOOKUP($C23,'RECAP SECT'!$G$6:$DC$253,24,FALSE) -> 28% | M23: =VLOOKUP($C23,'RECAP SECT'!$G$6:$DC$253,25,FALSE) -> 13 | N23: =VLOOKUP($C23,'RECAP SECT'!$G$6:$DC$253,26,FALSE) -> 362 | O23: =VLOOKUP($C23,'RECAP SECT'!$G$6:$DC$253,27,FALSE) -> 4.04 | P23: =VLOOKUP($C23,'RECAP SECT'!$G$6:$DC$253,28,FALSE) -> 65% | Q23: =VLOOKUP($C23,'RECAP SECT'!$G$6:$DC$253,29,FALSE) -> 12 | R23: =VLOOKUP($C23,'RECAP SECT'!$G$6:$DC$253,30,FALSE) -> -129.3 | S23: =VLOOKUP($C23,'RECAP SECT'!$G$6:$DC$253,31,FALSE) -> -1.44 | T23: =VLOOKUP($C23,'RECAP SECT'!$G$6:$DC$253,32,FALSE) -> 18% | U23: =VLOOKUP($C23,'RECAP SECT'!$G$6:$DC$253,33,FALSE) -> 10 | V23: =VLOOKUP($C23,'RECAP SECT'!$G$6:$DC$253,34,FALSE) -> 34% | W23: =VLOOKUP($C23,'RECAP SECT'!$G$6:$DC$253,35,FALSE) -> 27% | X23: =VLOOKUP($C23,'RECAP SECT'!$G$6:$DC$253,36,FALSE) -> 14
A24: 160 | B24: MOSELLE | C24: 42 | D24: MOSELLE EST | E24: =VLOOKUP($C24,'RECAP SECT'!$G$6:$DC$253,3,FALSE) -> 69.8 | F24: =VLOOKUP($C24,'RECAP SECT'!$G$6:$DC$253,18,FALSE) -> 3,539 | G24: =VLOOKUP($C24,'RECAP SECT'!$G$6:$DC$253,19,FALSE) -> 50.69 | H24: =VLOOKUP($C24,'RECAP SECT'!$G$6:$DC$253,20,FALSE) -> 17% | I24: =VLOOKUP($C24,'RECAP SECT'!$G$6:$DC$253,21,FALSE) -> 8 | J24: =VLOOKUP($C24,'RECAP SECT'!$G$6:$DC$253,22,FALSE) -> 1,765 | K24: =VLOOKUP($C24,'RECAP SECT'!$G$6:$DC$253,23,FALSE) -> 25.28 | L24: =VLOOKUP($C24,'RECAP SECT'!$G$6:$DC$253,24,FALSE) -> 23% | M24: =VLOOKUP($C24,'RECAP SECT'!$G$6:$DC$253,25,FALSE) -> 10 | N24: =VLOOKUP($C24,'RECAP SECT'!$G$6:$DC$253,26,FALSE) -> 283 | O24: =VLOOKUP($C24,'RECAP SECT'!$G$6:$DC$253,27,FALSE) -> 4.05 | P24: =VLOOKUP($C24,'RECAP SECT'!$G$6:$DC$253,28,FALSE) -> 65% | Q24: =VLOOKUP($C24,'RECAP SECT'!$G$6:$DC$253,29,FALSE) -> 11 | R24: =VLOOKUP($C24,'RECAP SECT'!$G$6:$DC$253,30,FALSE) -> -88.9 | S24: =VLOOKUP($C24,'RECAP SECT'!$G$6:$DC$253,31,FALSE) -> -1.27 | T24: =VLOOKUP($C24,'RECAP SECT'!$G$6:$DC$253,32,FALSE) -> 4% | U24: =VLOOKUP($C24,'RECAP SECT'!$G$6:$DC$253,33,FALSE) -> 4 | V24: =VLOOKUP($C24,'RECAP SECT'!$G$6:$DC$253,34,FALSE) -> 23% | W24: =VLOOKUP($C24,'RECAP SECT'!$G$6:$DC$253,35,FALSE) -> 16% | X24: =VLOOKUP($C24,'RECAP SECT'!$G$6:$DC$253,36,FALSE) -> 6
A25: 160 | B25: MOSELLE | C25: 44 | D25: MOSELLE NORD | E25: =VLOOKUP($C25,'RECAP SECT'!$G$6:$DC$253,3,FALSE) -> 65.4 | F25: =VLOOKUP($C25,'RECAP SECT'!$G$6:$DC$253,18,FALSE) -> 3,494 | G25: =VLOOKUP($C25,'RECAP SECT'!$G$6:$DC$253,19,FALSE) -> 53.47 | H25: =VLOOKUP($C25,'RECAP SECT'!$G$6:$DC$253,20,FALSE) -> 12% | I25: =VLOOKUP($C25,'RECAP SECT'!$G$6:$DC$253,21,FALSE) -> 6 | J25: =VLOOKUP($C25,'RECAP SECT'!$G$6:$DC$253,22,FALSE) -> 1,632 | K25: =VLOOKUP($C25,'RECAP SECT'!$G$6:$DC$253,23,FALSE) -> 24.97 | L25: =VLOOKUP($C25,'RECAP SECT'!$G$6:$DC$253,24,FALSE) -> 24% | M25: =VLOOKUP($C25,'RECAP SECT'!$G$6:$DC$253,25,FALSE) -> 11 | N25: =VLOOKUP($C25,'RECAP SECT'!$G$6:$DC$253,26,FALSE) -> 209 | O25: =VLOOKUP($C25,'RECAP SECT'!$G$6:$DC$253,27,FALSE) -> 3.20 | P25: =VLOOKUP($C25,'RECAP SECT'!$G$6:$DC$253,28,FALSE) -> 72% | Q25: =VLOOKUP($C25,'RECAP SECT'!$G$6:$DC$253,29,FALSE) -> 16 | R25: =VLOOKUP($C25,'RECAP SECT'!$G$6:$DC$253,30,FALSE) -> -80.6 | S25: =VLOOKUP($C25,'RECAP SECT'!$G$6:$DC$253,31,FALSE) -> -1.23 | T25: =VLOOKUP($C25,'RECAP SECT'!$G$6:$DC$253,32,FALSE) -> 1% | U25: =VLOOKUP($C25,'RECAP SECT'!$G$6:$DC$253,33,FALSE) -> 2 | V25: =VLOOKUP($C25,'RECAP SECT'!$G$6:$DC$253,34,FALSE) -> 22% | W25: =VLOOKUP($C25,'RECAP SECT'!$G$6:$DC$253,35,FALSE) -> 15% | X25: =VLOOKUP($C25,'RECAP SECT'!$G$6:$DC$253,36,FALSE) -> 5
A26: 80 | B26: VOSGES | C26: 57 | D26: EPINAL | E26: =VLOOKUP($C26,'RECAP SECT'!$G$6:$DC$253,3,FALSE) -> 61.0 | F26: =VLOOKUP($C26,'RECAP SECT'!$G$6:$DC$253,18,FALSE) -> 2,110 | G26: =VLOOKUP($C26,'RECAP SECT'!$G$6:$DC$253,19,FALSE) -> 34.57 | H26: =VLOOKUP($C26,'RECAP SECT'!$G$6:$DC$253,20,FALSE) -> 43% | I26: =VLOOKUP($C26,'RECAP SECT'!$G$6:$DC$253,21,FALSE) -> 15 | J26: =VLOOKUP($C26,'RECAP SECT'!$G$6:$DC$253,22,FALSE) -> 1,518 | K26: =VLOOKUP($C26,'RECAP SECT'!$G$6:$DC$253,23,FALSE) -> 24.87 | L26: =VLOOKUP($C26,'RECAP SECT'!$G$6:$DC$253,24,FALSE) -> 25% | M26: =VLOOKUP($C26,'RECAP SECT'!$G$6:$DC$253,25,FALSE) -> 12 | N26: =VLOOKUP($C26,'RECAP SECT'!$G$6:$DC$253,26,FALSE) -> 302 | O26: =VLOOKUP($C26,'RECAP SECT'!$G$6:$DC$253,27,FALSE) -> 4.95 | P26: =VLOOKUP($C26,'RECAP SECT'!$G$6:$DC$253,28,FALSE) -> 57% | Q26: =VLOOKUP($C26,'RECAP SECT'!$G$6:$DC$253,29,FALSE) -> 10 | R26: =VLOOKUP($C26,'RECAP SECT'!$G$6:$DC$253,30,FALSE) -> -97.6 | S26: =VLOOKUP($C26,'RECAP SECT'!$G$6:$DC$253,31,FALSE) -> -1.60 | T26: =VLOOKUP($C26,'RECAP SECT'!$G$6:$DC$253,32,FALSE) -> 31% | U26: =VLOOKUP($C26,'RECAP SECT'!$G$6:$DC$253,33,FALSE) -> 16 | V26: =VLOOKUP($C26,'RECAP SECT'!$G$6:$DC$253,34,FALSE) -> 40% | W26: =VLOOKUP($C26,'RECAP SECT'!$G$6:$DC$253,35,FALSE) -> 32% | X26: =VLOOKUP($C26,'RECAP SECT'!$G$6:$DC$253,36,FALSE) -> 16
A27: 80 | B27: VOSGES | C27: 55 | D27: SAINT DIE | E27: =VLOOKUP($C27,'RECAP SECT'!$G$6:$DC$253,3,FALSE) -> 46.8 | F27: =VLOOKUP($C27,'RECAP SECT'!$G$6:$DC$253,18,FALSE) -> 1,575 | G27: =VLOOKUP($C27,'RECAP SECT'!$G$6:$DC$253,19,FALSE) -> 33.67 | H27: =VLOOKUP($C27,'RECAP SECT'!$G$6:$DC$253,20,FALSE) -> 45% | I27: =VLOOKUP($C27,'RECAP SECT'!$G$6:$DC$253,21,FALSE) -> 16 | J27: =VLOOKUP($C27,'RECAP SECT'!$G$6:$DC$253,22,FALSE) -> 1,082 | K27: =VLOOKUP($C27,'RECAP SECT'!$G$6:$DC$253,23,FALSE) -> 23.13 | L27: =VLOOKUP($C27,'RECAP SECT'!$G$6:$DC$253,24,FALSE) -> 30% | M27: =VLOOKUP($C27,'RECAP SECT'!$G$6:$DC$253,25,FALSE) -> 15 | N27: =VLOOKUP($C27,'RECAP SECT'!$G$6:$DC$253,26,FALSE) -> 152 | O27: =VLOOKUP($C27,'RECAP SECT'!$G$6:$DC$253,27,FALSE) -> 3.25 | P27: =VLOOKUP($C27,'RECAP SECT'!$G$6:$DC$253,28,FALSE) -> 72% | Q27: =VLOOKUP($C27,'RECAP SECT'!$G$6:$DC$253,29,FALSE) -> 15 | R27: =VLOOKUP($C27,'RECAP SECT'!$G$6:$DC$253,30,FALSE) -> -64.3 | S27: =VLOOKUP($C27,'RECAP SECT'!$G$6:$DC$253,31,FALSE) -> -1.38 | T27: =VLOOKUP($C27,'RECAP SECT'!$G$6:$DC$253,32,FALSE) -> 13% | U27: =VLOOKUP($C27,'RECAP SECT'!$G$6:$DC$253,33,FALSE) -> 6 | V27: =VLOOKUP($C27,'RECAP SECT'!$G$6:$DC$253,34,FALSE) -> 41% | W27: =VLOOKUP($C27,'RECAP SECT'!$G$6:$DC$253,35,FALSE) -> 34% | X27: =VLOOKUP($C27,'RECAP SECT'!$G$6:$DC$253,36,FALSE) -> 17
A28: Total CEGEE Directions Régionales | E28: =SUM(E10:E27) -> 1139

Sheet SE_EPARGNE
B1: Accueil | F1: BAROMETRE BDD - TERRITOIRES
F2: EPARGNE
F3: =ACCUEIL!F7 -> 2021-06-20
F7: Excédent Epargne y/c DAV pondéré | J7: Ventes sur client non détenteur de l’univers | N7: Total Epargne
F8: =DATEMAJ!C14 -> au 20/06 | H8: coef | I8: ='RECAP DIRCOM'!AX4 -> 14% | J8: =DATEMAJ!C15 -> au 20/06 | L8: coef | M8: ='RECAP DIRCOM'!BB4 -> 6% | O8: coef | P8: ='RECAP DIRCOM'!BE4 -> 20%
A9: eds | B9: Direction | C9: eds | D9: Territoire | E9: ="ETP perf "&DATEMAJ!$C$28 -> ETP perf 30-avr | F9: Excédent | G9: Excédent / ETP | H9: % Ecart au 1er | I9: Rang | J9: VB | K9: VB / ETP | L9: % Ecart au 1er | M9: Rang | N9: Moyenne ecart au 1er | O9: % Ecart au 1er | P9: Rang CEGEE
A10: 50 | B10: AUBE HAUTE MARNE | C10: 21 | D10: CHAUMONT | E10: =VLOOKUP($C10,'RECAP SECT'!$G$6:$DC$253,3,FALSE) -> 33.5 | F10: =VLOOKUP($C10,'RECAP SECT'!$G$6:$DC$253,41,FALSE) -> 8,123 | G10: =VLOOKUP($C10,'RECAP SECT'!$G$6:$DC$253,42,FALSE) -> 242.79 | H10: =VLOOKUP($C10,'RECAP SECT'!$G$6:$DC$253,43,FALSE) -> 46% | I10: =VLOOKUP($C10,'RECAP SECT'!$G$6:$DC$253,44,FALSE) -> 16 | J10: =VLOOKUP($C10,'RECAP SECT'!$G$6:$DC$253,45,FALSE) -> 500 | K10: =VLOOKUP($C10,'RECAP SECT'!$G$6:$DC$253,46,FALSE) -> 14.94 | L10: =VLOOKUP($C10,'RECAP SECT'!$G$6:$DC$253,47,FALSE) -> 23% | M10: =VLOOKUP($C10,'RECAP SECT'!$G$6:$DC$253,48,FALSE) -> 9 | N10: =VLOOKUP($C10,'RECAP SECT'!$G$6:$DC$253,49,FALSE) -> 39% | O10: =VLOOKUP($C10,'RECAP SECT'!$G$6:$DC$253,50,FALSE) -> 37% | P10: =VLOOKUP($C10,'RECAP SECT'!$G$6:$DC$253,51,FALSE) -> 15
A11: 50 | B11: AUBE HAUTE MARNE | C11: 14 | D11: TROYES | E11: =VLOOKUP($C11,'RECAP SECT'!$G$6:$DC$253,3,FALSE) -> 65.9 | F11: =VLOOKUP($C11,'RECAP SECT'!$G$6:$DC$253,41,FALSE) -> 8,606 | G11: =VLOOKUP($C11,'RECAP SECT'!$G$6:$DC$253,42,FALSE) -> 130.51 | H11: =VLOOKUP($C11,'RECAP SECT'!$G$6:$DC$253,43,FALSE) -> 71% | I11: =VLOOKUP($C11,'RECAP SECT'!$G$6:$DC$253,44,FALSE) -> 17 | J11: =VLOOKUP($C11,'RECAP SECT'!$G$6:$DC$253,45,FALSE) -> 899 | K11: =VLOOKUP($C11,'RECAP SECT'!$G$6:$DC$253,46,FALSE) -> 13.63 | L11: =VLOOKUP($C11,'RECAP SECT'!$G$6:$DC$253,47,FALSE) -> 29% | M11: =VLOOKUP($C11,'RECAP SECT'!$G$6:$DC$253,48,FALSE) -> 15 | N11: =VLOOKUP($C11,'RECAP SECT'!$G$6:$DC$253,49,FALSE) -> 58% | O11: =VLOOKUP($C11,'RECAP SECT'!$G$6:$DC$253,50,FALSE) -> 57% | P11: =VLOOKUP($C11,'RECAP SECT'!$G$6:$DC$253,51,FALSE) -> 17
A12: 262 | B12: BAS-RHIN | C12: 5060 | D12: HAGUENAU | E12: =VLOOKUP($C12,'RECAP SECT'!$G$6:$DC$253,3,FALSE) -> 70.0 | F12: =VLOOKUP($C12,'RECAP SECT'!$G$6:$DC$253,41,FALSE) -> 23,540 | G12: =VLOOKUP($C12,'RECAP SECT'!$G$6:$DC$253,42,FALSE) -> 336.52 | H12: =VLOOKUP($C12,'RECAP SECT'!$G$6:$DC$253,43,FALSE) -> 25% | I12: =VLOOKUP($C12,'RECAP SECT'!$G$6:$DC$253,44,FALSE) -> 9 | J12: =VLOOKUP($C12,'RECAP SECT'!$G$6:$DC$253,45,FALSE) -> 1,038 | K12: =VLOOKUP($C12,'RECAP SECT'!$G$6:$DC$253,46,FALSE) -> 14.84 | L12: =VLOOKUP($C12,'RECAP SECT'!$G$6:$DC$253,47,FALSE) -> 23% | M12: =VLOOKUP($C12,'RECAP SECT'!$G$6:$DC$253,48,FALSE) -> 10 | N12: =VLOOKUP($C12,'RECAP SECT'!$G$6:$DC$253,49,FALSE) -> 24% | O12: =VLOOKUP($C12,'RECAP SECT'!$G$6:$DC$253,50,FALSE) -> 23% | P12: =VLOOKUP($C12,'RECAP SECT'!$G$6:$DC$253,51,FALSE) -> 8
A13: 262 | B13: BAS-RHIN | C13: 5101 | D13: SELESTAT | E13: =VLOOKUP($C13,'RECAP SECT'!$G$6:$DC$253,3,FALSE) -> 60.3 | F13: =VLOOKUP($C13,'RECAP SECT'!$G$6:$DC$253,41,FALSE) -> 25,656 | G13: =VLOOKUP($C13,'RECAP SECT'!$G$6:$DC$253,42,FALSE) -> 425.78 | H13: =VLOOKUP($C13,'RECAP SECT'!$G$6:$DC$253,43,FALSE) -> 5% | I13: =VLOOKUP($C13,'RECAP SECT'!$G$6:$DC$253,44,FALSE) -> 3 | J13: =VLOOKUP($C13,'RECAP SECT'!$G$6:$DC$253,45,FALSE) -> 1,100 | K13: =VLOOKUP($C13,'RECAP SECT'!$G$6:$DC$253,46,FALSE) -> 18.26 | L13: =VLOOKUP($C13,'RECAP SECT'!$G$6:$DC$253,47,FALSE) -> 6% | M13: =VLOOKUP($C13,'RECAP SECT'!$G$6:$DC$253,48,FALSE) -> 4 | N13: =VLOOKUP($C13,'RECAP SECT'!$G$6:$DC$253,49,FALSE) -> 5% | O13: =VLOOKUP($C13,'RECAP SECT'!$G$6:$DC$253,50,FALSE) -> 3% | P13: =VLOOKUP($C13,'RECAP SECT'!$G$6:$DC$253,51,FALSE) -> 2
A14: 262 | B14: BAS-RHIN | C14: 5006 | D14: STRASBOURG | E14: =VLOOKUP($C14,'RECAP SECT'!$G$6:$DC$253,3,FALSE) -> 76.2 | F14: =VLOOKUP($C14,'RECAP SECT'!$G$6:$DC$253,41,FALSE) -> 29,308 | G14: =VLOOKUP($C14,'RECAP SECT'!$G$6:$DC$253,42,FALSE) -> 384.46 | H14: =VLOOKUP($C14,'RECAP SECT'!$G$6:$DC$253,43,FALSE) -> 14% | I14: =VLOOKUP($C14,'RECAP SECT'!$G$6:$DC$253,44,FALSE) -> 5 | J14: =VLOOKUP($C14,'RECAP SECT'!$G$6:$DC$253,45,FALSE) -> 1,443 | K14: =VLOOKUP($C14,'RECAP SECT'!$G$6:$DC$253,46,FALSE) -> 18.93 | L14: =VLOOKUP($C14,'RECAP SECT'!$G$6:$DC$253,47,FALSE) -> 2% | M14: =VLOOKUP($C14,'RECAP SECT'!$G$6:$DC$253,48,FALSE) -> 3 | N14: =VLOOKUP($C14,'RECAP SECT'!$G$6:$DC$253,49,FALSE) -> 10% | O14: =VLOOKUP($C14,'RECAP SECT'!$G$6:$DC$253,50,FALSE) -> 9% | P14: =VLOOKUP($C14,'RECAP SECT'!$G$6:$DC$253,51,FALSE) -> 5
A15: 264 | B15: HAUT-RHIN | C15: 5130 | D15: COLMAR | E15: =VLOOKUP($C15,'RECAP SECT'!$G$6:$DC$253,3,FALSE) -> 61.6 | F15: =VLOOKUP($C15,'RECAP SECT'!$G$6:$DC$253,41,FALSE) -> 16,320 | G15: =VLOOKUP($C15,'RECAP SECT'!$G$6:$DC$253,42,FALSE) -> 264.93 | H15: =VLOOKUP($C15,'RECAP SECT'!$G$6:$DC$253,43,FALSE) -> 41% | I15: =VLOOKUP($C15,'RECAP SECT'!$G$6:$DC$253,44,FALSE) -> 14 | J15: =VLOOKUP($C15,'RECAP SECT'!$G$6:$DC$253,45,FALSE) -> 750 | K15: =VLOOKUP($C15,'RECAP SECT'!$G$6:$DC$253,46,FALSE) -> 12.17 | L15: =VLOOKUP($C15,'RECAP SECT'!$G$6:$DC$253,47,FALSE) -> 37% | M15: =VLOOKUP($C15,'RECAP SECT'!$G$6:$DC$253,48,FALSE) -> 16 | N15: =VLOOKUP($C15,'RECAP SECT'!$G$6:$DC$253,49,FALSE) -> 40% | O15: =VLOOKUP($C15,'RECAP SECT'!$G$6:$DC$253,50,FALSE) -> 38% | P15: =VLOOKUP($C15,'RECAP SECT'!$G$6:$DC$253,51,FALSE) -> 16
A16: 264 | B16: HAUT-RHIN | C16: 5169 | D16: MULHOUSE | E16: =VLOOKUP($C16,'RECAP SECT'!$G$6:$DC$253,3,FALSE) -> 61.0 | F16: =VLOOKUP($C16,'RECAP SECT'!$G$6:$DC$253,41,FALSE) -> 6,131 | G16: =VLOOKUP($C16,'RECAP SECT'!$G$6:$DC$253,42,FALSE) -> 100.46 | H16: =VLOOKUP($C16,'RECAP SECT'!$G$6:$DC$253,43,FALSE) -> 78% | I16: =VLOOKUP($C16,'RECAP SECT'!$G$6:$DC$253,44,FALSE) -> 18 | J16: =VLOOKUP($C16,'RECAP SECT'!$G$6:$DC$253,45,FALSE) -> 862 | K16: =VLOOKUP($C16,'RECAP SECT'!$G$6:$DC$253,46,FALSE) -> 14.13 | L16: =VLOOKUP($C16,'RECAP SECT'!$G$6:$DC$253,47,FALSE) -> 27% | M16: =VLOOKUP($C16,'RECAP SECT'!$G$6:$DC$253,48,FALSE) -> 14 | N16: =VLOOKUP($C16,'RECAP SECT'!$G$6:$DC$253,49,FALSE) -> 62% | O16: =VLOOKUP($C16,'RECAP SECT'!$G$6:$DC$253,50,FALSE) -> 61% | P16: =VLOOKUP($C16,'RECAP SECT'!$G$6:$DC$253,51,FALSE) -> 18
A17: 30 | B17: MARNE-ARDENNES | C17: 6 | D17: CHALONS EN CHAMPAGNE | E17: =VLOOKUP($C17,'RECAP SECT'!$G$6:$DC$253,3,FALSE) -> 44.5 | F17: =VLOOKUP($C17,'RECAP SECT'!$G$6:$DC$253,41,FALSE) -> 10,914 | G17: =VLOOKUP($C17,'RECAP SECT'!$G$6:$DC$253,42,FALSE) -> 245.36 | H17: =VLOOKUP($C17,'RECAP SECT'!$G$6:$DC$253,43,FALSE) -> 45% | I17: =VLOOKUP($C17,'RECAP SECT'!$G$6:$DC$253,44,FALSE) -> 15 | J17: =VLOOKUP($C17,'RECAP SECT'!$G$6:$DC$253,45,FALSE) -> 860 | K17: =VLOOKUP($C17,'RECAP SECT'!$G$6:$DC$253,46,FALSE) -> 19.33 | L17: =VLOOKUP($C17,'RECAP SECT'!$G$6:$DC$253,47,FALSE) -> 0% | M17: =VLOOKUP($C17,'RECAP SECT'!$G$6:$DC$253,48,FALSE) -> 1 | N17: =VLOOKUP($C17,'RECAP SECT'!$G$6:$DC$253,49,FALSE) -> 32% | O17: =VLOOKUP($C17,'RECAP SECT'!$G$6:$DC$253,50,FALSE) -> 30% | P17: =VLOOKUP($C17,'RECAP SECT'!$G$6:$DC$253,51,FALSE) -> 14
A18: 30 | B18: MARNE-ARDENNES | C18: 2 | D18: CHARLEVILLE MEZIERES | E18: =VLOOKUP($C18,'RECAP SECT'!$G$6:$DC$253,3,FALSE) -> 55.8 | F18: =VLOOKUP($C18,'RECAP SECT'!$G$6:$DC$253,41,FALSE) -> 21,430 | G18: =VLOOKUP($C18,'RECAP SECT'!$G$6:$DC$253,42,FALSE) -> 383.98 | H18: =VLOOKUP($C18,'RECAP SECT'!$G$6:$DC$253,43,FALSE) -> 14% | I18: =VLOOKUP($C18,'RECAP SECT'!$G$6:$DC$253,44,FALSE) -> 6 | J18: =VLOOKUP($C18,'RECAP SECT'!$G$6:$DC$253,45,FALSE) -> 1,067 | K18: =VLOOKUP($C18,'RECAP SECT'!$G$6:$DC$253,46,FALSE) -> 19.12 | L18: =VLOOKUP($C18,'RECAP SECT'!$G$6:$DC$253,47,FALSE) -> 1% | M18: =VLOOKUP($C18,'RECAP SECT'!$G$6:$DC$253,48,FALSE) -> 2 | N18: =VLOOKUP($C18,'RECAP SECT'!$G$6:$DC$253,49,FALSE) -> 10% | O18: =VLOOKUP($C18,'RECAP SECT'!$G$6:$DC$253,50,FALSE) -> 8% | P18: =VLOOKUP($C18,'RECAP SECT'!$G$6:$DC$253,51,FALSE) -> 4
A19: 30 | B19: MARNE-ARDENNES | C19: 11 | D19: REIMS | E19: =VLOOKUP($C19,'RECAP SECT'!$G$6:$DC$253,3,FALSE) -> 80.4 | F19: =VLOOKUP($C19,'RECAP SECT'!$G$6:$DC$253,41,FALSE) -> 25,239 | G19: =VLOOKUP($C19,'RECAP SECT'!$G$6:$DC$253,42,FALSE) -> 313.93 | H19: =VLOOKUP($C19,'RECAP SECT'!$G$6:$DC$253,43,FALSE) -> 30% | I19: =VLOOKUP($C19,'RECAP SECT'!$G$6:$DC$253,44,FALSE) -> 11 | J19: =VLOOKUP($C19,'RECAP SECT'!$G$6:$DC$253,45,FALSE) -> 1,139 | K19: =VLOOKUP($C19,'RECAP SECT'!$G$6:$DC$253,46,FALSE) -> 14.17 | L19: =VLOOKUP($C19,'RECAP SECT'!$G$6:$DC$253,47,FALSE) -> 27% | M19: =VLOOKUP($C19,'RECAP SECT'!$G$6:$DC$253,48,FALSE) -> 13 | N19: =VLOOKUP($C19,'RECAP SECT'!$G$6:$DC$253,49,FALSE) -> 29% | O19: =VLOOKUP($C19,'RECAP SECT'!$G$6:$DC$253,50,FALSE) -> 27% | P19: =VLOOKUP($C19,'RECAP SECT'!$G$6:$DC$253,51,FALSE) -> 12
A20: 110 | B20: MEURTHE ET MOSELLE MEUSE | C20: 26 | D20: NANCY | E20: =VLOOKUP($C20,'RECAP SECT'!$G$6:$DC$253,3,FALSE) -> 66.5 | F20: =VLOOKUP($C20,'RECAP SECT'!$G$6:$DC$253,41,FALSE) -> 29,706 | G20: =VLOOKUP($C20,'RECAP SECT'!$G$6:$DC$253,42,FALSE) -> 446.69 | H20: =VLOOKUP($C20,'RECAP SECT'!$G$6:$DC$253,43,FALSE) -> 0% | I20: =VLOOKUP($C20,'RECAP SECT'!$G$6:$DC$253,44,FALSE) -> 1 | J20: =VLOOKUP($C20,'RECAP SECT'!$G$6:$DC$253,45,FALSE) -> 1,212 | K20: =VLOOKUP($C20,'RECAP SECT'!$G$6:$DC$253,46,FALSE) -> 18.22 | L20: =VLOOKUP($C20,'RECAP SECT'!$G$6:$DC$253,47,FALSE) -> 6% | M20: =VLOOKUP($C20,'RECAP SECT'!$G$6:$DC$253,48,FALSE) -> 5 | N20: =VLOOKUP($C20,'RECAP SECT'!$G$6:$DC$253,49,FALSE) -> 2% | O20: =VLOOKUP($C20,'RECAP SECT'!$G$6:$DC$253,50,FALSE) -> 0% | P20: =VLOOKUP($C20,'RECAP SECT'!$G$6:$DC$253,51,FALSE) -> 1
A21: 110 | B21: MEURTHE ET MOSELLE MEUSE | C21: 27 | D21: PONT A MOUSSON | E21: =VLOOKUP($C21,'RECAP SECT'!$G$6:$DC$253,3,FALSE) -> 76.0 | F21: =VLOOKUP($C21,'RECAP SECT'!$G$6:$DC$253,41,FALSE) -> 33,529 | G21: =VLOOKUP($C21,'RECAP SECT'!$G$6:$DC$253,42,FALSE) -> 441.19 | H21: =VLOOKUP($C21,'RECAP SECT'!$G$6:$DC$253,43,FALSE) -> 1% | I21: =VLOOKUP($C21,'RECAP SECT'!$G$6:$DC$253,44,FALSE) -> 2 | J21: =VLOOKUP($C21,'RECAP SECT'!$G$6:$DC$253,45,FALSE) -> 1,099 | K21: =VLOOKUP($C21,'RECAP SECT'!$G$6:$DC$253,46,FALSE) -> 14.46 | L21: =VLOOKUP($C21,'RECAP SECT'!$G$6:$DC$253,47,FALSE) -> 25% | M21: =VLOOKUP($C21,'RECAP SECT'!$G$6:$DC$253,48,FALSE) -> 12 | N21: =VLOOKUP($C21,'RECAP SECT'!$G$6:$DC$253,49,FALSE) -> 8% | O21: =VLOOKUP($C21,'RECAP SECT'!$G$6:$DC$253,50,FALSE) -> 7% | P21: =VLOOKUP($C21,'RECAP SECT'!$G$6:$DC$253,51,FALSE) -> 3
A22: 110 | B22: MEURTHE ET MOSELLE MEUSE | C22: 31 | D22: VERDUN | E22: =VLOOKUP($C22,'RECAP SECT'!$G$6:$DC$253,3,FALSE) -> 54.9 | F22: =VLOOKUP($C22,'RECAP SECT'!$G$6:$DC$253,41,FALSE) -> 18,258 | G22: =VLOOKUP($C22,'RECAP SECT'!$G$6:$DC$253,42,FALSE) -> 332.42 | H22: =VLOOKUP($C22,'RECAP SECT'!$G$6:$DC$253,43,FALSE) -> 26% | I22: =VLOOKUP($C22,'RECAP SECT'!$G$6:$DC$253,44,FALSE) -> 10 | J22: =VLOOKUP($C22,'RECAP SECT'!$G$6:$DC$253,45,FALSE) -> 811 | K22: =VLOOKUP($C22,'RECAP SECT'!$G$6:$DC$253,46,FALSE) -> 14.77 | L22: =VLOOKUP($C22,'RECAP SECT'!$G$6:$DC$253,47,FALSE) -> 24% | M22: =VLOOKUP($C22,'RECAP SECT'!$G$6:$DC$253,48,FALSE) -> 11 | N22: =VLOOKUP($C22,'RECAP SECT'!$G$6:$DC$253,49,FALSE) -> 25% | O22: =VLOOKUP($C22,'RECAP SECT'!$G$6:$DC$253,50,FALSE) -> 23% | P22: =VLOOKUP($C22,'RECAP SECT'!$G$6:$DC$253,51,FALSE) -> 10
A23: 160 | B23: MOSELLE | C23: 45 | D23: METZ | E23: =VLOOKUP($C23,'RECAP SECT'!$G$6:$DC$253,3,FALSE) -> 89.6 | F23: =VLOOKUP($C23,'RECAP SECT'!$G$6:$DC$253,41,FALSE) -> 27,488 | G23: =VLOOKUP($C23,'RECAP SECT'!$G$6:$DC$253,42,FALSE) -> 306.64 | H23: =VLOOKUP($C23,'RECAP SECT'!$G$6:$DC$253,43,FALSE) -> 31% | I23: =VLOOKUP($C23,'RECAP SECT'!$G$6:$DC$253,44,FALSE) -> 12 | J23: =VLOOKUP($C23,'RECAP SECT'!$G$6:$DC$253,45,FALSE) -> 1,349 | K23: =VLOOKUP($C23,'RECAP SECT'!$G$6:$DC$253,46,FALSE) -> 15.05 | L23: =VLOOKUP($C23,'RECAP SECT'!$G$6:$DC$253,47,FALSE) -> 22% | M23: =VLOOKUP($C23,'RECAP SECT'!$G$6:$DC$253,48,FALSE) -> 8 | N23: =VLOOKUP($C23,'RECAP SECT'!$G$6:$DC$253,49,FALSE) -> 29% | O23: =VLOOKUP($C23,'RECAP SECT'!$G$6:$DC$253,50,FALSE) -> 27% | P23: =VLOOKUP($C23,'RECAP SECT'!$G$6:$DC$253,51,FALSE) -> 11
A24: 160 | B24: MOSELLE | C24: 42 | D24: MOSELLE EST | E24: =VLOOKUP($C24,'RECAP SECT'!$G$6:$DC$253,3,FALSE) -> 69.8 | F24: =VLOOKUP($C24,'RECAP SECT'!$G$6:$DC$253,41,FALSE) -> 18,618 | G24: =VLOOKUP($C24,'RECAP SECT'!$G$6:$DC$253,42,FALSE) -> 266.68 | H24: =VLOOKUP($C24,'RECAP SECT'!$G$6:$DC$253,43,FALSE) -> 40% | I24: =VLOOKUP($C24,'RECAP SECT'!$G$6:$DC$253,44,FALSE) -> 13 | J24: =VLOOKUP($C24,'RECAP SECT'!$G$6:$DC$253,45,FALSE) -> 1,235 | K24: =VLOOKUP($C24,'RECAP SECT'!$G$6:$DC$253,46,FALSE) -> 17.69 | L24: =VLOOKUP($C24,'RECAP SECT'!$G$6:$DC$253,47,FALSE) -> 9% | M24: =VLOOKUP($C24,'RECAP SECT'!$G$6:$DC$253,48,FALSE) -> 6 | N24: =VLOOKUP($C24,'RECAP SECT'!$G$6:$DC$253,49,FALSE) -> 31% | O24: =VLOOKUP($C24,'RECAP SECT'!$G$6:$DC$253,50,FALSE) -> 29% | P24: =VLOOKUP($C24,'RECAP SECT'!$G$6:$DC$253,51,FALSE) -> 13
A25: 160 | B25: MOSELLE | C25: 44 | D25: MOSELLE NORD | E25: =VLOOKUP($C25,'RECAP SECT'!$G$6:$DC$253,3,FALSE) -> 65.4 | F25: =VLOOKUP($C25,'RECAP SECT'!$G$6:$DC$253,41,FALSE) -> 23,547 | G25: =VLOOKUP($C25,'RECAP SECT'!$G$6:$DC$253,42,FALSE) -> 360.27 | H25: =VLOOKUP($C25,'RECAP SECT'!$G$6:$DC$253,43,FALSE) -> 19% | I25: =VLOOKUP($C25,'RECAP SECT'!$G$6:$DC$253,44,FALSE) -> 8 | J25: =VLOOKUP($C25,'RECAP SECT'!$G$6:$DC$253,45,FALSE) -> 1,117 | K25: =VLOOKUP($C25,'RECAP SECT'!$G$6:$DC$253,46,FALSE) -> 17.09 | L25: =VLOOKUP($C25,'RECAP SECT'!$G$6:$DC$253,47,FALSE) -> 12% | M25: =VLOOKUP($C25,'RECAP SECT'!$G$6:$DC$253,48,FALSE) -> 7 | N25: =VLOOKUP($C25,'RECAP SECT'!$G$6:$DC$253,49,FALSE) -> 17% | O25: =VLOOKUP($C25,'RECAP SECT'!$G$6:$DC$253,50,FALSE) -> 15% | P25: =VLOOKUP($C25,'RECAP SECT'!$G$6:$DC$253,51,FALSE) -> 6
A26: 80 | B26: VOSGES | C26: 57 | D26: EPINAL | E26: =VLOOKUP($C26,'RECAP SECT'!$G$6:$DC$253,3,FALSE) -> 61.0 | F26: =VLOOKUP($C26,'RECAP SECT'!$G$6:$DC$253,41,FALSE) -> 24,542 | G26: =VLOOKUP($C26,'RECAP SECT'!$G$6:$DC$253,42,FALSE) -> 402.08 | H26: =VLOOKUP($C26,'RECAP SECT'!$G$6:$DC$253,43,FALSE) -> 10% | I26: =VLOOKUP($C26,'RECAP SECT'!$G$6:$DC$253,44,FALSE) -> 4 | J26: =VLOOKUP($C26,'RECAP SECT'!$G$6:$DC$253,45,FALSE) -> 580 | K26: =VLOOKUP($C26,'RECAP SECT'!$G$6:$DC$253,46,FALSE) -> 9.50 | L26: =VLOOKUP($C26,'RECAP SECT'!$G$6:$DC$253,47,FALSE) -> 51% | M26: =VLOOKUP($C26,'RECAP SECT'!$G$6:$DC$253,48,FALSE) -> 18 | N26: =VLOOKUP($C26,'RECAP SECT'!$G$6:$DC$253,49,FALSE) -> 22% | O26: =VLOOKUP($C26,'RECAP SECT'!$G$6:$DC$253,50,FALSE) -> 21% | P26: =VLOOKUP($C26,'RECAP SECT'!$G$6:$DC$253,51,FALSE) -> 7
A27: 80 | B27: VOSGES | C27: 55 | D27: SAINT DIE | E27: =VLOOKUP($C27,'RECAP SECT'!$G$6:$DC$253,3,FALSE) -> 46.8 | F27: =VLOOKUP($C27,'RECAP SECT'!$G$6:$DC$253,41,FALSE) -> 17,077 | G27: =VLOOKUP($C27,'RECAP SECT'!$G$6:$DC$253,42,FALSE) -> 365.04 | H27: =VLOOKUP($C27,'RECAP SECT'!$G$6:$DC$253,43,FALSE) -> 18% | I27: =VLOOKUP($C27,'RECAP SECT'!$G$6:$DC$253,44,FALSE) -> 7 | J27: =VLOOKUP($C27,'RECAP SECT'!$G$6:$DC$253,45,FALSE) -> 542 | K27: =VLOOKUP($C27,'RECAP SECT'!$G$6:$DC$253,46,FALSE) -> 11.59 | L27: =VLOOKUP($C27,'RECAP SECT'!$G$6:$DC$253,47,FALSE) -> 40% | M27: =VLOOKUP($C27,'RECAP SECT'!$G$6:$DC$253,48,FALSE) -> 17 | N27: =VLOOKUP($C27,'RECAP SECT'!$G$6:$DC$253,49,FALSE) -> 25% | O27: =VLOOKUP($C27,'RECAP SECT'!$G$6:$DC$253,50,FALSE) -> 23% | P27: =VLOOKUP($C27,'RECAP SECT'!$G$6:$DC$253,51,FALSE) -> 9
A28: Total CEGEE Directions Régionales | E28: =SUM(E10:E27) -> 1139

Sheet SE_CREDIT
B1: Accueil | F1: BAROMETRE BDD - TERRITOIRES
F2: CREDITS
F3: =ACCUEIL!F7 -> 2021-06-20
F7: Engagements et ventes accessoires pondérés Immo | J7: Engagements et ventes accessoires pondérés Conso | N7: Ventes sur client non détenteur de l’univers | R7: Total Crédits
F8: =DATEMAJ!C18 -> au 20/06 | H8: coef | I8: ='RECAP DIRCOM'!BM4 -> 8% | J8: =DATEMAJ!C19 -> au 20/06 | L8: coef | M8: ='RECAP DIRCOM'!BQ4 -> 6% | N8: =DATEMAJ!C20 -> au 20/06 | P8: coef | Q8: ='RECAP DIRCOM'!BU4 -> 6% | S8: coef | T8: ='RECAP DIRCOM'!BX4 -> 20%
B9: Direction | C9: eds | D9: Territoire | E9: ="ETP perf "&DATEMAJ!$C$28 -> ETP perf 30-avr | F9: PNB | G9: PNB / ETP | H9: % Ecart au 1er | I9: Rang | J9: PNB | K9: PNB / ETP | L9: % Ecart au 1er | M9: Rang | N9: VB | O9: VB / ETP | P9: % Ecart au 1er | Q9: Rang | R9: Moyenne ecart au 1er | S9: % Ecart au 1er | T9: Rang CEGEE
A10: 50 | B10: AUBE HAUTE MARNE | C10: 21 | D10: CHAUMONT | E10: =VLOOKUP($C10,'RECAP SECT'!$G$6:$DC$253,3,FALSE) -> 33.5 | F10: =VLOOKUP($C10,'RECAP SECT'!$G$6:$DC$253,56,FALSE) -> 2,259 | G10: =VLOOKUP($C10,'RECAP SECT'!$G$6:$DC$253,57,FALSE) -> 67.52 | H10: =VLOOKUP($C10,'RECAP SECT'!$G$6:$DC$253,58,FALSE) -> 60% | I10: =VLOOKUP($C10,'RECAP SECT'!$G$6:$DC$253,59,FALSE) -> 16 | J10: =VLOOKUP($C10,'RECAP SECT'!$G$6:$DC$253,60,FALSE) -> 1,674 | K10: =VLOOKUP($C10,'RECAP SECT'!$G$6:$DC$253,61,FALSE) -> 50.03 | L10: =VLOOKUP($C10,'RECAP SECT'!$G$6:$DC$253,62,FALSE) -> 0% | M10: =VLOOKUP($C10,'RECAP SECT'!$G$6:$DC$253,63,FALSE) -> 1 | N10: =VLOOKUP($C10,'RECAP SECT'!$G$6:$DC$253,64,FALSE) -> 375 | O10: =VLOOKUP($C10,'RECAP SECT'!$G$6:$DC$253,65,FALSE) -> 11.21 | P10: =VLOOKUP($C10,'RECAP SECT'!$G$6:$DC$253,66,FALSE) -> 26% | Q10: =VLOOKUP($C10,'RECAP SECT'!$G$6:$DC$253,67,FALSE) -> 6 | R10: =VLOOKUP($C10,'RECAP SECT'!$G$6:$DC$253,68,FALSE) -> 32% | S10: =VLOOKUP($C10,'RECAP SECT'!$G$6:$DC$253,69,FALSE) -> 25% | T10: =VLOOKUP($C10,'RECAP SECT'!$G$6:$DC$253,70,FALSE) -> 8
A11: 50 | B11: AUBE HAUTE MARNE | C11: 14 | D11: TROYES | E11: =VLOOKUP($C11,'RECAP SECT'!$G$6:$DC$253,3,FALSE) -> 65.9 | F11: =VLOOKUP($C11,'RECAP SECT'!$G$6:$DC$253,56,FALSE) -> 5,467 | G11: =VLOOKUP($C11,'RECAP SECT'!$G$6:$DC$253,57,FALSE) -> 82.91 | H11: =VLOOKUP($C11,'RECAP SECT'!$G$6:$DC$253,58,FALSE) -> 51% | I11: =VLOOKUP($C11,'RECAP SECT'!$G$6:$DC$253,59,FALSE) -> 10 | J11: =VLOOKUP($C11,'RECAP SECT'!$G$6:$DC$253,60,FALSE) -> 2,448 | K11: =VLOOKUP($C11,'RECAP SECT'!$G$6:$DC$253,61,FALSE) -> 37.12 | L11: =VLOOKUP($C11,'RECAP SECT'!$G$6:$DC$253,62,FALSE) -> 26% | M11: =VLOOKUP($C11,'RECAP SECT'!$G$6:$DC$253,63,FALSE) -> 12 | N11: =VLOOKUP($C11,'RECAP SECT'!$G$6:$DC$253,64,FALSE) -> 660 | O11: =VLOOKUP($C11,'RECAP SECT'!$G$6:$DC$253,65,FALSE) -> 10.01 | P11: =VLOOKUP($C11,'RECAP SECT'!$G$6:$DC$253,66,FALSE) -> 34% | Q11: =VLOOKUP($C11,'RECAP SECT'!$G$6:$DC$253,67,FALSE) -> 10 | R11: =VLOOKUP($C11,'RECAP SECT'!$G$6:$DC$253,68,FALSE) -> 38% | S11: =VLOOKUP($C11,'RECAP SECT'!$G$6:$DC$253,69,FALSE) -> 31% | T11: =VLOOKUP($C11,'RECAP SECT'!$G$6:$DC$253,70,FALSE) -> 11
A12: 262 | B12: BAS-RHIN | C12: 5060 | D12: HAGUENAU | E12: =VLOOKUP($C12,'RECAP SECT'!$G$6:$DC$253,3,FALSE) -> 70.0 | F12: =VLOOKUP($C12,'RECAP SECT'!$G$6:$DC$253,56,FALSE) -> 5,377 | G12: =VLOOKUP($C12,'RECAP SECT'!$G$6:$DC$253,57,FALSE) -> 76.86 | H12: =VLOOKUP($C12,'RECAP SECT'!$G$6:$DC$253,58,FALSE) -> 54% | I12: =VLOOKUP($C12,'RECAP SECT'!$G$6:$DC$253,59,FALSE) -> 13 | J12: =VLOOKUP($C12,'RECAP SECT'!$G$6:$DC$253,60,FALSE) -> 2,762 | K12: =VLOOKUP($C12,'RECAP SECT'!$G$6:$DC$253,61,FALSE) -> 39.48 | L12: =VLOOKUP($C12,'RECAP SECT'!$G$6:$DC$253,62,FALSE) -> 21% | M12: =VLOOKUP($C12,'RECAP SECT'!$G$6:$DC$253,63,FALSE) -> 6 | N12: =VLOOKUP($C12,'RECAP SECT'!$G$6:$DC$253,64,FALSE) -> 540 | O12: =VLOOKUP($C12,'RECAP SECT'!$G$6:$DC$253,65,FALSE) -> 7.72 | P12: =VLOOKUP($C12,'RECAP SECT'!$G$6:$DC$253,66,FALSE) -> 49% | Q12: =VLOOKUP($C12,'RECAP SECT'!$G$6:$DC$253,67,FALSE) -> 16 | R12: =VLOOKUP($C12,'RECAP SECT'!$G$6:$DC$253,68,FALSE) -> 43% | S12: =VLOOKUP($C12,'RECAP SECT'!$G$6:$DC$253,69,FALSE) -> 36% | T12: =VLOOKUP($C12,'RECAP SECT'!$G$6:$DC$253,70,FALSE) -> 15
A13: 262 | B13: BAS-RHIN | C13: 5101 | D13: SELESTAT | E13: =VLOOKUP($C13,'RECAP SECT'!$G$6:$DC$253,3,FALSE) -> 60.3 | F13: =VLOOKUP($C13,'RECAP SECT'!$G$6:$DC$253,56,FALSE) -> 3,115 | G13: =VLOOKUP($C13,'RECAP SECT'!$G$6:$DC$253,57,FALSE) -> 51.69 | H13: =VLOOKUP($C13,'RECAP SECT'!$G$6:$DC$253,58,FALSE) -> 69% | I13: =VLOOKUP($C13,'RECAP SECT'!$G$6:$DC$253,59,FALSE) -> 17 | J13: =VLOOKUP($C13,'RECAP SECT'!$G$6:$DC$253,60,FALSE) -> 2,325 | K13: =VLOOKUP($C13,'RECAP SECT'!$G$6:$DC$253,61,FALSE) -> 38.58 | L13: =VLOOKUP($C13,'RECAP SECT'!$G$6:$DC$253,62,FALSE) -> 23% | M13: =VLOOKUP($C13,'RECAP SECT'!$G$6:$DC$253,63,FALSE) -> 8 | N13: =VLOOKUP($C13,'RECAP SECT'!$G$6:$DC$253,64,FALSE) -> 539 | O13: =VLOOKUP($C13,'RECAP SECT'!$G$6:$DC$253,65,FALSE) -> 8.95 | P13: =VLOOKUP($C13,'RECAP SECT'!$G$6:$DC$253,66,FALSE) -> 41% | Q13: =VLOOKUP($C13,'RECAP SECT'!$G$6:$DC$253,67,FALSE) -> 15 | R13: =VLOOKUP($C13,'RECAP SECT'!$G$6:$DC$253,68,FALSE) -> 47% | S13: =VLOOKUP($C13,'RECAP SECT'!$G$6:$DC$253,69,FALSE) -> 40% | T13: =VLOOKUP($C13,'RECAP SECT'!$G$6:$DC$253,70,FALSE) -> 16
A14: 262 | B14: BAS-RHIN | C14: 5006 | D14: STRASBOURG | E14: =VLOOKUP($C14,'RECAP SECT'!$G$6:$DC$253,3,FALSE) -> 76.2 | F14: =VLOOKUP($C14,'RECAP SECT'!$G$6:$DC$253,56,FALSE) -> 7,488 | G14: =VLOOKUP($C14,'RECAP SECT'!$G$6:$DC$253,57,FALSE) -> 98.23 | H14: =VLOOKUP($C14,'RECAP SECT'!$G$6:$DC$253,58,FALSE) -> 42% | I14: =VLOOKUP($C14,'RECAP SECT'!$G$6:$DC$253,59,FALSE) -> 8 | J14: =VLOOKUP($C14,'RECAP SECT'!$G$6:$DC$253,60,FALSE) -> 2,462 | K14: =VLOOKUP($C14,'RECAP SECT'!$G$6:$DC$253,61,FALSE) -> 32.30 | L14: =VLOOKUP($C14,'RECAP SECT'!$G$6:$DC$253,62,FALSE) -> 35% | M14: =VLOOKUP($C14,'RECAP SECT'!$G$6:$DC$253,63,FALSE) -> 18 | N14: =VLOOKUP($C14,'RECAP SECT'!$G$6:$DC$253,64,FALSE) -> 762 | O14: =VLOOKUP($C14,'RECAP SECT'!$G$6:$DC$253,65,FALSE) -> 10.00 | P14: =VLOOKUP($C14,'RECAP SECT'!$G$6:$DC$253,66,FALSE) -> 34% | Q14: =VLOOKUP($C14,'RECAP SECT'!$G$6:$DC$253,67,FALSE) -> 11 | R14: =VLOOKUP($C14,'RECAP SECT'!$G$6:$DC$253,68,FALSE) -> 37% | S14: =VLOOKUP($C14,'RECAP SECT'!$G$6:$DC$253,69,FALSE) -> 31% | T14: =VLOOKUP($C14,'RECAP SECT'!$G$6:$DC$253,70,FALSE) -> 10
A15: 264 | B15: HAUT-RHIN | C15: 5130 | D15: COLMAR | E15: =VLOOKUP($C15,'RECAP SECT'!$G$6:$DC$253,3,FALSE) -> 61.6 | F15: =VLOOKUP($C15,'RECAP SECT'!$G$6:$DC$253,56,FALSE) -> 3,127 | G15: =VLOOKUP($C15,'RECAP SECT'!$G$6:$DC$253,57,FALSE) -> 50.77 | H15: =VLOOKUP($C15,'RECAP SECT'!$G$6:$DC$253,58,FALSE) -> 70% | I15: =VLOOKUP($C15,'RECAP SECT'!$G$6:$DC$253,59,FALSE) -> 18 | J15: =VLOOKUP($C15,'RECAP SECT'!$G$6:$DC$253,60,FALSE) -> 2,045 | K15: =VLOOKUP($C15,'RECAP SECT'!$G$6:$DC$253,61,FALSE) -> 33.20 | L15: =VLOOKUP($C15,'RECAP SECT'!$G$6:$DC$253,62,FALSE) -> 34% | M15: =VLOOKUP($C15,'RECAP SECT'!$G$6:$DC$253,63,FALSE) -> 17 | N15: =VLOOKUP($C15,'RECAP SECT'!$G$6:$DC$253,64,FALSE) -> 445 | O15: =VLOOKUP($C15,'RECAP SECT'!$G$6:$DC$253,65,FALSE) -> 7.22 | P15: =VLOOKUP($C15,'RECAP SECT'!$G$6:$DC$253,66,FALSE) -> 52% | Q15: =VLOOKUP($C15,'RECAP SECT'!$G$6:$DC$253,67,FALSE) -> 18 | R15: =VLOOKUP($C15,'RECAP SECT'!$G$6:$DC$253,68,FALSE) -> 54% | S15: =VLOOKUP($C15,'RECAP SECT'!$G$6:$DC$253,69,FALSE) -> 47% | T15: =VLOOKUP($C15,'RECAP SECT'!$G$6:$DC$253,70,FALSE) -> 18
A16: 264 | B16: HAUT-RHIN | C16: 5169 | D16: MULHOUSE | E16: =VLOOKUP($C16,'RECAP SECT'!$G$6:$DC$253,3,FALSE) -> 61.0 | F16: =VLOOKUP($C16,'RECAP SECT'!$G$6:$DC$253,56,FALSE) -> 4,157 | G16: =VLOOKUP($C16,'RECAP SECT'!$G$6:$DC$253,57,FALSE) -> 68.13 | H16: =VLOOKUP($C16,'RECAP SECT'!$G$6:$DC$253,58,FALSE) -> 60% | I16: =VLOOKUP($C16,'RECAP SECT'!$G$6:$DC$253,59,FALSE) -> 15 | J16: =VLOOKUP($C16,'RECAP SECT'!$G$6:$DC$253,60,FALSE) -> 2,055 | K16: =VLOOKUP($C16,'RECAP SECT'!$G$6:$DC$253,61,FALSE) -> 33.67 | L16: =VLOOKUP($C16,'RECAP SECT'!$G$6:$DC$253,62,FALSE) -> 33% | M16: =VLOOKUP($C16,'RECAP SECT'!$G$6:$DC$253,63,FALSE) -> 15 | N16: =VLOOKUP($C16,'RECAP SECT'!$G$6:$DC$253,64,FALSE) -> 458 | O16: =VLOOKUP($C16,'RECAP SECT'!$G$6:$DC$253,65,FALSE) -> 7.51 | P16: =VLOOKUP($C16,'RECAP SECT'!$G$6:$DC$253,66,FALSE) -> 50% | Q16: =VLOOKUP($C16,'RECAP SECT'!$G$6:$DC$253,67,FALSE) -> 17 | R16: =VLOOKUP($C16,'RECAP SECT'!$G$6:$DC$253,68,FALSE) -> 49% | S16: =VLOOKUP($C16,'RECAP SECT'!$G$6:$DC$253,69,FALSE) -> 42% | T16: =VLOOKUP($C16,'RECAP SECT'!$G$6:$DC$253,70,FALSE) -> 17
A17: 30 | B17: MARNE-ARDENNES | C17: 6 | D17: CHALONS EN CHAMPAGNE | E17: =VLOOKUP($C17,'RECAP SECT'!$G$6:$DC$253,3,FALSE) -> 44.5 | F17: =VLOOKUP($C17,'RECAP SECT'!$G$6:$DC$253,56,FALSE) -> 4,460 | G17: =VLOOKUP($C17,'RECAP SECT'!$G$6:$DC$253,57,FALSE) -> 100.27 | H17: =VLOOKUP($C17,'RECAP SECT'!$G$6:$DC$253,58,FALSE) -> 40% | I17: =VLOOKUP($C17,'RECAP SECT'!$G$6:$DC$253,59,FALSE) -> 7 | J17: =VLOOKUP($C17,'RECAP SECT'!$G$6:$DC$253,60,FALSE) -> 1,689 | K17: =VLOOKUP($C17,'RECAP SECT'!$G$6:$DC$253,61,FALSE) -> 37.97 | L17: =VLOOKUP($C17,'RECAP SECT'!$G$6:$DC$253,62,FALSE) -> 24% | M17: =VLOOKUP($C17,'RECAP SECT'!$G$6:$DC$253,63,FALSE) -> 9 | N17: =VLOOKUP($C17,'RECAP SECT'!$G$6:$DC$253,64,FALSE) -> 495 | O17: =VLOOKUP($C17,'RECAP SECT'!$G$6:$DC$253,65,FALSE) -> 11.13 | P17: =VLOOKUP($C17,'RECAP SECT'!$G$6:$DC$253,66,FALSE) -> 26% | Q17: =VLOOKUP($C17,'RECAP SECT'!$G$6:$DC$253,67,FALSE) -> 7 | R17: =VLOOKUP($C17,'RECAP SECT'!$G$6:$DC$253,68,FALSE) -> 31% | S17: =VLOOKUP($C17,'RECAP SECT'!$G$6:$DC$253,69,FALSE) -> 25% | T17: =VLOOKUP($C17,'RECAP SECT'!$G$6:$DC$253,70,FALSE) -> 7
A18: 30 | B18: MARNE-ARDENNES | C18: 2 | D18: CHARLEVILLE MEZIERES | E18: =VLOOKUP($C18,'RECAP SECT'!$G$6:$DC$253,3,FALSE) -> 55.8 | F18: =VLOOKUP($C18,'RECAP SECT'!$G$6:$DC$253,56,FALSE) -> 7,537 | G18: =VLOOKUP($C18,'RECAP SECT'!$G$6:$DC$253,57,FALSE) -> 135.04 | H18: =VLOOKUP($C18,'RECAP SECT'!$G$6:$DC$253,58,FALSE) -> 20% | I18: =VLOOKUP($C18,'RECAP SECT'!$G$6:$DC$253,59,FALSE) -> 4 | J18: =VLOOKUP($C18,'RECAP SECT'!$G$6:$DC$253,60,FALSE) -> 2,093 | K18: =VLOOKUP($C18,'RECAP SECT'!$G$6:$DC$253,61,FALSE) -> 37.51 | L18: =VLOOKUP($C18,'RECAP SECT'!$G$6:$DC$253,62,FALSE) -> 25% | M18: =VLOOKUP($C18,'RECAP SECT'!$G$6:$DC$253,63,FALSE) -> 11 | N18: =VLOOKUP($C18,'RECAP SECT'!$G$6:$DC$253,64,FALSE) -> 709 | O18: =VLOOKUP($C18,'RECAP SECT'!$G$6:$DC$253,65,FALSE) -> 12.70 | P18: =VLOOKUP($C18,'RECAP SECT'!$G$6:$DC$253,66,FALSE) -> 16% | Q18: =VLOOKUP($C18,'RECAP SECT'!$G$6:$DC$253,67,FALSE) -> 4 | R18: =VLOOKUP($C18,'RECAP SECT'!$G$6:$DC$253,68,FALSE) -> 20% | S18: =VLOOKUP($C18,'RECAP SECT'!$G$6:$DC$253,69,FALSE) -> 13% | T18: =VLOOKUP($C18,'RECAP SECT'!$G$6:$DC$253,70,FALSE) -> 4
A19: 30 | B19: MARNE-ARDENNES | C19: 11 | D19: REIMS | E19: =VLOOKUP($C19,'RECAP SECT'!$G$6:$DC$253,3,FALSE) -> 80.4 | F19: =VLOOKUP($C19,'RECAP SECT'!$G$6:$DC$253,56,FALSE) -> 12,676 | G19: =VLOOKUP($C19,'RECAP SECT'!$G$6:$DC$253,57,FALSE) -> 157.67 | H19: =VLOOKUP($C19,'RECAP SECT'!$G$6:$DC$253,58,FALSE) -> 6% | I19: =VLOOKUP($C19,'RECAP SECT'!$G$6:$DC$253,59,FALSE) -> 3 | J19: =VLOOKUP($C19,'RECAP SECT'!$G$6:$DC$253,60,FALSE) -> 2,972 | K19: =VLOOKUP($C19,'RECAP SECT'!$G$6:$DC$253,61,FALSE) -> 36.97 | L19: =VLOOKUP($C19,'RECAP SECT'!$G$6:$DC$253,62,FALSE) -> 26% | M19: =VLOOKUP($C19,'RECAP SECT'!$G$6:$DC$253,63,FALSE) -> 13 | N19: =VLOOKUP($C19,'RECAP SECT'!$G$6:$DC$253,64,FALSE) -> 1,023 | O19: =VLOOKUP($C19,'RECAP SECT'!$G$6:$DC$253,65,FALSE) -> 12.72 | P19: =VLOOKUP($C19,'RECAP SECT'!$G$6:$DC$253,66,FALSE) -> 16% | Q19: =VLOOKUP($C19,'RECAP SECT'!$G$6:$DC$253,67,FALSE) -> 3 | R19: =VLOOKUP($C19,'RECAP SECT'!$G$6:$DC$253,68,FALSE) -> 15% | S19: =VLOOKUP($C19,'RECAP SECT'!$G$6:$DC$253,69,FALSE) -> 8% | T19: =VLOOKUP($C19,'RECAP SECT'!$G$6:$DC$253,70,FALSE) -> 3
A20: 110 | B20: MEURTHE ET MOSELLE MEUSE | C20: 26 | D20: NANCY | E20: =VLOOKUP($C20,'RECAP SECT'!$G$6:$DC$253,3,FALSE) -> 66.5 | F20: =VLOOKUP($C20,'RECAP SECT'!$G$6:$DC$253,56,FALSE) -> 11,189 | G20: =VLOOKUP($C20,'RECAP SECT'!$G$6:$DC$253,57,FALSE) -> 168.24 | H20: =VLOOKUP($C20,'RECAP SECT'!$G$6:$DC$253,58,FALSE) -> 0% | I20: =VLOOKUP($C20,'RECAP SECT'!$G$6:$DC$253,59,FALSE) -> 1 | J20: =VLOOKUP($C20,'RECAP SECT'!$G$6:$DC$253,60,FALSE) -> 2,582 | K20: =VLOOKUP($C20,'RECAP SECT'!$G$6:$DC$253,61,FALSE) -> 38.83 | L20: =VLOOKUP($C20,'RECAP SECT'!$G$6:$DC$253,62,FALSE) -> 22% | M20: =VLOOKUP($C20,'RECAP SECT'!$G$6:$DC$253,63,FALSE) -> 7 | N20: =VLOOKUP($C20,'RECAP SECT'!$G$6:$DC$253,64,FALSE) -> 1,005 | O20: =VLOOKUP($C20,'RECAP SECT'!$G$6:$DC$253,65,FALSE) -> 15.11 | P20: =VLOOKUP($C20,'RECAP SECT'!$G$6:$DC$253,66,FALSE) -> 0% | Q20: =VLOOKUP($C20,'RECAP SECT'!$G$6:$DC$253,67,FALSE) -> 1 | R20: =VLOOKUP($C20,'RECAP SECT'!$G$6:$DC$253,68,FALSE) -> 7% | S20: =VLOOKUP($C20,'RECAP SECT'!$G$6:$DC$253,69,FALSE) -> 0% | T20: =VLOOKUP($C20,'RECAP SECT'!$G$6:$DC$253,70,FALSE) -> 1
A21: 110 | B21: MEURTHE ET MOSELLE MEUSE | C21: 27 | D21: PONT A MOUSSON | E21: =VLOOKUP($C21,'RECAP SECT'!$G$6:$DC$253,3,FALSE) -> 76.0 | F21: =VLOOKUP($C21,'RECAP SECT'!$G$6:$DC$253,56,FALSE) -> 12,423 | G21: =VLOOKUP($C21,'RECAP SECT'!$G$6:$DC$253,57,FALSE) -> 163.46 | H21: =VLOOKUP($C21,'RECAP SECT'!$G$6:$DC$253,58,FALSE) -> 3% | I21: =VLOOKUP($C21,'RECAP SECT'!$G$6:$DC$253,59,FALSE) -> 2 | J21: =VLOOKUP($C21,'RECAP SECT'!$G$6:$DC$253,60,FALSE) -> 2,851 | K21: =VLOOKUP($C21,'RECAP SECT'!$G$6:$DC$253,61,FALSE) -> 37.52 | L21: =VLOOKUP($C21,'RECAP SECT'!$G$6:$DC$253,62,FALSE) -> 25% | M21: =VLOOKUP($C21,'RECAP SECT'!$G$6:$DC$253,63,FALSE) -> 10 | N21: =VLOOKUP($C21,'RECAP SECT'!$G$6:$DC$253,64,FALSE) -> 1,015 | O21: =VLOOKUP($C21,'RECAP SECT'!$G$6:$DC$253,65,FALSE) -> 13.36 | P21: =VLOOKUP($C21,'RECAP SECT'!$G$6:$DC$253,66,FALSE) -> 12% | Q21: =VLOOKUP($C21,'RECAP SECT'!$G$6:$DC$253,67,FALSE) -> 2 | R21: =VLOOKUP($C21,'RECAP SECT'!$G$6:$DC$253,68,FALSE) -> 12% | S21: =VLOOKUP($C21,'RECAP SECT'!$G$6:$DC$253,69,FALSE) -> 5% | T21: =VLOOKUP($C21,'RECAP SECT'!$G$6:$DC$253,70,FALSE) -> 2
A22: 110 | B22: MEURTHE ET MOSELLE MEUSE | C22: 31 | D22: VERDUN | E22: =VLOOKUP($C22,'RECAP SECT'!$G$6:$DC$253,3,FALSE) -> 54.9 | F22: =VLOOKUP($C22,'RECAP SECT'!$G$6:$DC$253,56,FALSE) -> 6,242 | G22: =VLOOKUP($C22,'RECAP SECT'!$G$6:$DC$253,57,FALSE) -> 113.64 | H22: =VLOOKUP($C22,'RECAP SECT'!$G$6:$DC$253,58,FALSE) -> 32% | I22: =VLOOKUP($C22,'RECAP SECT'!$G$6:$DC$253,59,FALSE) -> 6 | J22: =VLOOKUP($C22,'RECAP SECT'!$G$6:$DC$253,60,FALSE) -> 2,475 | K22: =VLOOKUP($C22,'RECAP SECT'!$G$6:$DC$253,61,FALSE) -> 45.06 | L22: =VLOOKUP($C22,'RECAP SECT'!$G$6:$DC$253,62,FALSE) -> 10% | M22: =VLOOKUP($C22,'RECAP SECT'!$G$6:$DC$253,63,FALSE) -> 2 | N22: =VLOOKUP($C22,'RECAP SECT'!$G$6:$DC$253,64,FALSE) -> 629 | O22: =VLOOKUP($C22,'RECAP SECT'!$G$6:$DC$253,65,FALSE) -> 11.45 | P22: =VLOOKUP($C22,'RECAP SECT'!$G$6:$DC$253,66,FALSE) -> 24% | Q22: =VLOOKUP($C22,'RECAP SECT'!$G$6:$DC$253,67,FALSE) -> 5 | R22: =VLOOKUP($C22,'RECAP SECT'!$G$6:$DC$253,68,FALSE) -> 23% | S22: =VLOOKUP($C22,'RECAP SECT'!$G$6:$DC$253,69,FALSE) -> 17% | T22: =VLOOKUP($C22,'RECAP SECT'!$G$6:$DC$253,70,FALSE) -> 5
A23: 160 | B23: MOSELLE | C23: 45 | D23: METZ | E23: =VLOOKUP($C23,'RECAP SECT'!$G$6:$DC$253,3,FALSE) -> 89.6 | F23: =VLOOKUP($C23,'RECAP SECT'!$G$6:$DC$253,56,FALSE) -> 7,991 | G23: =VLOOKUP($C23,'RECAP SECT'!$G$6:$DC$253,57,FALSE) -> 89.14 | H23: =VLOOKUP($C23,'RECAP SECT'!$G$6:$DC$253,58,FALSE) -> 47% | I23: =VLOOKUP($C23,'RECAP SECT'!$G$6:$DC$253,59,FALSE) -> 9 | J23: =VLOOKUP($C23,'RECAP SECT'!$G$6:$DC$253,60,FALSE) -> 3,300 | K23: =VLOOKUP($C23,'RECAP SECT'!$G$6:$DC$253,61,FALSE) -> 36.81 | L23: =VLOOKUP($C23,'RECAP SECT'!$G$6:$DC$253,62,FALSE) -> 26% | M23: =VLOOKUP($C23,'RECAP SECT'!$G$6:$DC$253,63,FALSE) -> 14 | N23: =VLOOKUP($C23,'RECAP SECT'!$G$6:$DC$253,64,FALSE) -> 821 | O23: =VLOOKUP($C23,'RECAP SECT'!$G$6:$DC$253,65,FALSE) -> 9.16 | P23: =VLOOKUP($C23,'RECAP SECT'!$G$6:$DC$253,66,FALSE) -> 39% | Q23: =VLOOKUP($C23,'RECAP SECT'!$G$6:$DC$253,67,FALSE) -> 13 | R23: =VLOOKUP($C23,'RECAP SECT'!$G$6:$DC$253,68,FALSE) -> 39% | S23: =VLOOKUP($C23,'RECAP SECT'!$G$6:$DC$253,69,FALSE) -> 32% | T23: =VLOOKUP($C23,'RECAP SECT'!$G$6:$DC$253,70,FALSE) -> 12
A24: 160 | B24: MOSELLE | C24: 42 | D24: MOSELLE EST | E24: =VLOOKUP($C24,'RECAP SECT'!$G$6:$DC$253,3,FALSE) -> 69.8 | F24: =VLOOKUP($C24,'RECAP SECT'!$G$6:$DC$253,56,FALSE) -> 5,386 | G24: =VLOOKUP($C24,'RECAP SECT'!$G$6:$DC$253,57,FALSE) -> 77.15 | H24: =VLOOKUP($C24,'RECAP SECT'!$G$6:$DC$253,58,FALSE) -> 54% | I24: =VLOOKUP($C24,'RECAP SECT'!$G$6:$DC$253,59,FALSE) -> 12 | J24: =VLOOKUP($C24,'RECAP SECT'!$G$6:$DC$253,60,FALSE) -> 3,096 | K24: =VLOOKUP($C24,'RECAP SECT'!$G$6:$DC$253,61,FALSE) -> 44.35 | L24: =VLOOKUP($C24,'RECAP SECT'!$G$6:$DC$253,62,FALSE) -> 11% | M24: =VLOOKUP($C24,'RECAP SECT'!$G$6:$DC$253,63,FALSE) -> 3 | N24: =VLOOKUP($C24,'RECAP SECT'!$G$6:$DC$253,64,FALSE) -> 626 | O24: =VLOOKUP($C24,'RECAP SECT'!$G$6:$DC$253,65,FALSE) -> 8.97 | P24: =VLOOKUP($C24,'RECAP SECT'!$G$6:$DC$253,66,FALSE) -> 41% | Q24: =VLOOKUP($C24,'RECAP SECT'!$G$6:$DC$253,67,FALSE) -> 14 | R24: =VLOOKUP($C24,'RECAP SECT'!$G$6:$DC$253,68,FALSE) -> 37% | S24: =VLOOKUP($C24,'RECAP SECT'!$G$6:$DC$253,69,FALSE) -> 31% | T24: =VLOOKUP($C24,'RECAP SECT'!$G$6:$DC$253,70,FALSE) -> 9
A25: 160 | B25: MOSELLE | C25: 44 | D25: MOSELLE NORD | E25: =VLOOKUP($C25,'RECAP SECT'!$G$6:$DC$253,3,FALSE) -> 65.4 | F25: =VLOOKUP($C25,'RECAP SECT'!$G$6:$DC$253,56,FALSE) -> 7,482 | G25: =VLOOKUP($C25,'RECAP SECT'!$G$6:$DC$253,57,FALSE) -> 114.48 | H25: =VLOOKUP($C25,'RECAP SECT'!$G$6:$DC$253,58,FALSE) -> 32% | I25: =VLOOKUP($C25,'RECAP SECT'!$G$6:$DC$253,59,FALSE) -> 5 | J25: =VLOOKUP($C25,'RECAP SECT'!$G$6:$DC$253,60,FALSE) -> 2,671 | K25: =VLOOKUP($C25,'RECAP SECT'!$G$6:$DC$253,61,FALSE) -> 40.87 | L25: =VLOOKUP($C25,'RECAP SECT'!$G$6:$DC$253,62,FALSE) -> 18% | M25: =VLOOKUP($C25,'RECAP SECT'!$G$6:$DC$253,63,FALSE) -> 4 | N25: =VLOOKUP($C25,'RECAP SECT'!$G$6:$DC$253,64,FALSE) -> 657 | O25: =VLOOKUP($C25,'RECAP SECT'!$G$6:$DC$253,65,FALSE) -> 10.05 | P25: =VLOOKUP($C25,'RECAP SECT'!$G$6:$DC$253,66,FALSE) -> 33% | Q25: =VLOOKUP($C25,'RECAP SECT'!$G$6:$DC$253,67,FALSE) -> 9 | R25: =VLOOKUP($C25,'RECAP SECT'!$G$6:$DC$253,68,FALSE) -> 28% | S25: =VLOOKUP($C25,'RECAP SECT'!$G$6:$DC$253,69,FALSE) -> 22% | T25: =VLOOKUP($C25,'RECAP SECT'!$G$6:$DC$253,70,FALSE) -> 6
A26: 80 | B26: VOSGES | C26: 57 | D26: EPINAL | E26: =VLOOKUP($C26,'RECAP SECT'!$G$6:$DC$253,3,FALSE) -> 61.0 | F26: =VLOOKUP($C26,'RECAP SECT'!$G$6:$DC$253,56,FALSE) -> 4,872 | G26: =VLOOKUP($C26,'RECAP SECT'!$G$6:$DC$253,57,FALSE) -> 79.82 | H26: =VLOOKUP($C26,'RECAP SECT'!$G$6:$DC$253,58,FALSE) -> 53% | I26: =VLOOKUP($C26,'RECAP SECT'!$G$6:$DC$253,59,FALSE) -> 11 | J26: =VLOOKUP($C26,'RECAP SECT'!$G$6:$DC$253,60,FALSE) -> 2,041 | K26: =VLOOKUP($C26,'RECAP SECT'!$G$6:$DC$253,61,FALSE) -> 33.44 | L26: =VLOOKUP($C26,'RECAP SECT'!$G$6:$DC$253,62,FALSE) -> 33% | M26: =VLOOKUP($C26,'RECAP SECT'!$G$6:$DC$253,63,FALSE) -> 16 | N26: =VLOOKUP($C26,'RECAP SECT'!$G$6:$DC$253,64,FALSE) -> 676 | O26: =VLOOKUP($C26,'RECAP SECT'!$G$6:$DC$253,65,FALSE) -> 11.07 | P26: =VLOOKUP($C26,'RECAP SECT'!$G$6:$DC$253,66,FALSE) -> 27% | Q26: =VLOOKUP($C26,'RECAP SECT'!$G$6:$DC$253,67,FALSE) -> 8 | R26: =VLOOKUP($C26,'RECAP SECT'!$G$6:$DC$253,68,FALSE) -> 39% | S26: =VLOOKUP($C26,'RECAP SECT'!$G$6:$DC$253,69,FALSE) -> 32% | T26: =VLOOKUP($C26,'RECAP SECT'!$G$6:$DC$253,70,FALSE) -> 14
A27: 80 | B27: VOSGES | C27: 55 | D27: SAINT DIE | E27: =VLOOKUP($C27,'RECAP SECT'!$G$6:$DC$253,3,FALSE) -> 46.8 | F27: =VLOOKUP($C27,'RECAP SECT'!$G$6:$DC$253,56,FALSE) -> 3,485 | G27: =VLOOKUP($C27,'RECAP SECT'!$G$6:$DC$253,57,FALSE) -> 74.50 | H27: =VLOOKUP($C27,'RECAP SECT'!$G$6:$DC$253,58,FALSE) -> 56% | I27: =VLOOKUP($C27,'RECAP SECT'!$G$6:$DC$253,59,FALSE) -> 14 | J27: =VLOOKUP($C27,'RECAP SECT'!$G$6:$DC$253,60,FALSE) -> 1,899 | K27: =VLOOKUP($C27,'RECAP SECT'!$G$6:$DC$253,61,FALSE) -> 40.59 | L27: =VLOOKUP($C27,'RECAP SECT'!$G$6:$DC$253,62,FALSE) -> 19% | M27: =VLOOKUP($C27,'RECAP SECT'!$G$6:$DC$253,63,FALSE) -> 5 | N27: =VLOOKUP($C27,'RECAP SECT'!$G$6:$DC$253,64,FALSE) -> 455 | O27: =VLOOKUP($C27,'RECAP SECT'!$G$6:$DC$253,65,FALSE) -> 9.73 | P27: =VLOOKUP($C27,'RECAP SECT'!$G$6:$DC$253,66,FALSE) -> 36% | Q27: =VLOOKUP($C27,'RECAP SECT'!$G$6:$DC$253,67,FALSE) -> 12 | R27: =VLOOKUP($C27,'RECAP SECT'!$G$6:$DC$253,68,FALSE) -> 39% | S27: =VLOOKUP($C27,'RECAP SECT'!$G$6:$DC$253,69,FALSE) -> 32% | T27: =VLOOKUP($C27,'RECAP SECT'!$G$6:$DC$253,70,FALSE) -> 13
A28: Total CEGEE Directions Régionales | E28: =SUM(E10:E27) -> 1139

Sheet SE_IARD
B1: Accueil | F1: BAROMETRE BDD - TERRITOIRES
F2: IARD ET PREVOYANCE
F3: =ACCUEIL!F7 -> 2021-06-20
F7: Ventes Nettes produits pondérés | J7: Ventes sur client non détenteur de l’univers | N7: Total IARD Prévoyance
F8: =DATEMAJ!C23 -> au 20/06 | H8: coef | I8: ='RECAP DIRCOM'!CF4 -> 14% | J8: =DATEMAJ!C24 -> au 20/06 | L8: coef | M8: ='RECAP DIRCOM'!CJ4 -> 6% | O8: coef | P8: ='RECAP DIRCOM'!CM4 -> 20%
B9: Direction | C9: eds | D9: Territoire | E9: ="ETP perf "&DATEMAJ!$C$28 -> ETP perf 30-avr | F9: VN | G9: VN / ETP | H9: % Ecart au 1er | I9: Rang | J9: VB | K9: VB / ETP | L9: % Ecart au 1er | M9: Rang | N9: Moyenne ecart au 1er | O9: % Ecart au 1er | P9: Rang CEGEE
A10: 50 | B10: AUBE HAUTE MARNE | C10: 21 | D10: CHAUMONT | E10: =VLOOKUP($C10,'RECAP SECT'!$G$6:$DC$253,3,FALSE) -> 33.5 | F10: =VLOOKUP($C10,'RECAP SECT'!$G$6:$DC$253,75,FALSE) -> 5,058 | G10: =VLOOKUP($C10,'RECAP SECT'!$G$6:$DC$253,76,FALSE) -> 151.16 | H10: =VLOOKUP($C10,'RECAP SECT'!$G$6:$DC$253,77,FALSE) -> 17% | I10: =VLOOKUP($C10,'RECAP SECT'!$G$6:$DC$253,78,FALSE) -> 8 | J10: =VLOOKUP($C10,'RECAP SECT'!$G$6:$DC$253,79,FALSE) -> 888 | K10: =VLOOKUP($C10,'RECAP SECT'!$G$6:$DC$253,80,FALSE) -> 26.54 | L10: =VLOOKUP($C10,'RECAP SECT'!$G$6:$DC$253,81,FALSE) -> 13% | M10: =VLOOKUP($C10,'RECAP SECT'!$G$6:$DC$253,82,FALSE) -> 3 | N10: =VLOOKUP($C10,'RECAP SECT'!$G$6:$DC$253,83,FALSE) -> 16% | O10: =VLOOKUP($C10,'RECAP SECT'!$G$6:$DC$253,84,FALSE) -> 13% | P10: =VLOOKUP($C10,'RECAP SECT'!$G$6:$DC$253,85,FALSE) -> 5
A11: 50 | B11: AUBE HAUTE MARNE | C11: 14 | D11: TROYES | E11: =VLOOKUP($C11,'RECAP SECT'!$G$6:$DC$253,3,FALSE) -> 65.9 | F11: =VLOOKUP($C11,'RECAP SECT'!$G$6:$DC$253,75,FALSE) -> 6,697 | G11: =VLOOKUP($C11,'RECAP SECT'!$G$6:$DC$253,76,FALSE) -> 101.57 | H11: =VLOOKUP($C11,'RECAP SECT'!$G$6:$DC$253,77,FALSE) -> 44% | I11: =VLOOKUP($C11,'RECAP SECT'!$G$6:$DC$253,78,FALSE) -> 17 | J11: =VLOOKUP($C11,'RECAP SECT'!$G$6:$DC$253,79,FALSE) -> 1,500 | K11: =VLOOKUP($C11,'RECAP SECT'!$G$6:$DC$253,80,FALSE) -> 22.75 | L11: =VLOOKUP($C11,'RECAP SECT'!$G$6:$DC$253,81,FALSE) -> 26% | M11: =VLOOKUP($C11,'RECAP SECT'!$G$6:$DC$253,82,FALSE) -> 13 | N11: =VLOOKUP($C11,'RECAP SECT'!$G$6:$DC$253,83,FALSE) -> 39% | O11: =VLOOKUP($C11,'RECAP SECT'!$G$6:$DC$253,84,FALSE) -> 36% | P11: =VLOOKUP($C11,'RECAP SECT'!$G$6:$DC$253,85,FALSE) -> 16
A12: 262 | B12: BAS-RHIN | C12: 5060 | D12: HAGUENAU | E12: =VLOOKUP($C12,'RECAP SECT'!$G$6:$DC$253,3,FALSE) -> 70.0 | F12: =VLOOKUP($C12,'RECAP SECT'!$G$6:$DC$253,75,FALSE) -> 7,664 | G12: =VLOOKUP($C12,'RECAP SECT'!$G$6:$DC$253,76,FALSE) -> 109.56 | H12: =VLOOKUP($C12,'RECAP SECT'!$G$6:$DC$253,77,FALSE) -> 40% | I12: =VLOOKUP($C12,'RECAP SECT'!$G$6:$DC$253,78,FALSE) -> 16 | J12: =VLOOKUP($C12,'RECAP SECT'!$G$6:$DC$253,79,FALSE) -> 1,368 | K12: =VLOOKUP($C12,'RECAP SECT'!$G$6:$DC$253,80,FALSE) -> 19.56 | L12: =VLOOKUP($C12,'RECAP SECT'!$G$6:$DC$253,81,FALSE) -> 36% | M12: =VLOOKUP($C12,'RECAP SECT'!$G$6:$DC$253,82,FALSE) -> 18 | N12: =VLOOKUP($C12,'RECAP SECT'!$G$6:$DC$253,83,FALSE) -> 39% | O12: =VLOOKUP($C12,'RECAP SECT'!$G$6:$DC$253,84,FALSE) -> 36% | P12: =VLOOKUP($C12,'RECAP SECT'!$G$6:$DC$253,85,FALSE) -> 17
A13: 262 | B13: BAS-RHIN | C13: 5101 | D13: SELESTAT | E13: =VLOOKUP($C13,'RECAP SECT'!$G$6:$DC$253,3,FALSE) -> 60.3 | F13: =VLOOKUP($C13,'RECAP SECT'!$G$6:$DC$253,75,FALSE) -> 9,378 | G13: =VLOOKUP($C13,'RECAP SECT'!$G$6:$DC$253,76,FALSE) -> 155.64 | H13: =VLOOKUP($C13,'RECAP SECT'!$G$6:$DC$253,77,FALSE) -> 15% | I13: =VLOOKUP($C13,'RECAP SECT'!$G$6:$DC$253,78,FALSE) -> 6 | J13: =VLOOKUP($C13,'RECAP SECT'!$G$6:$DC$253,79,FALSE) -> 1,381 | K13: =VLOOKUP($C13,'RECAP SECT'!$G$6:$DC$253,80,FALSE) -> 22.92 | L13: =VLOOKUP($C13,'RECAP SECT'!$G$6:$DC$253,81,FALSE) -> 25% | M13: =VLOOKUP($C13,'RECAP SECT'!$G$6:$DC$253,82,FALSE) -> 12 | N13: =VLOOKUP($C13,'RECAP SECT'!$G$6:$DC$253,83,FALSE) -> 18% | O13: =VLOOKUP($C13,'RECAP SECT'!$G$6:$DC$253,84,FALSE) -> 15% | P13: =VLOOKUP($C13,'RECAP SECT'!$G$6:$DC$253,85,FALSE) -> 8
A14: 262 | B14: BAS-RHIN | C14: 5006 | D14: STRASBOURG | E14: =VLOOKUP($C14,'RECAP SECT'!$G$6:$DC$253,3,FALSE) -> 76.2 | F14: =VLOOKUP($C14,'RECAP SECT'!$G$6:$DC$253,75,FALSE) -> 13,889 | G14: =VLOOKUP($C14,'RECAP SECT'!$G$6:$DC$253,76,FALSE) -> 182.20 | H14: =VLOOKUP($C14,'RECAP SECT'!$G$6:$DC$253,77,FALSE) -> 0% | I14: =VLOOKUP($C14,'RECAP SECT'!$G$6:$DC$253,78,FALSE) -> 1 | J14: =VLOOKUP($C14,'RECAP SECT'!$G$6:$DC$253,79,FALSE) -> 1,955 | K14: =VLOOKUP($C14,'RECAP SECT'!$G$6:$DC$253,80,FALSE) -> 25.65 | L14: =VLOOKUP($C14,'RECAP SECT'!$G$6:$DC$253,81,FALSE) -> 16% | M14: =VLOOKUP($C14,'RECAP SECT'!$G$6:$DC$253,82,FALSE) -> 5 | N14: =VLOOKUP($C14,'RECAP SECT'!$G$6:$DC$253,83,FALSE) -> 5% | O14: =VLOOKUP($C14,'RECAP SECT'!$G$6:$DC$253,84,FALSE) -> 2% | P14: =VLOOKUP($C14,'RECAP SECT'!$G$6:$DC$253,85,FALSE) -> 2
A15: 264 | B15: HAUT-RHIN | C15: 5130 | D15: COLMAR | E15: =VLOOKUP($C15,'RECAP SECT'!$G$6:$DC$253,3,FALSE) -> 61.6 | F15: =VLOOKUP($C15,'RECAP SECT'!$G$6:$DC$253,75,FALSE) -> 8,475 | G15: =VLOOKUP($C15,'RECAP SECT'!$G$6:$DC$253,76,FALSE) -> 137.57 | H15: =VLOOKUP($C15,'RECAP SECT'!$G$6:$DC$253,77,FALSE) -> 24% | I15: =VLOOKUP($C15,'RECAP SECT'!$G$6:$DC$253,78,FALSE) -> 12 | J15: =VLOOKUP($C15,'RECAP SECT'!$G$6:$DC$253,79,FALSE) -> 1,208 | K15: =VLOOKUP($C15,'RECAP SECT'!$G$6:$DC$253,80,FALSE) -> 19.61 | L15: =VLOOKUP($C15,'RECAP SECT'!$G$6:$DC$253,81,FALSE) -> 36% | M15: =VLOOKUP($C15,'RECAP SECT'!$G$6:$DC$253,82,FALSE) -> 17 | N15: =VLOOKUP($C15,'RECAP SECT'!$G$6:$DC$253,83,FALSE) -> 28% | O15: =VLOOKUP($C15,'RECAP SECT'!$G$6:$DC$253,84,FALSE) -> 25% | P15: =VLOOKUP($C15,'RECAP SECT'!$G$6:$DC$253,85,FALSE) -> 13
A16: 264 | B16: HAUT-RHIN | C16: 5169 | D16: MULHOUSE | E16: =VLOOKUP($C16,'RECAP SECT'!$G$6:$DC$253,3,FALSE) -> 61.0 | F16: =VLOOKUP($C16,'RECAP SECT'!$G$6:$DC$253,75,FALSE) -> 4,844 | G16: =VLOOKUP($C16,'RECAP SECT'!$G$6:$DC$253,76,FALSE) -> 79.38 | H16: =VLOOKUP($C16,'RECAP SECT'!$G$6:$DC$253,77,FALSE) -> 56% | I16: =VLOOKUP($C16,'RECAP SECT'!$G$6:$DC$253,78,FALSE) -> 18 | J16: =VLOOKUP($C16,'RECAP SECT'!$G$6:$DC$253,79,FALSE) -> 1,320 | K16: =VLOOKUP($C16,'RECAP SECT'!$G$6:$DC$253,80,FALSE) -> 21.63 | L16: =VLOOKUP($C16,'RECAP SECT'!$G$6:$DC$253,81,FALSE) -> 29% | M16: =VLOOKUP($C16,'RECAP SECT'!$G$6:$DC$253,82,FALSE) -> 15 | N16: =VLOOKUP($C16,'RECAP SECT'!$G$6:$DC$253,83,FALSE) -> 48% | O16: =VLOOKUP($C16,'RECAP SECT'!$G$6:$DC$253,84,FALSE) -> 46% | P16: =VLOOKUP($C16,'RECAP SECT'!$G$6:$DC$253,85,FALSE) -> 18
A17: 30 | B17: MARNE-ARDENNES | C17: 6 | D17: CHALONS EN CHAMPAGNE | E17: =VLOOKUP($C17,'RECAP SECT'!$G$6:$DC$253,3,FALSE) -> 44.5 | F17: =VLOOKUP($C17,'RECAP SECT'!$G$6:$DC$253,75,FALSE) -> 6,232 | G17: =VLOOKUP($C17,'RECAP SECT'!$G$6:$DC$253,76,FALSE) -> 140.10 | H17: =VLOOKUP($C17,'RECAP SECT'!$G$6:$DC$253,77,FALSE) -> 23% | I17: =VLOOKUP($C17,'RECAP SECT'!$G$6:$DC$253,78,FALSE) -> 11 | J17: =VLOOKUP($C17,'RECAP SECT'!$G$6:$DC$253,79,FALSE) -> 1,073 | K17: =VLOOKUP($C17,'RECAP SECT'!$G$6:$DC$253,80,FALSE) -> 24.12 | L17: =VLOOKUP($C17,'RECAP SECT'!$G$6:$DC$253,81,FALSE) -> 21% | M17: =VLOOKUP($C17,'RECAP SECT'!$G$6:$DC$253,82,FALSE) -> 8 | N17: =VLOOKUP($C17,'RECAP SECT'!$G$6:$DC$253,83,FALSE) -> 23% | O17: =VLOOKUP($C17,'RECAP SECT'!$G$6:$DC$253,84,FALSE) -> 20% | P17: =VLOOKUP($C17,'RECAP SECT'!$G$6:$DC$253,85,FALSE) -> 11
A18: 30 | B18: MARNE-ARDENNES | C18: 2 | D18: CHARLEVILLE MEZIERES | E18: =VLOOKUP($C18,'RECAP SECT'!$G$6:$DC$253,3,FALSE) -> 55.8 | F18: =VLOOKUP($C18,'RECAP SECT'!$G$6:$DC$253,75,FALSE) -> 8,953 | G18: =VLOOKUP($C18,'RECAP SECT'!$G$6:$DC$253,76,FALSE) -> 160.41 | H18: =VLOOKUP($C18,'RECAP SECT'!$G$6:$DC$253,77,FALSE) -> 12% | I18: =VLOOKUP($C18,'RECAP SECT'!$G$6:$DC$253,78,FALSE) -> 3 | J18: =VLOOKUP($C18,'RECAP SECT'!$G$6:$DC$253,79,FALSE) -> 1,281 | K18: =VLOOKUP($C18,'RECAP SECT'!$G$6:$DC$253,80,FALSE) -> 22.95 | L18: =VLOOKUP($C18,'RECAP SECT'!$G$6:$DC$253,81,FALSE) -> 25% | M18: =VLOOKUP($C18,'RECAP SECT'!$G$6:$DC$253,82,FALSE) -> 11 | N18: =VLOOKUP($C18,'RECAP SECT'!$G$6:$DC$253,83,FALSE) -> 16% | O18: =VLOOKUP($C18,'RECAP SECT'!$G$6:$DC$253,84,FALSE) -> 13% | P18: =VLOOKUP($C18,'RECAP SECT'!$G$6:$DC$253,85,FALSE) -> 4
A19: 30 | B19: MARNE-ARDENNES | C19: 11 | D19: REIMS | E19: =VLOOKUP($C19,'RECAP SECT'!$G$6:$DC$253,3,FALSE) -> 80.4 | F19: =VLOOKUP($C19,'RECAP SECT'!$G$6:$DC$253,75,FALSE) -> 12,564 | G19: =VLOOKUP($C19,'RECAP SECT'!$G$6:$DC$253,76,FALSE) -> 156.27 | H19: =VLOOKUP($C19,'RECAP SECT'!$G$6:$DC$253,77,FALSE) -> 14% | I19: =VLOOKUP($C19,'RECAP SECT'!$G$6:$DC$253,78,FALSE) -> 5 | J19: =VLOOKUP($C19,'RECAP SECT'!$G$6:$DC$253,79,FALSE) -> 2,091 | K19: =VLOOKUP($C19,'RECAP SECT'!$G$6:$DC$253,80,FALSE) -> 26.01 | L19: =VLOOKUP($C19,'RECAP SECT'!$G$6:$DC$253,81,FALSE) -> 15% | M19: =VLOOKUP($C19,'RECAP SECT'!$G$6:$DC$253,82,FALSE) -> 4 | N19: =VLOOKUP($C19,'RECAP SECT'!$G$6:$DC$253,83,FALSE) -> 14% | O19: =VLOOKUP($C19,'RECAP SECT'!$G$6:$DC$253,84,FALSE) -> 12% | P19: =VLOOKUP($C19,'RECAP SECT'!$G$6:$DC$253,85,FALSE) -> 3
A20: 110 | B20: MEURTHE ET MOSELLE MEUSE | C20: 26 | D20: NANCY | E20: =VLOOKUP($C20,'RECAP SECT'!$G$6:$DC$253,3,FALSE) -> 66.5 | F20: =VLOOKUP($C20,'RECAP SECT'!$G$6:$DC$253,75,FALSE) -> 11,651 | G20: =VLOOKUP($C20,'RECAP SECT'!$G$6:$DC$253,76,FALSE) -> 175.20 | H20: =VLOOKUP($C20,'RECAP SECT'!$G$6:$DC$253,77,FALSE) -> 4% | I20: =VLOOKUP($C20,'RECAP SECT'!$G$6:$DC$253,78,FALSE) -> 2 | J20: =VLOOKUP($C20,'RECAP SECT'!$G$6:$DC$253,79,FALSE) -> 2,034 | K20: =VLOOKUP($C20,'RECAP SECT'!$G$6:$DC$253,80,FALSE) -> 30.58 | L20: =VLOOKUP($C20,'RECAP SECT'!$G$6:$DC$253,81,FALSE) -> 0% | M20: =VLOOKUP($C20,'RECAP SECT'!$G$6:$DC$253,82,FALSE) -> 1 | N20: =VLOOKUP($C20,'RECAP SECT'!$G$6:$DC$253,83,FALSE) -> 3% | O20: =VLOOKUP($C20,'RECAP SECT'!$G$6:$DC$253,84,FALSE) -> 0% | P20: =VLOOKUP($C20,'RECAP SECT'!$G$6:$DC$253,85,FALSE) -> 1
A21: 110 | B21: MEURTHE ET MOSELLE MEUSE | C21: 27 | D21: PONT A MOUSSON | E21: =VLOOKUP($C21,'RECAP SECT'!$G$6:$DC$253,3,FALSE) -> 76.0 | F21: =VLOOKUP($C21,'RECAP SECT'!$G$6:$DC$253,75,FALSE) -> 10,982 | G21: =VLOOKUP($C21,'RECAP SECT'!$G$6:$DC$253,76,FALSE) -> 144.51 | H21: =VLOOKUP($C21,'RECAP SECT'!$G$6:$DC$253,77,FALSE) -> 21% | I21: =VLOOKUP($C21,'RECAP SECT'!$G$6:$DC$253,78,FALSE) -> 10 | J21: =VLOOKUP($C21,'RECAP SECT'!$G$6:$DC$253,79,FALSE) -> 2,108 | K21: =VLOOKUP($C21,'RECAP SECT'!$G$6:$DC$253,80,FALSE) -> 27.74 | L21: =VLOOKUP($C21,'RECAP SECT'!$G$6:$DC$253,81,FALSE) -> 9% | M21: =VLOOKUP($C21,'RECAP SECT'!$G$6:$DC$253,82,FALSE) -> 2 | N21: =VLOOKUP($C21,'RECAP SECT'!$G$6:$DC$253,83,FALSE) -> 17% | O21: =VLOOKUP($C21,'RECAP SECT'!$G$6:$DC$253,84,FALSE) -> 15% | P21: =VLOOKUP($C21,'RECAP SECT'!$G$6:$DC$253,85,FALSE) -> 7
A22: 110 | B22: MEURTHE ET MOSELLE MEUSE | C22: 31 | D22: VERDUN | E22: =VLOOKUP($C22,'RECAP SECT'!$G$6:$DC$253,3,FALSE) -> 54.9 | F22: =VLOOKUP($C22,'RECAP SECT'!$G$6:$DC$253,75,FALSE) -> 6,925 | G22: =VLOOKUP($C22,'RECAP SECT'!$G$6:$DC$253,76,FALSE) -> 126.09 | H22: =VLOOKUP($C22,'RECAP SECT'!$G$6:$DC$253,77,FALSE) -> 31% | I22: =VLOOKUP($C22,'RECAP SECT'!$G$6:$DC$253,78,FALSE) -> 14 | J22: =VLOOKUP($C22,'RECAP SECT'!$G$6:$DC$253,79,FALSE) -> 1,339 | K22: =VLOOKUP($C22,'RECAP SECT'!$G$6:$DC$253,80,FALSE) -> 24.38 | L22: =VLOOKUP($C22,'RECAP SECT'!$G$6:$DC$253,81,FALSE) -> 20% | M22: =VLOOKUP($C22,'RECAP SECT'!$G$6:$DC$253,82,FALSE) -> 7 | N22: =VLOOKUP($C22,'RECAP SECT'!$G$6:$DC$253,83,FALSE) -> 28% | O22: =VLOOKUP($C22,'RECAP SECT'!$G$6:$DC$253,84,FALSE) -> 25% | P22: =VLOOKUP($C22,'RECAP SECT'!$G$6:$DC$253,85,FALSE) -> 12
A23: 160 | B23: MOSELLE | C23: 45 | D23: METZ | E23: =VLOOKUP($C23,'RECAP SECT'!$G$6:$DC$253,3,FALSE) -> 89.6 | F23: =VLOOKUP($C23,'RECAP SECT'!$G$6:$DC$253,75,FALSE) -> 11,209 | G23: =VLOOKUP($C23,'RECAP SECT'!$G$6:$DC$253,76,FALSE) -> 125.04 | H23: =VLOOKUP($C23,'RECAP SECT'!$G$6:$DC$253,77,FALSE) -> 31% | I23: =VLOOKUP($C23,'RECAP SECT'!$G$6:$DC$253,78,FALSE) -> 15 | J23: =VLOOKUP($C23,'RECAP SECT'!$G$6:$DC$253,79,FALSE) -> 2,082 | K23: =VLOOKUP($C23,'RECAP SECT'!$G$6:$DC$253,80,FALSE) -> 23.23 | L23: =VLOOKUP($C23,'RECAP SECT'!$G$6:$DC$253,81,FALSE) -> 24% | M23: =VLOOKUP($C23,'RECAP SECT'!$G$6:$DC$253,82,FALSE) -> 10 | N23: =VLOOKUP($C23,'RECAP SECT'!$G$6:$DC$253,83,FALSE) -> 29% | O23: =VLOOKUP($C23,'RECAP SECT'!$G$6:$DC$253,84,FALSE) -> 26% | P23: =VLOOKUP($C23,'RECAP SECT'!$G$6:$DC$253,85,FALSE) -> 14
A24: 160 | B24: MOSELLE | C24: 42 | D24: MOSELLE EST | E24: =VLOOKUP($C24,'RECAP SECT'!$G$6:$DC$253,3,FALSE) -> 69.8 | F24: =VLOOKUP($C24,'RECAP SECT'!$G$6:$DC$253,75,FALSE) -> 10,745 | G24: =VLOOKUP($C24,'RECAP SECT'!$G$6:$DC$253,76,FALSE) -> 153.90 | H24: =VLOOKUP($C24,'RECAP SECT'!$G$6:$DC$253,77,FALSE) -> 16% | I24: =VLOOKUP($C24,'RECAP SECT'!$G$6:$DC$253,78,FALSE) -> 7 | J24: =VLOOKUP($C24,'RECAP SECT'!$G$6:$DC$253,79,FALSE) -> 1,625 | K24: =VLOOKUP($C24,'RECAP SECT'!$G$6:$DC$253,80,FALSE) -> 23.28 | L24: =VLOOKUP($C24,'RECAP SECT'!$G$6:$DC$253,81,FALSE) -> 24% | M24: =VLOOKUP($C24,'RECAP SECT'!$G$6:$DC$253,82,FALSE) -> 9 | N24: =VLOOKUP($C24,'RECAP SECT'!$G$6:$DC$253,83,FALSE) -> 18% | O24: =VLOOKUP($C24,'RECAP SECT'!$G$6:$DC$253,84,FALSE) -> 15% | P24: =VLOOKUP($C24,'RECAP SECT'!$G$6:$DC$253,85,FALSE) -> 9
A25: 160 | B25: MOSELLE | C25: 44 | D25: MOSELLE NORD | E25: =VLOOKUP($C25,'RECAP SECT'!$G$6:$DC$253,3,FALSE) -> 65.4 | F25: =VLOOKUP($C25,'RECAP SECT'!$G$6:$DC$253,75,FALSE) -> 9,782 | G25: =VLOOKUP($C25,'RECAP SECT'!$G$6:$DC$253,76,FALSE) -> 149.67 | H25: =VLOOKUP($C25,'RECAP SECT'!$G$6:$DC$253,77,FALSE) -> 18% | I25: =VLOOKUP($C25,'RECAP SECT'!$G$6:$DC$253,78,FALSE) -> 9 | J25: =VLOOKUP($C25,'RECAP SECT'!$G$6:$DC$253,79,FALSE) -> 1,608 | K25: =VLOOKUP($C25,'RECAP SECT'!$G$6:$DC$253,80,FALSE) -> 24.60 | L25: =VLOOKUP($C25,'RECAP SECT'!$G$6:$DC$253,81,FALSE) -> 20% | M25: =VLOOKUP($C25,'RECAP SECT'!$G$6:$DC$253,82,FALSE) -> 6 | N25: =VLOOKUP($C25,'RECAP SECT'!$G$6:$DC$253,83,FALSE) -> 18% | O25: =VLOOKUP($C25,'RECAP SECT'!$G$6:$DC$253,84,FALSE) -> 16% | P25: =VLOOKUP($C25,'RECAP SECT'!$G$6:$DC$253,85,FALSE) -> 10
A26: 80 | B26: VOSGES | C26: 57 | D26: EPINAL | E26: =VLOOKUP($C26,'RECAP SECT'!$G$6:$DC$253,3,FALSE) -> 61.0 | F26: =VLOOKUP($C26,'RECAP SECT'!$G$6:$DC$253,75,FALSE) -> 9,757 | G26: =VLOOKUP($C26,'RECAP SECT'!$G$6:$DC$253,76,FALSE) -> 159.85 | H26: =VLOOKUP($C26,'RECAP SECT'!$G$6:$DC$253,77,FALSE) -> 12% | I26: =VLOOKUP($C26,'RECAP SECT'!$G$6:$DC$253,78,FALSE) -> 4 | J26: =VLOOKUP($C26,'RECAP SECT'!$G$6:$DC$253,79,FALSE) -> 1,358 | K26: =VLOOKUP($C26,'RECAP SECT'!$G$6:$DC$253,80,FALSE) -> 22.25 | L26: =VLOOKUP($C26,'RECAP SECT'!$G$6:$DC$253,81,FALSE) -> 27% | M26: =VLOOKUP($C26,'RECAP SECT'!$G$6:$DC$253,82,FALSE) -> 14 | N26: =VLOOKUP($C26,'RECAP SECT'!$G$6:$DC$253,83,FALSE) -> 17% | O26: =VLOOKUP($C26,'RECAP SECT'!$G$6:$DC$253,84,FALSE) -> 14% | P26: =VLOOKUP($C26,'RECAP SECT'!$G$6:$DC$253,85,FALSE) -> 6
A27: 80 | B27: VOSGES | C27: 55 | D27: SAINT DIE | E27: =VLOOKUP($C27,'RECAP SECT'!$G$6:$DC$253,3,FALSE) -> 46.8 | F27: =VLOOKUP($C27,'RECAP SECT'!$G$6:$DC$253,75,FALSE) -> 5,970 | G27: =VLOOKUP($C27,'RECAP SECT'!$G$6:$DC$253,76,FALSE) -> 127.62 | H27: =VLOOKUP($C27,'RECAP SECT'!$G$6:$DC$253,77,FALSE) -> 30% | I27: =VLOOKUP($C27,'RECAP SECT'!$G$6:$DC$253,78,FALSE) -> 13 | J27: =VLOOKUP($C27,'RECAP SECT'!$G$6:$DC$253,79,FALSE) -> 925 | K27: =VLOOKUP($C27,'RECAP SECT'!$G$6:$DC$253,80,FALSE) -> 19.77 | L27: =VLOOKUP($C27,'RECAP SECT'!$G$6:$DC$253,81,FALSE) -> 35% | M27: =VLOOKUP($C27,'RECAP SECT'!$G$6:$DC$253,82,FALSE) -> 16 | N27: =VLOOKUP($C27,'RECAP SECT'!$G$6:$DC$253,83,FALSE) -> 32% | O27: =VLOOKUP($C27,'RECAP SECT'!$G$6:$DC$253,84,FALSE) -> 29% | P27: =VLOOKUP($C27,'RECAP SECT'!$G$6:$DC$253,85,FALSE) -> 15
A28: Total CEGEE Directions Régionales | E28: =SUM(E10:E27) -> 1139

Sheet SE_SATISFACTION
B1: Accueil | F1: BAROMETRE BDD - TERRITOIRES
F2: SATISFACTION
F3: =ACCUEIL!F7 -> 2021-06-20
F7: NPS à froid (SAE) | I7: NPS à chaud (QHD) | L7: Total Satisfaction Clients
F8: =DATEMAJ!E4 -> au 30/04 | G8: coef | H8: ='RECAP DIRCOM'!M4 -> 10% | I8: =DATEMAJ!C5 -> au 30/04 | J8: coef | K8: ='RECAP DIRCOM'!P4 -> 10% | M8: coef | N8: ='RECAP DIRCOM'!S4 -> 20%
B9: Direction | C9: eds | D9: Territoire | E9: ="ETP perf "&DATEMAJ!$C$28 -> ETP perf 30-avr | G9: % Ecart au 1er | H9: Rang | J9: % Ecart au 1er | K9: Rang | L9: Moyenne ecart au 1er | M9: % Ecart au 1er | N9: Rang CEGEE
A10: 50 | B10: AUBE HAUTE MARNE | C10: 21 | D10: CHAUMONT | E10: =VLOOKUP($C10,'RECAP SECT'!$G$6:$DC$253,3,FALSE) -> 33.5 | F10: =VLOOKUP($C10,'RECAP SECT'!$G$6:$DC$253,5,FALSE) -> 11 | G10: =VLOOKUP($C10,'RECAP SECT'!$G$6:$DC$253,6,FALSE) -> 54% | H10: =VLOOKUP($C10,'RECAP SECT'!$G$6:$DC$253,7,FALSE) -> 10 | I10: =VLOOKUP($C10,'RECAP SECT'!$G$6:$DC$253,8,FALSE) -> 63% | J10: =VLOOKUP($C10,'RECAP SECT'!$G$6:$DC$253,9,FALSE) -> 12% | K10: =VLOOKUP($C10,'RECAP SECT'!$G$6:$DC$253,10,FALSE) -> 5 | L10: =VLOOKUP($C10,'RECAP SECT'!$G$6:$DC$253,11,FALSE) -> 33% | M10: =VLOOKUP($C10,'RECAP SECT'!$G$6:$DC$253,12,FALSE) -> 30% | N10: =VLOOKUP($C10,'RECAP SECT'!$G$6:$DC$253,13,FALSE) -> 8
A11: 50 | B11: AUBE HAUTE MARNE | C11: 14 | D11: TROYES | E11: =VLOOKUP($C11,'RECAP SECT'!$G$6:$DC$253,3,FALSE) -> 65.9 | F11: =VLOOKUP($C11,'RECAP SECT'!$G$6:$DC$253,5,FALSE) -> 18 | G11: =VLOOKUP($C11,'RECAP SECT'!$G$6:$DC$253,6,FALSE) -> 25% | H11: =VLOOKUP($C11,'RECAP SECT'!$G$6:$DC$253,7,FALSE) -> 5 | I11: =VLOOKUP($C11,'RECAP SECT'!$G$6:$DC$253,8,FALSE) -> 53% | J11: =VLOOKUP($C11,'RECAP SECT'!$G$6:$DC$253,9,FALSE) -> 27% | K11: =VLOOKUP($C11,'RECAP SECT'!$G$6:$DC$253,10,FALSE) -> 12 | L11: =VLOOKUP($C11,'RECAP SECT'!$G$6:$DC$253,11,FALSE) -> 26% | M11: =VLOOKUP($C11,'RECAP SECT'!$G$6:$DC$253,12,FALSE) -> 23% | N11: =VLOOKUP($C11,'RECAP SECT'!$G$6:$DC$253,13,FALSE) -> 6
A12: 262 | B12: BAS-RHIN | C12: 5060 | D12: HAGUENAU | E12: =VLOOKUP($C12,'RECAP SECT'!$G$6:$DC$253,3,FALSE) -> 70.0 | F12: =VLOOKUP($C12,'RECAP SECT'!$G$6:$DC$253,5,FALSE) -> 11 | G12: =VLOOKUP($C12,'RECAP SECT'!$G$6:$DC$253,6,FALSE) -> 54% | H12: =VLOOKUP($C12,'RECAP SECT'!$G$6:$DC$253,7,FALSE) -> 10 | I12: =VLOOKUP($C12,'RECAP SECT'!$G$6:$DC$253,8,FALSE) -> 55% | J12: =VLOOKUP($C12,'RECAP SECT'!$G$6:$DC$253,9,FALSE) -> 24% | K12: =VLOOKUP($C12,'RECAP SECT'!$G$6:$DC$253,10,FALSE) -> 11 | L12: =VLOOKUP($C12,'RECAP SECT'!$G$6:$DC$253,11,FALSE) -> 39% | M12: =VLOOKUP($C12,'RECAP SECT'!$G$6:$DC$253,12,FALSE) -> 35% | N12: =VLOOKUP($C12,'RECAP SECT'!$G$6:$DC$253,13,FALSE) -> 11
A13: 262 | B13: BAS-RHIN | C13: 5101 | D13: SELESTAT | E13: =VLOOKUP($C13,'RECAP SECT'!$G$6:$DC$253,3,FALSE) -> 60.3 | F13: =VLOOKUP($C13,'RECAP SECT'!$G$6:$DC$253,5,FALSE) -> 7 | G13: =VLOOKUP($C13,'RECAP SECT'!$G$6:$DC$253,6,FALSE) -> 71% | H13: =VLOOKUP($C13,'RECAP SECT'!$G$6:$DC$253,7,FALSE) -> 17 | I13: =VLOOKUP($C13,'RECAP SECT'!$G$6:$DC$253,8,FALSE) -> 51% | J13: =VLOOKUP($C13,'RECAP SECT'!$G$6:$DC$253,9,FALSE) -> 29% | K13: =VLOOKUP($C13,'RECAP SECT'!$G$6:$DC$253,10,FALSE) -> 13 | L13: =VLOOKUP($C13,'RECAP SECT'!$G$6:$DC$253,11,FALSE) -> 50% | M13: =VLOOKUP($C13,'RECAP SECT'!$G$6:$DC$253,12,FALSE) -> 46% | N13: =VLOOKUP($C13,'RECAP SECT'!$G$6:$DC$253,13,FALSE) -> 16
A14: 262 | B14: BAS-RHIN | C14: 5006 | D14: STRASBOURG | E14: =VLOOKUP($C14,'RECAP SECT'!$G$6:$DC$253,3,FALSE) -> 76.2 | F14: =VLOOKUP($C14,'RECAP SECT'!$G$6:$DC$253,5,FALSE) -> 12 | G14: =VLOOKUP($C14,'RECAP SECT'!$G$6:$DC$253,6,FALSE) -> 50% | H14: =VLOOKUP($C14,'RECAP SECT'!$G$6:$DC$253,7,FALSE) -> 9 | I14: =VLOOKUP($C14,'RECAP SECT'!$G$6:$DC$253,8,FALSE) -> 50% | J14: =VLOOKUP($C14,'RECAP SECT'!$G$6:$DC$253,9,FALSE) -> 31% | K14: =VLOOKUP($C14,'RECAP SECT'!$G$6:$DC$253,10,FALSE) -> 15 | L14: =VLOOKUP($C14,'RECAP SECT'!$G$6:$DC$253,11,FALSE) -> 40% | M14: =VLOOKUP($C14,'RECAP SECT'!$G$6:$DC$253,12,FALSE) -> 37% | N14: =VLOOKUP($C14,'RECAP SECT'!$G$6:$DC$253,13,FALSE) -> 13
A15: 264 | B15: HAUT-RHIN | C15: 5130 | D15: COLMAR | E15: =VLOOKUP($C15,'RECAP SECT'!$G$6:$DC$253,3,FALSE) -> 61.6 | F15: =VLOOKUP($C15,'RECAP SECT'!$G$6:$DC$253,5,FALSE) -> 8 | G15: =VLOOKUP($C15,'RECAP SECT'!$G$6:$DC$253,6,FALSE) -> 67% | H15: =VLOOKUP($C15,'RECAP SECT'!$G$6:$DC$253,7,FALSE) -> 16 | I15: =VLOOKUP($C15,'RECAP SECT'!$G$6:$DC$253,8,FALSE) -> 47% | J15: =VLOOKUP($C15,'RECAP SECT'!$G$6:$DC$253,9,FALSE) -> 35% | K15: =VLOOKUP($C15,'RECAP SECT'!$G$6:$DC$253,10,FALSE) -> 17 | L15: =VLOOKUP($C15,'RECAP SECT'!$G$6:$DC$253,11,FALSE) -> 51% | M15: =VLOOKUP($C15,'RECAP SECT'!$G$6:$DC$253,12,FALSE) -> 47% | N15: =VLOOKUP($C15,'RECAP SECT'!$G$6:$DC$253,13,FALSE) -> 17
A16: 264 | B16: HAUT-RHIN | C16: 5169 | D16: MULHOUSE | E16: =VLOOKUP($C16,'RECAP SECT'!$G$6:$DC$253,3,FALSE) -> 61.0 | F16: =VLOOKUP($C16,'RECAP SECT'!$G$6:$DC$253,5,FALSE) -> 5 | G16: =VLOOKUP($C16,'RECAP SECT'!$G$6:$DC$253,6,FALSE) -> 79% | H16: =VLOOKUP($C16,'RECAP SECT'!$G$6:$DC$253,7,FALSE) -> 18 | I16: =VLOOKUP($C16,'RECAP SECT'!$G$6:$DC$253,8,FALSE) -> 29% | J16: =VLOOKUP($C16,'RECAP SECT'!$G$6:$DC$253,9,FALSE) -> 60% | K16: =VLOOKUP($C16,'RECAP SECT'!$G$6:$DC$253,10,FALSE) -> 18 | L16: =VLOOKUP($C16,'RECAP SECT'!$G$6:$DC$253,11,FALSE) -> 69% | M16: =VLOOKUP($C16,'RECAP SECT'!$G$6:$DC$253,12,FALSE) -> 66% | N16: =VLOOKUP($C16,'RECAP SECT'!$G$6:$DC$253,13,FALSE) -> 18
A17: 30 | B17: MARNE-ARDENNES | C17: 6 | D17: CHALONS EN CHAMPAGNE | E17: =VLOOKUP($C17,'RECAP SECT'!$G$6:$DC$253,3,FALSE) -> 44.5 | F17: =VLOOKUP($C17,'RECAP SECT'!$G$6:$DC$253,5,FALSE) -> 21 | G17: =VLOOKUP($C17,'RECAP SECT'!$G$6:$DC$253,6,FALSE) -> 13% | H17: =VLOOKUP($C17,'RECAP SECT'!$G$6:$DC$253,7,FALSE) -> 3 | I17: =VLOOKUP($C17,'RECAP SECT'!$G$6:$DC$253,8,FALSE) -> 72% | J17: =VLOOKUP($C17,'RECAP SECT'!$G$6:$DC$253,9,FALSE) -> 0% | K17: =VLOOKUP($C17,'RECAP SECT'!$G$6:$DC$253,10,FALSE) -> 1 | L17: =VLOOKUP($C17,'RECAP SECT'!$G$6:$DC$253,11,FALSE) -> 6% | M17: =VLOOKUP($C17,'RECAP SECT'!$G$6:$DC$253,12,FALSE) -> 3% | N17: =VLOOKUP($C17,'RECAP SECT'!$G$6:$DC$253,13,FALSE) -> 2
A18: 30 | B18: MARNE-ARDENNES | C18: 2 | D18: CHARLEVILLE MEZIERES | E18: =VLOOKUP($C18,'RECAP SECT'!$G$6:$DC$253,3,FALSE) -> 55.8 | F18: =VLOOKUP($C18,'RECAP SECT'!$G$6:$DC$253,5,FALSE) -> 23 | G18: =VLOOKUP($C18,'RECAP SECT'!$G$6:$DC$253,6,FALSE) -> 4% | H18: =VLOOKUP($C18,'RECAP SECT'!$G$6:$DC$253,7,FALSE) -> 2 | I18: =VLOOKUP($C18,'RECAP SECT'!$G$6:$DC$253,8,FALSE) -> 66% | J18: =VLOOKUP($C18,'RECAP SECT'!$G$6:$DC$253,9,FALSE) -> 9% | K18: =VLOOKUP($C18,'RECAP SECT'!$G$6:$DC$253,10,FALSE) -> 4 | L18: =VLOOKUP($C18,'RECAP SECT'!$G$6:$DC$253,11,FALSE) -> 7% | M18: =VLOOKUP($C18,'RECAP SECT'!$G$6:$DC$253,12,FALSE) -> 3% | N18: =VLOOKUP($C18,'RECAP SECT'!$G$6:$DC$253,13,FALSE) -> 3
A19: 30 | B19: MARNE-ARDENNES | C19: 11 | D19: REIMS | E19: =VLOOKUP($C19,'RECAP SECT'!$G$6:$DC$253,3,FALSE) -> 80.4 | F19: =VLOOKUP($C19,'RECAP SECT'!$G$6:$DC$253,5,FALSE) -> 9 | G19: =VLOOKUP($C19,'RECAP SECT'!$G$6:$DC$253,6,FALSE) -> 63% | H19: =VLOOKUP($C19,'RECAP SECT'!$G$6:$DC$253,7,FALSE) -> 14 | I19: =VLOOKUP($C19,'RECAP SECT'!$G$6:$DC$253,8,FALSE) -> 60% | J19: =VLOOKUP($C19,'RECAP SECT'!$G$6:$DC$253,9,FALSE) -> 17% | K19: =VLOOKUP($C19,'RECAP SECT'!$G$6:$DC$253,10,FALSE) -> 8 | L19: =VLOOKUP($C19,'RECAP SECT'!$G$6:$DC$253,11,FALSE) -> 40% | M19: =VLOOKUP($C19,'RECAP SECT'!$G$6:$DC$253,12,FALSE) -> 36% | N19: =VLOOKUP($C19,'RECAP SECT'!$G$6:$DC$253,13,FALSE) -> 12
A20: 110 | B20: MEURTHE ET MOSELLE MEUSE | C20: 26 | D20: NANCY | E20: =VLOOKUP($C20,'RECAP SECT'!$G$6:$DC$253,3,FALSE) -> 66.5 | F20: =VLOOKUP($C20,'RECAP SECT'!$G$6:$DC$253,5,FALSE) -> 11 | G20: =VLOOKUP($C20,'RECAP SECT'!$G$6:$DC$253,6,FALSE) -> 54% | H20: =VLOOKUP($C20,'RECAP SECT'!$G$6:$DC$253,7,FALSE) -> 10 | I20: =VLOOKUP($C20,'RECAP SECT'!$G$6:$DC$253,8,FALSE) -> 57% | J20: =VLOOKUP($C20,'RECAP SECT'!$G$6:$DC$253,9,FALSE) -> 21% | K20: =VLOOKUP($C20,'RECAP SECT'!$G$6:$DC$253,10,FALSE) -> 10 | L20: =VLOOKUP($C20,'RECAP SECT'!$G$6:$DC$253,11,FALSE) -> 38% | M20: =VLOOKUP($C20,'RECAP SECT'!$G$6:$DC$253,12,FALSE) -> 34% | N20: =VLOOKUP($C20,'RECAP SECT'!$G$6:$DC$253,13,FALSE) -> 10
A21: 110 | B21: MEURTHE ET MOSELLE MEUSE | C21: 27 | D21: PONT A MOUSSON | E21: =VLOOKUP($C21,'RECAP SECT'!$G$6:$DC$253,3,FALSE) -> 76.0 | F21: =VLOOKUP($C21,'RECAP SECT'!$G$6:$DC$253,5,FALSE) -> 10 | G21: =VLOOKUP($C21,'RECAP SECT'!$G$6:$DC$253,6,FALSE) -> 58% | H21: =VLOOKUP($C21,'RECAP SECT'!$G$6:$DC$253,7,FALSE) -> 13 | I21: =VLOOKUP($C21,'RECAP SECT'!$G$6:$DC$253,8,FALSE) -> 50% | J21: =VLOOKUP($C21,'RECAP SECT'!$G$6:$DC$253,9,FALSE) -> 30% | K21: =VLOOKUP($C21,'RECAP SECT'!$G$6:$DC$253,10,FALSE) -> 14 | L21: =VLOOKUP($C21,'RECAP SECT'!$G$6:$DC$253,11,FALSE) -> 44% | M21: =VLOOKUP($C21,'RECAP SECT'!$G$6:$DC$253,12,FALSE) -> 41% | N21: =VLOOKUP($C21,'RECAP SECT'!$G$6:$DC$253,13,FALSE) -> 14
A22: 110 | B22: MEURTHE ET MOSELLE MEUSE | C22: 31 | D22: VERDUN | E22: =VLOOKUP($C22,'RECAP SECT'!$G$6:$DC$253,3,FALSE) -> 54.9 | F22: =VLOOKUP($C22,'RECAP SECT'!$G$6:$DC$253,5,FALSE) -> 18 | G22: =VLOOKUP($C22,'RECAP SECT'!$G$6:$DC$253,6,FALSE) -> 25% | H22: =VLOOKUP($C22,'RECAP SECT'!$G$6:$DC$253,7,FALSE) -> 5 | I22: =VLOOKUP($C22,'RECAP SECT'!$G$6:$DC$253,8,FALSE) -> 62% | J22: =VLOOKUP($C22,'RECAP SECT'!$G$6:$DC$253,9,FALSE) -> 14% | K22: =VLOOKUP($C22,'RECAP SECT'!$G$6:$DC$253,10,FALSE) -> 6 | L22: =VLOOKUP($C22,'RECAP SECT'!$G$6:$DC$253,11,FALSE) -> 20% | M22: =VLOOKUP($C22,'RECAP SECT'!$G$6:$DC$253,12,FALSE) -> 16% | N22: =VLOOKUP($C22,'RECAP SECT'!$G$6:$DC$253,13,FALSE) -> 5
A23: 160 | B23: MOSELLE | C23: 45 | D23: METZ | E23: =VLOOKUP($C23,'RECAP SECT'!$G$6:$DC$253,3,FALSE) -> 89.6 | F23: =VLOOKUP($C23,'RECAP SECT'!$G$6:$DC$253,5,FALSE) -> 13 | G23: =VLOOKUP($C23,'RECAP SECT'!$G$6:$DC$253,6,FALSE) -> 46% | H23: =VLOOKUP($C23,'RECAP SECT'!$G$6:$DC$253,7,FALSE) -> 8 | I23: =VLOOKUP($C23,'RECAP SECT'!$G$6:$DC$253,8,FALSE) -> 57% | J23: =VLOOKUP($C23,'RECAP SECT'!$G$6:$DC$253,9,FALSE) -> 21% | K23: =VLOOKUP($C23,'RECAP SECT'!$G$6:$DC$253,10,FALSE) -> 9 | L23: =VLOOKUP($C23,'RECAP SECT'!$G$6:$DC$253,11,FALSE) -> 33% | M23: =VLOOKUP($C23,'RECAP SECT'!$G$6:$DC$253,12,FALSE) -> 30% | N23: =VLOOKUP($C23,'RECAP SECT'!$G$6:$DC$253,13,FALSE) -> 9
A24: 160 | B24: MOSELLE | C24: 42 | D24: MOSELLE EST | E24: =VLOOKUP($C24,'RECAP SECT'!$G$6:$DC$253,3,FALSE) -> 69.8 | F24: =VLOOKUP($C24,'RECAP SECT'!$G$6:$DC$253,5,FALSE) -> 15 | G24: =VLOOKUP($C24,'RECAP SECT'!$G$6:$DC$253,6,FALSE) -> 38% | H24: =VLOOKUP($C24,'RECAP SECT'!$G$6:$DC$253,7,FALSE) -> 7 | I24: =VLOOKUP($C24,'RECAP SECT'!$G$6:$DC$253,8,FALSE) -> 61% | J24: =VLOOKUP($C24,'RECAP SECT'!$G$6:$DC$253,9,FALSE) -> 15% | K24: =VLOOKUP($C24,'RECAP SECT'!$G$6:$DC$253,10,FALSE) -> 7 | L24: =VLOOKUP($C24,'RECAP SECT'!$G$6:$DC$253,11,FALSE) -> 26% | M24: =VLOOKUP($C24,'RECAP SECT'!$G$6:$DC$253,12,FALSE) -> 23% | N24: =VLOOKUP($C24,'RECAP SECT'!$G$6:$DC$253,13,FALSE) -> 7
A25: 160 | B25: MOSELLE | C25: 44 | D25: MOSELLE NORD | E25: =VLOOKUP($C25,'RECAP SECT'!$G$6:$DC$253,3,FALSE) -> 65.4 | F25: =VLOOKUP($C25,'RECAP SECT'!$G$6:$DC$253,5,FALSE) -> 9 | G25: =VLOOKUP($C25,'RECAP SECT'!$G$6:$DC$253,6,FALSE) -> 63% | H25: =VLOOKUP($C25,'RECAP SECT'!$G$6:$DC$253,7,FALSE) -> 14 | I25: =VLOOKUP($C25,'RECAP SECT'!$G$6:$DC$253,8,FALSE) -> 50% | J25: =VLOOKUP($C25,'RECAP SECT'!$G$6:$DC$253,9,FALSE) -> 31% | K25: =VLOOKUP($C25,'RECAP SECT'!$G$6:$DC$253,10,FALSE) -> 16 | L25: =VLOOKUP($C25,'RECAP SECT'!$G$6:$DC$253,11,FALSE) -> 47% | M25: =VLOOKUP($C25,'RECAP SECT'!$G$6:$DC$253,12,FALSE) -> 43% | N25: =VLOOKUP($C25,'RECAP SECT'!$G$6:$DC$253,13,FALSE) -> 15
A26: 80 | B26: VOSGES | C26: 57 | D26: EPINAL | E26: =VLOOKUP($C26,'RECAP SECT'!$G$6:$DC$253,3,FALSE) -> 61.0 | F26: =VLOOKUP($C26,'RECAP SECT'!$G$6:$DC$253,5,FALSE) -> 24 | G26: =VLOOKUP($C26,'RECAP SECT'!$G$6:$DC$253,6,FALSE) -> 0% | H26: =VLOOKUP($C26,'RECAP SECT'!$G$6:$DC$253,7,FALSE) -> 1 | I26: =VLOOKUP($C26,'RECAP SECT'!$G$6:$DC$253,8,FALSE) -> 67% | J26: =VLOOKUP($C26,'RECAP SECT'!$G$6:$DC$253,9,FALSE) -> 7% | K26: =VLOOKUP($C26,'RECAP SECT'!$G$6:$DC$253,10,FALSE) -> 3 | L26: =VLOOKUP($C26,'RECAP SECT'!$G$6:$DC$253,11,FALSE) -> 4% | M26: =VLOOKUP($C26,'RECAP SECT'!$G$6:$DC$253,12,FALSE) -> 0% | N26: =VLOOKUP($C26,'RECAP SECT'!$G$6:$DC$253,13,FALSE) -> 1
A27: 80 | B27: VOSGES | C27: 55 | D27: SAINT DIE | E27: =VLOOKUP($C27,'RECAP SECT'!$G$6:$DC$253,3,FALSE) -> 46.8 | F27: =VLOOKUP($C27,'RECAP SECT'!$G$6:$DC$253,5,FALSE) -> 20 | G27: =VLOOKUP($C27,'RECAP SECT'!$G$6:$DC$253,6,FALSE) -> 17% | H27: =VLOOKUP($C27,'RECAP SECT'!$G$6:$DC$253,7,FALSE) -> 4 | I27: =VLOOKUP($C27,'RECAP SECT'!$G$6:$DC$253,8,FALSE) -> 68% | J27: =VLOOKUP($C27,'RECAP SECT'!$G$6:$DC$253,9,FALSE) -> 6% | K27: =VLOOKUP($C27,'RECAP SECT'!$G$6:$DC$253,10,FALSE) -> 2 | L27: =VLOOKUP($C27,'RECAP SECT'!$G$6:$DC$253,11,FALSE) -> 11% | M27: =VLOOKUP($C27,'RECAP SECT'!$G$6:$DC$253,12,FALSE) -> 8% | N27: =VLOOKUP($C27,'RECAP SECT'!$G$6:$DC$253,13,FALSE) -> 4
A28: Total CEGEE Directions Régionales | E28: =SUM(E10:E27) -> 1139

Sheet AG_CLASS
B1: Accueil | H1: BAROMETRE BDD - AGENCES
H2: CLASSEMENTS
H3: =ACCUEIL!F7 -> 2021-06-20
H8: CLASSEMENT GENERAL | I8: CRITERE Satisfaction Clients | J8: NPS à froid (SAE) | K8: NPS à chaud (QHD) | L8: CRITERE BANCARISATION | M8: Ventes Nettes produits pondérés | N8: Ventes sur client non détenteur de l’univers | O8: Mobilité Macron | P8: Remises commerciales | Q8: CRITERE EPARGNE | R8: Excédent Epargne y/c DAV pondéré | S8: Ventes sur client non détenteur de l’univers | T8: CRITERE IARD PREVOYANCE | U8: Ventes Nettes produits pondérés | V8: Ventes sur client non détenteur de l’univers | W8: CRITERE CREDITS | X8: Engagements et ventes accessoires pondérés Immo | Y8: Engagements et ventes accessoires pondérés Conso | Z8: Ventes sur client non détenteur de l’univers
B9: Direction | C9: eds | D9: Territoire | E9: eds | F9: Agence | G9: ="ETP perf "&DATEMAJ!$C$28 -> ETP perf 30-avr | H9: Rang | I9: Rang | J9: Rang | K9: Rang | L9: Rang | M9: Rang | N9: Rang | O9: Rang | P9: Rang | Q9: Rang | R9: Rang | S9: Rang | T9: Rang | U9: Rang | V9: Rang | W9: Rang | X9: Rang | Y9: Rang | Z9: Rang
A10: 50 | B10: MEURTHE ET MOSELLE MEUSE | C10: 26 | D10: NANCY | E10: 454481 | F10: NANCY PLACE DOMBASLE | G10: 11.8 | H10: 1 | I10: 105 | J10: 114 | K10: 112 | L10: 1 | M10: 3 | N10: 1 | O10: 1 | P10: 227 | Q10: 9 | R10: 50 | S10: 4 | T10: 4 | U10: 7 | V10: 4 | W10: 2 | X10: 2 | Y10: 74 | Z10: 2
A11: 50 | B11: MEURTHE ET MOSELLE MEUSE | C11: 27 | D11: PONT A MOUSSON | E11: 554531 | F11: POMPEY | G11: 2.8 | H11: 2 | I11: 72 | J11: 86 | K11: 70 | L11: 2 | M11: 2 | N11: 12 | O11: 5 | P11: 56 | Q11: 2 | R11: 7 | S11: 3 | T11: 18 | U11: 23 | V11: 16 | W11: 9 | X11: 10 | Y11: 12 | Z11: 13
A12: 50 | B12: MEURTHE ET MOSELLE MEUSE | C12: 26 | D12: NANCY | E12: 554356 | F12: JARVILLE LA MALGRANGE | G12: 3.8 | H12: 3 | I12: 45 | J12: 38 | K12: 69 | L12: 5 | M12: 19 | N12: 6 | O12: 2 | P12: 145 | Q12: 81 | R12: 101 | S12: 66 | T12: 16 | U12: 17 | V12: 19 | W12: 5 | X12: 3 | Y12: 125 | Z12: 3
A13: 50 | B13: MARNE-ARDENNES | C13: 2 | D13: CHARLEVILLE MEZIERES | E13: 508820 | F13: VOUZIERS | G13: 2.9 | H13: 4 | I13: 48 | J13: 29 | K13: 101 | L13: 47 | M13: 69 | N13: 11 | O13: 32 | P13: 198 | Q13: 90 | R13: 82 | S13: 112 | T13: 1 | U13: 1 | V13: 18 | W13: 19 | X13: 39 | Y13: 23 | Z13: 17
A14: 50 | B14: MOSELLE | C14: 42 | D14: MOSELLE EST | E14: 457163 | F14: BEHREN LES FORBACH | G14: 2.5 | H14: 5 | I14: 4 | J14: 3 | K14: 15 | L14: 20 | M14: 59 | N14: 7 | O14: 25 | P14: 72 | Q14: 74 | R14: 140 | S14: 27 | T14: 47 | U14: 56 | V14: 34 | W14: 6 | X14: 30 | Y14: 4 | Z14: 4
A15: 50 | B15: MOSELLE | C15: 44 | D15: MOSELLE NORD | E15: 557508 | F15: NILVANGE | G15: 2.5 | H15: 6 | I15: 76 | J15: 67 | K15: 106 | L15: 31 | M15: 32 | N15: 60 | O15: 60 | P15: 180 | Q15: 27 | R15: 123 | S15: 6 | T15: 3 | U15: 6 | V15: 6 | W15: 34 | X15: 50 | Y15: 57 | Z15: 27
A16: 50 | B16: MEURTHE ET MOSELLE MEUSE | C16: 27 | D16: PONT A MOUSSON | E16: 454651 | F16: TOUL | G16: 9.9 | H16: 7 | I16: 231 | J16: 98 | K16: 261 | L16: 6 | M16: 8 | N16: 4 | O16: 3 | P16: 252 | Q16: 82 | R16: 79 | S16: 101 | T16: 26 | U16: 51 | V16: 8 | W16: 1 | X16: 1 | Y16: 18 | Z16: 1
A17: 50 | B17: MARNE-ARDENNES | C17: 2 | D17: CHARLEVILLE MEZIERES | E17: 408822 | F17: CHARLEVILLE MEZIERES | G17: 3.8 | H17: 8 | I17: 111 | J17: 123 | K17: 116 | L17: 48 | M17: 129 | N17: 9 | O17: 7 | P17: 160 | Q17: 3 | R17: 40 | S17: 1 | T17: 13 | U17: 14 | V17: 14 | W17: 24 | X17: 7 | Y17: 229 | Z17: 20
A18: 50 | B18: MOSELLE | C18: 44 | D18: MOSELLE NORD | E18: 557113 | F18: AUDUN LE TICHE | G18: 1.9 | H18: 9 | I18: 79 | J18: 34 | K18: 173 | L18: 10 | M18: 15 | N18: 3 | O18: 225 | P18: 190 | Q18: 102 | R18: 103 | S18: 95 | T18: 34 | U18: 55 | V18: 12 | W18: 4 | X18: 4 | Y18: 27 | Z18: 6
A19: 50 | B19: BAS-RHIN | C19: 5101 | D19: SELESTAT | E19: 4126 | F19: MUTZIG | G19: 2.0 | H19: 10 | I19: 112 | J19: 123 | K19: 118 | L19: 26 | M19: 41 | N19: 13 | O19: 10 | P19: 219 | Q19: 4 | R19: 11 | S19: 8 | T19: 105 | U19: 150 | V19: 35 | W19: 3 | X19: 16 | Y19: 1 | Z19: 5
A20: 50 | B20: MARNE-ARDENNES | C20: 6 | D20: CHALONS EN CHAMPAGNE | E20: 451115 | F20: MOURMELON LE GRAND | G20: 2.9 | H20: 11 | I20: 47 | J20: 106 | K20: 11 | L20: 22 | M20: 21 | N20: 43 | O20: 4 | P20: 250 | Q20: 15 | R20: 145 | S20: 2 | T20: 41 | U20: 37 | V20: 49 | W20: 18 | X20: 55 | Y20: 9 | Z20: 18
A21: 50 | B21: MARNE-ARDENNES | C21: 11 | D21: REIMS | E21: 551349 | F21: REIMS SAINT REMI | G21: 3.0 | H21: 12 | I21: 87 | J21: 72 | K21: 130 | L21: 30 | M21: 38 | N21: 17 | O21: 14 | P21: 215 | Q21: 22 | R21: 55 | S21: 14 | T21: 14 | U21: 13 | V21: 26 | W21: 23 | X21: 18 | Y21: 124 | Z21: 16
A22: 50 | B22: BAS-RHIN | C22: 5006 | D22: STRASBOURG | E22: 4010 | F22: STRASBOURG MEINAU | G22: 3.1 | H22: 13 | I22: 120 | J22: 78 | K22: 182 | L22: 8 | M22: 11 | N22: 5 | O22: 47 | P22: 182 | Q22: 36 | R22: 152 | S22: 5 | T22: 7 | U22: 9 | V22: 5 | W22: 80 | X22: 231 | Y22: 16 | Z22: 52
A23: 50 | B23: VOSGES | C23: 57 | D23: EPINAL | E23: 488288 | F23: EPINAL LEOPOLD BOURG | G23: 1.9 | H23: 14 | I23: 70 | J23: 98 | K23: 50 | L23: 21 | M23: 36 | N23: 26 | O23: 12 | P23: 183 | Q23: 12 | R23: 2 | S23: 191 | T23: 73 | U23: 60 | V23: 134 | W23: 8 | X23: 8 | Y23: 19 | Z23: 11
A24: 50 | B24: MEURTHE ET MOSELLE MEUSE | C24: 31 | D24: VERDUN | E24: 554413 | F24: LONGWY BAS | G24: 3.4 | H24: 15 | I24: 27 | J24: 29 | K24: 55 | L24: 18 | M24: 18 | N24: 96 | O24: 188 | P24: 65 | Q24: 7 | R24: 17 | S24: 9 | T24: 138 | U24: 144 | V24: 113 | W24: 17 | X24: 11 | Y24: 31 | Z24: 95
A25: 50 | B25: BAS-RHIN | C25: 5101 | D25: SELESTAT | E25: 4113 | F25: BARR | G25: 3.0 | H25: 16 | I25: 60 | J25: 152 | K25: 8 | L25: 19 | M25: 37 | N25: 149 | O25: 28 | P25: 24 | Q25: 5 | R25: 8 | S25: 12 | T25: 25 | U25: 19 | V25: 102 | W25: 172 | X25: 155 | Y25: 199 | Z25: 129
A26: 50 | B26: MARNE-ARDENNES | C26: 11 | D26: REIMS | E26: 451336 | F26: TINQUEUX | G26: 5.6 | H26: 17 | I26: 113 | J26: 144 | K26: 99 | L26: 99 | M26: 91 | N26: 39 | O26: 17 | P26: 244 | Q26: 1 | R26: 1 | S26: 175 | T26: 59 | U26: 58 | V26: 76 | W26: 33 | X26: 21 | Y26: 141 | Z26: 38
A27: 50 | B27: MOSELLE | C27: 42 | D27: MOSELLE EST | E27: 557250 | F27: CREUTZWALD | G27: 2.6 | H27: 18 | I27: 81 | J27: 123 | K27: 57 | L27: 132 | M27: 178 | N27: 69 | O27: 184 | P27: 59 | Q27: 8 | R27: 22 | S27: 10 | T27: 17 | U27: 15 | V27: 30 | W27: 40 | X27: 70 | Y27: 17 | Z27: 105
A28: 50 | B28: BAS-RHIN | C28: 5101 | D28: SELESTAT | E28: 4121 | F28: SCHIRMECK | G28: 3.2 | H28: 19 | I28: 5 | J28: 5 | K28: 41 | L28: 65 | M28: 84 | N28: 158 | O28: 75 | P28: 55 | Q28: 30 | R28: 48 | S28: 23 | T28: 56 | U28: 46 | V28: 86 | W28: 75 | X28: 105 | Y28: 90 | Z28: 44
A29: 50 | B29: MOSELLE | C29: 42 | D29: MOSELLE EST | E29: 457165 | F29: BITCHE | G29: 1.9 | H29: 20 | I29: 217 | J29: 238 | K29: 134 | L29: 3 | M29: 1 | N29: 10 | O29: 197 | P29: 67 | Q29: 158 | R29: 258 | S29: 7 | T29: 2 | U29: 8 | V29: 1 | W29: 105 | X29: 172 | Y29: 38 | Z29: 157
A30: 50 | B30: MEURTHE ET MOSELLE MEUSE | C30: 31 | D30: VERDUN | E30: 454414 | F30: LONGWY HAUT | G30: 3.6 | H30: 21 | I30: 65 | J30: 38 | K30: 133 | L30: 72 | M30: 89 | N30: 50 | O30: 79 | P30: 139 | Q30: 6 | R30: 5 | S30: 41 | T30: 44 | U30: 61 | V30: 29 | W30: 67 | X30: 77 | Y30: 144 | Z30: 33
A31: 262 | B31: BAS-RHIN | C31: 5060 | D31: HAGUENAU | E31: 4092 | F31: HOCHFELDEN | G31: 2.2 | H31: 22 | I31: 124 | J31: 158 | K31: 95 | L31: 7 | M31: 6 | N31: 34 | O31: 59 | P31: 74 | Q31: 184 | R31: 247 | S31: 28 | T31: 37 | U31: 57 | V31: 17 | W31: 11 | X31: 17 | Y31: 11 | Z31: 39
A32: 262 | B32: MARNE-ARDENNES | C32: 2 | D32: CHARLEVILLE MEZIERES | E32: 508839 | F32: GIVET | G32: 3.6 | H32: 23 | I32: 17 | J32: 7 | K32: 119 | L32: 150 | M32: 208 | N32: 84 | O32: 125 | P32: 26 | Q32: 128 | R32: 158 | S32: 68 | T32: 5 | U32: 2 | V32: 88 | W32: 139 | X32: 119 | Y32: 111 | Z32: 159
A33: 262 | B33: MOSELLE | C33: 45 | D33: METZ | E33: 557444 | F33: SAINT JULIEN LES METZ | G33: 4.9 | H33: 24 | I33: 121 | J33: 158 | K33: 93 | L33: 138 | M33: 122 | N33: 126 | O33: 135 | P33: 147 | Q33: 16 | R33: 16 | S33: 45 | T33: 11 | U33: 12 | V33: 9 | W33: 58 | X33: 115 | Y33: 15 | Z33: 108
A34: 262 | B34: MARNE-ARDENNES | C34: 2 | D34: CHARLEVILLE MEZIERES | E34: 508833 | F34: VILLERS SEMEUSE CORA | G34: 3.5 | H34: 25 | I34: 108 | J34: 98 | K34: 144 | L34: 37 | M34: 77 | N34: 8 | O34: 26 | P34: 120 | Q34: 51 | R34: 88 | S34: 21 | T34: 54 | U34: 52 | V34: 51 | W34: 21 | X34: 40 | Y34: 33 | Z34: 25
A35: 262 | B35: MEURTHE ET MOSELLE MEUSE | C35: 26 | D35: NANCY | E35: 554476 | F35: NANCY ARTEM | G35: 2.7 | H35: 26 | I35: 103 | J35: 177 | K35: 26 | L35: 38 | M35: 26 | N35: 29 | O35: 22 | P35: 248 | Q35: 18 | R35: 9 | S35: 135 | T35: 62 | U35: 79 | V35: 41 | W35: 44 | X35: 47 | Y35: 173 | Z35: 19
A36: 262 | B36: MOSELLE | C36: 42 | D36: MOSELLE EST | E36: 557305 | F36: FAULQUEMONT | G36: 2.4 | H36: 27 | I36: 63 | J36: 38 | K36: 131 | L36: 43 | M36: 58 | N36: 23 | O36: 37 | P36: 154 | Q36: 77 | R36: 131 | S36: 37 | T36: 61 | U36: 80 | V36: 37 | W36: 25 | X36: 27 | Y36: 40 | Z36: 61
A37: 262 | B37: MARNE-ARDENNES | C37: 6 | D37: CHALONS EN CHAMPAGNE | E37: 551330 | F37: MONTMIRAIL | G37: 2.9 | H37: 28 | I37: 10 | J37: 22 | K37: 16 | L37: 199 | M37: 232 | N37: 218 | O37: 66 | P37: 42 | Q37: 19 | R37: 47 | S37: 13 | T37: 51 | U37: 50 | V37: 48 | W37: 79 | X37: 66 | Y37: 86 | Z37: 103
A38: 262 | B38: MARNE-ARDENNES | C38: 2 | D38: CHARLEVILLE MEZIERES | E38: 408862 | F38: REVIN | G38: 4.2 | H38: 29 | I38: 3 | J38: 2 | K38: 44 | L38: 97 | M38: 162 | N38: 68 | O38: 88 | P38: 43 | Q38: 47 | R38: 52 | S38: 52 | T38: 107 | U38: 104 | V38: 124 | W38: 150 | X38: 127 | Y38: 209 | Z38: 77
A39: 262 | B39: MARNE-ARDENNES | C39: 11 | D39: REIMS | E39: 551340 | F39: BETHENY | G39: 2.9 | H39: 30 | I39: 101 | J39: 123 | K39: 82 | L39: 143 | M39: 157 | N39: 24 | O39: 11 | P39: 245 | Q39: 20 | R39: 32 | S39: 26 | T39: 114 | U39: 122 | V39: 105 | W39: 10 | X39: 9 | Y39: 53 | Z39: 7
A40: 262 | B40: HAUT-RHIN | C40: 5130 | D40: COLMAR | E40: 4144 | F40: RIBEAUVILLE | G40: 2.9 | H40: 31 | I40: 50 | J40: 38 | K40: 85 | L40: 41 | M40: 53 | N40: 100 | O40: 121 | P40: 47 | Q40: 39 | R40: 39 | S40: 50 | T40: 28 | U40: 16 | V40: 196 | W40: 230 | X40: 199 | Y40: 191 | Z40: 247
A41: 262 | B41: BAS-RHIN | C41: 5006 | D41: STRASBOURG | E41: 4047 | F41: STRASBOURG CRONENBOURG | G41: 5.4 | H41: 32 | I41: 53 | J41: 86 | K41: 38 | L41: 110 | M41: 147 | N41: 56 | O41: 15 | P41: 194 | Q41: 60 | R41: 161 | S41: 15 | T41: 36 | U41: 26 | V41: 120 | W41: 54 | X41: 19 | Y41: 231 | Z41: 57
A42: 262 | B42: MOSELLE | C42: 42 | D42: MOSELLE EST | E42: 457308 | F42: FORBACH CENTRALE | G42: 11.2 | H42: 33 | I42: 39 | J42: 22 | K42: 86 | L42: 35 | M42: 33 | N42: 95 | O42: 136 | P42: 103 | Q42: 71 | R42: 90 | S42: 63 | T42: 67 | U42: 47 | V42: 158 | W42: 116 | X42: 136 | Y42: 55 | Z42: 184
A43: 262 | B43: BAS-RHIN | C43: 5060 | D43: HAGUENAU | E43: 4079 | F43: SOULTZ SOUS FORETS | G43: 2.2 | H43: 34 | I43: 132 | J43: 171 | K43: 81 | L43: 13 | M43: 13 | N43: 169 | O43: 46 | P43: 48 | Q43: 120 | R43: 192 | S43: 30 | T43: 48 | U43: 45 | V43: 56 | W43: 57 | X43: 48 | Y43: 72 | Z43: 90
A44: 262 | B44: VOSGES | C44: 57 | D44: EPINAL | E44: 588716 | F44: XERTIGNY | G44: 2.8 | H44: 35 | I44: 137 | J44: 123 | K44: 156 | L44: 62 | M44: 81 | N44: 140 | O44: 191 | P44: 23 | Q44: 69 | R44: 64 | S44: 119 | T44: 8 | U44: 3 | V44: 73 | W44: 205 | X44: 222 | Y44: 167 | Z44: 154
A45: 262 | B45: MARNE-ARDENNES | C45: 11 | D45: REIMS | E45: 551305 | F45: REIMS HIPPODROME | G45: 3.9 | H45: 36 | I45: 15 | J45: 56 | K45: 5 | L45: 179 | M45: 223 | N45: 48 | O45: 8 | P45: 218 | Q45: 159 | R45: 187 | S45: 96 | T45: 30 | U45: 27 | V45: 62 | W45: 53 | X45: 34 | Y45: 223 | Z45: 32
A46: 262 | B46: VOSGES | C46: 55 | D46: SAINT DIE | E46: 488246 | F46: CORNIMONT LA BRESSE | G46: 2.7 | H46: 37 | I46: 6 | J46: 29 | K46: 6 | L46: 146 | M46: 144 | N46: 97 | O46: 218 | P46: 117 | Q46: 196 | R46: 175 | S46: 207 | T46: 63 | U46: 49 | V46: 130 | W46: 31 | X46: 62 | Y46: 13 | Z46: 63
A47: 262 | B47: MEURTHE ET MOSELLE MEUSE | C47: 31 | D47: VERDUN | E47: 554412 | F47: LONGUYON | G47: 2.7 | H47: 38 | I47: 82 | J47: 144 | K47: 42 | L47: 131 | M47: 164 | N47: 77 | O47: 64 | P47: 118 | Q47: 93 | R47: 58 | S47: 183 | T47: 69 | U47: 71 | V47: 65 | W47: 15 | X47: 22 | Y47: 29 | Z47: 31
A48: 262 | B48: MARNE-ARDENNES | C48: 2 | D48: CHARLEVILLE MEZIERES | E48: 408801 | F48: CHARLEVILLE JEAN JAURES | G48: 9.3 | H48: 39 | I48: 58 | J48: 51 | K48: 88 | L48: 70 | M48: 121 | N48: 42 | O48: 9 | P48: 169 | Q48: 56 | R48: 127 | S48: 19 | T48: 182 | U48: 186 | V48: 163 | W48: 13 | X48: 12 | Y48: 117 | Z48: 10
A49: 262 | B49: MOSELLE | C49: 45 | D49: METZ | E49: 557447 | F49: METZ SAINT MAXIMIN | G49: 3.1 | H49: 40 | I49: 85 | J49: 114 | K49: 68 | L49: 29 | M49: 150 | N49: 2 | O49: 21 | P49: 41 | Q49: 110 | R49: 81 | S49: 160 | T49: 112 | U49: 143 | V49: 54 | W49: 30 | X49: 25 | Y49: 148 | Z49: 22
A50: 262 | B50: MEURTHE ET MOSELLE MEUSE | C50: 27 | D50: PONT A MOUSSON | E50: 554357 | F50: JOEUF | G50: 3.8 | H50: 41 | I50: 123 | J50: 164 | K50: 77 | L50: 75 | M50: 132 | N50: 25 | O50: 18 | P50: 163 | Q50: 251 | R50: 246 | S50: 216 | T50: 19 | U50: 24 | V50: 13 | W50: 12 | X50: 24 | Y50: 26 | Z50: 12
A51: 262 | B51: MEURTHE ET MOSELLE MEUSE | C51: 27 | D51: PONT A MOUSSON | E51: 454535 | F51: PONT A MOUSSON CENTRALE | G51: 7.8 | H51: 42 | I51: 148 | J51: 98 | K51: 196 | L51: 11 | M51: 16 | N51: 31 | O51: 29 | P51: 136 | Q51: 85 | R51: 74 | S51: 145 | T51: 60 | U51: 74 | V51: 40 | W51: 71 | X51: 32 | Y51: 240 | Z51: 49
A52: 262 | B52: MEURTHE ET MOSELLE MEUSE | C52: 27 | D52: PONT A MOUSSON | E52: 554533 | F52: PONT A MOUSSON BREUIL | G52: 2.8 | H52: 43 | I52: 159 | J52: 123 | K52: 197 | L52: 46 | M52: 72 | N52: 19 | O52: 38 | P52: 141 | Q52: 10 | R52: 4 | S52: 157 | T52: 121 | U52: 129 | V52: 109 | W52: 45 | X52: 29 | Y52: 203 | Z52: 40
A53: 262 | B53: MARNE-ARDENNES | C53: 6 | D53: CHALONS EN CHAMPAGNE | E53: 451101 | F53: CHALONS VIVIERS | G53: 9.0 | H53: 44 | I53: 18 | J53: 29 | K53: 32 | L53: 109 | M53: 108 | N53: 111 | O53: 49 | P53: 170 | Q53: 61 | R53: 107 | S53: 33 | T53: 141 | U53: 156 | V53: 99 | W53: 60 | X53: 83 | Y53: 46 | Z53: 93
A54: 262 | B54: AUBE HAUTE MARNE | C54: 21 | D54: CHAUMONT | E54: 510590 | F54: CHAUMONT REPUBLIQUE | G54: 4.3 | H54: 45 | I54: 114 | J54: 123 | K54: 128 | L54: 94 | M54: 155 | N54: 45 | O54: 87 | P54: 75 | Q54: 65 | R54: 51 | S54: 132 | T54: 46 | U54: 38 | V54: 67 | W54: 52 | X54: 171 | Y54: 10 | Z54: 71
A55: 262 | B55: MARNE-ARDENNES | C55: 11 | D55: REIMS | E55: 551367 | F55: AY CHAMPAGNE | G55: 2.7 | H55: 46 | I55: 206 | J55: 222 | K55: 170 | L55: 36 | M55: 88 | N55: 16 | O55: 6 | P55: 121 | Q55: 234 | R55: 229 | S55: 181 | T55: 39 | U55: 43 | V55: 31 | W55: 7 | X55: 5 | Y55: 116 | Z55: 9
A56: 262 | B56: MOSELLE | C56: 44 | D56: MOSELLE NORD | E56: 457348 | F56: HAGONDANGE | G56: 9.2 | H56: 47 | I56: 155 | J56: 164 | K56: 139 | L56: 28 | M56: 29 | N56: 172 | O56: 115 | P56: 71 | Q56: 91 | R56: 78 | S56: 120 | T56: 72 | U56: 53 | V56: 146 | W56: 48 | X56: 35 | Y56: 122 | Z56: 65
A57: 262 | B57: MEURTHE ET MOSELLE MEUSE | C57: 27 | D57: PONT A MOUSSON | E57: 554506 | F57: CHALIGNY NEUVES MAISONS | G57: 3.8 | H57: 48 | I57: 185 | J57: 136 | K57: 227 | L57: 4 | M57: 4 | N57: 14 | O57: 13 | P57: 94 | Q57: 227 | R57: 201 | S57: 236 | T57: 118 | U57: 147 | V57: 63 | W57: 16 | X57: 6 | Y57: 220 | Z57: 8
A58: 262 | B58: MEURTHE ET MOSELLE MEUSE | C58: 31 | D58: VERDUN | E58: 555679 | F58: VERDUN MAZEL | G58: 4.0 | H58: 49 | I58: 29 | J58: 34 | K58: 48 | L58: 52 | M58: 70 | N58: 90 | O58: 101 | P58: 46 | Q58: 48 | R58: 75 | S58: 36 | T58: 188 | U58: 195 | V58: 167 | W58: 100 | X58: 74 | Y58: 136 | Z58: 106
A59: 262 | B59: VOSGES | C59: 57 | D59: EPINAL | E59: 588631 | F59: THAON LES VOSGES | G59: 5.5 | H59: 50 | I59: 35 | J59: 56 | K59: 27 | L59: 124 | M59: 100 | N59: 105 | O59: 102 | P59: 179 | Q59: 164 | R59: 111 | S59: 245 | T59: 32 | U59: 30 | V59: 50 | W59: 131 | X59: 154 | Y59: 77 | Z59: 136
A60: 262 | B60: MEURTHE ET MOSELLE MEUSE | C60: 26 | D60: NANCY | E60: 454426 | F60: LUNEVILLE CARNOT | G60: 10.0 | H60: 51 | I60: 122 | J60: 136 | K60: 137 | L60: 67 | M60: 63 | N60: 99 | O60: 69 | P60: 158 | Q60: 139 | R60: 108 | S60: 185 | T60: 45 | U60: 35 | V60: 80 | W60: 39 | X60: 38 | Y60: 80 | Z60: 50
A61: 262 | B61: MEURTHE ET MOSELLE MEUSE | C61: 26 | D61: NANCY | E61: 554601 | F61: SAINT MAX | G61: 4.6 | H61: 52 | I61: 54 | J61: 22 | K61: 143 | L61: 128 | M61: 137 | N61: 221 | O61: 58 | P61: 86 | Q61: 45 | R61: 102 | S61: 16 | T61: 65 | U61: 68 | V61: 61 | W61: 165 | X61: 158 | Y61: 160 | Z61: 145
A62: 262 | B62: BAS-RHIN | C62: 5006 | D62: STRASBOURG | E62: 4037 | F62: MUNDOLSHEIM | G62: 4.0 | H62: 53 | I62: 191 | J62: 213 | K62: 146 | L62: 23 | M62: 9 | N62: 87 | O62: 73 | P62: 193 | Q62: 41 | R62: 36 | S62: 70 | T62: 52 | U62: 39 | V62: 77 | W62: 154 | X62: 193 | Y62: 140 | Z62: 86
A63: 262 | B63: BAS-RHIN | C63: 5060 | D63: HAGUENAU | E63: 4082 | F63: BOUXWILLER | G63: 2.4 | H63: 54 | I63: 61 | J63: 78 | K63: 59 | L63: 165 | M63: 102 | N63: 188 | O63: 176 | P63: 206 | Q63: 28 | R63: 31 | S63: 46 | T63: 147 | U63: 189 | V63: 44 | W63: 50 | X63: 43 | Y63: 58 | Z63: 126
A64: 262 | B64: MOSELLE | C64: 44 | D64: MOSELLE NORD | E64: 457306 | F64: FLORANGE | G64: 3.7 | H64: 55 | I64: 129 | J64: 78 | K64: 192 | L64: 96 | M64: 92 | N64: 142 | O64: 160 | P64: 109 | Q64: 25 | R64: 18 | S64: 69 | T64: 84 | U64: 84 | V64: 96 | W64: 83 | X64: 41 | Y64: 109 | Z64: 187
A65: 262 | B65: MEURTHE ET MOSELLE MEUSE | C65: 26 | D65: NANCY | E65: 554636 | F65: TOMBLAINE | G65: 2.3 | H65: 56 | I65: 24 | J65: 72 | K65: 7 | L65: 221 | M65: 227 | N65: 54 | O65: 124 | P65: 208 | Q65: 111 | R65: 118 | S65: 89 | T65: 40 | U65: 69 | V65: 10 | W65: 133 | X65: 150 | Y65: 192 | Z65: 46
A66: 262 | B66: MARNE-ARDENNES | C66: 6 | D66: CHALONS EN CHAMPAGNE | E66: 451120 | F66: SARRY | G66: 2.5 | H66: 57 | I66: 7 | J66: 38 | K66: 4 | L66: 126 | M66: 199 | N66: 199 | O66: 54 | P66: 9 | Q66: 33 | R66: 34 | S66: 49 | T66: 162 | U66: 158 | V66: 174 | W66: 186 | X66: 167 | Y66: 184 | Z66: 171
A67: 262 | B67: MOSELLE | C67: 44 | D67: MOSELLE NORD | E67: 557352 | F67: HETTANGE GRANDE | G67: 4.1 | H67: 58 | I67: 182 | J67: 160 | K67: 200 | L67: 33 | M67: 14 | N67: 98 | O67: 189 | P67: 172 | Q67: 144 | R67: 138 | S67: 140 | T67: 31 | U67: 25 | V67: 82 | W67: 85 | X67: 78 | Y67: 67 | Z67: 120
A68: 262 | B68: MARNE-ARDENNES | C68: 2 | D68: CHARLEVILLE MEZIERES | E68: 508802 | F68: CHARLEVILLE NEVERS | G68: 3.0 | H68: 59 | I68: 31 | J68: 22 | K68: 67 | L68: 183 | M68: 221 | N68: 192 | O68: 27 | P68: 85 | Q68: 141 | R68: 210 | S68: 34 | T68: 64 | U68: 64 | V68: 85 | W68: 92 | X68: 128 | Y68: 28 | Z68: 185
A69: 262 | B69: BAS-RHIN | C69: 5006 | D69: STRASBOURG | E69: 4019 | F69: STRASBOURG ANVERS | G69: 4.2 | H69: 60 | I69: 141 | J69: 72 | K69: 205 | L69: 53 | M69: 17 | N69: 30 | O69: 44 | P69: 263 | Q69: 34 | R69: 29 | S69: 60 | T69: 106 | U69: 124 | V69: 79 | W69: 111 | X69: 44 | Y69: 207 | Z69: 162
A70: 262 | B70: MARNE-ARDENNES | C70: 11 | D70: REIMS | E70: 451350 | F70: REIMS CENTRE VILLE | G70: 7.2 | H70: 61 | I70: 162 | J70: 164 | K70: 157 | L70: 161 | M70: 171 | N70: 32 | O70: 23 | P70: 239 | Q70: 57 | R70: 49 | S70: 108 | T70: 86 | U70: 93 | V70: 74 | W70: 14 | X70: 13 | Y70: 54 | Z70: 23
A71: 262 | B71: MEURTHE ET MOSELLE MEUSE | C71: 27 | D71: PONT A MOUSSON | E71: 554416 | F71: LUDRES | G71: 3.7 | H71: 62 | I71: 33 | J71: 51 | K71: 31 | L71: 154 | M71: 169 | N71: 63 | O71: 40 | P71: 188 | Q71: 26 | R71: 15 | S71: 105 | T71: 238 | U71: 237 | V71: 224 | W71: 46 | X71: 46 | Y71: 129 | Z71: 29
A72: 262 | B72: MARNE-ARDENNES | C72: 11 | D72: REIMS | E72: 551310 | F72: REIMS CHATILLONS | G72: 4.1 | H72: 63 | I72: 152 | J72: 177 | K72: 110 | L72: 93 | M72: 118 | N72: 136 | O72: 63 | P72: 82 | Q72: 66 | R72: 73 | S72: 91 | T72: 94 | U72: 78 | V72: 151 | W72: 32 | X72: 20 | Y72: 85 | Z72: 55
A73: 262 | B73: AUBE HAUTE MARNE | C73: 14 | D73: TROYES | E73: 510511 | F73: TROYES BROSSOLETTE | G73: 2.5 | H73: 64 | I73: 68 | J73: 123 | K73: 28 | L73: 40 | M73: 46 | N73: 53 | O73: 92 | P73: 113 | Q73: 104 | R73: 105 | S73: 97 | T73: 165 | U73: 183 | V73: 97 | W73: 99 | X73: 63 | Y73: 118 | Z73: 166
A74: 262 | B74: MARNE-ARDENNES | C74: 2 | D74: CHARLEVILLE MEZIERES | E74: 508815 | F74: CARIGNAN | G74: 2.9 | H74: 65 | I74: 107 | J74: 114 | K74: 115 | L74: 116 | M74: 197 | N74: 44 | O74: 132 | P74: 34 | Q74: 13 | R74: 26 | S74: 18 | T74: 123 | U74: 120 | V74: 144 | W74: 117 | X74: 93 | Y74: 131 | Z74: 130
A75: 262 | B75: MEURTHE ET MOSELLE MEUSE | C75: 31 | D75: VERDUN | E75: 455298 | F75: ETAIN | G75: 1.6 | H75: 66 | I75: 230 | J75: 225 | K75: 211 | L75: 83 | M75: 44 | N75: 184 | O75: 245 | P75: 177 | Q75: 114 | R75: 83 | S75: 167 | T75: 10 | U75: 11 | V75: 11 | W75: 95 | X75: 141 | Y75: 6 | Z75: 246
A76: 262 | B76: VOSGES | C76: 57 | D76: EPINAL | E76: 588501 | F76: NEUFCHATEAU | G76: 5.0 | H76: 67 | I76: 26 | J76: 22 | K76: 64 | L76: 188 | M76: 217 | N76: 116 | O76: 39 | P76: 126 | Q76: 79 | R76: 43 | S76: 201 | T76: 152 | U76: 152 | V76: 154 | W76: 51 | X76: 92 | Y76: 108 | Z76: 15
A77: 262 | B77: VOSGES | C77: 55 | D77: SAINT DIE | E77: 588386 | F77: LE THILLOT | G77: 2.3 | H77: 68 | I77: 89 | J77: 72 | K77: 132 | L77: 133 | M77: 196 | N77: 183 | O77: 139 | P77: 7 | Q77: 64 | R77: 113 | S77: 42 | T77: 50 | U77: 31 | V77: 127 | W77: 162 | X77: 254 | Y77: 25 | Z77: 210
A78: 262 | B78: MEURTHE ET MOSELLE MEUSE | C78: 27 | D78: PONT A MOUSSON | E78: 554376 | F78: LAXOU BOUFFLERS | G78: 2.9 | H78: 69 | I78: 187 | J78: 232 | K78: 78 | L78: 63 | M78: 45 | N78: 55 | O78: 24 | P78: 249 | Q78: 11 | R78: 3 | S78: 171 | T78: 117 | U78: 114 | V78: 133 | W78: 72 | X78: 65 | Y78: 83 | Z78: 100
A79: 264 | B79: BAS-RHIN | C79: 5006 | D79: STRASBOURG | E79: 4038 | F79: OBERHAUSBERGEN | G79: 4.8 | H79: 70 | I79: 115 | J79: 177 | K79: 49 | L79: 125 | M79: 57 | N79: 80 | O79: 67 | P79: 255 | Q79: 46 | R79: 72 | S79: 35 | T79: 90 | U79: 70 | V79: 160 | W79: 76 | X79: 57 | Y79: 100 | Z79: 117
A80: 264 | B80: MARNE-ARDENNES | C80: 6 | D80: CHALONS EN CHAMPAGNE | E80: 551110 | F80: CHALONS ROOSEVELT | G80: 4.9 | H80: 71 | I80: 23 | J80: 48 | K80: 19 | L80: 158 | M80: 188 | N80: 131 | O80: 52 | P80: 104 | Q80: 86 | R80: 136 | S80: 43 | T80: 103 | U80: 91 | V80: 166 | W80: 158 | X80: 106 | Y80: 211 | Z80: 132
A81: 264 | B81: VOSGES | C81: 57 | D81: EPINAL | E81: 588396 | F81: LE VAL D AJOL | G81: 3.0 | H81: 72 | I81: 1 | J81: 1 | K81: 3 | L81: 227 | M81: 216 | N81: 260 | O81: 227 | P81: 66 | Q81: 123 | R81: 44 | S81: 255 | T81: 133 | U81: 86 | V81: 244 | W81: 253 | X81: 224 | Y81: 252 | Z81: 243
A82: 264 | B82: MEURTHE ET MOSELLE MEUSE | C82: 27 | D82: PONT A MOUSSON | E82: 554381 | F82: LAXOU ARISTIDE BRIAND | G82: 4.1 | H82: 73 | I82: 100 | J82: 78 | K82: 141 | L82: 49 | M82: 7 | N82: 107 | O82: 128 | P82: 261 | Q82: 72 | R82: 96 | S82: 57 | T82: 93 | U82: 89 | V82: 111 | W82: 184 | X82: 96 | Y82: 241 | Z82: 149
A83: 264 | B83: VOSGES | C83: 57 | D83: EPINAL | E83: 488706 | F83: VITTEL | G83: 3.7 | H83: 74 | I83: 21 | J83: 38 | K83: 18 | L83: 236 | M83: 237 | N83: 206 | O83: 76 | P83: 168 | Q83: 109 | R83: 61 | S83: 215 | T83: 58 | U83: 32 | V83: 191 | W83: 140 | X83: 213 | Y83: 161 | Z83: 34
A84: 264 | B84: MEURTHE ET MOSELLE MEUSE | C84: 31 | D84: VERDUN | E84: 455456 | F84: MONTMEDY | G84: 1.8 | H84: 75 | I84: 175 | J84: 232 | K84: 62 | L84: 42 | M84: 60 | N84: 57 | O84: 173 | P84: 29 | Q84: 97 | R84: 70 | S84: 173 | T84: 109 | U84: 106 | V84: 129 | W84: 41 | X84: 99 | Y84: 14 | Z84: 56
A85: 264 | B85: MOSELLE | C85: 45 | D85: METZ | E85: 457453 | F85: MONTIGNY LES METZ | G85: 8.1 | H85: 76 | I85: 37 | J85: 72 | K85: 17 | L85: 69 | M85: 34 | N85: 186 | O85: 80 | P85: 231 | Q85: 87 | R85: 176 | S85: 20 | T85: 232 | U85: 212 | V85: 249 | W85: 82 | X85: 67 | Y85: 102 | Z85: 98
A86: 264 | B86: AUBE HAUTE MARNE | C86: 14 | D86: TROYES | E86: 510523 | F86: LA CHAPELLE ST LUC | G86: 5.4 | H86: 77 | I86: 197 | J86: 194 | K86: 198 | L86: 27 | M86: 40 | N86: 21 | O86: 133 | P86: 101 | Q86: 174 | R86: 219 | S86: 56 | T86: 24 | U86: 54 | V86: 2 | W86: 161 | X86: 156 | Y86: 132 | Z86: 173
A87: 264 | B87: VOSGES | C87: 55 | D87: SAINT DIE | E87: 488586 | F87: SAINT DIE | G87: 10.5 | H87: 78 | I87: 9 | J87: 14 | K87: 39 | L87: 206 | M87: 174 | N87: 161 | O87: 157 | P87: 184 | Q87: 92 | R87: 87 | S87: 109 | T87: 157 | U87: 136 | V87: 215 | W87: 129 | X87: 100 | Y87: 174 | Z87: 101
A88: 264 | B88: MARNE-ARDENNES | C88: 11 | D88: REIMS | E88: 451361 | F88: PIERRY LECLERC | G88: 1.9 | H88: 79 | I88: 38 | J88: 56 | K88: 36 | L88: 163 | M88: 248 | N88: 141 | O88: 50 | P88: 4 | Q88: 205 | R88: 168 | S88: 233 | T88: 92 | U88: 90 | V88: 110 | W88: 73 | X88: 52 | Y88: 126 | Z88: 96
A89: 264 | B89: BAS-RHIN | C89: 5006 | D89: STRASBOURG | E89: 4006 | F89: STRASBOURG NEUDORF | G89: 8.5 | H89: 80 | I89: 30 | J89: 10 | K89: 108 | L89: 73 | M89: 67 | N89: 62 | O89: 108 | P89: 167 | Q89: 170 | R89: 170 | S89: 150 | T89: 98 | U89: 105 | V89: 83 | W89: 220 | X89: 176 | Y89: 249 | Z89: 155
A90: 264 | B90: AUBE HAUTE MARNE | C90: 21 | D90: CHAUMONT | E90: 451154 | F90: JOINVILLE | G90: 1.8 | H90: 81 | I90: 2 | J90: 3 | K90: 2 | L90: 241 | M90: 231 | N90: 92 | O90: 193 | P90: 225 | Q90: 259 | R90: 255 | S90: 258 | T90: 89 | U90: 140 | V90: 24 | W90: 88 | X90: 212 | Y90: 49 | Z90: 41
A91: 264 | B91: AUBE HAUTE MARNE | C91: 21 | D91: CHAUMONT | E91: 451151 | F91: WASSY | G91: 2.0 | H91: 82 | I91: 223 | J91: 252 | K91: 52 | L91: 34 | M91: 43 | N91: 94 | O91: 113 | P91: 64 | Q91: 145 | R91: 241 | S91: 17 | T91: 79 | U91: 94 | V91: 53 | W91: 26 | X91: 125 | Y91: 2 | Z91: 79
A92: 264 | B92: MARNE-ARDENNES | C92: 6 | D92: CHALONS EN CHAMPAGNE | E92: 551354 | F92: VERTUS | G92: 2.5 | H92: 83 | I92: 16 | J92: 86 | K92: 1 | L92: 224 | M92: 186 | N92: 203 | O92: 107 | P92: 223 | Q92: 140 | R92: 157 | S92: 103 | T92: 95 | U92: 110 | V92: 72 | W92: 127 | X92: 144 | Y92: 69 | Z92: 152
A93: 264 | B93: BAS-RHIN | C93: 5101 | D93: SELESTAT | E93: 4120 | F93: WASSELONNE | G93: 4.6 | H93: 84 | I93: 222 | J93: 245 | K93: 79 | L93: 184 | M93: 154 | N93: 176 | O93: 249 | P93: 129 | Q93: 14 | R93: 23 | S93: 22 | T93: 43 | U93: 40 | V93: 52 | W93: 77 | X93: 204 | Y93: 22 | Z93: 66
A94: 264 | B94: VOSGES | C94: 57 | D94: EPINAL | E94: 488286 | F94: EPINAL ARISTIDE BRIAND | G94: 9.1 | H94: 85 | I94: 13 | J94: 8 | K94: 83 | L94: 141 | M94: 90 | N94: 58 | O94: 99 | P94: 241 | Q94: 194 | R94: 154 | S94: 234 | T94: 85 | U94: 76 | V94: 119 | W94: 213 | X94: 168 | Y94: 254 | Z94: 128
A95: 264 | B95: VOSGES | C95: 57 | D95: EPINAL | E95: 588206 | F95: CHARMES | G95: 2.8 | H95: 86 | I95: 74 | J95: 106 | K95: 51 | L95: 222 | M95: 191 | N95: 159 | O95: 168 | P95: 216 | Q95: 240 | R95: 211 | S95: 253 | T95: 22 | U95: 20 | V95: 69 | W95: 96 | X95: 110 | Y95: 63 | Z95: 124
A96: 264 | B96: AUBE HAUTE MARNE | C96: 14 | D96: TROYES | E96: 510520 | F96: SAINT ANDRE LES VERGERS | G96: 4.2 | H96: 87 | I96: 94 | J96: 63 | K96: 153 | L96: 77 | M96: 109 | N96: 74 | O96: 105 | P96: 62 | Q96: 44 | R96: 35 | S96: 87 | T96: 228 | U96: 238 | V96: 173 | W96: 81 | X96: 129 | Y96: 51 | Z96: 87
A97: 264 | B97: MEURTHE ET MOSELLE MEUSE | C97: 31 | D97: VERDUN | E97: 555624 | F97: STENAY | G97: 2.8 | H97: 88 | I97: 215 | J97: 245 | K97: 54 | L97: 9 | M97: 25 | N97: 33 | O97: 142 | P97: 20 | Q97: 75 | R97: 134 | S97: 32 | T97: 124 | U97: 130 | V97: 122 | W97: 109 | X97: 130 | Y97: 56 | Z97: 153
A98: 264 | B98: AUBE HAUTE MARNE | C98: 21 | D98: CHAUMONT | E98: 451156 | F98: SAINT DIZIER CENTRE | G98: 9.3 | H98: 89 | I98: 104 | J98: 98 | K98: 129 | L98: 113 | M98: 110 | N98: 76 | O98: 118 | P98: 164 | Q98: 107 | R98: 92 | S98: 124 | T98: 88 | U98: 98 | V98: 68 | W98: 138 | X98: 211 | Y98: 71 | Z98: 89
A99: 264 | B99: VOSGES | C99: 55 | D99: SAINT DIE | E99: 488326 | F99: GERARDMER | G99: 5.2 | H99: 90 | I99: 41 | J99: 67 | K99: 30 | L99: 205 | M99: 159 | N99: 248 | O99: 143 | P99: 166 | Q99: 37 | R99: 10 | S99: 232 | T99: 201 | U99: 169 | V99: 238 | W99: 120 | X99: 101 | Y99: 114 | Z99: 141
A100: 264 | B100: BAS-RHIN | C100: 5101 | D100: SELESTAT | E100: 4107 | F100: VILLE | G100: 3.0 | H100: 91 | I100: 248 | J100: 255 | K100: 175 | L100: 16 | M100: 20 | N100: 201 | O100: 195 | P100: 14 | Q100: 54 | R100: 54 | S100: 81 | T100: 23 | U100: 10 | V100: 236 | W100: 209 | X100: 256 | Y100: 98 | Z100: 174
A101: 264 | B101: MARNE-ARDENNES | C101: 11 | D101: REIMS | E101: 551314 | F101: FISMES | G101: 3.0 | H101: 92 | I101: 102 | J101: 164 | K101: 33 | L101: 78 | M101: 128 | N101: 49 | O101: 16 | P101: 144 | Q101: 155 | R101: 213 | S101: 48 | T101: 167 | U101: 173 | V101: 123 | W101: 55 | X101: 56 | Y101: 120 | Z101: 43
A102: 264 | B102: VOSGES | C102: 57 | D102: EPINAL | E102: 488451 | F102: MIRECOURT | G102: 4.9 | H102: 93 | I102: 46 | J102: 78 | K102: 24 | L102: 207 | M102: 215 | N102: 93 | O102: 81 | P102: 165 | Q102: 117 | R102: 89 | S102: 152 | T102: 104 | U102: 102 | V102: 115 | W102: 149 | X102: 166 | Y102: 190 | Z102: 64
A103: 30 | B103: BAS-RHIN | C103: 5060 | D103: HAGUENAU | E103: 4066 | F103: NIEDERBRONN LES BAINS | G103: 6.1 | H103: 94 | I103: 12 | J103: 34 | K103: 12 | L103: 180 | M103: 181 | N103: 217 | O103: 163 | P103: 84 | Q103: 118 | R103: 59 | S103: 230 | T103: 164 | U103: 141 | V103: 219 | W103: 196 | X103: 188 | Y103: 107 | Z103: 235
A104: 30 | B104: MARNE-ARDENNES | C104: 11 | D104: REIMS | E104: 451370 | F104: EPERNAY | G104: 11.5 | H104: 95 | I104: 73 | J104: 114 | K104: 43 | L104: 90 | M104: 93 | N104: 133 | O104: 57 | P104: 133 | Q104: 182 | R104: 153 | S104: 210 | T104: 116 | U104: 97 | V104: 186 | W104: 132 | X104: 98 | Y104: 159 | Z104: 113
A105: 30 | B105: MOSELLE | C105: 45 | D105: METZ | E105: 557712 | F105: WOIPPY | G105: 5.6 | H105: 96 | I105: 83 | J105: 51 | K105: 152 | L105: 80 | M105: 115 | N105: 46 | O105: 116 | P105: 76 | Q105: 207 | R105: 197 | S105: 194 | T105: 87 | U105: 116 | V105: 38 | W105: 148 | X105: 104 | Y105: 193 | Z105: 138
A106: 30 | B106: MOSELLE | C106: 45 | D106: METZ | E106: 557433 | F106: MARANGE SILVANGE | G106: 2.5 | H106: 97 | I106: 78 | J106: 22 | K106: 186 | L106: 115 | M106: 143 | N106: 187 | O106: 246 | P106: 19 | Q106: 247 | R106: 257 | S106: 82 | T106: 113 | U106: 100 | V106: 161 | W106: 38 | X106: 95 | Y106: 3 | Z106: 168
A107: 30 | B107: AUBE HAUTE MARNE | C107: 14 | D107: TROYES | E107: 410550 | F107: BAR SUR AUBE | G107: 6.0 | H107: 98 | I107: 56 | J107: 38 | K107: 103 | L107: 119 | M107: 127 | N107: 165 | O107: 220 | P107: 54 | Q107: 235 | R107: 216 | S107: 226 | T107: 76 | U107: 88 | V107: 59 | W107: 146 | X107: 236 | Y107: 50 | Z107: 142
A108: 30 | B108: MOSELLE | C108: 42 | D108: MOSELLE EST | E108: 457614 | F108: SARREBOURG | G108: 8.4 | H108: 99 | I108: 125 | J108: 93 | K108: 176 | L108: 76 | M108: 85 | N108: 160 | O108: 162 | P108: 50 | Q108: 94 | R108: 110 | S108: 76 | T108: 142 | U108: 113 | V108: 221 | W108: 124 | X108: 148 | Y108: 64 | Z108: 161
A109: 30 | B109: MARNE-ARDENNES | C109: 2 | D109: CHARLEVILLE MEZIERES | E109: 508819 | F109: MOUZON | G109: 2.0 | H109: 100 | I109: 98 | J109: 56 | K109: 167 | L109: 243 | M109: 241 | N109: 81 | O109: 126 | P109: 221 | Q109: 100 | R109: 42 | S109: 241 | T109: 149 | U109: 174 | V109: 70 | W109: 22 | X109: 31 | Y109: 42 | Z109: 35
A110: 30 | B110: BAS-RHIN | C110: 5006 | D110: STRASBOURG | E110: 4024 | F110: STRASBOURG AUSTERLITZ | G110: 2.4 | H110: 101 | I110: 251 | J110: 235 | K110: 244 | L110: 24 | M110: 22 | N110: 28 | O110: 85 | P110: 178 | Q110: 76 | R110: 106 | S110: 54 | T110: 42 | U110: 59 | V110: 21 | W110: 104 | X110: 82 | Y110: 226 | Z110: 42
A111: 30 | B111: AUBE HAUTE MARNE | C111: 21 | D111: CHAUMONT | E111: 410560 | F111: BOURBONNE LES BAINS | G111: 2.0 | H111: 102 | I111: 19 | J111: 51 | K111: 10 | L111: 87 | M111: 82 | N111: 232 | O111: 169 | P111: 45 | Q111: 188 | R111: 163 | S111: 197 | T111: 144 | U111: 157 | V111: 91 | W111: 235 | X111: 230 | Y111: 151 | Z111: 245
A112: 30 | B112: MEURTHE ET MOSELLE MEUSE | C112: 26 | D112: NANCY | E112: 554266 | F112: DOMBASLE SUR MEURTHE | G112: 3.6 | H112: 103 | I112: 224 | J112: 213 | K112: 218 | L112: 215 | M112: 176 | N112: 115 | O112: 51 | P112: 242 | Q112: 23 | R112: 20 | S112: 55 | T112: 68 | U112: 99 | V112: 25 | W112: 37 | X112: 53 | Y112: 39 | Z112: 75
A113: 30 | B113: VOSGES | C113: 55 | D113: SAINT DIE | E113: 588186 | F113: BRUYERES | G113: 3.7 | H113: 104 | I113: 96 | J113: 144 | K113: 63 | L113: 121 | M113: 153 | N113: 113 | O113: 223 | P113: 40 | Q113: 245 | R113: 230 | S113: 225 | T113: 71 | U113: 73 | V113: 64 | W113: 74 | X113: 151 | Y113: 47 | Z113: 53
A114: 30 | B114: HAUT-RHIN | C114: 5130 | D114: COLMAR | E114: 4153 | F114: ROUFFACH | G114: 3.7 | H114: 105 | I114: 135 | J114: 171 | K114: 84 | L114: 225 | M114: 213 | N114: 128 | O114: 221 | P114: 174 | Q114: 169 | R114: 179 | S114: 125 | T114: 20 | U114: 22 | V114: 33 | W114: 163 | X114: 209 | Y114: 84 | Z114: 151
A115: 30 | B115: MOSELLE | C115: 44 | D115: MOSELLE NORD | E115: 557347 | F115: GUENANGE | G115: 4.9 | H115: 106 | I115: 189 | J115: 152 | K115: 223 | L115: 85 | M115: 125 | N115: 102 | O115: 134 | P115: 31 | Q115: 68 | R115: 46 | S115: 164 | T115: 146 | U115: 164 | V115: 81 | W115: 43 | X115: 42 | Y115: 155 | Z115: 30
A116: 30 | B116: MOSELLE | C116: 45 | D116: METZ | E116: 457574 | F116: ROMBAS | G116: 3.3 | H116: 107 | I116: 170 | J116: 200 | K116: 145 | L116: 25 | M116: 52 | N116: 106 | O116: 154 | P116: 1 | Q116: 31 | R116: 27 | S116: 72 | T116: 151 | U116: 148 | V116: 172 | W116: 244 | X116: 200 | Y116: 246 | Z116: 219
A117: 30 | B117: MEURTHE ET MOSELLE MEUSE | C117: 31 | D117: VERDUN | E117: 455151 | F117: BAR LE DUC | G117: 8.9 | H117: 108 | I117: 95 | J117: 86 | K117: 125 | L117: 88 | M117: 87 | N117: 178 | O117: 94 | P117: 98 | Q117: 189 | R117: 141 | S117: 235 | T117: 134 | U117: 142 | V117: 98 | W117: 107 | X117: 185 | Y117: 61 | Z117: 72
A118: 30 | B118: MARNE-ARDENNES | C118: 11 | D118: REIMS | E118: 551309 | F118: REIMS EUROPE | G118: 2.6 | H118: 109 | I118: 99 | J118: 98 | K118: 107 | L118: 185 | M118: 212 | N118: 89 | O118: 89 | P118: 107 | Q118: 119 | R118: 115 | S118: 107 | T118: 83 | U118: 135 | V118: 23 | W118: 156 | X118: 152 | Y118: 169 | Z118: 112
A119: 30 | B119: VOSGES | C119: 55 | D119: SAINT DIE | E119: 588666 | F119: VAGNEY | G119: 3.8 | H119: 110 | I119: 8 | J119: 9 | K119: 56 | L119: 142 | M119: 138 | N119: 193 | O119: 172 | P119: 73 | Q119: 171 | R119: 130 | S119: 221 | T119: 197 | U119: 160 | V119: 245 | W119: 190 | X119: 197 | Y119: 196 | Z119: 110
A120: 30 | B120: BAS-RHIN | C120: 5006 | D120: STRASBOURG | E120: 4023 | F120: STRASBOURG VOSGES | G120: 3.3 | H120: 111 | I120: 163 | J120: 51 | K120: 242 | L120: 60 | M120: 64 | N120: 61 | O120: 86 | P120: 134 | Q120: 24 | R120: 37 | S120: 24 | T120: 160 | U120: 123 | V120: 242 | W120: 208 | X120: 178 | Y120: 216 | Z120: 183
A121: 30 | B121: MEURTHE ET MOSELLE MEUSE | C121: 26 | D121: NANCY | E121: 554116 | F121: BACCARAT | G121: 2.4 | H121: 112 | I121: 44 | J121: 56 | K121: 45 | L121: 152 | M121: 139 | N121: 234 | O121: 206 | P121: 60 | Q121: 152 | R121: 133 | S121: 176 | T121: 172 | U121: 166 | V121: 159 | W121: 144 | X121: 173 | Y121: 82 | Z121: 150
A122: 30 | B122: AUBE HAUTE MARNE | C122: 21 | D122: CHAUMONT | E122: 410541 | F122: LANGRES | G122: 6.4 | H122: 113 | I122: 153 | J122: 186 | K122: 98 | L122: 101 | M122: 83 | N122: 145 | O122: 100 | P122: 157 | Q122: 157 | R122: 180 | S122: 94 | T122: 81 | U122: 75 | V122: 104 | W122: 110 | X122: 182 | Y122: 73 | Z122: 60
A123: 30 | B123: AUBE HAUTE MARNE | C123: 14 | D123: TROYES | E123: 410571 | F123: ROMILLY SUR SEINE | G123: 6.5 | H123: 114 | I123: 67 | J123: 48 | K123: 126 | L123: 81 | M123: 80 | N123: 163 | O123: 96 | P123: 96 | Q123: 185 | R123: 190 | S123: 148 | T123: 177 | U123: 170 | V123: 183 | W123: 125 | X123: 149 | Y123: 97 | Z123: 102
A124: 30 | B124: BAS-RHIN | C124: 5006 | D124: STRASBOURG | E124: 4026 | F124: STRASBOURG DANUBE | G124: 4.4 | H124: 115 | I124: 173 | J124: 19 | K124: 259 | L124: 216 | M124: 105 | N124: 222 | O124: 254 | P124: 235 | Q124: 241 | R124: 259 | S124: 51 | T124: 9 | U124: 5 | V124: 42 | W124: 171 | X124: 202 | Y124: 60 | Z124: 234
A125: 30 | B125: BAS-RHIN | C125: 5101 | D125: SELESTAT | E125: 4119 | F125: OBERNAI | G125: 3.5 | H125: 116 | I125: 246 | J125: 225 | K125: 245 | L125: 17 | M125: 5 | N125: 75 | O125: 164 | P125: 191 | Q125: 122 | R125: 232 | S125: 11 | T125: 35 | U125: 28 | V125: 90 | W125: 169 | X125: 240 | Y125: 62 | Z125: 164
A126: 30 | B126: MEURTHE ET MOSELLE MEUSE | C126: 27 | D126: PONT A MOUSSON | E126: 554321 | F126: FROUARD | G126: 3.0 | H126: 117 | I126: 240 | J126: 244 | K126: 172 | L126: 68 | M126: 135 | N126: 114 | O126: 65 | P126: 12 | Q126: 17 | R126: 6 | S126: 189 | T126: 125 | U126: 151 | V126: 71 | W126: 68 | X126: 28 | Y126: 215 | Z126: 92
A127: 30 | B127: MOSELLE | C127: 44 | D127: MOSELLE NORD | E127: 457350 | F127: HAYANGE | G127: 7.3 | H127: 118 | I127: 143 | J127: 56 | K127: 219 | L127: 45 | M127: 54 | N127: 137 | O127: 149 | P127: 30 | Q127: 177 | R127: 243 | S127: 25 | T127: 132 | U127: 132 | V127: 139 | W127: 153 | X127: 126 | Y127: 142 | Z127: 158
A128: 30 | B128: MEURTHE ET MOSELLE MEUSE | C128: 31 | D128: VERDUN | E128: 555406 | F128: LIGNY EN BARROIS | G128: 2.8 | H128: 119 | I128: 25 | J128: 16 | K128: 80 | L128: 147 | M128: 131 | N128: 139 | O128: 138 | P128: 146 | Q128: 168 | R128: 183 | S128: 123 | T128: 214 | U128: 201 | V128: 216 | W128: 134 | X128: 132 | Y128: 96 | Z128: 148
A129: 30 | B129: MOSELLE | C129: 45 | D129: METZ | E129: 557612 | F129: SAINTE MARIE AUX CHENES | G129: 3.8 | H129: 120 | I129: 20 | J129: 16 | K129: 61 | L129: 228 | M129: 240 | N129: 236 | O129: 233 | P129: 53 | Q129: 146 | R129: 184 | S129: 75 | T129: 102 | U129: 109 | V129: 95 | W129: 215 | X129: 214 | Y129: 212 | Z129: 144
A130: 30 | B130: MARNE-ARDENNES | C130: 6 | D130: CHALONS EN CHAMPAGNE | E130: 551128 | F130: SAINTE MENEHOULD | G130: 3.3 | H130: 121 | I130: 84 | J130: 67 | K130: 135 | L130: 95 | M130: 123 | N130: 135 | O130: 83 | P130: 63 | Q130: 204 | R130: 235 | S130: 73 | T130: 70 | U130: 66 | V130: 75 | W130: 223 | X130: 227 | Y130: 180 | Z130: 209
A131: 30 | B131: VOSGES | C131: 57 | D131: EPINAL | E131: 488561 | F131: REMIREMONT | G131: 6.4 | H131: 122 | I131: 92 | J131: 144 | K131: 53 | L131: 160 | M131: 167 | N131: 162 | O131: 145 | P131: 100 | Q131: 101 | R131: 62 | S131: 195 | T131: 143 | U131: 121 | V131: 203 | W131: 143 | X131: 111 | Y131: 222 | Z131: 67
A132: 30 | B132: AUBE HAUTE MARNE | C132: 14 | D132: TROYES | E132: 510570 | F132: NOGENT SUR SEINE | G132: 4.4 | H132: 123 | I132: 14 | J132: 21 | K132: 34 | L132: 157 | M132: 165 | N132: 171 | O132: 62 | P132: 125 | Q132: 209 | R132: 178 | S132: 222 | T132: 231 | U132: 192 | V132: 256 | W132: 90 | X132: 86 | Y132: 103 | Z132: 80
A133: 30 | B133: MEURTHE ET MOSELLE MEUSE | C133: 31 | D133: VERDUN | E133: 455231 | F133: COMMERCY | G133: 4.6 | H133: 124 | I133: 117 | J133: 78 | K133: 179 | L133: 127 | M133: 133 | N133: 85 | O133: 117 | P133: 138 | Q133: 187 | R133: 169 | S133: 188 | T133: 122 | U133: 101 | V133: 194 | W133: 70 | X133: 133 | Y133: 41 | Z133: 73
A134: 30 | B134: VOSGES | C134: 57 | D134: EPINAL | E134: 588336 | F134: GOLBEY | G134: 3.1 | H134: 125 | I134: 116 | J134: 144 | K134: 105 | L134: 217 | M134: 203 | N134: 73 | O134: 56 | P134: 232 | Q134: 112 | R134: 65 | S134: 212 | T134: 129 | U134: 134 | V134: 117 | W134: 59 | X134: 61 | Y134: 204 | Z134: 14
A135: 30 | B135: MOSELLE | C135: 42 | D135: MOSELLE EST | E135: 457583 | F135: SAINT AVOLD | G135: 7.7 | H135: 126 | I135: 133 | J135: 155 | K135: 120 | L135: 139 | M135: 140 | N135: 166 | O135: 103 | P135: 115 | Q135: 115 | R135: 100 | S135: 126 | T135: 110 | U135: 118 | V135: 94 | W135: 137 | X135: 121 | Y135: 94 | Z135: 169
A136: 30 | B136: MOSELLE | C136: 45 | D136: METZ | E136: 457443 | F136: METZ REPUBLIQUE | G136: 4.2 | H136: 127 | I136: 11 | J136: 19 | K136: 25 | L136: 164 | M136: 180 | N136: 200 | O136: 202 | P136: 51 | Q136: 156 | R136: 112 | S136: 228 | T136: 240 | U136: 247 | V136: 184 | W136: 123 | X136: 108 | Y136: 179 | Z136: 78
A137: 30 | B137: MARNE-ARDENNES | C137: 6 | D137: CHALONS EN CHAMPAGNE | E137: 451381 | F137: SEZANNE | G137: 6.4 | H137: 128 | I137: 64 | J137: 72 | K137: 73 | L137: 118 | M137: 160 | N137: 109 | O137: 43 | P137: 102 | Q137: 197 | R137: 205 | S137: 144 | T137: 140 | U137: 128 | V137: 176 | W137: 152 | X137: 117 | Y137: 219 | Z137: 83
A138: 30 | B138: MOSELLE | C138: 45 | D138: METZ | E138: 557437 | F138: METZ SARRE | G138: 3.8 | H138: 129 | I138: 218 | J138: 123 | K138: 250 | L138: 114 | M138: 97 | N138: 27 | O138: 215 | P138: 205 | Q138: 242 | R138: 249 | S138: 159 | T138: 6 | U138: 4 | V138: 20 | W138: 237 | X138: 244 | Y138: 112 | Z138: 252
A139: 30 | B139: MARNE-ARDENNES | C139: 11 | D139: REIMS | E139: 551365 | F139: DORMANS | G139: 2.7 | H139: 130 | I139: 52 | J139: 29 | K139: 123 | L139: 237 | M139: 253 | N139: 224 | O139: 35 | P139: 153 | Q139: 89 | R139: 114 | S139: 67 | T139: 191 | U139: 208 | V139: 150 | W139: 86 | X139: 45 | Y139: 162 | Z139: 99
A140: 30 | B140: BAS-RHIN | C140: 5101 | D140: SELESTAT | E140: 4007 | F140: ILLKIRCH CENTRE | G140: 7.5 | H140: 131 | I140: 146 | J140: 136 | K140: 166 | L140: 57 | M140: 30 | N140: 181 | O140: 165 | P140: 197 | Q140: 153 | R140: 194 | S140: 79 | T140: 96 | U140: 81 | V140: 156 | W140: 217 | X140: 207 | Y140: 189 | Z140: 205
A141: 30 | B141: MOSELLE | C141: 42 | D141: MOSELLE EST | E141: 457617 | F141: SARREGUEMINES | G141: 8.3 | H141: 132 | I141: 77 | J141: 63 | K141: 127 | L141: 122 | M141: 99 | N141: 210 | O141: 166 | P141: 116 | Q141: 131 | R141: 166 | S141: 62 | T141: 154 | U141: 146 | V141: 180 | W141: 193 | X141: 142 | Y141: 200 | Z141: 186
A142: 30 | B142: MARNE-ARDENNES | C142: 6 | D142: CHALONS EN CHAMPAGNE | E142: 551103 | F142: FAGNIERES LECLERC | G142: 3.0 | H142: 133 | I142: 42 | J142: 38 | K142: 66 | L142: 74 | M142: 107 | N142: 40 | O142: 34 | P142: 150 | Q142: 255 | R142: 253 | S142: 218 | T142: 204 | U142: 240 | V142: 57 | W142: 93 | X142: 79 | Y142: 175 | Z142: 45
A143: 30 | B143: MEURTHE ET MOSELLE MEUSE | C143: 27 | D143: PONT A MOUSSON | E143: 554184 | F143: BRIEY | G143: 4.6 | H143: 134 | I143: 88 | J143: 114 | K143: 72 | L143: 196 | M143: 230 | N143: 214 | O143: 150 | P143: 21 | Q143: 49 | R143: 28 | S143: 153 | T143: 234 | U143: 231 | V143: 229 | W143: 91 | X143: 112 | Y143: 52 | Z143: 131
A144: 110 | B144: MEURTHE ET MOSELLE MEUSE | C144: 31 | D144: VERDUN | E144: 455676 | F144: VAUCOULEURS | G144: 1.8 | H144: 135 | I144: 261 | J144: 261 | K144: 243 | L144: 12 | M144: 28 | N144: 117 | O144: 30 | P144: 18 | Q144: 225 | R144: 185 | S144: 250 | T144: 27 | U144: 29 | V144: 36 | W144: 27 | X144: 37 | Y144: 34 | Z144: 51
A145: 110 | B145: BAS-RHIN | C145: 5006 | D145: STRASBOURG | E145: 4043 | F145: STRASBOURG HALLES | G145: 8.4 | H145: 136 | I145: 158 | J145: 155 | K145: 165 | L145: 144 | M145: 98 | N145: 18 | O145: 48 | P145: 259 | Q145: 78 | R145: 86 | S145: 83 | T145: 136 | U145: 138 | V145: 132 | W145: 114 | X145: 54 | Y145: 244 | Z145: 68
A146: 110 | B146: MEURTHE ET MOSELLE MEUSE | C146: 26 | D146: NANCY | E146: 454171 | F146: BLAMONT | G146: 1.5 | H146: 137 | I146: 238 | J146: 256 | K146: 96 | L146: 15 | M146: 35 | N146: 22 | O146: 131 | P146: 33 | Q146: 252 | R146: 234 | S146: 249 | T146: 29 | U146: 33 | V146: 27 | W146: 128 | X146: 145 | Y146: 137 | Z146: 81
A147: 110 | B147: BAS-RHIN | C147: 5060 | D147: HAGUENAU | E147: 4057 | F147: BISCHWILLER | G147: 6.6 | H147: 138 | I147: 150 | J147: 106 | K147: 193 | L147: 61 | M147: 51 | N147: 180 | O147: 234 | P147: 70 | Q147: 193 | R147: 204 | S147: 139 | T147: 91 | U147: 82 | V147: 126 | W147: 189 | X147: 184 | Y147: 78 | Z147: 242
A148: 110 | B148: BAS-RHIN | C148: 5060 | D148: HAGUENAU | E148: 4030 | F148: BRUMATH | G148: 5.3 | H148: 139 | I148: 109 | J148: 56 | K148: 188 | L148: 194 | M148: 95 | N148: 207 | O148: 148 | P148: 243 | Q148: 43 | R148: 69 | S148: 31 | T148: 225 | U148: 216 | V148: 232 | W148: 94 | X148: 113 | Y148: 70 | Z148: 91
A149: 110 | B149: BAS-RHIN | C149: 5060 | D149: HAGUENAU | E149: 4087 | F149: SAVERNE | G149: 8.0 | H149: 140 | I149: 149 | J149: 63 | K149: 224 | L149: 117 | M149: 49 | N149: 108 | O149: 119 | P149: 258 | Q149: 126 | R149: 93 | S149: 162 | T149: 150 | U149: 153 | V149: 143 | W149: 101 | X149: 84 | Y149: 105 | Z149: 127
A150: 110 | B150: MOSELLE | C150: 42 | D150: MOSELLE EST | E150: 557210 | F150: CHATEAU SALINS | G150: 2.5 | H150: 141 | I150: 235 | J150: 256 | K150: 76 | L150: 14 | M150: 10 | N150: 132 | O150: 212 | P150: 38 | Q150: 212 | R150: 238 | S150: 80 | T150: 111 | U150: 95 | V150: 165 | W150: 66 | X150: 140 | Y150: 24 | Z150: 82
A151: 110 | B151: MOSELLE | C151: 44 | D151: MOSELLE NORD | E151: 557622 | F151: SIERCK LES BAINS | G151: 1.3 | H151: 142 | I151: 154 | J151: 177 | K151: 117 | L151: 98 | M151: 210 | N151: 15 | O151: 77 | P151: 25 | Q151: 50 | R151: 24 | S151: 163 | T151: 247 | U151: 255 | V151: 128 | W151: 62 | X151: 58 | Y151: 202 | Z151: 21
A152: 110 | B152: VOSGES | C152: 57 | D152: EPINAL | E152: 488281 | F152: ELOYES | G152: 4.7 | H152: 143 | I152: 34 | J152: 10 | K152: 122 | L152: 190 | M152: 175 | N152: 238 | O152: 205 | P152: 79 | Q152: 142 | R152: 91 | S152: 223 | T152: 196 | U152: 203 | V152: 178 | W152: 179 | X152: 170 | Y152: 127 | Z152: 199
A153: 110 | B153: MOSELLE | C153: 45 | D153: METZ | E153: 557105 | F153: ARS SUR MOSELLE | G153: 3.9 | H153: 144 | I153: 110 | J153: 93 | K153: 151 | L153: 210 | M153: 136 | N153: 167 | O153: 98 | P153: 238 | Q153: 175 | R153: 165 | S153: 169 | T153: 183 | U153: 168 | V153: 207 | W153: 29 | X153: 15 | Y153: 113 | Z153: 59
A154: 110 | B154: MEURTHE ET MOSELLE MEUSE | C154: 31 | D154: VERDUN | E154: 455678 | F154: VERDUN CENTRALE | G154: 10.7 | H154: 145 | I154: 97 | J154: 144 | K154: 65 | L154: 84 | M154: 79 | N154: 88 | O154: 33 | P154: 181 | Q154: 228 | R154: 220 | S154: 172 | T154: 217 | U154: 234 | V154: 149 | W154: 56 | X154: 36 | Y154: 172 | Z154: 48
A155: 110 | B155: BAS-RHIN | C155: 5101 | D155: SELESTAT | E155: 4109 | F155: MARCKOLSHEIM | G155: 2.9 | H155: 146 | I155: 75 | J155: 67 | K155: 104 | L155: 170 | M155: 96 | N155: 185 | O155: 180 | P155: 217 | Q155: 147 | R155: 142 | S155: 141 | T155: 161 | U155: 165 | V155: 138 | W155: 151 | X155: 181 | Y155: 87 | Z155: 146
A156: 110 | B156: BAS-RHIN | C156: 5060 | D156: HAGUENAU | E156: 4071 | F156: WISSEMBOURG | G156: 8.3 | H156: 147 | I156: 86 | J156: 171 | K156: 13 | L156: 140 | M156: 151 | N156: 157 | O156: 200 | P156: 61 | Q156: 59 | R156: 53 | S156: 104 | T156: 180 | U156: 179 | V156: 164 | W156: 228 | X156: 228 | Y156: 187 | Z156: 213
A157: 110 | B157: MOSELLE | C157: 44 | D157: MOSELLE NORD | E157: 457632 | F157: THIONVILLE CENTRALE | G157: 11.8 | H157: 148 | I157: 157 | J157: 98 | K157: 206 | L157: 86 | M157: 112 | N157: 121 | O157: 201 | P157: 28 | Q157: 135 | R157: 174 | S157: 59 | T157: 115 | U157: 115 | V157: 118 | W157: 180 | X157: 186 | Y157: 79 | Z157: 230
A158: 110 | B158: MEURTHE ET MOSELLE MEUSE | C158: 27 | D158: PONT A MOUSSON | E158: 554496 | F158: NANCY TROIS MAISONS | G158: 2.5 | H158: 149 | I158: 244 | J158: 238 | K158: 229 | L158: 51 | M158: 55 | N158: 208 | O158: 214 | P158: 17 | Q158: 63 | R158: 80 | S158: 65 | T158: 74 | U158: 112 | V158: 28 | W158: 115 | X158: 135 | Y158: 21 | Z158: 250
A159: 110 | B159: MARNE-ARDENNES | C159: 2 | D159: CHARLEVILLE MEZIERES | E159: 408806 | F159: SEDAN | G159: 8.8 | H159: 150 | I159: 51 | J159: 123 | K159: 9 | L159: 212 | M159: 224 | N159: 177 | O159: 70 | P159: 119 | Q159: 125 | R159: 71 | S159: 220 | T159: 222 | U159: 193 | V159: 246 | W159: 112 | X159: 75 | Y159: 205 | Z159: 76
A160: 110 | B160: MOSELLE | C160: 45 | D160: METZ | E160: 557178 | F160: BOULAY | G160: 4.1 | H160: 151 | I160: 32 | J160: 14 | K160: 102 | L160: 162 | M160: 177 | N160: 170 | O160: 144 | P160: 95 | Q160: 134 | R160: 124 | S160: 128 | T160: 189 | U160: 210 | V160: 137 | W160: 232 | X160: 248 | Y160: 139 | Z160: 233
A161: 110 | B161: MOSELLE | C161: 45 | D161: METZ | E161: 557439 | F161: METZ POMPIDOU | G161: 3.9 | H161: 152 | I161: 139 | J161: 114 | K161: 164 | L161: 200 | M161: 141 | N161: 216 | O161: 159 | P161: 196 | Q161: 136 | R161: 198 | S161: 47 | T161: 97 | U161: 126 | V161: 47 | W161: 135 | X161: 80 | Y161: 194 | Z161: 139
A162: 110 | B162: MARNE-ARDENNES | C162: 11 | D162: REIMS | E162: 451301 | F162: REIMS HOTEL DE VILLE | G162: 7.6 | H162: 153 | I162: 145 | J162: 160 | K162: 124 | L162: 56 | M162: 47 | N162: 67 | O162: 42 | P162: 214 | Q162: 261 | R162: 260 | S162: 243 | T162: 78 | U162: 77 | V162: 89 | W162: 97 | X162: 60 | Y162: 164 | Z162: 104
A163: 110 | B163: MOSELLE | C163: 42 | D163: MOSELLE EST | E163: 557503 | F163: NEUNKIRCH | G163: 3.8 | H163: 154 | I163: 49 | J163: 86 | K163: 21 | L163: 209 | M163: 189 | N163: 196 | O163: 250 | P163: 114 | Q163: 99 | R163: 41 | S163: 247 | T163: 190 | U163: 171 | V163: 222 | W163: 202 | X163: 226 | Y163: 75 | Z163: 237
A164: 110 | B164: HAUT-RHIN | C164: 5130 | D164: COLMAR | E164: 4143 | F164: MUNSTER | G164: 5.2 | H164: 155 | I164: 127 | J164: 106 | K164: 161 | L164: 59 | M164: 56 | N164: 127 | O164: 152 | P164: 78 | Q164: 215 | R164: 199 | S164: 208 | T164: 126 | U164: 107 | V164: 193 | W164: 199 | X164: 252 | Y164: 59 | Z164: 211
A165: 110 | B165: HAUT-RHIN | C165: 5130 | D165: COLMAR | E165: 4157 | F165: NEUF BRISACH | G165: 3.7 | H165: 156 | I165: 66 | J165: 22 | K165: 160 | L165: 234 | M165: 235 | N165: 155 | O165: 237 | P165: 140 | Q165: 192 | R165: 191 | S165: 166 | T165: 82 | U165: 63 | V165: 188 | W165: 178 | X165: 206 | Y165: 81 | Z165: 202
A166: 110 | B166: MEURTHE ET MOSELLE MEUSE | C166: 31 | D166: VERDUN | E166: 455566 | F166: REVIGNY SUR ORNAIN | G166: 3.3 | H166: 157 | I166: 55 | J166: 86 | K166: 40 | L166: 79 | M166: 148 | N166: 150 | O166: 177 | P166: 2 | Q166: 243 | R166: 227 | S166: 227 | T166: 181 | U166: 178 | V166: 170 | W166: 182 | X166: 210 | Y166: 115 | Z166: 172
A167: 110 | B167: BAS-RHIN | C167: 5060 | D167: HAGUENAU | E167: 4085 | F167: INGWILLER | G167: 3.4 | H167: 158 | I167: 156 | J167: 136 | K167: 181 | L167: 44 | M167: 12 | N167: 123 | O167: 261 | P167: 209 | Q167: 236 | R167: 250 | S167: 118 | T167: 169 | U167: 198 | V167: 84 | W167: 102 | X167: 215 | Y167: 5 | Z167: 239
A168: 110 | B168: BAS-RHIN | C168: 5006 | D168: STRASBOURG | E168: 4020 | F168: STRASBOURG ROBERTSAU | G168: 6.0 | H168: 159 | I168: 198 | J168: 211 | K168: 168 | L168: 108 | M168: 62 | N168: 179 | O168: 97 | P168: 211 | Q168: 73 | R168: 94 | S168: 61 | T168: 163 | U168: 133 | V168: 237 | W168: 87 | X168: 68 | Y168: 106 | Z168: 111
A169: 110 | B169: MARNE-ARDENNES | C169: 11 | D169: REIMS | E169: 551369 | F169: DAMERY | G169: 2.5 | H169: 160 | I169: 161 | J169: 106 | K169: 208 | L169: 213 | M169: 211 | N169: 41 | O169: 19 | P169: 246 | Q169: 218 | R169: 202 | S169: 204 | T169: 77 | U169: 111 | V169: 32 | W169: 64 | X169: 59 | Y169: 91 | Z169: 58
A170: 110 | B170: AUBE HAUTE MARNE | C170: 14 | D170: TROYES | E170: 510530 | F170: ARCIS SUR AUBE | G170: 3.9 | H170: 161 | I170: 69 | J170: 5 | K170: 221 | L170: 71 | M170: 73 | N170: 237 | O170: 130 | P170: 36 | Q170: 199 | R170: 218 | S170: 102 | T170: 184 | U170: 180 | V170: 185 | W170: 226 | X170: 241 | Y170: 197 | Z170: 176
A171: 110 | B171: MEURTHE ET MOSELLE MEUSE | C171: 27 | D171: PONT A MOUSSON | E171: 454355 | F171: JARNY | G171: 4.5 | H171: 162 | I171: 192 | J171: 219 | K171: 142 | L171: 66 | M171: 42 | N171: 173 | O171: 91 | P171: 202 | Q171: 230 | R171: 236 | S171: 147 | T171: 80 | U171: 103 | V171: 46 | W171: 119 | X171: 51 | Y171: 225 | Z171: 133
A172: 110 | B172: MEURTHE ET MOSELLE MEUSE | C172: 27 | D172: PONT A MOUSSON | E172: 454696 | F172: VILLERS GENERAL LECLERC | G172: 6.2 | H172: 163 | I172: 59 | J172: 48 | K172: 100 | L172: 181 | M172: 166 | N172: 229 | O172: 110 | P172: 122 | Q172: 143 | R172: 128 | S172: 161 | T172: 170 | U172: 163 | V172: 175 | W172: 216 | X172: 179 | Y172: 208 | Z172: 208
A173: 110 | B173: AUBE HAUTE MARNE | C173: 21 | D173: CHAUMONT | E173: 410566 | F173: CHAUMONT HOTEL DE VILLE | G173: 7.6 | H173: 164 | I173: 140 | J173: 171 | K173: 90 | L173: 134 | M173: 145 | N173: 79 | O173: 93 | P173: 152 | Q173: 202 | R173: 209 | S173: 133 | T173: 168 | U173: 167 | V173: 152 | W173: 69 | X173: 103 | Y173: 36 | Z173: 122
A174: 110 | B174: MOSELLE | C174: 44 | D174: MOSELLE NORD | E174: 457158 | F174: YUTZ | G174: 4.6 | H174: 165 | I174: 136 | J174: 93 | K174: 184 | L174: 106 | M174: 71 | N174: 249 | O174: 231 | P174: 93 | Q174: 210 | R174: 167 | S174: 238 | T174: 99 | U174: 85 | V174: 157 | W174: 194 | X174: 137 | Y174: 170 | Z174: 222
A175: 110 | B175: MEURTHE ET MOSELLE MEUSE | C175: 26 | D175: NANCY | E175: 554166 | F175: BLAINVILLE | G175: 3.2 | H175: 166 | I175: 234 | J175: 186 | K175: 246 | L175: 91 | M175: 116 | N175: 51 | O175: 41 | P175: 155 | Q175: 95 | R175: 99 | S175: 88 | T175: 155 | U175: 197 | V175: 55 | W175: 42 | X175: 72 | Y175: 68 | Z175: 26
A176: 110 | B176: MARNE-ARDENNES | C176: 2 | D176: CHARLEVILLE MEZIERES | E176: 508817 | F176: CHARLEVILLE MOHON | G176: 3.4 | H176: 167 | I176: 62 | J176: 93 | K176: 47 | L176: 171 | M176: 254 | N176: 103 | O176: 55 | P176: 6 | Q176: 223 | R176: 188 | S176: 244 | T176: 212 | U176: 228 | V176: 142 | W176: 98 | X176: 89 | Y176: 150 | Z176: 62
A177: 110 | B177: MARNE-ARDENNES | C177: 2 | D177: CHARLEVILLE MEZIERES | E177: 408840 | F177: RETHEL | G177: 4.9 | H177: 168 | I177: 28 | J177: 38 | K177: 37 | L177: 173 | M177: 200 | N177: 190 | O177: 158 | P177: 35 | Q177: 161 | R177: 156 | S177: 165 | T177: 224 | U177: 207 | V177: 241 | W177: 222 | X177: 122 | Y177: 256 | Z177: 214
A178: 110 | B178: MOSELLE | C178: 42 | D178: MOSELLE EST | E178: 457258 | F178: DIEUZE | G178: 3.0 | H178: 169 | I178: 166 | J178: 213 | K178: 94 | L178: 82 | M178: 126 | N178: 182 | O178: 153 | P178: 5 | Q178: 173 | R178: 172 | S178: 156 | T178: 101 | U178: 92 | V178: 136 | W178: 211 | X178: 229 | Y178: 138 | Z178: 197
A179: 110 | B179: MOSELLE | C179: 45 | D179: METZ | E179: 557559 | F179: REMILLY | G179: 4.1 | H179: 170 | I179: 168 | J179: 186 | K179: 158 | L179: 175 | M179: 183 | N179: 227 | O179: 199 | P179: 44 | Q179: 88 | R179: 57 | S179: 174 | T179: 119 | U179: 125 | V179: 114 | W179: 176 | X179: 139 | Y179: 166 | Z179: 190
A180: 110 | B180: MEURTHE ET MOSELLE MEUSE | C180: 27 | D180: PONT A MOUSSON | E180: 554196 | F180: CHAMPIGNEULLES | G180: 3.5 | H180: 171 | I180: 196 | J180: 219 | K180: 149 | L180: 39 | M180: 24 | N180: 195 | O180: 127 | P180: 132 | Q180: 190 | R180: 214 | S180: 84 | T180: 127 | U180: 137 | V180: 101 | W180: 210 | X180: 160 | Y180: 221 | Z180: 196
A181: 110 | B181: VOSGES | C181: 55 | D181: SAINT DIE | E181: 588551 | F181: RAMBERVILLERS | G181: 3.5 | H181: 172 | I181: 40 | J181: 78 | K181: 14 | L181: 246 | M181: 205 | N181: 209 | O181: 74 | P181: 254 | Q181: 172 | R181: 109 | S181: 252 | T181: 194 | U181: 184 | V181: 199 | W181: 130 | X181: 146 | Y181: 66 | Z181: 175
A182: 110 | B182: MEURTHE ET MOSELLE MEUSE | C182: 31 | D182: VERDUN | E182: 554700 | F182: VILLERUPT | G182: 2.9 | H182: 173 | I182: 147 | J182: 144 | K182: 159 | L182: 112 | M182: 101 | N182: 110 | O182: 226 | P182: 124 | Q182: 121 | R182: 135 | S182: 78 | T182: 227 | U182: 230 | V182: 214 | W182: 122 | X182: 174 | Y182: 35 | Z182: 212
A183: 110 | B183: HAUT-RHIN | C183: 5130 | D183: COLMAR | E183: 4132 | F183: COLMAR MARAICHERS | G183: 4.5 | H183: 174 | I183: 144 | J183: 136 | K183: 154 | L183: 32 | M183: 27 | N183: 104 | O183: 217 | P183: 88 | Q183: 221 | R183: 223 | S183: 142 | T183: 137 | U183: 96 | V183: 235 | W183: 255 | X183: 203 | Y183: 255 | Z183: 260
A184: 110 | B184: MEURTHE ET MOSELLE MEUSE | C184: 26 | D184: NANCY | E184: 454671 | F184: VANDOEUVRE LES NANCY | G184: 4.6 | H184: 175 | I184: 194 | J184: 200 | K184: 180 | L184: 103 | M184: 117 | N184: 36 | O184: 31 | P184: 203 | Q184: 232 | R184: 206 | S184: 242 | T184: 166 | U184: 175 | V184: 116 | W184: 35 | X184: 23 | Y184: 158 | Z184: 28
A185: 110 | B185: MEURTHE ET MOSELLE MEUSE | C185: 26 | D185: NANCY | E185: 554296 | F185: ESSEY LES NANCY | G185: 3.9 | H185: 176 | I185: 169 | J185: 200 | K185: 138 | L185: 92 | M185: 65 | N185: 120 | O185: 95 | P185: 192 | Q185: 148 | R185: 97 | S185: 224 | T185: 195 | U185: 194 | V185: 187 | W185: 106 | X185: 73 | Y185: 171 | Z185: 97
A186: 110 | B186: VOSGES | C186: 55 | D186: SAINT DIE | E186: 588587 | F186: SAINT DIE CATHEDRALE | G186: 3.9 | H186: 177 | I186: 57 | J186: 106 | K186: 23 | L186: 219 | M186: 219 | N186: 213 | O186: 241 | P186: 83 | Q186: 116 | R186: 76 | S186: 198 | T186: 216 | U186: 220 | V186: 189 | W186: 206 | X186: 191 | Y186: 177 | Z186: 195
A187: 110 | B187: MOSELLE | C187: 42 | D187: MOSELLE EST | E187: 457435 | F187: MERLEBACH | G187: 3.8 | H187: 178 | I187: 177 | J187: 123 | K187: 222 | L187: 148 | M187: 113 | N187: 66 | O187: 137 | P187: 200 | Q187: 201 | R187: 231 | S187: 74 | T187: 75 | U187: 87 | V187: 58 | W187: 166 | X187: 195 | Y187: 99 | Z187: 167
A188: 110 | B188: BAS-RHIN | C188: 5006 | D188: STRASBOURG | E188: 4028 | F188: BISCHHEIM | G188: 3.6 | H188: 179 | I188: 186 | J188: 160 | K188: 207 | L188: 145 | M188: 134 | N188: 134 | O188: 209 | P188: 112 | Q188: 183 | R188: 171 | S188: 179 | T188: 57 | U188: 44 | V188: 92 | W188: 219 | X188: 205 | Y188: 188 | Z188: 224
A189: 110 | B189: MOSELLE | C189: 44 | D189: MOSELLE NORD | E189: 557660 | F189: UCKANGE | G189: 1.7 | H189: 180 | I189: 259 | J189: 241 | K189: 260 | L189: 174 | M189: 76 | N189: 154 | O189: 247 | P189: 237 | Q189: 108 | R189: 137 | S189: 58 | T189: 21 | U189: 41 | V189: 3 | W189: 61 | X189: 169 | Y189: 7 | Z189: 109
A190: 110 | B190: MOSELLE | C190: 45 | D190: METZ | E190: 557434 | F190: MARLY | G190: 3.8 | H190: 181 | I190: 91 | J190: 114 | K190: 74 | L190: 130 | M190: 124 | N190: 191 | O190: 167 | P190: 81 | Q190: 130 | R190: 143 | S190: 85 | T190: 245 | U190: 245 | V190: 233 | W190: 155 | X190: 88 | Y190: 143 | Z190: 236
A191: 110 | B191: MOSELLE | C191: 42 | D191: MOSELLE EST | E191: 557668 | F191: VALMONT | G191: 4.6 | H191: 182 | I191: 22 | J191: 37 | K191: 29 | L191: 233 | M191: 207 | N191: 251 | O191: 244 | P191: 127 | Q191: 167 | R191: 182 | S191: 121 | T191: 179 | U191: 161 | V191: 210 | W191: 245 | X191: 220 | Y191: 218 | Z191: 244
A192: 160 | B192: HAUT-RHIN | C192: 5130 | D192: COLMAR | E192: 4135 | F192: COLMAR SAINTE MARIE | G192: 6.8 | H192: 183 | I192: 208 | J192: 197 | K192: 210 | L192: 107 | M192: 94 | N192: 148 | O192: 187 | P192: 128 | Q192: 83 | R192: 66 | S192: 155 | T192: 135 | U192: 145 | V192: 103 | W192: 173 | X192: 87 | Y192: 251 | Z192: 123
A193: 160 | B193: VOSGES | C193: 55 | D193: SAINT DIE | E193: 588461 | F193: MOYENMOUTIER | G193: 2.5 | H193: 184 | I193: 229 | J193: 213 | K193: 228 | L193: 58 | M193: 50 | N193: 83 | O193: 238 | P193: 106 | Q193: 84 | R193: 30 | S193: 254 | T193: 186 | U193: 172 | V193: 213 | W193: 108 | X193: 208 | Y193: 20 | Z193: 160
A194: 160 | B194: BAS-RHIN | C194: 5101 | D194: SELESTAT | E194: 4116 | F194: MOLSHEIM | G194: 5.1 | H194: 185 | I194: 193 | J194: 177 | K194: 201 | L194: 192 | M194: 119 | N194: 225 | O194: 204 | P194: 186 | Q194: 21 | R194: 12 | S194: 100 | T194: 199 | U194: 191 | V194: 198 | W194: 177 | X194: 177 | Y194: 185 | Z194: 135
A195: 160 | B195: MARNE-ARDENNES | C195: 11 | D195: REIMS | E195: 451308 | F195: REIMS SAINT THOMAS | G195: 7.5 | H195: 186 | I195: 188 | J195: 123 | K195: 233 | L195: 214 | M195: 192 | N195: 91 | O195: 78 | P195: 222 | Q195: 195 | R195: 177 | S195: 193 | T195: 173 | U195: 185 | V195: 108 | W195: 28 | X195: 14 | Y195: 119 | Z195: 47
A196: 160 | B196: MOSELLE | C196: 42 | D196: MOSELLE EST | E196: 557523 | F196: PHALSBOURG | G196: 2.2 | H196: 187 | I196: 178 | J196: 213 | K196: 114 | L196: 245 | M196: 202 | N196: 125 | O196: 84 | P196: 260 | Q196: 124 | R196: 125 | S196: 92 | T196: 148 | U196: 127 | V196: 202 | W196: 49 | X196: 163 | Y196: 8 | Z196: 69
A197: 160 | B197: MEURTHE ET MOSELLE MEUSE | C197: 26 | D197: NANCY | E197: 554611 | F197: SAINT NICOLAS DE PORT | G197: 2.8 | H197: 188 | I197: 43 | J197: 10 | K197: 147 | L197: 156 | M197: 194 | N197: 78 | O197: 61 | P197: 111 | Q197: 67 | R197: 67 | S197: 116 | T197: 261 | U197: 263 | V197: 217 | W197: 201 | X197: 147 | Y197: 182 | Z197: 228
A198: 160 | B198: HAUT-RHIN | C198: 5169 | D198: MULHOUSE | E198: 4181 | F198: WITTELSHEIM | G198: 3.3 | H198: 189 | I198: 176 | J198: 197 | K198: 155 | L198: 195 | M198: 193 | N198: 65 | O198: 111 | P198: 187 | Q198: 214 | R198: 212 | S198: 151 | T198: 158 | U198: 199 | V198: 60 | W198: 47 | X198: 124 | Y198: 37 | Z198: 37
A199: 160 | B199: BAS-RHIN | C199: 5006 | D199: STRASBOURG | E199: 4027 | F199: SCHILTIGHEIM CENTRE | G199: 4.1 | H199: 190 | I199: 200 | J199: 200 | K199: 195 | L199: 135 | M199: 146 | N199: 47 | O199: 45 | P199: 204 | Q199: 55 | R199: 68 | S199: 71 | T199: 206 | U199: 205 | V199: 197 | W199: 147 | X199: 64 | Y199: 245 | Z199: 114
A200: 160 | B200: MARNE-ARDENNES | C200: 11 | D200: REIMS | E200: 551306 | F200: REIMS SAINT MARCEAUX | G200: 4.3 | H200: 191 | I200: 213 | J200: 242 | K200: 71 | L200: 123 | M200: 106 | N200: 138 | O200: 20 | P200: 212 | Q200: 260 | R200: 261 | S200: 143 | T200: 49 | U200: 42 | V200: 66 | W200: 84 | X200: 49 | Y200: 130 | Z200: 115
A201: 160 | B201: MOSELLE | C201: 45 | D201: METZ | E201: 557445 | F201: METZ SAINT LIVIER | G201: 3.0 | H201: 192 | I201: 128 | J201: 164 | K201: 87 | L201: 120 | M201: 120 | N201: 233 | O201: 194 | P201: 37 | Q201: 160 | R201: 148 | S201: 177 | T201: 209 | U201: 181 | V201: 230 | W201: 192 | X201: 114 | Y201: 247 | Z201: 119
A202: 160 | B202: AUBE HAUTE MARNE | C202: 14 | D202: TROYES | E202: 510522 | F202: TROYES CHARTREUX | G202: 2.9 | H202: 193 | I202: 126 | J202: 197 | K202: 46 | L202: 151 | M202: 179 | N202: 35 | O202: 106 | P202: 159 | Q202: 154 | R202: 159 | S202: 136 | T202: 178 | U202: 188 | V202: 135 | W202: 212 | X202: 198 | Y202: 228 | Z202: 140
A203: 160 | B203: HAUT-RHIN | C203: 5169 | D203: MULHOUSE | E203: 4170 | F203: MULHOUSE REUNION | G203: 11.4 | H203: 194 | I203: 216 | J203: 177 | K203: 231 | L203: 202 | M203: 225 | N203: 124 | O203: 181 | P203: 68 | Q203: 203 | R203: 251 | S203: 44 | T203: 38 | U203: 36 | V203: 43 | W203: 188 | X203: 120 | Y203: 206 | Z203: 189
A204: 160 | B204: MARNE-ARDENNES | C204: 11 | D204: REIMS | E204: 551341 | F204: REIMS JEAN JAURES | G204: 4.6 | H204: 195 | I204: 199 | J204: 209 | K204: 177 | L204: 100 | M204: 173 | N204: 168 | O204: 72 | P204: 11 | Q204: 180 | R204: 221 | S204: 53 | T204: 153 | U204: 177 | V204: 78 | W204: 141 | X204: 91 | Y204: 227 | Z204: 85
... 70 more rows

Sheet AG_FICHE
A1: Accueil
A2: BAROMETRE GRAND PUBLIC
A4: UNITE: | B4: Agence | E4: ETP perf : | F4: =VLOOKUP(A5,'RECAP AG'!$G$6:$DG$271,3,FALSE) -> 8.09
A5: =VLOOKUP(B5,LISTES!$C$6:$D$271,2,FALSE) -> 4189 | B5: ALTKIRCH
C6: Coefficient du critère | E6: Résultats | I6: Ecart au 1ier | K6: =IF(OR(A5=4017,A5=4022),"Rang estimé","Rang") -> Rang
E7: du 1ier | G7: de l'Agence | I7: Du mois
A9: RANG GRAND PUBLIC | K9: =VLOOKUP($A$5,'RECAP AG'!$G$6:$DG$271,104,FALSE) -> 258
A11: SATISFACTION CLIENTS | C11: 20% | K11: =VLOOKUP($A$5,'RECAP AG'!$G$6:$DG$271,13,FALSE) -> 212
B12: NPS à froid (SAE) | C12: 10% | E12: =+'RECAP AG'!K4 -> 56 | G12: =VLOOKUP($A$5,'RECAP AG'!$G$6:$DG$271,5,FALSE) -> 11.0 | I12: =VLOOKUP($A$5,'RECAP AG'!$G$6:$DG$271,6,FALSE) -> 63% | K12: =VLOOKUP($A$5,'RECAP AG'!$G$6:$DG$271,7,FALSE) -> 152
B13: NPS à chaud (QHD) | C13: 10% | E13: =+'RECAP AG'!M4 -> 10% | G13: =VLOOKUP($A$5,'RECAP AG'!$G$6:$DG$271,8,FALSE) -> 31% | I13: =VLOOKUP($A$5,'RECAP AG'!$G$6:$DG$271,9,FALSE) -> 65% | K13: =VLOOKUP($A$5,'RECAP AG'!$G$6:$DG$271,10,FALSE) -> 241
A15: BANCARISATION | C15: 20% | K15: =VLOOKUP($A$5,'RECAP AG'!$G$6:$DG$271,36,FALSE) -> 264
B16: Ventes Nettes produits pondérés | C16: 10% | E16: ='RECAP AG'!X4 -> 119.1 | G16: =VLOOKUP($A$5,'RECAP AG'!$G$6:$DG$271,19,FALSE) -> 11.4 | I16: =VLOOKUP($A$5,'RECAP AG'!$G$6:$DG$271,20,FALSE) -> 90% | K16: =VLOOKUP($A$5,'RECAP AG'!$G$6:$DG$271,21,FALSE) -> 257
B17: Ventes sur client non détenteur de l’univers | C17: 4% | E17: ='RECAP AG'!AB4 -> 55.8 | G17: =VLOOKUP($A$5,'RECAP AG'!$G$6:$DG$271,23,FALSE) -> 16.1 | I17: =VLOOKUP($A$5,'RECAP AG'!$G$6:$DG$271,24,FALSE) -> 71% | K17: =VLOOKUP($A$5,'RECAP AG'!$G$6:$DG$271,25,FALSE) -> 252
B18: Mobilité Macron | C18: 3% | E18: ='RECAP AG'!AF4 -> 28.8 | G18: =VLOOKUP($A$5,'RECAP AG'!$G$6:$DG$271,27,FALSE) -> 2.2 | I18: =VLOOKUP($A$5,'RECAP AG'!$G$6:$DG$271,28,FALSE) -> 92% | K18: =VLOOKUP($A$5,'RECAP AG'!$G$6:$DG$271,29,FALSE) -> 216
B19: Remises commerciales | C19: 3% | E19: ='RECAP AG'!AJ4 -> -0.4 | G19: =VLOOKUP($A$5,'RECAP AG'!$G$6:$DG$271,31,FALSE) -> -2.4 | I19: =VLOOKUP($A$5,'RECAP AG'!$G$6:$DG$271,32,FALSE) -> 116% | K19: =VLOOKUP($A$5,'RECAP AG'!$G$6:$DG$271,33,FALSE) -> 257
A21: EPARGNE | C21: 20% | K21: =VLOOKUP($A$5,'RECAP AG'!$G$6:$DG$271,51,FALSE) -> 246
B22: Excédent Epargne y/c DAV pondéré | C22: 14% | E22: ='RECAP AG'!AU4 -> 2153.3 | G22: =VLOOKUP($A$5,'RECAP AG'!$G$6:$DG$271,42,FALSE) -> 51.1 | I22: =VLOOKUP($A$5,'RECAP AG'!$G$6:$DG$271,43,FALSE) -> 77% | K22: =VLOOKUP($A$5,'RECAP AG'!$G$6:$DG$271,44,FALSE) -> 215
B23: Ventes sur client non détenteur de l’univers | C23: 6% | E23: ='RECAP AG'!AY4 -> 41.6 | G23: =VLOOKUP($A$5,'RECAP AG'!$G$6:$DG$271,46,FALSE) -> 6.1 | I23: =VLOOKUP($A$5,'RECAP AG'!$G$6:$DG$271,47,FALSE) -> 85% | K23: =VLOOKUP($A$5,'RECAP AG'!$G$6:$DG$271,48,FALSE) -> 259
A25: IARD PREVOYANCE | C25: 20% | K25: =VLOOKUP($A$5,'RECAP AG'!$G$6:$DG$271,85,FALSE) -> 259
B26: Ventes Nettes produits pondérés | C26: 14% | E26: ='RECAP AG'!CC4 -> 431.2 | G26: =VLOOKUP($A$5,'RECAP AG'!$G$6:$DG$271,76,FALSE) -> 4.5 | I26: =VLOOKUP($A$5,'RECAP AG'!$G$6:$DG$271,77,FALSE) -> 99% | K26: =VLOOKUP($A$5,'RECAP AG'!$G$6:$DG$271,78,FALSE) -> 258
B27: Ventes sur client non détenteur de l’univers | C27: 6% | E27: ='RECAP AG'!CG4 -> 51.0 | G27: =VLOOKUP($A$5,'RECAP AG'!$G$6:$DG$271,80,FALSE) -> 16.7 | I27: =VLOOKUP($A$5,'RECAP AG'!$G$6:$DG$271,81,FALSE) -> 67% | K27: =VLOOKUP($A$5,'RECAP AG'!$G$6:$DG$271,82,FALSE) -> 231
A29: CREDITS | C29: 20% | K29: =VLOOKUP($A$5,'RECAP AG'!$G$6:$DG$271,70,FALSE) -> 221
B30: Engagements et ventes accessoires pondérés Immo | C30: 8% | E30: ='RECAP AG'!BJ4 -> 414.8 | G30: =VLOOKUP($A$5,'RECAP AG'!$G$6:$DG$271,57,FALSE) -> 38.6 | I30: =VLOOKUP($A$5,'RECAP AG'!$G$6:$DG$271,58,FALSE) -> 91% | K30: =VLOOKUP($A$5,'RECAP AG'!$G$6:$DG$271,59,FALSE) -> 234
B31: Engagements et ventes accessoires pondérés Conso | C31: 6% | E31: ='RECAP AG'!BN4 -> 82.7 | G31: =VLOOKUP($A$5,'RECAP AG'!$G$6:$DG$271,61,FALSE) -> 38.6 | I31: =VLOOKUP($A$5,'RECAP AG'!$G$6:$DG$271,62,FALSE) -> 53% | K31: =VLOOKUP($A$5,'RECAP AG'!$G$6:$DG$271,63,FALSE) -> 121
B32: Ventes sur client non détenteur de l’univers | C32: 6% | E32: ='RECAP AG'!BR4 -> 30.0 | G32: =VLOOKUP($A$5,'RECAP AG'!$G$6:$DG$271,65,FALSE) -> 6.2 | I32: =VLOOKUP($A$5,'RECAP AG'!$G$6:$DG$271,66,FALSE) -> 79% | K32: =VLOOKUP($A$5,'RECAP AG'!$G$6:$DG$271,67,FALSE) -> 241

Sheet AG_TOTAL
B1: Accueil | H1: BAROMETRE BDD - AGENCES
H2: TOTAL GENERAL
H3: =ACCUEIL!F7 -> 2021-06-20
H7: TOTAL GENERAL | K7: Total Satisfaction Clients | N7: Total Bancarisation | Q7: Total Epargne | T7: Total IARD Prévoyance | W7: Total Crédits
I8: coef | J8: 100% | L8: coef | M8: =AG_SATISFACTION!P8 -> 20% | O8: coef | P8: =AG_BANCA!Z8 -> 20% | R8: coef | S8: =AG_EPARGNE!R8 -> 20% | U8: coef | V8: =AG_IARD!R8 -> 20% | X8: coef | Y8: =AG_CREDIT!V8 -> 20%
B9: Direction | C9: eds | D9: Territoire | E9: eds | F9: Agence | G9: ="ETP perf "&DATEMAJ!$C$28 -> ETP perf 30-avr | H9: Moyenne ecart au 1er | I9: % Ecart au 1er | J9: Rang CEGEE | K9: Moyenne ecart au 1er | L9: % Ecart au 1er | M9: Rang CEGEE | N9: Moyenne ecart au 1er | O9: % Ecart au 1er | P9: Rang CEGEE | Q9: Moyenne ecart au 1er | R9: % Ecart au 1er | S9: Rang CEGEE | T9: Moyenne ecart au 1er | U9: % Ecart au 1er | V9: Rang CEGEE | W9: Moyenne ecart au 1er | X9: % Ecart au 1er | Y9: Rang CEGEE
A10: 50 | B10: MEURTHE ET MOSELLE MEUSE | C10: 26 | D10: NANCY | E10: 454481 | F10: NANCY PLACE DOMBASLE | G10: 11.8 | H10: 19% | I10: 0% | J10: 1 | K10: 44% | L10: 43% | M10: 105 | N10: 18% | O10: 0% | P10: 1 | Q10: 45% | R10: 24% | S10: 9 | T10: 21% | U10: 13% | V10: 4 | W10: 25% | X10: 16% | Y10: 2
A11: 50 | B11: MEURTHE ET MOSELLE MEUSE | C11: 27 | D11: PONT A MOUSSON | E11: 554531 | F11: POMPEY | G11: 2.8 | H11: 22% | I11: 3% | J11: 2 | K11: 38% | L11: 37% | M11: 72 | N11: 19% | O11: 1% | P11: 2 | Q11: 33% | R11: 12% | S11: 2 | T11: 37% | U11: 29% | V11: 18 | W11: 39% | X11: 30% | Y11: 9
A12: 50 | B12: MEURTHE ET MOSELLE MEUSE | C12: 26 | D12: NANCY | E12: 554356 | F12: JARVILLE LA MALGRANGE | G12: 3.8 | H12: 28% | I12: 9% | J12: 3 | K12: 32% | L12: 31% | M12: 45 | N12: 34% | O12: 15% | P12: 5 | Q12: 62% | R12: 41% | S12: 81 | T12: 35% | U12: 27% | V12: 16 | W12: 34% | X12: 25% | Y12: 5
A13: 50 | B13: MARNE-ARDENNES | C13: 2 | D13: CHARLEVILLE MEZIERES | E13: 508820 | F13: VOUZIERS | G13: 2.9 | H13: 29% | I13: 10% | J13: 4 | K13: 33% | L13: 31% | M13: 48 | N13: 53% | O13: 35% | P13: 47 | Q13: 63% | R13: 41% | S13: 90 | T13: 8% | U13: 0% | V13: 1 | W13: 48% | X13: 39% | Y13: 19
A14: 50 | B14: MOSELLE | C14: 42 | D14: MOSELLE EST | E14: 457163 | F14: BEHREN LES FORBACH | G14: 2.5 | H14: 30% | I14: 11% | J14: 5 | K14: 14% | L14: 13% | M14: 4 | N14: 46% | O14: 27% | P14: 20 | Q14: 61% | R14: 40% | S14: 74 | T14: 50% | U14: 41% | V14: 47 | W14: 38% | X14: 29% | Y14: 6
A15: 50 | B15: MOSELLE | C15: 44 | D15: MOSELLE NORD | E15: 557508 | F15: NILVANGE | G15: 2.5 | H15: 31% | I15: 12% | J15: 6 | K15: 39% | L15: 37% | M15: 76 | N15: 49% | O15: 30% | P15: 31 | Q15: 52% | R15: 31% | S15: 27 | T15: 21% | U15: 12% | V15: 3 | W15: 54% | X15: 45% | Y15: 34
A16: 50 | B16: MEURTHE ET MOSELLE MEUSE | C16: 27 | D16: PONT A MOUSSON | E16: 454651 | F16: TOUL | G16: 9.9 | H16: 32% | I16: 13% | J16: 7 | K16: 70% | L16: 69% | M16: 231 | N16: 35% | O16: 17% | P16: 6 | Q16: 62% | R16: 41% | S16: 82 | T16: 44% | U16: 36% | V16: 26 | W16: 9% | X16: 0% | Y16: 1
A17: 50 | B17: MARNE-ARDENNES | C17: 2 | D17: CHARLEVILLE MEZIERES | E17: 408822 | F17: CHARLEVILLE MEZIERES | G17: 3.8 | H17: 33% | I17: 14% | J17: 8 | K17: 45% | L17: 44% | M17: 111 | N17: 53% | O17: 35% | P17: 48 | Q17: 39% | R17: 18% | S17: 3 | T17: 34% | U17: 26% | V17: 13 | W17: 51% | X17: 42% | Y17: 24
A18: 50 | B18: MOSELLE | C18: 44 | D18: MOSELLE NORD | E18: 557113 | F18: AUDUN LE TICHE | G18: 1.9 | H18: 33% | I18: 14% | J18: 9 | K18: 40% | L18: 38% | M18: 79 | N18: 41% | O18: 23% | P18: 10 | Q18: 64% | R18: 42% | S18: 102 | T18: 46% | U18: 38% | V18: 34 | W18: 31% | X18: 22% | Y18: 4
A19: 50 | B19: BAS-RHIN | C19: 5101 | D19: SELESTAT | E19: 4126 | F19: MUTZIG | G19: 2.0 | H19: 33% | I19: 14% | J19: 10 | K19: 45% | L19: 44% | M19: 112 | N19: 47% | O19: 29% | P19: 26 | Q19: 39% | R19: 18% | S19: 4 | T19: 61% | U19: 53% | V19: 105 | W19: 31% | X19: 21% | Y19: 3
A20: 50 | B20: MARNE-ARDENNES | C20: 6 | D20: CHALONS EN CHAMPAGNE | E20: 451115 | F20: MOURMELON LE GRAND | G20: 2.9 | H20: 33% | I20: 14% | J20: 11 | K20: 33% | L20: 31% | M20: 47 | N20: 46% | O20: 28% | P20: 22 | Q20: 49% | R20: 28% | S20: 15 | T20: 48% | U20: 40% | V20: 41 | W20: 48% | X20: 39% | Y20: 18
A21: 50 | B21: MARNE-ARDENNES | C21: 11 | D21: REIMS | E21: 551349 | F21: REIMS SAINT REMI | G21: 3.0 | H21: 33% | I21: 14% | J21: 12 | K21: 41% | L21: 39% | M21: 87 | N21: 48% | O21: 30% | P21: 30 | Q21: 51% | R21: 30% | S21: 22 | T21: 34% | U21: 26% | V21: 14 | W21: 50% | X21: 41% | Y21: 23
A22: 50 | B22: BAS-RHIN | C22: 5006 | D22: STRASBOURG | E22: 4010 | F22: STRASBOURG MEINAU | G22: 3.1 | H22: 33% | I22: 14% | J22: 13 | K22: 47% | L22: 45% | M22: 120 | N22: 38% | O22: 20% | P22: 8 | Q22: 54% | R22: 33% | S22: 36 | T22: 25% | U22: 17% | V22: 7 | W22: 62% | X22: 53% | Y22: 80
A23: 50 | B23: VOSGES | C23: 57 | D23: EPINAL | E23: 488288 | F23: EPINAL LEOPOLD BOURG | G23: 1.9 | H23: 34% | I23: 15% | J23: 14 | K23: 37% | L23: 36% | M23: 70 | N23: 46% | O23: 28% | P23: 21 | Q23: 47% | R23: 26% | S23: 12 | T23: 55% | U23: 47% | V23: 73 | W23: 39% | X23: 30% | Y23: 8
A24: 50 | B24: MEURTHE ET MOSELLE MEUSE | C24: 31 | D24: VERDUN | E24: 554413 | F24: LONGWY BAS | G24: 3.4 | H24: 34% | I24: 15% | J24: 15 | K24: 29% | L24: 28% | M24: 27 | N24: 45% | O24: 27% | P24: 18 | Q24: 43% | R24: 22% | S24: 7 | T24: 65% | U24: 57% | V24: 138 | W24: 48% | X24: 39% | Y24: 17
A25: 50 | B25: BAS-RHIN | C25: 5101 | D25: SELESTAT | E25: 4113 | F25: BARR | G25: 3.0 | H25: 35% | I25: 16% | J25: 16 | K25: 36% | L25: 35% | M25: 60 | N25: 45% | O25: 27% | P25: 19 | Q25: 39% | R25: 18% | S25: 5 | T25: 42% | U25: 34% | V25: 25 | W25: 71% | X25: 62% | Y25: 172
A26: 50 | B26: MARNE-ARDENNES | C26: 11 | D26: REIMS | E26: 451336 | F26: TINQUEUX | G26: 5.6 | H26: 35% | I26: 16% | J26: 17 | K26: 45% | L26: 44% | M26: 113 | N26: 61% | O26: 43% | P26: 99 | Q26: 21% | R26: 0% | S26: 1 | T26: 53% | U26: 44% | V26: 59 | W26: 54% | X26: 45% | Y26: 33
A27: 50 | B27: MOSELLE | C27: 42 | D27: MOSELLE EST | E27: 557250 | F27: CREUTZWALD | G27: 2.6 | H27: 37% | I27: 18% | J27: 18 | K27: 40% | L27: 39% | M27: 81 | N27: 64% | O27: 45% | P27: 132 | Q27: 44% | R27: 23% | S27: 8 | T27: 36% | U27: 28% | V27: 17 | W27: 57% | X27: 48% | Y27: 40
A28: 50 | B28: BAS-RHIN | C28: 5101 | D28: SELESTAT | E28: 4121 | F28: SCHIRMECK | G28: 3.2 | H28: 37% | I28: 18% | J28: 19 | K28: 19% | L28: 18% | M28: 5 | N28: 57% | O28: 38% | P28: 65 | Q28: 53% | R28: 32% | S28: 30 | T28: 52% | U28: 43% | V28: 56 | W28: 62% | X28: 53% | Y28: 75
A29: 50 | B29: MOSELLE | C29: 42 | D29: MOSELLE EST | E29: 457165 | F29: BITCHE | G29: 1.9 | H29: 37% | I29: 18% | J29: 20 | K29: 65% | L29: 63% | M29: 217 | N29: 24% | O29: 6% | P29: 3 | Q29: 69% | R29: 48% | S29: 158 | T29: 19% | U29: 11% | V29: 2 | W29: 65% | X29: 56% | Y29: 105
A30: 50 | B30: MEURTHE ET MOSELLE MEUSE | C30: 31 | D30: VERDUN | E30: 454414 | F30: LONGWY HAUT | G30: 3.6 | H30: 37% | I30: 18% | J30: 21 | K30: 37% | L30: 35% | M30: 65 | N30: 57% | O30: 39% | P30: 72 | Q30: 41% | R30: 20% | S30: 6 | T30: 49% | U30: 41% | V30: 44 | W30: 61% | X30: 52% | Y30: 67
A31: 262 | B31: BAS-RHIN | C31: 5060 | D31: HAGUENAU | E31: 4092 | F31: HOCHFELDEN | G31: 2.2 | H31: 38% | I31: 19% | J31: 22 | K31: 47% | L31: 46% | M31: 124 | N31: 36% | O31: 18% | P31: 7 | Q31: 71% | R31: 50% | S31: 184 | T31: 47% | U31: 39% | V31: 37 | W31: 44% | X31: 35% | Y31: 11
A32: 262 | B32: MARNE-ARDENNES | C32: 2 | D32: CHARLEVILLE MEZIERES | E32: 508839 | F32: GIVET | G32: 3.6 | H32: 38% | I32: 19% | J32: 23 | K32: 26% | L32: 25% | M32: 17 | N32: 65% | O32: 47% | P32: 150 | Q32: 66% | R32: 44% | S32: 128 | T32: 23% | U32: 15% | V32: 5 | W32: 68% | X32: 59% | Y32: 139
A33: 262 | B33: MOSELLE | C33: 45 | D33: METZ | E33: 557444 | F33: SAINT JULIEN LES METZ | G33: 4.9 | H33: 38% | I33: 19% | J33: 24 | K33: 47% | L33: 45% | M33: 121 | N33: 64% | O33: 46% | P33: 138 | Q33: 49% | R33: 28% | S33: 16 | T33: 29% | U33: 21% | V33: 11 | W33: 59% | X33: 50% | Y33: 58
A34: 262 | B34: MARNE-ARDENNES | C34: 2 | D34: CHARLEVILLE MEZIERES | E34: 508833 | F34: VILLERS SEMEUSE CORA | G34: 3.5 | H34: 39% | I34: 20% | J34: 25 | K34: 44% | L34: 43% | M34: 108 | N34: 50% | O34: 32% | P34: 37 | Q34: 57% | R34: 36% | S34: 51 | T34: 51% | U34: 43% | V34: 54 | W34: 50% | X34: 41% | Y34: 21
A35: 262 | B35: MEURTHE ET MOSELLE MEUSE | C35: 26 | D35: NANCY | E35: 554476 | F35: NANCY ARTEM | G35: 2.7 | H35: 39% | I35: 20% | J35: 26 | K35: 43% | L35: 42% | M35: 103 | N35: 50% | O35: 32% | P35: 38 | Q35: 50% | R35: 29% | S35: 18 | T35: 54% | U35: 46% | V35: 62 | W35: 57% | X35: 48% | Y35: 44
A36: 262 | B36: MOSELLE | C36: 42 | D36: MOSELLE EST | E36: 557305 | F36: FAULQUEMONT | G36: 2.4 | H36: 39% | I36: 20% | J36: 27 | K36: 37% | L36: 35% | M36: 63 | N36: 52% | O36: 34% | P36: 43 | Q36: 61% | R36: 40% | S36: 77 | T36: 54% | U36: 45% | V36: 61 | W36: 52% | X36: 43% | Y36: 25
A37: 262 | B37: MARNE-ARDENNES | C37: 6 | D37: CHALONS EN CHAMPAGNE | E37: 551330 | F37: MONTMIRAIL | G37: 2.9 | H37: 40% | I37: 21% | J37: 28 | K37: 24% | L37: 22% | M37: 10 | N37: 70% | O37: 52% | P37: 199 | Q37: 50% | R37: 29% | S37: 19 | T37: 50% | U37: 42% | V37: 51 | W37: 62% | X37: 53% | Y37: 79
A38: 262 | B38: MARNE-ARDENNES | C38: 2 | D38: CHARLEVILLE MEZIERES | E38: 408862 | F38: REVIN | G38: 4.2 | H38: 40% | I38: 21% | J38: 29 | K38: 12% | L38: 10% | M38: 3 | N38: 61% | O38: 42% | P38: 97 | Q38: 56% | R38: 35% | S38: 47 | T38: 61% | U38: 53% | V38: 107 | W38: 69% | X38: 60% | Y38: 150
A39: 262 | B39: MARNE-ARDENNES | C39: 11 | D39: REIMS | E39: 551340 | F39: BETHENY | G39: 2.9 | H39: 41% | I39: 22% | J39: 30 | K39: 42% | L39: 41% | M39: 101 | N39: 64% | O39: 46% | P39: 143 | Q39: 51% | R39: 29% | S39: 20 | T39: 62% | U39: 54% | V39: 114 | W39: 41% | X39: 32% | Y39: 10
A40: 262 | B40: HAUT-RHIN | C40: 5130 | D40: COLMAR | E40: 4144 | F40: RIBEAUVILLE | G40: 2.9 | H40: 41% | I40: 22% | J40: 31 | K40: 34% | L40: 32% | M40: 50 | N40: 51% | O40: 33% | P40: 41 | Q40: 54% | R40: 33% | S40: 39 | T40: 44% | U40: 36% | V40: 28 | W40: 77% | X40: 68% | Y40: 230
A41: 262 | B41: BAS-RHIN | C41: 5006 | D41: STRASBOURG | E41: 4047 | F41: STRASBOURG CRONENBOURG | G41: 5.4 | H41: 41% | I41: 22% | J41: 32 | K41: 35% | L41: 33% | M41: 53 | N41: 62% | O41: 44% | P41: 110 | Q41: 59% | R41: 38% | S41: 60 | T41: 47% | U41: 39% | V41: 36 | W41: 59% | X41: 50% | Y41: 54
A42: 262 | B42: MOSELLE | C42: 42 | D42: MOSELLE EST | E42: 457308 | F42: FORBACH CENTRALE | G42: 11.2 | H42: 41% | I42: 22% | J42: 33 | K42: 31% | L42: 30% | M42: 39 | N42: 50% | O42: 31% | P42: 35 | Q42: 61% | R42: 40% | S42: 71 | T42: 54% | U42: 46% | V42: 67 | W42: 66% | X42: 57% | Y42: 116
A43: 262 | B43: BAS-RHIN | C43: 5060 | D43: HAGUENAU | E43: 4079 | F43: SOULTZ SOUS FORETS | G43: 2.2 | H43: 41% | I43: 22% | J43: 34 | K43: 48% | L43: 47% | M43: 132 | N43: 42% | O43: 24% | P43: 13 | Q43: 65% | R43: 44% | S43: 120 | T43: 50% | U43: 42% | V43: 48 | W43: 59% | X43: 50% | Y43: 57
A44: 262 | B44: VOSGES | C44: 57 | D44: EPINAL | E44: 588716 | F44: XERTIGNY | G44: 2.8 | H44: 41% | I44: 22% | J44: 35 | K44: 48% | L44: 47% | M44: 137 | N44: 56% | O44: 38% | P44: 62 | Q44: 61% | R44: 40% | S44: 69 | T44: 25% | U44: 17% | V44: 8 | W44: 74% | X44: 65% | Y44: 205
A45: 262 | B45: MARNE-ARDENNES | C45: 11 | D45: REIMS | E45: 551305 | F45: REIMS HIPPODROME | G45: 3.9 | H45: 42% | I45: 23% | J45: 36 | K45: 26% | L45: 24% | M45: 15 | N45: 68% | O45: 50% | P45: 179 | Q45: 69% | R45: 48% | S45: 159 | T45: 45% | U45: 37% | V45: 30 | W45: 59% | X45: 50% | Y45: 53
A46: 262 | B46: VOSGES | C46: 55 | D46: SAINT DIE | E46: 488246 | F46: CORNIMONT LA BRESSE | G46: 2.7 | H46: 42% | I46: 23% | J46: 37 | K46: 22% | L46: 20% | M46: 6 | N46: 65% | O46: 47% | P46: 146 | Q46: 73% | R46: 51% | S46: 196 | T46: 54% | U46: 46% | V46: 63 | W46: 54% | X46: 45% | Y46: 31
A47: 262 | B47: MEURTHE ET MOSELLE MEUSE | C47: 31 | D47: VERDUN | E47: 554412 | F47: LONGUYON | G47: 2.7 | H47: 42% | I47: 23% | J47: 38 | K47: 40% | L47: 39% | M47: 82 | N47: 63% | O47: 45% | P47: 131 | Q47: 63% | R47: 42% | S47: 93 | T47: 55% | U47: 47% | V47: 69 | W47: 47% | X47: 38% | Y47: 15
A48: 262 | B48: MARNE-ARDENNES | C48: 2 | D48: CHARLEVILLE MEZIERES | E48: 408801 | F48: CHARLEVILLE JEAN JAURES | G48: 9.3 | H48: 42% | I48: 23% | J48: 39 | K48: 35% | L48: 34% | M48: 58 | N48: 57% | O48: 39% | P48: 70 | Q48: 59% | R48: 38% | S48: 56 | T48: 71% | U48: 63% | V48: 182 | W48: 46% | X48: 37% | Y48: 13
A49: 262 | B49: MOSELLE | C49: 45 | D49: METZ | E49: 557447 | F49: METZ SAINT MAXIMIN | G49: 3.1 | H49: 42% | I49: 23% | J49: 40 | K49: 41% | L49: 39% | M49: 85 | N49: 48% | O49: 30% | P49: 29 | Q49: 64% | R49: 43% | S49: 110 | T49: 62% | U49: 54% | V49: 112 | W49: 54% | X49: 45% | Y49: 30
A50: 262 | B50: MEURTHE ET MOSELLE MEUSE | C50: 27 | D50: PONT A MOUSSON | E50: 554357 | F50: JOEUF | G50: 3.8 | H50: 42% | I50: 23% | J50: 41 | K50: 47% | L50: 46% | M50: 123 | N50: 58% | O50: 40% | P50: 75 | Q50: 81% | R50: 60% | S50: 251 | T50: 38% | U50: 30% | V50: 19 | W50: 45% | X50: 36% | Y50: 12
A51: 262 | B51: MEURTHE ET MOSELLE MEUSE | C51: 27 | D51: PONT A MOUSSON | E51: 454535 | F51: PONT A MOUSSON CENTRALE | G51: 7.8 | H51: 42% | I51: 23% | J51: 42 | K51: 50% | L51: 49% | M51: 148 | N51: 41% | O51: 23% | P51: 11 | Q51: 62% | R51: 41% | S51: 85 | T51: 53% | U51: 45% | V51: 60 | W51: 61% | X51: 52% | Y51: 71
A52: 262 | B52: MEURTHE ET MOSELLE MEUSE | C52: 27 | D52: PONT A MOUSSON | E52: 554533 | F52: PONT A MOUSSON BREUIL | G52: 2.8 | H52: 43% | I52: 24% | J52: 43 | K52: 52% | L52: 51% | M52: 159 | N52: 53% | O52: 35% | P52: 46 | Q52: 47% | R52: 25% | S52: 10 | T52: 63% | U52: 55% | V52: 121 | W52: 57% | X52: 48% | Y52: 45
A53: 262 | B53: MARNE-ARDENNES | C53: 6 | D53: CHALONS EN CHAMPAGNE | E53: 451101 | F53: CHALONS VIVIERS | G53: 9.0 | H53: 43% | I53: 24% | J53: 44 | K53: 26% | L53: 25% | M53: 18 | N53: 62% | O53: 44% | P53: 109 | Q53: 59% | R53: 38% | S53: 61 | T53: 66% | U53: 57% | V53: 141 | W53: 60% | X53: 50% | Y53: 60
A54: 262 | B54: AUBE HAUTE MARNE | C54: 21 | D54: CHAUMONT | E54: 510590 | F54: CHAUMONT REPUBLIQUE | G54: 4.3 | H54: 43% | I54: 24% | J54: 45 | K54: 46% | L54: 44% | M54: 114 | N54: 60% | O54: 42% | P54: 94 | Q54: 60% | R54: 39% | S54: 65 | T54: 49% | U54: 41% | V54: 46 | W54: 59% | X54: 50% | Y54: 52
A55: 262 | B55: MARNE-ARDENNES | C55: 11 | D55: REIMS | E55: 551367 | F55: AY CHAMPAGNE | G55: 2.7 | H55: 43% | I55: 24% | J55: 46 | K55: 63% | L55: 61% | M55: 206 | N55: 50% | O55: 31% | P55: 36 | Q55: 77% | R55: 56% | S55: 234 | T55: 47% | U55: 39% | V55: 39 | W55: 39% | X55: 30% | Y55: 7
A56: 262 | B56: MOSELLE | C56: 44 | D56: MOSELLE NORD | E56: 457348 | F56: HAGONDANGE | G56: 9.2 | H56: 43% | I56: 25% | J56: 47 | K56: 51% | L56: 50% | M56: 155 | N56: 48% | O56: 30% | P56: 28 | Q56: 63% | R56: 41% | S56: 91 | T56: 55% | U56: 47% | V56: 72 | W56: 58% | X56: 49% | Y56: 48
A57: 262 | B57: MEURTHE ET MOSELLE MEUSE | C57: 27 | D57: PONT A MOUSSON | E57: 554506 | F57: CHALIGNY NEUVES MAISONS | G57: 3.8 | H57: 44% | I57: 25% | J57: 48 | K57: 58% | L57: 57% | M57: 185 | N57: 31% | O57: 13% | P57: 4 | Q57: 76% | R57: 55% | S57: 227 | T57: 63% | U57: 55% | V57: 118 | W57: 48% | X57: 39% | Y57: 16
A58: 262 | B58: MEURTHE ET MOSELLE MEUSE | C58: 31 | D58: VERDUN | E58: 555679 | F58: VERDUN MAZEL | G58: 4.0 | H58: 44% | I58: 25% | J58: 49 | K58: 29% | L58: 28% | M58: 29 | N58: 54% | O58: 36% | P58: 52 | Q58: 56% | R58: 35% | S58: 48 | T58: 72% | U58: 64% | V58: 188 | W58: 65% | X58: 56% | Y58: 100
A59: 262 | B59: VOSGES | C59: 57 | D59: EPINAL | E59: 588631 | F59: THAON LES VOSGES | G59: 5.5 | H59: 44% | I59: 25% | J59: 50 | K59: 30% | L59: 29% | M59: 35 | N59: 63% | O59: 45% | P59: 124 | Q59: 70% | R59: 49% | S59: 164 | T59: 46% | U59: 38% | V59: 32 | W59: 67% | X59: 58% | Y59: 131
A60: 262 | B60: MEURTHE ET MOSELLE MEUSE | C60: 26 | D60: NANCY | E60: 454426 | F60: LUNEVILLE CARNOT | G60: 10.0 | H60: 44% | I60: 25% | J60: 51 | K60: 47% | L60: 46% | M60: 122 | N60: 57% | O60: 39% | P60: 67 | Q60: 67% | R60: 46% | S60: 139 | T60: 49% | U60: 41% | V60: 45 | W60: 57% | X60: 47% | Y60: 39
A61: 262 | B61: MEURTHE ET MOSELLE MEUSE | C61: 26 | D61: NANCY | E61: 554601 | F61: SAINT MAX | G61: 4.6 | H61: 44% | I61: 25% | J61: 52 | K61: 35% | L61: 33% | M61: 54 | N61: 63% | O61: 45% | P61: 128 | Q61: 56% | R61: 35% | S61: 45 | T61: 54% | U61: 46% | V61: 65 | W61: 71% | X61: 62% | Y61: 165
A62: 262 | B62: BAS-RHIN | C62: 5006 | D62: STRASBOURG | E62: 4037 | F62: MUNDOLSHEIM | G62: 4.0 | H62: 44% | I62: 25% | J62: 53 | K62: 59% | L62: 57% | M62: 191 | N62: 47% | O62: 28% | P62: 23 | Q62: 55% | R62: 34% | S62: 41 | T62: 50% | U62: 42% | V62: 52 | W62: 69% | X62: 60% | Y62: 154
A63: 262 | B63: BAS-RHIN | C63: 5060 | D63: HAGUENAU | E63: 4082 | F63: BOUXWILLER | G63: 2.4 | H63: 44% | I63: 25% | J63: 54 | K63: 36% | L63: 35% | M63: 61 | N63: 67% | O63: 49% | P63: 165 | Q63: 52% | R63: 31% | S63: 28 | T63: 66% | U63: 58% | V63: 147 | W63: 58% | X63: 49% | Y63: 50
A64: 262 | B64: MOSELLE | C64: 44 | D64: MOSELLE NORD | E64: 457306 | F64: FLORANGE | G64: 3.7 | H64: 44% | I64: 25% | J64: 55 | K64: 48% | L64: 46% | M64: 129 | N64: 60% | O64: 42% | P64: 96 | Q64: 52% | R64: 30% | S64: 25 | T64: 58% | U64: 50% | V64: 84 | W64: 62% | X64: 53% | Y64: 83
A65: 262 | B65: MEURTHE ET MOSELLE MEUSE | C65: 26 | D65: NANCY | E65: 554636 | F65: TOMBLAINE | G65: 2.3 | H65: 45% | I65: 26% | J65: 56 | K65: 28% | L65: 27% | M65: 24 | N65: 73% | O65: 55% | P65: 221 | Q65: 64% | R65: 43% | S65: 111 | T65: 47% | U65: 39% | V65: 40 | W65: 67% | X65: 58% | Y65: 133
A66: 262 | B66: MARNE-ARDENNES | C66: 6 | D66: CHALONS EN CHAMPAGNE | E66: 451120 | F66: SARRY | G66: 2.5 | H66: 45% | I66: 26% | J66: 57 | K66: 23% | L66: 22% | M66: 7 | N66: 63% | O66: 45% | P66: 126 | Q66: 53% | R66: 32% | S66: 33 | T66: 69% | U66: 60% | V66: 162 | W66: 72% | X66: 63% | Y66: 186
A67: 262 | B67: MOSELLE | C67: 44 | D67: MOSELLE NORD | E67: 557352 | F67: HETTANGE GRANDE | G67: 4.1 | H67: 45% | I67: 26% | J67: 58 | K67: 57% | L67: 56% | M67: 182 | N67: 49% | O67: 31% | P67: 33 | Q67: 68% | R67: 47% | S67: 144 | T67: 45% | U67: 37% | V67: 31 | W67: 63% | X67: 54% | Y67: 85
A68: 262 | B68: MARNE-ARDENNES | C68: 2 | D68: CHARLEVILLE MEZIERES | E68: 508802 | F68: CHARLEVILLE NEVERS | G68: 3.0 | H68: 45% | I68: 26% | J68: 59 | K68: 29% | L68: 28% | M68: 31 | N68: 68% | O68: 50% | P68: 183 | Q68: 68% | R68: 46% | S68: 141 | T68: 54% | U68: 46% | V68: 64 | W68: 63% | X68: 54% | Y68: 92
A69: 262 | B69: BAS-RHIN | C69: 5006 | D69: STRASBOURG | E69: 4019 | F69: STRASBOURG ANVERS | G69: 4.2 | H69: 45% | I69: 26% | J69: 60 | K69: 49% | L69: 48% | M69: 141 | N69: 54% | O69: 36% | P69: 53 | Q69: 53% | R69: 32% | S69: 34 | T69: 61% | U69: 53% | V69: 106 | W69: 66% | X69: 57% | Y69: 111
A70: 262 | B70: MARNE-ARDENNES | C70: 11 | D70: REIMS | E70: 451350 | F70: REIMS CENTRE VILLE | G70: 7.2 | H70: 45% | I70: 26% | J70: 61 | K70: 53% | L70: 52% | M70: 162 | N70: 66% | O70: 48% | P70: 161 | Q70: 59% | R70: 38% | S70: 57 | T70: 58% | U70: 50% | V70: 86 | W70: 47% | X70: 38% | Y70: 14
A71: 262 | B71: MEURTHE ET MOSELLE MEUSE | C71: 27 | D71: PONT A MOUSSON | E71: 554416 | F71: LUDRES | G71: 3.7 | H71: 45% | I71: 26% | J71: 62 | K71: 30% | L71: 28% | M71: 33 | N71: 65% | O71: 47% | P71: 154 | Q71: 52% | R71: 31% | S71: 26 | T71: 79% | U71: 71% | V71: 238 | W71: 58% | X71: 49% | Y71: 46
A72: 262 | B72: MARNE-ARDENNES | C72: 11 | D72: REIMS | E72: 551310 | F72: REIMS CHATILLONS | G72: 4.1 | H72: 45% | I72: 26% | J72: 63 | K72: 51% | L72: 49% | M72: 152 | N72: 60% | O72: 42% | P72: 93 | Q72: 60% | R72: 39% | S72: 66 | T72: 59% | U72: 51% | V72: 94 | W72: 54% | X72: 45% | Y72: 32
A73: 262 | B73: AUBE HAUTE MARNE | C73: 14 | D73: TROYES | E73: 510511 | F73: TROYES BROSSOLETTE | G73: 2.5 | H73: 45% | I73: 26% | J73: 64 | K73: 37% | L73: 36% | M73: 68 | N73: 50% | O73: 32% | P73: 40 | Q73: 64% | R73: 43% | S73: 104 | T73: 69% | U73: 61% | V73: 165 | W73: 65% | X73: 56% | Y73: 99
A74: 262 | B74: MARNE-ARDENNES | C74: 2 | D74: CHARLEVILLE MEZIERES | E74: 508815 | F74: CARIGNAN | G74: 2.9 | H74: 45% | I74: 26% | J74: 65 | K74: 44% | L74: 43% | M74: 107 | N74: 62% | O74: 44% | P74: 116 | Q74: 48% | R74: 27% | S74: 13 | T74: 64% | U74: 55% | V74: 123 | W74: 66% | X74: 57% | Y74: 117
A75: 262 | B75: MEURTHE ET MOSELLE MEUSE | C75: 31 | D75: VERDUN | E75: 455298 | F75: ETAIN | G75: 1.6 | H75: 45% | I75: 26% | J75: 66 | K75: 69% | L75: 68% | M75: 230 | N75: 58% | O75: 40% | P75: 83 | Q75: 65% | R75: 43% | S75: 114 | T75: 29% | U75: 20% | V75: 10 | W75: 64% | X75: 55% | Y75: 95
A76: 262 | B76: VOSGES | C76: 57 | D76: EPINAL | E76: 588501 | F76: NEUFCHATEAU | G76: 5.0 | H76: 45% | I76: 26% | J76: 67 | K76: 29% | L76: 28% | M76: 26 | N76: 69% | O76: 51% | P76: 188 | Q76: 62% | R76: 40% | S76: 79 | T76: 67% | U76: 59% | V76: 152 | W76: 59% | X76: 50% | Y76: 51
A77: 262 | B77: VOSGES | C77: 55 | D77: SAINT DIE | E77: 588386 | F77: LE THILLOT | G77: 2.3 | H77: 45% | I77: 26% | J77: 68 | K77: 41% | L77: 40% | M77: 89 | N77: 64% | O77: 46% | P77: 133 | Q77: 60% | R77: 39% | S77: 64 | T77: 50% | U77: 42% | V77: 50 | W77: 70% | X77: 61% | Y77: 162
A78: 262 | B78: MEURTHE ET MOSELLE MEUSE | C78: 27 | D78: PONT A MOUSSON | E78: 554376 | F78: LAXOU BOUFFLERS | G78: 2.9 | H78: 45% | I78: 27% | J78: 69 | K78: 58% | L78: 57% | M78: 187 | N78: 56% | O78: 38% | P78: 63 | Q78: 47% | R78: 26% | S78: 11 | T78: 63% | U78: 55% | V78: 117 | W78: 62% | X78: 53% | Y78: 72
A79: 264 | B79: BAS-RHIN | C79: 5006 | D79: STRASBOURG | E79: 4038 | F79: OBERHAUSBERGEN | G79: 4.8 | H79: 46% | I79: 27% | J79: 70 | K79: 46% | L79: 44% | M79: 115 | N79: 63% | O79: 45% | P79: 125 | Q79: 56% | R79: 35% | S79: 46 | T79: 59% | U79: 50% | V79: 90 | W79: 62% | X79: 53% | Y79: 76
A80: 264 | B80: MARNE-ARDENNES | C80: 6 | D80: CHALONS EN CHAMPAGNE | E80: 551110 | F80: CHALONS ROOSEVELT | G80: 4.9 | H80: 46% | I80: 27% | J80: 71 | K80: 28% | L80: 27% | M80: 23 | N80: 66% | O80: 48% | P80: 158 | Q80: 62% | R80: 41% | S80: 86 | T80: 61% | U80: 53% | V80: 103 | W80: 70% | X80: 61% | Y80: 158
A81: 264 | B81: VOSGES | C81: 57 | D81: EPINAL | E81: 588396 | F81: LE VAL D AJOL | G81: 3.0 | H81: 46% | I81: 27% | J81: 72 | K81: 1% | L81: 0% | M81: 1 | N81: 74% | O81: 56% | P81: 227 | Q81: 65% | R81: 44% | S81: 123 | T81: 64% | U81: 56% | V81: 133 | W81: 82% | X81: 73% | Y81: 253
A82: 264 | B82: MEURTHE ET MOSELLE MEUSE | C82: 27 | D82: PONT A MOUSSON | E82: 554381 | F82: LAXOU ARISTIDE BRIAND | G82: 4.1 | H82: 46% | I82: 27% | J82: 73 | K82: 42% | L82: 41% | M82: 100 | N82: 53% | O82: 35% | P82: 49 | Q82: 61% | R82: 40% | S82: 72 | T82: 59% | U82: 51% | V82: 93 | W82: 72% | X82: 63% | Y82: 184
A83: 264 | B83: VOSGES | C83: 57 | D83: EPINAL | E83: 488706 | F83: VITTEL | G83: 3.7 | H83: 46% | I83: 27% | J83: 74 | K83: 27% | L83: 26% | M83: 21 | N83: 76% | O83: 58% | P83: 236 | Q83: 64% | R83: 43% | S83: 109 | T83: 52% | U83: 44% | V83: 58 | W83: 68% | X83: 59% | Y83: 140
A84: 264 | B84: MEURTHE ET MOSELLE MEUSE | C84: 31 | D84: VERDUN | E84: 455456 | F84: MONTMEDY | G84: 1.8 | H84: 46% | I84: 27% | J84: 75 | K84: 57% | L84: 55% | M84: 175 | N84: 51% | O84: 33% | P84: 42 | Q84: 63% | R84: 42% | S84: 97 | T84: 62% | U84: 53% | V84: 109 | W84: 57% | X84: 48% | Y84: 41
A85: 264 | B85: MOSELLE | C85: 45 | D85: METZ | E85: 457453 | F85: MONTIGNY LES METZ | G85: 8.1 | H85: 46% | I85: 27% | J85: 76 | K85: 31% | L85: 29% | M85: 37 | N85: 57% | O85: 39% | P85: 69 | Q85: 62% | R85: 41% | S85: 87 | T85: 77% | U85: 69% | V85: 232 | W85: 62% | X85: 53% | Y85: 82
A86: 264 | B86: AUBE HAUTE MARNE | C86: 14 | D86: TROYES | E86: 510523 | F86: LA CHAPELLE ST LUC | G86: 5.4 | H86: 46% | I86: 27% | J86: 77 | K86: 60% | L86: 59% | M86: 197 | N86: 48% | O86: 30% | P86: 27 | Q86: 70% | R86: 49% | S86: 174 | T86: 42% | U86: 33% | V86: 24 | W86: 70% | X86: 61% | Y86: 161
A87: 264 | B87: VOSGES | C87: 55 | D87: SAINT DIE | E87: 488586 | F87: SAINT DIE | G87: 10.5 | H87: 47% | I87: 28% | J87: 78 | K87: 24% | L87: 22% | M87: 9 | N87: 71% | O87: 52% | P87: 206 | Q87: 63% | R87: 42% | S87: 92 | T87: 68% | U87: 60% | V87: 157 | W87: 67% | X87: 58% | Y87: 129
A88: 264 | B88: MARNE-ARDENNES | C88: 11 | D88: REIMS | E88: 451361 | F88: PIERRY LECLERC | G88: 1.9 | H88: 47% | I88: 28% | J88: 79 | K88: 31% | L88: 30% | M88: 38 | N88: 67% | O88: 49% | P88: 163 | Q88: 74% | R88: 52% | S88: 205 | T88: 59% | U88: 51% | V88: 92 | W88: 62% | X88: 53% | Y88: 73
A89: 264 | B89: BAS-RHIN | C89: 5006 | D89: STRASBOURG | E89: 4006 | F89: STRASBOURG NEUDORF | G89: 8.5 | H89: 47% | I89: 28% | J89: 80 | K89: 29% | L89: 28% | M89: 30 | N89: 57% | O89: 39% | P89: 73 | Q89: 70% | R89: 49% | S89: 170 | T89: 60% | U89: 52% | V89: 98 | W89: 76% | X89: 67% | Y89: 220
A90: 264 | B90: AUBE HAUTE MARNE | C90: 21 | D90: CHAUMONT | E90: 451154 | F90: JOINVILLE | G90: 1.8 | H90: 47% | I90: 28% | J90: 81 | K90: 8% | L90: 7% | M90: 2 | N90: 78% | O90: 60% | P90: 241 | Q90: 85% | R90: 64% | S90: 259 | T90: 59% | U90: 50% | V90: 89 | W90: 63% | X90: 54% | Y90: 88
A91: 264 | B91: AUBE HAUTE MARNE | C91: 21 | D91: CHAUMONT | E91: 451151 | F91: WASSY | G91: 2.0 | H91: 47% | I91: 28% | J91: 82 | K91: 67% | L91: 65% | M91: 223 | N91: 49% | O91: 31% | P91: 34 | Q91: 68% | R91: 47% | S91: 145 | T91: 57% | U91: 49% | V91: 79 | W91: 52% | X91: 43% | Y91: 26
A92: 264 | B92: MARNE-ARDENNES | C92: 6 | D92: CHALONS EN CHAMPAGNE | E92: 551354 | F92: VERTUS | G92: 2.5 | H92: 47% | I92: 28% | J92: 83 | K92: 26% | L92: 24% | M92: 16 | N92: 74% | O92: 56% | P92: 224 | Q92: 67% | R92: 46% | S92: 140 | T92: 59% | U92: 51% | V92: 95 | W92: 67% | X92: 58% | Y92: 127
A93: 264 | B93: BAS-RHIN | C93: 5101 | D93: SELESTAT | E93: 4120 | F93: WASSELONNE | G93: 4.6 | H93: 47% | I93: 28% | J93: 84 | K93: 67% | L93: 65% | M93: 222 | N93: 68% | O93: 50% | P93: 184 | Q93: 49% | R93: 27% | S93: 14 | T93: 49% | U93: 41% | V93: 43 | W93: 62% | X93: 53% | Y93: 77
A94: 264 | B94: VOSGES | C94: 57 | D94: EPINAL | E94: 488286 | F94: EPINAL ARISTIDE BRIAND | G94: 9.1 | H94: 47% | I94: 28% | J94: 85 | K94: 25% | L94: 24% | M94: 13 | N94: 64% | O94: 46% | P94: 141 | Q94: 72% | R94: 51% | S94: 194 | T94: 58% | U94: 50% | V94: 85 | W94: 75% | X94: 66% | Y94: 213
A95: 264 | B95: VOSGES | C95: 57 | D95: EPINAL | E95: 588206 | F95: CHARMES | G95: 2.8 | H95: 47% | I95: 28% | J95: 86 | K95: 38% | L95: 37% | M95: 74 | N95: 74% | O95: 56% | P95: 222 | Q95: 79% | R95: 57% | S95: 240 | T95: 40% | U95: 32% | V95: 22 | W95: 64% | X95: 55% | Y95: 96
A96: 264 | B96: AUBE HAUTE MARNE | C96: 14 | D96: TROYES | E96: 510520 | F96: SAINT ANDRE LES VERGERS | G96: 4.2 | H96: 47% | I96: 28% | J96: 87 | K96: 42% | L96: 41% | M96: 94 | N96: 58% | O96: 40% | P96: 77 | Q96: 56% | R96: 35% | S96: 44 | T96: 77% | U96: 69% | V96: 228 | W96: 62% | X96: 53% | Y96: 81
A97: 264 | B97: MEURTHE ET MOSELLE MEUSE | C97: 31 | D97: VERDUN | E97: 555624 | F97: STENAY | G97: 2.8 | H97: 47% | I97: 29% | J97: 88 | K97: 64% | L97: 63% | M97: 215 | N97: 41% | O97: 23% | P97: 9 | Q97: 61% | R97: 40% | S97: 75 | T97: 64% | U97: 56% | V97: 124 | W97: 65% | X97: 56% | Y97: 109
A98: 264 | B98: AUBE HAUTE MARNE | C98: 21 | D98: CHAUMONT | E98: 451156 | F98: SAINT DIZIER CENTRE | G98: 9.3 | H98: 48% | I98: 29% | J98: 89 | K98: 43% | L98: 42% | M98: 104 | N98: 62% | O98: 44% | P98: 113 | Q98: 64% | R98: 43% | S98: 107 | T98: 58% | U98: 50% | V98: 88 | W98: 68% | X98: 59% | Y98: 138
A99: 264 | B99: VOSGES | C99: 55 | D99: SAINT DIE | E99: 488326 | F99: GERARDMER | G99: 5.2 | H99: 48% | I99: 29% | J99: 90 | K99: 32% | L99: 30% | M99: 41 | N99: 70% | O99: 52% | P99: 205 | Q99: 54% | R99: 33% | S99: 37 | T99: 73% | U99: 65% | V99: 201 | W99: 67% | X99: 58% | Y99: 120
A100: 264 | B100: BAS-RHIN | C100: 5101 | D100: SELESTAT | E100: 4107 | F100: VILLE | G100: 3.0 | H100: 48% | I100: 29% | J100: 91 | K100: 78% | L100: 77% | M100: 248 | N100: 44% | O100: 26% | P100: 16 | Q100: 58% | R100: 37% | S100: 54 | T100: 42% | U100: 33% | V100: 23 | W100: 75% | X100: 66% | Y100: 209
A101: 264 | B101: MARNE-ARDENNES | C101: 11 | D101: REIMS | E101: 551314 | F101: FISMES | G101: 3.0 | H101: 48% | I101: 29% | J101: 92 | K101: 43% | L101: 41% | M101: 102 | N101: 58% | O101: 40% | P101: 78 | Q101: 69% | R101: 48% | S101: 155 | T101: 69% | U101: 61% | V101: 167 | W101: 59% | X101: 50% | Y101: 55
A102: 264 | B102: VOSGES | C102: 57 | D102: EPINAL | E102: 488451 | F102: MIRECOURT | G102: 4.9 | H102: 48% | I102: 29% | J102: 93 | K102: 33% | L102: 31% | M102: 46 | N102: 71% | O102: 53% | P102: 207 | Q102: 65% | R102: 44% | S102: 117 | T102: 61% | U102: 53% | V102: 104 | W102: 69% | X102: 60% | Y102: 149
A103: 30 | B103: BAS-RHIN | C103: 5060 | D103: HAGUENAU | E103: 4066 | F103: NIEDERBRONN LES BAINS | G103: 6.1 | H103: 48% | I103: 29% | J103: 94 | K103: 24% | L103: 23% | M103: 12 | N103: 68% | O103: 50% | P103: 180 | Q103: 65% | R103: 44% | S103: 118 | T103: 69% | U103: 61% | V103: 164 | W103: 73% | X103: 64% | Y103: 196
A104: 30 | B104: MARNE-ARDENNES | C104: 11 | D104: REIMS | E104: 451370 | F104: EPERNAY | G104: 11.5 | H104: 48% | I104: 29% | J104: 95 | K104: 38% | L104: 37% | M104: 73 | N104: 59% | O104: 41% | P104: 90 | Q104: 71% | R104: 50% | S104: 182 | T104: 63% | U104: 54% | V104: 116 | W104: 67% | X104: 58% | Y104: 132
A105: 30 | B105: MOSELLE | C105: 45 | D105: METZ | E105: 557712 | F105: WOIPPY | G105: 5.6 | H105: 48% | I105: 29% | J105: 96 | K105: 40% | L105: 39% | M105: 83 | N105: 58% | O105: 40% | P105: 80 | Q105: 74% | R105: 52% | S105: 207 | T105: 58% | U105: 50% | V105: 87 | W105: 69% | X105: 60% | Y105: 148
A106: 30 | B106: MOSELLE | C106: 45 | D106: METZ | E106: 557433 | F106: MARANGE SILVANGE | G106: 2.5 | H106: 48% | I106: 29% | J106: 97 | K106: 39% | L106: 38% | M106: 78 | N106: 62% | O106: 44% | P106: 115 | Q106: 80% | R106: 59% | S106: 247 | T106: 62% | U106: 54% | V106: 113 | W106: 56% | X106: 47% | Y106: 38
A107: 30 | B107: AUBE HAUTE MARNE | C107: 14 | D107: TROYES | E107: 410550 | F107: BAR SUR AUBE | G107: 6.0 | H107: 48% | I107: 29% | J107: 98 | K107: 35% | L107: 34% | M107: 56 | N107: 63% | O107: 45% | P107: 119 | Q107: 77% | R107: 56% | S107: 235 | T107: 56% | U107: 48% | V107: 76 | W107: 69% | X107: 60% | Y107: 146
A108: 30 | B108: MOSELLE | C108: 42 | D108: MOSELLE EST | E108: 457614 | F108: SARREBOURG | G108: 8.4 | H108: 49% | I108: 30% | J108: 99 | K108: 47% | L108: 46% | M108: 125 | N108: 58% | O108: 40% | P108: 76 | Q108: 63% | R108: 42% | S108: 94 | T108: 66% | U108: 58% | V108: 142 | W108: 67% | X108: 58% | Y108: 124
A109: 30 | B109: MARNE-ARDENNES | C109: 2 | D109: CHARLEVILLE MEZIERES | E109: 508819 | F109: MOUZON | G109: 2.0 | H109: 49% | I109: 30% | J109: 100 | K109: 42% | L109: 41% | M109: 98 | N109: 78% | O109: 60% | P109: 243 | Q109: 63% | R109: 42% | S109: 100 | T109: 67% | U109: 58% | V109: 149 | W109: 50% | X109: 41% | Y109: 22
A110: 30 | B110: BAS-RHIN | C110: 5006 | D110: STRASBOURG | E110: 4024 | F110: STRASBOURG AUSTERLITZ | G110: 2.4 | H110: 49% | I110: 30% | J110: 101 | K110: 79% | L110: 78% | M110: 251 | N110: 47% | O110: 28% | P110: 24 | Q110: 61% | R110: 40% | S110: 76 | T110: 48% | U110: 40% | V110: 42 | W110: 65% | X110: 56% | Y110: 104
A111: 30 | B111: AUBE HAUTE MARNE | C111: 21 | D111: CHAUMONT | E111: 410560 | F111: BOURBONNE LES BAINS | G111: 2.0 | H111: 49% | I111: 30% | J111: 102 | K111: 27% | L111: 25% | M111: 19 | N111: 59% | O111: 41% | P111: 87 | Q111: 72% | R111: 50% | S111: 188 | T111: 66% | U111: 58% | V111: 144 | W111: 78% | X111: 69% | Y111: 235
A112: 30 | B112: MEURTHE ET MOSELLE MEUSE | C112: 26 | D112: NANCY | E112: 554266 | F112: DOMBASLE SUR MEURTHE | G112: 3.6 | H112: 49% | I112: 30% | J112: 103 | K112: 68% | L112: 66% | M112: 224 | N112: 72% | O112: 54% | P112: 215 | Q112: 51% | R112: 30% | S112: 23 | T112: 55% | U112: 46% | V112: 68 | W112: 56% | X112: 47% | Y112: 37
A113: 30 | B113: VOSGES | C113: 55 | D113: SAINT DIE | E113: 588186 | F113: BRUYERES | G113: 3.7 | H113: 49% | I113: 30% | J113: 104 | K113: 42% | L113: 41% | M113: 96 | N113: 63% | O113: 45% | P113: 121 | Q113: 79% | R113: 58% | S113: 245 | T113: 55% | U113: 47% | V113: 71 | W113: 62% | X113: 53% | Y113: 74
A114: 30 | B114: HAUT-RHIN | C114: 5130 | D114: COLMAR | E114: 4153 | F114: ROUFFACH | G114: 3.7 | H114: 49% | I114: 30% | J114: 105 | K114: 48% | L114: 47% | M114: 135 | N114: 74% | O114: 56% | P114: 225 | Q114: 70% | R114: 49% | S114: 169 | T114: 39% | U114: 31% | V114: 20 | W114: 70% | X114: 61% | Y114: 163
A115: 30 | B115: MOSELLE | C115: 44 | D115: MOSELLE NORD | E115: 557347 | F115: GUENANGE | G115: 4.9 | H115: 49% | I115: 30% | J115: 106 | K115: 59% | L115: 57% | M115: 189 | N115: 59% | O115: 41% | P115: 85 | Q115: 61% | R115: 40% | S115: 68 | T115: 66% | U115: 58% | V115: 146 | W115: 57% | X115: 48% | Y115: 43
A116: 30 | B116: MOSELLE | C116: 45 | D116: METZ | E116: 457574 | F116: ROMBAS | G116: 3.3 | H116: 49% | I116: 30% | J116: 107 | K116: 56% | L116: 54% | M116: 170 | N116: 47% | O116: 29% | P116: 25 | Q116: 53% | R116: 32% | S116: 31 | T116: 67% | U116: 59% | V116: 151 | W116: 79% | X116: 70% | Y116: 244
A117: 30 | B117: MEURTHE ET MOSELLE MEUSE | C117: 31 | D117: VERDUN | E117: 455151 | F117: BAR LE DUC | G117: 8.9 | H117: 49% | I117: 30% | J117: 108 | K117: 42% | L117: 41% | M117: 95 | N117: 59% | O117: 41% | P117: 88 | Q117: 72% | R117: 50% | S117: 189 | T117: 64% | U117: 56% | V117: 134 | W117: 65% | X117: 56% | Y117: 107
A118: 30 | B118: MARNE-ARDENNES | C118: 11 | D118: REIMS | E118: 551309 | F118: REIMS EUROPE | G118: 2.6 | H118: 49% | I118: 30% | J118: 109 | K118: 42% | L118: 41% | M118: 99 | N118: 68% | O118: 50% | P118: 185 | Q118: 65% | R118: 44% | S118: 119 | T118: 58% | U118: 50% | V118: 83 | W118: 70% | X118: 61% | Y118: 156
A119: 30 | B119: VOSGES | C119: 55 | D119: SAINT DIE | E119: 588666 | F119: VAGNEY | G119: 3.8 | H119: 49% | I119: 30% | J119: 110 | K119: 23% | L119: 22% | M119: 8 | N119: 64% | O119: 46% | P119: 142 | Q119: 70% | R119: 49% | S119: 171 | T119: 73% | U119: 65% | V119: 197 | W119: 72% | X119: 63% | Y119: 190
A120: 30 | B120: BAS-RHIN | C120: 5006 | D120: STRASBOURG | E120: 4023 | F120: STRASBOURG VOSGES | G120: 3.3 | H120: 49% | I120: 30% | J120: 111 | K120: 54% | L120: 53% | M120: 163 | N120: 55% | O120: 37% | P120: 60 | Q120: 51% | R120: 30% | S120: 24 | T120: 68% | U120: 60% | V120: 160 | W120: 75% | X120: 66% | Y120: 208
A121: 30 | B121: MEURTHE ET MOSELLE MEUSE | C121: 26 | D121: NANCY | E121: 554116 | F121: BACCARAT | G121: 2.4 | H121: 49% | I121: 30% | J121: 112 | K121: 32% | L121: 31% | M121: 44 | N121: 65% | O121: 47% | P121: 152 | Q121: 69% | R121: 47% | S121: 152 | T121: 69% | U121: 61% | V121: 172 | W121: 69% | X121: 60% | Y121: 144
A122: 30 | B122: AUBE HAUTE MARNE | C122: 21 | D122: CHAUMONT | E122: 410541 | F122: LANGRES | G122: 6.4 | H122: 49% | I122: 30% | J122: 113 | K122: 51% | L122: 49% | M122: 153 | N122: 61% | O122: 43% | P122: 101 | Q122: 69% | R122: 48% | S122: 157 | T122: 57% | U122: 49% | V122: 81 | W122: 66% | X122: 57% | Y122: 110
A123: 30 | B123: AUBE HAUTE MARNE | C123: 14 | D123: TROYES | E123: 410571 | F123: ROMILLY SUR SEINE | G123: 6.5 | H123: 49% | I123: 30% | J123: 114 | K123: 37% | L123: 36% | M123: 67 | N123: 58% | O123: 40% | P123: 81 | Q123: 71% | R123: 50% | S123: 185 | T123: 70% | U123: 62% | V123: 177 | W123: 67% | X123: 58% | Y123: 125
A124: 30 | B124: BAS-RHIN | C124: 5006 | D124: STRASBOURG | E124: 4026 | F124: STRASBOURG DANUBE | G124: 4.4 | H124: 49% | I124: 30% | J124: 115 | K124: 56% | L124: 55% | M124: 173 | N124: 72% | O124: 54% | P124: 216 | Q124: 79% | R124: 57% | S124: 241 | T124: 27% | U124: 18% | V124: 9 | W124: 71% | X124: 62% | Y124: 171
A125: 30 | B125: BAS-RHIN | C125: 5101 | D125: SELESTAT | E125: 4119 | F125: OBERNAI | G125: 3.5 | H125: 49% | I125: 30% | J125: 116 | K125: 77% | L125: 76% | M125: 246 | N125: 45% | O125: 27% | P125: 17 | Q125: 65% | R125: 44% | S125: 122 | T125: 47% | U125: 38% | V125: 35 | W125: 71% | X125: 62% | Y125: 169
A126: 30 | B126: MEURTHE ET MOSELLE MEUSE | C126: 27 | D126: PONT A MOUSSON | E126: 554321 | F126: FROUARD | G126: 3.0 | H126: 49% | I126: 30% | J126: 117 | K126: 74% | L126: 72% | M126: 240 | N126: 57% | O126: 39% | P126: 68 | Q126: 50% | R126: 29% | S126: 17 | T126: 64% | U126: 56% | V126: 125 | W126: 61% | X126: 52% | Y126: 68
A127: 30 | B127: MOSELLE | C127: 44 | D127: MOSELLE NORD | E127: 457350 | F127: HAYANGE | G127: 7.3 | H127: 49% | I127: 30% | J127: 118 | K127: 49% | L127: 48% | M127: 143 | N127: 52% | O127: 34% | P127: 45 | Q127: 71% | R127: 49% | S127: 177 | T127: 64% | U127: 56% | V127: 132 | W127: 69% | X127: 60% | Y127: 153
A128: 30 | B128: MEURTHE ET MOSELLE MEUSE | C128: 31 | D128: VERDUN | E128: 555406 | F128: LIGNY EN BARROIS | G128: 2.8 | H128: 49% | I128: 30% | J128: 119 | K128: 28% | L128: 27% | M128: 25 | N128: 65% | O128: 47% | P128: 147 | Q128: 70% | R128: 49% | S128: 168 | T128: 74% | U128: 66% | V128: 214 | W128: 68% | X128: 59% | Y128: 134
A129: 30 | B129: MOSELLE | C129: 45 | D129: METZ | E129: 557612 | F129: SAINTE MARIE AUX CHENES | G129: 3.8 | H129: 49% | I129: 30% | J129: 120 | K129: 27% | L129: 25% | M129: 20 | N129: 75% | O129: 57% | P129: 228 | Q129: 68% | R129: 47% | S129: 146 | T129: 60% | U129: 52% | V129: 102 | W129: 75% | X129: 66% | Y129: 215
A130: 30 | B130: MARNE-ARDENNES | C130: 6 | D130: CHALONS EN CHAMPAGNE | E130: 551128 | F130: SAINTE MENEHOULD | G130: 3.3 | H130: 49% | I130: 31% | J130: 121 | K130: 40% | L130: 39% | M130: 84 | N130: 60% | O130: 42% | P130: 95 | Q130: 73% | R130: 52% | S130: 204 | T130: 55% | U130: 47% | V130: 70 | W130: 76% | X130: 67% | Y130: 223
A131: 30 | B131: VOSGES | C131: 57 | D131: EPINAL | E131: 488561 | F131: REMIREMONT | G131: 6.4 | H131: 50% | I131: 31% | J131: 122 | K131: 41% | L131: 40% | M131: 92 | N131: 66% | O131: 48% | P131: 160 | Q131: 64% | R131: 42% | S131: 101 | T131: 66% | U131: 58% | V131: 143 | W131: 69% | X131: 60% | Y131: 143
A132: 30 | B132: AUBE HAUTE MARNE | C132: 14 | D132: TROYES | E132: 510570 | F132: NOGENT SUR SEINE | G132: 4.4 | H132: 50% | I132: 31% | J132: 123 | K132: 25% | L132: 24% | M132: 14 | N132: 66% | O132: 48% | P132: 157 | Q132: 74% | R132: 53% | S132: 209 | T132: 77% | U132: 69% | V132: 231 | W132: 63% | X132: 54% | Y132: 90
A133: 30 | B133: MEURTHE ET MOSELLE MEUSE | C133: 31 | D133: VERDUN | E133: 455231 | F133: COMMERCY | G133: 4.6 | H133: 50% | I133: 31% | J133: 124 | K133: 46% | L133: 45% | M133: 117 | N133: 63% | O133: 45% | P133: 127 | Q133: 72% | R133: 50% | S133: 187 | T133: 63% | U133: 55% | V133: 122 | W133: 61% | X133: 52% | Y133: 70
A134: 30 | B134: VOSGES | C134: 57 | D134: EPINAL | E134: 588336 | F134: GOLBEY | G134: 3.1 | H134: 50% | I134: 31% | J134: 125 | K134: 46% | L134: 44% | M134: 116 | N134: 72% | O134: 54% | P134: 217 | Q134: 64% | R134: 43% | S134: 112 | T134: 64% | U134: 56% | V134: 129 | W134: 59% | X134: 50% | Y134: 59
A135: 30 | B135: MOSELLE | C135: 42 | D135: MOSELLE EST | E135: 457583 | F135: SAINT AVOLD | G135: 7.7 | H135: 50% | I135: 31% | J135: 126 | K135: 48% | L135: 47% | M135: 133 | N135: 64% | O135: 46% | P135: 139 | Q135: 65% | R135: 43% | S135: 115 | T135: 62% | U135: 54% | V135: 110 | W135: 68% | X135: 59% | Y135: 137
A136: 30 | B136: MOSELLE | C136: 45 | D136: METZ | E136: 457443 | F136: METZ REPUBLIQUE | G136: 4.2 | H136: 50% | I136: 31% | J136: 127 | K136: 24% | L136: 22% | M136: 11 | N136: 67% | O136: 49% | P136: 164 | Q136: 69% | R136: 48% | S136: 156 | T136: 80% | U136: 72% | V136: 240 | W136: 67% | X136: 58% | Y136: 123
A137: 30 | B137: MARNE-ARDENNES | C137: 6 | D137: CHALONS EN CHAMPAGNE | E137: 451381 | F137: SEZANNE | G137: 6.4 | H137: 50% | I137: 31% | J137: 128 | K137: 37% | L137: 35% | M137: 64 | N137: 63% | O137: 44% | P137: 118 | Q137: 73% | R137: 52% | S137: 197 | T137: 65% | U137: 57% | V137: 140 | W137: 69% | X137: 60% | Y137: 152
A138: 30 | B138: MOSELLE | C138: 45 | D138: METZ | E138: 557437 | F138: METZ SARRE | G138: 3.8 | H138: 50% | I138: 31% | J138: 129 | K138: 65% | L138: 64% | M138: 218 | N138: 62% | O138: 44% | P138: 114 | Q138: 79% | R138: 58% | S138: 242 | T138: 24% | U138: 15% | V138: 6 | W138: 78% | X138: 69% | Y138: 237
A139: 30 | B139: MARNE-ARDENNES | C139: 11 | D139: REIMS | E139: 551365 | F139: DORMANS | G139: 2.7 | H139: 50% | I139: 31% | J139: 130 | K139: 34% | L139: 33% | M139: 52 | N139: 76% | O139: 58% | P139: 237 | Q139: 63% | R139: 41% | S139: 89 | T139: 72% | U139: 64% | V139: 191 | W139: 63% | X139: 54% | Y139: 86
A140: 30 | B140: BAS-RHIN | C140: 5101 | D140: SELESTAT | E140: 4007 | F140: ILLKIRCH CENTRE | G140: 7.5 | H140: 50% | I140: 31% | J140: 131 | K140: 50% | L140: 48% | M140: 146 | N140: 54% | O140: 36% | P140: 57 | Q140: 69% | R140: 48% | S140: 153 | T140: 59% | U140: 51% | V140: 96 | W140: 75% | X140: 66% | Y140: 217
A141: 30 | B141: MOSELLE | C141: 42 | D141: MOSELLE EST | E141: 457617 | F141: SARREGUEMINES | G141: 8.3 | H141: 50% | I141: 31% | J141: 132 | K141: 39% | L141: 38% | M141: 77 | N141: 63% | O141: 45% | P141: 122 | Q141: 66% | R141: 45% | S141: 131 | T141: 67% | U141: 59% | V141: 154 | W141: 73% | X141: 64% | Y141: 193
A142: 30 | B142: MARNE-ARDENNES | C142: 6 | D142: CHALONS EN CHAMPAGNE | E142: 551103 | F142: FAGNIERES LECLERC | G142: 3.0 | H142: 50% | I142: 31% | J142: 133 | K142: 32% | L142: 30% | M142: 42 | N142: 58% | O142: 39% | P142: 74 | Q142: 82% | R142: 61% | S142: 255 | T142: 73% | U142: 65% | V142: 204 | W142: 63% | X142: 54% | Y142: 93
A143: 30 | B143: MEURTHE ET MOSELLE MEUSE | C143: 27 | D143: PONT A MOUSSON | E143: 554184 | F143: BRIEY | G143: 4.6 | H143: 50% | I143: 31% | J143: 134 | K143: 41% | L143: 39% | M143: 88 | N143: 70% | O143: 52% | P143: 196 | Q143: 57% | R143: 35% | S143: 49 | T143: 78% | U143: 70% | V143: 234 | W143: 63% | X143: 54% | Y143: 91
A144: 110 | B144: MEURTHE ET MOSELLE MEUSE | C144: 31 | D144: VERDUN | E144: 455676 | F144: VAUCOULEURS | G144: 1.8 | H144: 50% | I144: 31% | J144: 135 | K144: 95% | L144: 93% | M144: 261 | N144: 42% | O144: 23% | P144: 12 | Q144: 76% | R144: 54% | S144: 225 | T144: 44% | U144: 36% | V144: 27 | W144: 53% | X144: 44% | Y144: 27
A145: 110 | B145: BAS-RHIN | C145: 5006 | D145: STRASBOURG | E145: 4043 | F145: STRASBOURG HALLES | G145: 8.4 | H145: 50% | I145: 31% | J145: 136 | K145: 52% | L145: 51% | M145: 158 | N145: 65% | O145: 46% | P145: 144 | Q145: 61% | R145: 40% | S145: 78 | T145: 65% | U145: 57% | V145: 136 | W145: 66% | X145: 57% | Y145: 114
A146: 110 | B146: MEURTHE ET MOSELLE MEUSE | C146: 26 | D146: NANCY | E146: 454171 | F146: BLAMONT | G146: 1.5 | H146: 50% | I146: 31% | J146: 137 | K146: 72% | L146: 71% | M146: 238 | N146: 44% | O146: 26% | P146: 15 | Q146: 81% | R146: 60% | S146: 252 | T146: 45% | U146: 37% | V146: 29 | W146: 67% | X146: 58% | Y146: 128
A147: 110 | B147: BAS-RHIN | C147: 5060 | D147: HAGUENAU | E147: 4057 | F147: BISCHWILLER | G147: 6.6 | H147: 50% | I147: 31% | J147: 138 | K147: 51% | L147: 49% | M147: 150 | N147: 55% | O147: 37% | P147: 61 | Q147: 72% | R147: 51% | S147: 193 | T147: 59% | U147: 51% | V147: 91 | W147: 72% | X147: 63% | Y147: 189
A148: 110 | B148: BAS-RHIN | C148: 5060 | D148: HAGUENAU | E148: 4030 | F148: BRUMATH | G148: 5.3 | H148: 50% | I148: 31% | J148: 139 | K148: 45% | L148: 43% | M148: 109 | N148: 69% | O148: 51% | P148: 194 | Q148: 56% | R148: 34% | S148: 43 | T148: 77% | U148: 68% | V148: 225 | W148: 64% | X148: 55% | Y148: 94
A149: 110 | B149: BAS-RHIN | C149: 5060 | D149: HAGUENAU | E149: 4087 | F149: SAVERNE | G149: 8.0 | H149: 50% | I149: 31% | J149: 140 | K149: 50% | L149: 49% | M149: 149 | N149: 63% | O149: 44% | P149: 117 | Q149: 65% | R149: 44% | S149: 126 | T149: 67% | U149: 59% | V149: 150 | W149: 65% | X149: 56% | Y149: 101
A150: 110 | B150: MOSELLE | C150: 42 | D150: MOSELLE EST | E150: 557210 | F150: CHATEAU SALINS | G150: 2.5 | H150: 50% | I150: 31% | J150: 141 | K150: 71% | L150: 69% | M150: 235 | N150: 44% | O150: 25% | P150: 14 | Q150: 74% | R150: 53% | S150: 212 | T150: 62% | U150: 54% | V150: 111 | W150: 60% | X150: 51% | Y150: 66
A151: 110 | B151: MOSELLE | C151: 44 | D151: MOSELLE NORD | E151: 557622 | F151: SIERCK LES BAINS | G151: 1.3 | H151: 50% | I151: 32% | J151: 142 | K151: 51% | L151: 50% | M151: 154 | N151: 61% | O151: 42% | P151: 98 | Q151: 57% | R151: 36% | S151: 50 | T151: 82% | U151: 74% | V151: 247 | W151: 60% | X151: 51% | Y151: 62
A152: 110 | B152: VOSGES | C152: 57 | D152: EPINAL | E152: 488281 | F152: ELOYES | G152: 4.7 | H152: 51% | I152: 32% | J152: 143 | K152: 30% | L152: 29% | M152: 34 | N152: 69% | O152: 51% | P152: 190 | Q152: 68% | R152: 47% | S152: 142 | T152: 73% | U152: 65% | V152: 196 | W152: 72% | X152: 63% | Y152: 179
A153: 110 | B153: MOSELLE | C153: 45 | D153: METZ | E153: 557105 | F153: ARS SUR MOSELLE | G153: 3.9 | H153: 51% | I153: 32% | J153: 144 | K153: 45% | L153: 44% | M153: 110 | N153: 71% | O153: 53% | P153: 210 | Q153: 70% | R153: 49% | S153: 175 | T153: 71% | U153: 63% | V153: 183 | W153: 53% | X153: 44% | Y153: 29
A154: 110 | B154: MEURTHE ET MOSELLE MEUSE | C154: 31 | D154: VERDUN | E154: 455678 | F154: VERDUN CENTRALE | G154: 10.7 | H154: 51% | I154: 32% | J154: 145 | K154: 42% | L154: 41% | M154: 97 | N154: 59% | O154: 40% | P154: 84 | Q154: 76% | R154: 55% | S154: 228 | T154: 75% | U154: 67% | V154: 217 | W154: 59% | X154: 50% | Y154: 56
A155: 110 | B155: BAS-RHIN | C155: 5101 | D155: SELESTAT | E155: 4109 | F155: MARCKOLSHEIM | G155: 2.9 | H155: 51% | I155: 32% | J155: 146 | K155: 39% | L155: 37% | M155: 75 | N155: 67% | O155: 49% | P155: 170 | Q155: 68% | R155: 47% | S155: 147 | T155: 68% | U155: 60% | V155: 161 | W155: 69% | X155: 60% | Y155: 151
A156: 110 | B156: BAS-RHIN | C156: 5060 | D156: HAGUENAU | E156: 4071 | F156: WISSEMBOURG | G156: 8.3 | H156: 51% | I156: 32% | J156: 147 | K156: 41% | L156: 39% | M156: 86 | N156: 64% | O156: 46% | P156: 140 | Q156: 59% | R156: 38% | S156: 59 | T156: 71% | U156: 63% | V156: 180 | W156: 77% | X156: 68% | Y156: 228
A157: 110 | B157: MOSELLE | C157: 44 | D157: MOSELLE NORD | E157: 457632 | F157: THIONVILLE CENTRALE | G157: 11.8 | H157: 51% | I157: 32% | J157: 148 | K157: 52% | L157: 50% | M157: 157 | N157: 59% | O157: 41% | P157: 86 | Q157: 67% | R157: 45% | S157: 135 | T157: 62% | U157: 54% | V157: 115 | W157: 72% | X157: 63% | Y157: 180
A158: 110 | B158: MEURTHE ET MOSELLE MEUSE | C158: 27 | D158: PONT A MOUSSON | E158: 554496 | F158: NANCY TROIS MAISONS | G158: 2.5 | H158: 51% | I158: 32% | J158: 149 | K158: 76% | L158: 75% | M158: 244 | N158: 54% | O158: 35% | P158: 51 | Q158: 60% | R158: 39% | S158: 63 | T158: 56% | U158: 48% | V158: 74 | W158: 66% | X158: 57% | Y158: 115
A159: 110 | B159: MARNE-ARDENNES | C159: 2 | D159: CHARLEVILLE MEZIERES | E159: 408806 | F159: SEDAN | G159: 8.8 | H159: 51% | I159: 32% | J159: 150 | K159: 34% | L159: 33% | M159: 51 | N159: 71% | O159: 53% | P159: 212 | Q159: 65% | R159: 44% | S159: 125 | T159: 76% | U159: 68% | V159: 222 | W159: 66% | X159: 57% | Y159: 112
A160: 110 | B160: MOSELLE | C160: 45 | D160: METZ | E160: 557178 | F160: BOULAY | G160: 4.1 | H160: 51% | I160: 32% | J160: 151 | K160: 29% | L160: 28% | M160: 32 | N160: 67% | O160: 49% | P160: 162 | Q160: 66% | R160: 45% | S160: 134 | T160: 72% | U160: 64% | V160: 189 | W160: 77% | X160: 68% | Y160: 232
A161: 110 | B161: MOSELLE | C161: 45 | D161: METZ | E161: 557439 | F161: METZ POMPIDOU | G161: 3.9 | H161: 51% | I161: 32% | J161: 152 | K161: 48% | L161: 47% | M161: 139 | N161: 70% | O161: 52% | P161: 200 | Q161: 67% | R161: 46% | S161: 136 | T161: 60% | U161: 51% | V161: 97 | W161: 68% | X161: 59% | Y161: 135
A162: 110 | B162: MARNE-ARDENNES | C162: 11 | D162: REIMS | E162: 451301 | F162: REIMS HOTEL DE VILLE | G162: 7.6 | H162: 51% | I162: 32% | J162: 153 | K162: 50% | L162: 48% | M162: 145 | N162: 54% | O162: 36% | P162: 56 | Q162: 88% | R162: 67% | S162: 261 | T162: 57% | U162: 49% | V162: 78 | W162: 64% | X162: 55% | Y162: 97
A163: 110 | B163: MOSELLE | C163: 42 | D163: MOSELLE EST | E163: 557503 | F163: NEUNKIRCH | G163: 3.8 | H163: 51% | I163: 32% | J163: 154 | K163: 33% | L163: 32% | M163: 49 | N163: 71% | O163: 53% | P163: 209 | Q163: 63% | R163: 42% | S163: 99 | T163: 72% | U163: 64% | V163: 190 | W163: 74% | X163: 65% | Y163: 202
A164: 110 | B164: HAUT-RHIN | C164: 5130 | D164: COLMAR | E164: 4143 | F164: MUNSTER | G164: 5.2 | H164: 51% | I164: 32% | J164: 155 | K164: 48% | L164: 46% | M164: 127 | N164: 55% | O164: 37% | P164: 59 | Q164: 74% | R164: 53% | S164: 215 | T164: 64% | U164: 56% | V164: 126 | W164: 74% | X164: 64% | Y164: 199
A165: 110 | B165: HAUT-RHIN | C165: 5130 | D165: COLMAR | E165: 4157 | F165: NEUF BRISACH | G165: 3.7 | H165: 51% | I165: 32% | J165: 156 | K165: 37% | L165: 36% | M165: 66 | N165: 76% | O165: 58% | P165: 234 | Q165: 72% | R165: 51% | S165: 192 | T165: 58% | U165: 49% | V165: 82 | W165: 72% | X165: 63% | Y165: 178
A166: 110 | B166: MEURTHE ET MOSELLE MEUSE | C166: 31 | D166: VERDUN | E166: 455566 | F166: REVIGNY SUR ORNAIN | G166: 3.3 | H166: 51% | I166: 32% | J166: 157 | K166: 35% | L166: 34% | M166: 55 | N166: 58% | O166: 40% | P166: 79 | Q166: 79% | R166: 58% | S166: 243 | T166: 71% | U166: 63% | V166: 181 | W166: 72% | X166: 63% | Y166: 182
A167: 110 | B167: BAS-RHIN | C167: 5060 | D167: HAGUENAU | E167: 4085 | F167: INGWILLER | G167: 3.4 | H167: 51% | I167: 32% | J167: 158 | K167: 51% | L167: 50% | M167: 156 | N167: 52% | O167: 34% | P167: 44 | Q167: 77% | R167: 56% | S167: 236 | T167: 69% | U167: 61% | V167: 169 | W167: 65% | X167: 56% | Y167: 102
A168: 110 | B168: BAS-RHIN | C168: 5006 | D168: STRASBOURG | E168: 4020 | F168: STRASBOURG ROBERTSAU | G168: 6.0 | H168: 51% | I168: 32% | J168: 159 | K168: 60% | L168: 59% | M168: 198 | N168: 62% | O168: 44% | P168: 108 | Q168: 61% | R168: 40% | S168: 73 | T168: 69% | U168: 60% | V168: 163 | W168: 63% | X168: 54% | Y168: 87
A169: 110 | B169: MARNE-ARDENNES | C169: 11 | D169: REIMS | E169: 551369 | F169: DAMERY | G169: 2.5 | H169: 51% | I169: 32% | J169: 160 | K169: 53% | L169: 51% | M169: 161 | N169: 72% | O169: 53% | P169: 213 | Q169: 74% | R169: 53% | S169: 218 | T169: 57% | U169: 48% | V169: 77 | W169: 60% | X169: 51% | Y169: 64
A170: 110 | B170: AUBE HAUTE MARNE | C170: 14 | D170: TROYES | E170: 510530 | F170: ARCIS SUR AUBE | G170: 3.9 | H170: 52% | I170: 33% | J170: 161 | K170: 37% | L170: 36% | M170: 69 | N170: 57% | O170: 39% | P170: 71 | Q170: 73% | R170: 52% | S170: 199 | T170: 72% | U170: 63% | V170: 184 | W170: 77% | X170: 68% | Y170: 226
A171: 110 | B171: MEURTHE ET MOSELLE MEUSE | C171: 27 | D171: PONT A MOUSSON | E171: 454355 | F171: JARNY | G171: 4.5 | H171: 52% | I171: 33% | J171: 162 | K171: 59% | L171: 58% | M171: 192 | N171: 57% | O171: 38% | P171: 66 | Q171: 77% | R171: 55% | S171: 230 | T171: 57% | U171: 49% | V171: 80 | W171: 67% | X171: 57% | Y171: 119
A172: 110 | B172: MEURTHE ET MOSELLE MEUSE | C172: 27 | D172: PONT A MOUSSON | E172: 454696 | F172: VILLERS GENERAL LECLERC | G172: 6.2 | H172: 52% | I172: 33% | J172: 163 | K172: 36% | L172: 34% | M172: 59 | N172: 68% | O172: 50% | P172: 181 | Q172: 68% | R172: 47% | S172: 143 | T172: 69% | U172: 61% | V172: 170 | W172: 75% | X172: 66% | Y172: 216
A173: 110 | B173: AUBE HAUTE MARNE | C173: 21 | D173: CHAUMONT | E173: 410566 | F173: CHAUMONT HOTEL DE VILLE | G173: 7.6 | H173: 52% | I173: 33% | J173: 164 | K173: 49% | L173: 47% | M173: 140 | N173: 64% | O173: 46% | P173: 134 | Q173: 73% | R173: 52% | S173: 202 | T173: 69% | U173: 61% | V173: 168 | W173: 61% | X173: 52% | Y173: 69
A174: 110 | B174: MOSELLE | C174: 44 | D174: MOSELLE NORD | E174: 457158 | F174: YUTZ | G174: 4.6 | H174: 52% | I174: 33% | J174: 165 | K174: 48% | L174: 47% | M174: 136 | N174: 62% | O174: 43% | P174: 106 | Q174: 74% | R174: 53% | S174: 210 | T174: 60% | U174: 52% | V174: 99 | W174: 73% | X174: 64% | Y174: 194
A175: 110 | B175: MEURTHE ET MOSELLE MEUSE | C175: 26 | D175: NANCY | E175: 554166 | F175: BLAINVILLE | G175: 3.2 | H175: 52% | I175: 33% | J175: 166 | K175: 70% | L175: 69% | M175: 234 | N175: 60% | O175: 41% | P175: 91 | Q175: 63% | R175: 42% | S175: 95 | T175: 67% | U175: 59% | V175: 155 | W175: 57% | X175: 48% | Y175: 42
A176: 110 | B176: MARNE-ARDENNES | C176: 2 | D176: CHARLEVILLE MEZIERES | E176: 508817 | F176: CHARLEVILLE MOHON | G176: 3.4 | H176: 52% | I176: 33% | J176: 167 | K176: 36% | L176: 35% | M176: 62 | N176: 67% | O176: 49% | P176: 171 | Q176: 75% | R176: 54% | S176: 223 | T176: 74% | U176: 66% | V176: 212 | W176: 65% | X176: 55% | Y176: 98
A177: 110 | B177: MARNE-ARDENNES | C177: 2 | D177: CHARLEVILLE MEZIERES | E177: 408840 | F177: RETHEL | G177: 4.9 | H177: 52% | I177: 33% | J177: 168 | K177: 29% | L177: 28% | M177: 28 | N177: 67% | O177: 49% | P177: 173 | Q177: 70% | R177: 49% | S177: 161 | T177: 76% | U177: 68% | V177: 224 | W177: 76% | X177: 67% | Y177: 222
A178: 110 | B178: MOSELLE | C178: 42 | D178: MOSELLE EST | E178: 457258 | F178: DIEUZE | G178: 3.0 | H178: 52% | I178: 33% | J178: 169 | K178: 55% | L178: 54% | M178: 166 | N178: 58% | O178: 40% | P178: 82 | Q178: 70% | R178: 49% | S178: 173 | T178: 60% | U178: 52% | V178: 101 | W178: 75% | X178: 66% | Y178: 211
A179: 110 | B179: MOSELLE | C179: 45 | D179: METZ | E179: 557559 | F179: REMILLY | G179: 4.1 | H179: 52% | I179: 33% | J179: 170 | K179: 55% | L179: 54% | M179: 168 | N179: 68% | O179: 49% | P179: 175 | Q179: 62% | R179: 41% | S179: 88 | T179: 63% | U179: 55% | V179: 119 | W179: 72% | X179: 63% | Y179: 176
A180: 110 | B180: MEURTHE ET MOSELLE MEUSE | C180: 27 | D180: PONT A MOUSSON | E180: 554196 | F180: CHAMPIGNEULLES | G180: 3.5 | H180: 52% | I180: 33% | J180: 171 | K180: 60% | L180: 58% | M180: 196 | N180: 50% | O180: 32% | P180: 39 | Q180: 72% | R180: 51% | S180: 190 | T180: 64% | U180: 56% | V180: 127 | W180: 75% | X180: 66% | Y180: 210
A181: 110 | B181: VOSGES | C181: 55 | D181: SAINT DIE | E181: 588551 | F181: RAMBERVILLERS | G181: 3.5 | H181: 53% | I181: 34% | J181: 172 | K181: 31% | L181: 30% | M181: 40 | N181: 79% | O181: 61% | P181: 246 | Q181: 70% | R181: 49% | S181: 172 | T181: 72% | U181: 64% | V181: 194 | W181: 67% | X181: 58% | Y181: 130
A182: 110 | B182: MEURTHE ET MOSELLE MEUSE | C182: 31 | D182: VERDUN | E182: 554700 | F182: VILLERUPT | G182: 2.9 | H182: 53% | I182: 34% | J182: 173 | K182: 50% | L182: 48% | M182: 147 | N182: 62% | O182: 44% | P182: 112 | Q182: 65% | R182: 44% | S182: 121 | T182: 77% | U182: 69% | V182: 227 | W182: 67% | X182: 58% | Y182: 122
A183: 110 | B183: HAUT-RHIN | C183: 5130 | D183: COLMAR | E183: 4132 | F183: COLMAR MARAICHERS | G183: 4.5 | H183: 53% | I183: 34% | J183: 174 | K183: 49% | L183: 48% | M183: 144 | N183: 49% | O183: 30% | P183: 32 | Q183: 75% | R183: 54% | S183: 221 | T183: 65% | U183: 57% | V183: 137 | W183: 83% | X183: 74% | Y183: 255
A184: 110 | B184: MEURTHE ET MOSELLE MEUSE | C184: 26 | D184: NANCY | E184: 454671 | F184: VANDOEUVRE LES NANCY | G184: 4.6 | H184: 53% | I184: 34% | J184: 175 | K184: 60% | L184: 58% | M184: 194 | N184: 61% | O184: 43% | P184: 103 | Q184: 77% | R184: 56% | S184: 232 | T184: 69% | U184: 61% | V184: 166 | W184: 55% | X184: 46% | Y184: 35
A185: 110 | B185: MEURTHE ET MOSELLE MEUSE | C185: 26 | D185: NANCY | E185: 554296 | F185: ESSEY LES NANCY | G185: 3.9 | H185: 53% | I185: 34% | J185: 176 | K185: 55% | L185: 54% | M185: 169 | N185: 60% | O185: 42% | P185: 92 | Q185: 68% | R185: 47% | S185: 148 | T185: 73% | U185: 64% | V185: 195 | W185: 65% | X185: 56% | Y185: 106
A186: 110 | B186: VOSGES | C186: 55 | D186: SAINT DIE | E186: 588587 | F186: SAINT DIE CATHEDRALE | G186: 3.9 | H186: 53% | I186: 34% | J186: 177 | K186: 35% | L186: 34% | M186: 57 | N186: 73% | O186: 55% | P186: 219 | Q186: 65% | R186: 43% | S186: 116 | T186: 75% | U186: 66% | V186: 216 | W186: 74% | X186: 65% | Y186: 206
A187: 110 | B187: MOSELLE | C187: 42 | D187: MOSELLE EST | E187: 457435 | F187: MERLEBACH | G187: 3.8 | H187: 53% | I187: 34% | J187: 178 | K187: 57% | L187: 55% | M187: 177 | N187: 65% | O187: 47% | P187: 148 | Q187: 73% | R187: 52% | S187: 201 | T187: 56% | U187: 48% | V187: 75 | W187: 71% | X187: 62% | Y187: 166
A188: 110 | B188: BAS-RHIN | C188: 5006 | D188: STRASBOURG | E188: 4028 | F188: BISCHHEIM | G188: 3.6 | H188: 53% | I188: 34% | J188: 179 | K188: 58% | L188: 57% | M188: 186 | N188: 65% | O188: 47% | P188: 145 | Q188: 71% | R188: 50% | S188: 183 | T188: 52% | U188: 43% | V188: 57 | W188: 76% | X188: 67% | Y188: 219
A189: 110 | B189: MOSELLE | C189: 44 | D189: MOSELLE NORD | E189: 557660 | F189: UCKANGE | G189: 1.7 | H189: 53% | I189: 34% | J189: 180 | K189: 91% | L189: 90% | M189: 259 | N189: 67% | O189: 49% | P189: 174 | Q189: 64% | R189: 43% | S189: 108 | T189: 40% | U189: 32% | V189: 21 | W189: 60% | X189: 51% | Y189: 61
A190: 110 | B190: MOSELLE | C190: 45 | D190: METZ | E190: 557434 | F190: MARLY | G190: 3.8 | H190: 53% | I190: 34% | J190: 181 | K190: 41% | L190: 40% | M190: 91 | N190: 63% | O190: 45% | P190: 130 | Q190: 66% | R190: 45% | S190: 130 | T190: 82% | U190: 74% | V190: 245 | W190: 70% | X190: 61% | Y190: 155
A191: 110 | B191: MOSELLE | C191: 42 | D191: MOSELLE EST | E191: 557668 | F191: VALMONT | G191: 4.6 | H191: 53% | I191: 34% | J191: 182 | K191: 27% | L191: 26% | M191: 22 | N191: 75% | O191: 57% | P191: 233 | Q191: 70% | R191: 49% | S191: 167 | T191: 71% | U191: 62% | V191: 179 | W191: 80% | X191: 70% | Y191: 245
A192: 160 | B192: HAUT-RHIN | C192: 5130 | D192: COLMAR | E192: 4135 | F192: COLMAR SAINTE MARIE | G192: 6.8 | H192: 53% | I192: 34% | J192: 183 | K192: 63% | L192: 62% | M192: 208 | N192: 62% | O192: 44% | P192: 107 | Q192: 62% | R192: 41% | S192: 83 | T192: 65% | U192: 57% | V192: 135 | W192: 71% | X192: 62% | Y192: 173
A193: 160 | B193: VOSGES | C193: 55 | D193: SAINT DIE | E193: 588461 | F193: MOYENMOUTIER | G193: 2.5 | H193: 53% | I193: 34% | J193: 184 | K193: 69% | L193: 68% | M193: 229 | N193: 55% | O193: 37% | P193: 58 | Q193: 62% | R193: 41% | S193: 84 | T193: 72% | U193: 64% | V193: 186 | W193: 65% | X193: 56% | Y193: 108
A194: 160 | B194: BAS-RHIN | C194: 5101 | D194: SELESTAT | E194: 4116 | F194: MOLSHEIM | G194: 5.1 | H194: 53% | I194: 34% | J194: 185 | K194: 59% | L194: 58% | M194: 193 | N194: 69% | O194: 51% | P194: 192 | Q194: 51% | R194: 30% | S194: 21 | T194: 73% | U194: 65% | V194: 199 | W194: 72% | X194: 63% | Y194: 177
A195: 160 | B195: MARNE-ARDENNES | C195: 11 | D195: REIMS | E195: 451308 | F195: REIMS SAINT THOMAS | G195: 7.5 | H195: 53% | I195: 34% | J195: 186 | K195: 58% | L195: 57% | M195: 188 | N195: 72% | O195: 53% | P195: 214 | Q195: 73% | R195: 51% | S195: 195 | T195: 69% | U195: 61% | V195: 173 | W195: 53% | X195: 44% | Y195: 28
A196: 160 | B196: MOSELLE | C196: 42 | D196: MOSELLE EST | E196: 557523 | F196: PHALSBOURG | G196: 2.2 | H196: 53% | I196: 34% | J196: 187 | K196: 57% | L196: 55% | M196: 178 | N196: 79% | O196: 61% | P196: 245 | Q196: 65% | R196: 44% | S196: 124 | T196: 66% | U196: 58% | V196: 148 | W196: 58% | X196: 49% | Y196: 49
A197: 160 | B197: MEURTHE ET MOSELLE MEUSE | C197: 26 | D197: NANCY | E197: 554611 | F197: SAINT NICOLAS DE PORT | G197: 2.8 | H197: 54% | I197: 35% | J197: 188 | K197: 32% | L197: 30% | M197: 43 | N197: 66% | O197: 47% | P197: 156 | Q197: 61% | R197: 40% | S197: 67 | T197: 94% | U197: 86% | V197: 261 | W197: 74% | X197: 65% | Y197: 201
A198: 160 | B198: HAUT-RHIN | C198: 5169 | D198: MULHOUSE | E198: 4181 | F198: WITTELSHEIM | G198: 3.3 | H198: 54% | I198: 35% | J198: 189 | K198: 57% | L198: 55% | M198: 176 | N198: 70% | O198: 51% | P198: 195 | Q198: 74% | R198: 53% | S198: 214 | T198: 68% | U198: 60% | V198: 158 | W198: 58% | X198: 49% | Y198: 47
A199: 160 | B199: BAS-RHIN | C199: 5006 | D199: STRASBOURG | E199: 4027 | F199: SCHILTIGHEIM CENTRE | G199: 4.1 | H199: 54% | I199: 35% | J199: 190 | K199: 61% | L199: 60% | M199: 200 | N199: 64% | O199: 46% | P199: 135 | Q199: 59% | R199: 37% | S199: 55 | T199: 73% | U199: 65% | V199: 206 | W199: 69% | X199: 60% | Y199: 147
A200: 160 | B200: MARNE-ARDENNES | C200: 11 | D200: REIMS | E200: 551306 | F200: REIMS SAINT MARCEAUX | G200: 4.3 | H200: 54% | I200: 35% | J200: 191 | K200: 64% | L200: 62% | M200: 213 | N200: 63% | O200: 45% | P200: 123 | Q200: 87% | R200: 66% | S200: 260 | T200: 50% | U200: 42% | V200: 49 | W200: 63% | X200: 53% | Y200: 84
A201: 160 | B201: MOSELLE | C201: 45 | D201: METZ | E201: 557445 | F201: METZ SAINT LIVIER | G201: 3.0 | H201: 54% | I201: 35% | J201: 192 | K201: 48% | L201: 46% | M201: 128 | N201: 63% | O201: 45% | P201: 120 | Q201: 70% | R201: 48% | S201: 160 | T201: 74% | U201: 66% | V201: 209 | W201: 72% | X201: 63% | Y201: 192
A202: 160 | B202: AUBE HAUTE MARNE | C202: 14 | D202: TROYES | E202: 510522 | F202: TROYES CHARTREUX | G202: 2.9 | H202: 54% | I202: 35% | J202: 193 | K202: 48% | L202: 46% | M202: 126 | N202: 65% | O202: 47% | P202: 151 | Q202: 69% | R202: 48% | S202: 154 | T202: 70% | U202: 62% | V202: 178 | W202: 75% | X202: 66% | Y202: 212
A203: 160 | B203: HAUT-RHIN | C203: 5169 | D203: MULHOUSE | E203: 4170 | F203: MULHOUSE REUNION | G203: 11.4 | H203: 54% | I203: 35% | J203: 194 | K203: 64% | L203: 63% | M203: 216 | N203: 70% | O203: 52% | P203: 202 | Q203: 73% | R203: 52% | S203: 203 | T203: 47% | U203: 39% | V203: 38 | W203: 72% | X203: 63% | Y203: 188
... 71 more rows

Sheet AG_BANCA
B1: Accueil | H1: BAROMETRE BDD - AGENCES
H2: BANCARISATION
H3: =ACCUEIL!F7 -> 2021-06-20
H7: Ventes Nettes produits pondérés | L7: Ventes sur client non détenteur de l’univers | P7: Mobilité Macron | T7: Remises commerciales | X7: Total Bancarisation
H8: =DATEMAJ!C8 -> au 20/06 | J8: coef | K8: ='RECAP DIRCOM'!AA4 -> 10% | L8: =DATEMAJ!C9 -> au 20/06 | N8: coef | O8: ='RECAP DIRCOM'!AE4 -> 4% | P8: =DATEMAJ!C10 -> au 20/06 | R8: coef | S8: ='RECAP DIRCOM'!AI4 -> 3% | T8: =DATEMAJ!C11 -> au 30/04 | V8: coef | W8: ='RECAP DIRCOM'!AM4 -> 3% | Y8: coef | Z8: ='RECAP DIRCOM'!$AP$4 -> 20%
B9: Direction | C9: eds | D9: Territoire | E9: eds | F9: Agence | G9: ="ETP perf "&DATEMAJ!$C$28 -> ETP perf 30-avr | H9: VN | I9: VN / ETP | J9: % Ecart au 1er | K9: Rang | L9: VB | M9: VB / ETP | N9: % Ecart au 1er | O9: Rang | P9: Nb | Q9: Nb / ETP | R9: % Ecart au 1er | S9: Rang | T9: Montant | U9: Montant / ETP | V9: % Ecart au 1er | W9: Rang | X9: Moyenne ecart au 1er | Y9: % Ecart au 1er | Z9: Rang CEGEE
A10: 50 | B10: AUBE HAUTE MARNE | C10: 21 | D10: CHAUMONT | E10: 410560 | F10: BOURBONNE LES BAINS | G10: =VLOOKUP($E10,'RECAP AG'!$G$6:$DC$270,3,FALSE) -> 2.0 | H10: =VLOOKUP($E10,'RECAP AG'!$G$6:$DC$270,18,FALSE) -> 105.0 | I10: =VLOOKUP($E10,'RECAP AG'!$G$6:$DC$270,19,FALSE) -> 52.50 | J10: =VLOOKUP($E10,'RECAP AG'!$G$6:$DC$270,20,FALSE) -> 56% | K10: =VLOOKUP($E10,'RECAP AG'!$G$6:$DC$270,21,FALSE) -> 82 | L10: =VLOOKUP($E10,'RECAP AG'!$G$6:$DC$270,22,FALSE) -> 38 | M10: =VLOOKUP($E10,'RECAP AG'!$G$6:$DC$270,23,FALSE) -> 19.00 | N10: =VLOOKUP($E10,'RECAP AG'!$G$6:$DC$270,24,FALSE) -> 66% | O10: =VLOOKUP($E10,'RECAP AG'!$G$6:$DC$270,25,FALSE) -> 232 | P10: =VLOOKUP($E10,'RECAP AG'!$G$6:$DC$270,26,FALSE) -> 7 | Q10: =VLOOKUP($E10,'RECAP AG'!$G$6:$DC$270,27,FALSE) -> 3.50 | R10: =VLOOKUP($E10,'RECAP AG'!$G$6:$DC$270,28,FALSE) -> 88% | S10: =VLOOKUP($E10,'RECAP AG'!$G$6:$DC$270,29,FALSE) -> 169 | T10: =VLOOKUP($E10,'RECAP AG'!$G$6:$DC$270,30,FALSE) -> -1.96 | U10: =VLOOKUP($E10,'RECAP AG'!$G$6:$DC$270,31,FALSE) -> -0.98 | V10: =VLOOKUP($E10,'RECAP AG'!$G$6:$DC$270,32,FALSE) -> 32% | W10: =VLOOKUP($E10,'RECAP AG'!$G$6:$DC$270,33,FALSE) -> 45 | X10: =VLOOKUP($E10,'RECAP AG'!$G$6:$DC$270,34,FALSE) -> 59% | Y10: =VLOOKUP($E10,'RECAP AG'!$G$6:$DC$270,35,FALSE) -> 41% | Z10: =VLOOKUP($E10,'RECAP AG'!$G$6:$DC$270,36,FALSE) -> 87
A11: 50 | B11: AUBE HAUTE MARNE | C11: 21 | D11: CHAUMONT | E11: 410566 | F11: CHAUMONT HOTEL DE VILLE | G11: =VLOOKUP($E11,'RECAP AG'!$G$6:$DC$270,3,FALSE) -> 7.6 | H11: =VLOOKUP($E11,'RECAP AG'!$G$6:$DC$270,18,FALSE) -> 305.6 | I11: =VLOOKUP($E11,'RECAP AG'!$G$6:$DC$270,19,FALSE) -> 40.18 | J11: =VLOOKUP($E11,'RECAP AG'!$G$6:$DC$270,20,FALSE) -> 66% | K11: =VLOOKUP($E11,'RECAP AG'!$G$6:$DC$270,21,FALSE) -> 145 | L11: =VLOOKUP($E11,'RECAP AG'!$G$6:$DC$270,22,FALSE) -> 219 | M11: =VLOOKUP($E11,'RECAP AG'!$G$6:$DC$270,23,FALSE) -> 28.79 | N11: =VLOOKUP($E11,'RECAP AG'!$G$6:$DC$270,24,FALSE) -> 48% | O11: =VLOOKUP($E11,'RECAP AG'!$G$6:$DC$270,25,FALSE) -> 79 | P11: =VLOOKUP($E11,'RECAP AG'!$G$6:$DC$270,26,FALSE) -> 43 | Q11: =VLOOKUP($E11,'RECAP AG'!$G$6:$DC$270,27,FALSE) -> 5.65 | R11: =VLOOKUP($E11,'RECAP AG'!$G$6:$DC$270,28,FALSE) -> 80% | S11: =VLOOKUP($E11,'RECAP AG'!$G$6:$DC$270,29,FALSE) -> 93 | T11: =VLOOKUP($E11,'RECAP AG'!$G$6:$DC$270,30,FALSE) -> -11.15 | U11: =VLOOKUP($E11,'RECAP AG'!$G$6:$DC$270,31,FALSE) -> -1.47 | V11: =VLOOKUP($E11,'RECAP AG'!$G$6:$DC$270,32,FALSE) -> 60% | W11: =VLOOKUP($E11,'RECAP AG'!$G$6:$DC$270,33,FALSE) -> 152 | X11: =VLOOKUP($E11,'RECAP AG'!$G$6:$DC$270,34,FALSE) -> 64% | Y11: =VLOOKUP($E11,'RECAP AG'!$G$6:$DC$270,35,FALSE) -> 46% | Z11: =VLOOKUP($E11,'RECAP AG'!$G$6:$DC$270,36,FALSE) -> 134
A12: 50 | B12: AUBE HAUTE MARNE | C12: 21 | D12: CHAUMONT | E12: 510590 | F12: CHAUMONT REPUBLIQUE | G12: =VLOOKUP($E12,'RECAP AG'!$G$6:$DC$270,3,FALSE) -> 4.3 | H12: =VLOOKUP($E12,'RECAP AG'!$G$6:$DC$270,18,FALSE) -> 167.0 | I12: =VLOOKUP($E12,'RECAP AG'!$G$6:$DC$270,19,FALSE) -> 38.40 | J12: =VLOOKUP($E12,'RECAP AG'!$G$6:$DC$270,20,FALSE) -> 68% | K12: =VLOOKUP($E12,'RECAP AG'!$G$6:$DC$270,21,FALSE) -> 155 | L12: =VLOOKUP($E12,'RECAP AG'!$G$6:$DC$270,22,FALSE) -> 142 | M12: =VLOOKUP($E12,'RECAP AG'!$G$6:$DC$270,23,FALSE) -> 32.65 | N12: =VLOOKUP($E12,'RECAP AG'!$G$6:$DC$270,24,FALSE) -> 42% | O12: =VLOOKUP($E12,'RECAP AG'!$G$6:$DC$270,25,FALSE) -> 45 | P12: =VLOOKUP($E12,'RECAP AG'!$G$6:$DC$270,26,FALSE) -> 25 | Q12: =VLOOKUP($E12,'RECAP AG'!$G$6:$DC$270,27,FALSE) -> 5.75 | R12: =VLOOKUP($E12,'RECAP AG'!$G$6:$DC$270,28,FALSE) -> 80% | S12: =VLOOKUP($E12,'RECAP AG'!$G$6:$DC$270,29,FALSE) -> 87 | T12: =VLOOKUP($E12,'RECAP AG'!$G$6:$DC$270,30,FALSE) -> -4.96 | U12: =VLOOKUP($E12,'RECAP AG'!$G$6:$DC$270,31,FALSE) -> -1.14 | V12: =VLOOKUP($E12,'RECAP AG'!$G$6:$DC$270,32,FALSE) -> 41% | W12: =VLOOKUP($E12,'RECAP AG'!$G$6:$DC$270,33,FALSE) -> 75 | X12: =VLOOKUP($E12,'RECAP AG'!$G$6:$DC$270,34,FALSE) -> 60% | Y12: =VLOOKUP($E12,'RECAP AG'!$G$6:$DC$270,35,FALSE) -> 42% | Z12: =VLOOKUP($E12,'RECAP AG'!$G$6:$DC$270,36,FALSE) -> 94
A13: 50 | B13: AUBE HAUTE MARNE | C13: 21 | D13: CHAUMONT | E13: 451154 | F13: JOINVILLE | G13: =VLOOKUP($E13,'RECAP AG'!$G$6:$DC$270,3,FALSE) -> 1.8 | H13: =VLOOKUP($E13,'RECAP AG'!$G$6:$DC$270,18,FALSE) -> 39.6 | I13: =VLOOKUP($E13,'RECAP AG'!$G$6:$DC$270,19,FALSE) -> 21.51 | J13: =VLOOKUP($E13,'RECAP AG'!$G$6:$DC$270,20,FALSE) -> 82% | K13: =VLOOKUP($E13,'RECAP AG'!$G$6:$DC$270,21,FALSE) -> 231 | L13: =VLOOKUP($E13,'RECAP AG'!$G$6:$DC$270,22,FALSE) -> 51 | M13: =VLOOKUP($E13,'RECAP AG'!$G$6:$DC$270,23,FALSE) -> 27.70 | N13: =VLOOKUP($E13,'RECAP AG'!$G$6:$DC$270,24,FALSE) -> 50% | O13: =VLOOKUP($E13,'RECAP AG'!$G$6:$DC$270,25,FALSE) -> 92 | P13: =VLOOKUP($E13,'RECAP AG'!$G$6:$DC$270,26,FALSE) -> 5 | Q13: =VLOOKUP($E13,'RECAP AG'!$G$6:$DC$270,27,FALSE) -> 2.72 | R13: =VLOOKUP($E13,'RECAP AG'!$G$6:$DC$270,28,FALSE) -> 91% | S13: =VLOOKUP($E13,'RECAP AG'!$G$6:$DC$270,29,FALSE) -> 193 | T13: =VLOOKUP($E13,'RECAP AG'!$G$6:$DC$270,30,FALSE) -> -3.59 | U13: =VLOOKUP($E13,'RECAP AG'!$G$6:$DC$270,31,FALSE) -> -1.95 | V13: =VLOOKUP($E13,'RECAP AG'!$G$6:$DC$270,32,FALSE) -> 87% | W13: =VLOOKUP($E13,'RECAP AG'!$G$6:$DC$270,33,FALSE) -> 225 | X13: =VLOOKUP($E13,'RECAP AG'!$G$6:$DC$270,34,FALSE) -> 78% | Y13: =VLOOKUP($E13,'RECAP AG'!$G$6:$DC$270,35,FALSE) -> 60% | Z13: =VLOOKUP($E13,'RECAP AG'!$G$6:$DC$270,36,FALSE) -> 241
A14: 50 | B14: AUBE HAUTE MARNE | C14: 21 | D14: CHAUMONT | E14: 410541 | F14: LANGRES | G14: =VLOOKUP($E14,'RECAP AG'!$G$6:$DC$270,3,FALSE) -> 6.4 | H14: =VLOOKUP($E14,'RECAP AG'!$G$6:$DC$270,18,FALSE) -> 331.4 | I14: =VLOOKUP($E14,'RECAP AG'!$G$6:$DC$270,19,FALSE) -> 51.94 | J14: =VLOOKUP($E14,'RECAP AG'!$G$6:$DC$270,20,FALSE) -> 56% | K14: =VLOOKUP($E14,'RECAP AG'!$G$6:$DC$270,21,FALSE) -> 83 | L14: =VLOOKUP($E14,'RECAP AG'!$G$6:$DC$270,22,FALSE) -> 156 | M14: =VLOOKUP($E14,'RECAP AG'!$G$6:$DC$270,23,FALSE) -> 24.45 | N14: =VLOOKUP($E14,'RECAP AG'!$G$6:$DC$270,24,FALSE) -> 56% | O14: =VLOOKUP($E14,'RECAP AG'!$G$6:$DC$270,25,FALSE) -> 145 | P14: =VLOOKUP($E14,'RECAP AG'!$G$6:$DC$270,26,FALSE) -> 34 | Q14: =VLOOKUP($E14,'RECAP AG'!$G$6:$DC$270,27,FALSE) -> 5.33 | R14: =VLOOKUP($E14,'RECAP AG'!$G$6:$DC$270,28,FALSE) -> 81% | S14: =VLOOKUP($E14,'RECAP AG'!$G$6:$DC$270,29,FALSE) -> 100 | T14: =VLOOKUP($E14,'RECAP AG'!$G$6:$DC$270,30,FALSE) -> -9.53 | U14: =VLOOKUP($E14,'RECAP AG'!$G$6:$DC$270,31,FALSE) -> -1.49 | V14: =VLOOKUP($E14,'RECAP AG'!$G$6:$DC$270,32,FALSE) -> 61% | W14: =VLOOKUP($E14,'RECAP AG'!$G$6:$DC$270,33,FALSE) -> 157 | X14: =VLOOKUP($E14,'RECAP AG'!$G$6:$DC$270,34,FALSE) -> 61% | Y14: =VLOOKUP($E14,'RECAP AG'!$G$6:$DC$270,35,FALSE) -> 43% | Z14: =VLOOKUP($E14,'RECAP AG'!$G$6:$DC$270,36,FALSE) -> 101
A15: 50 | B15: AUBE HAUTE MARNE | C15: 21 | D15: CHAUMONT | E15: 451156 | F15: SAINT DIZIER CENTRE | G15: =VLOOKUP($E15,'RECAP AG'!$G$6:$DC$270,3,FALSE) -> 9.3 | H15: =VLOOKUP($E15,'RECAP AG'!$G$6:$DC$270,18,FALSE) -> 429.2 | I15: =VLOOKUP($E15,'RECAP AG'!$G$6:$DC$270,19,FALSE) -> 46.05 | J15: =VLOOKUP($E15,'RECAP AG'!$G$6:$DC$270,20,FALSE) -> 61% | K15: =VLOOKUP($E15,'RECAP AG'!$G$6:$DC$270,21,FALSE) -> 110 | L15: =VLOOKUP($E15,'RECAP AG'!$G$6:$DC$270,22,FALSE) -> 269 | M15: =VLOOKUP($E15,'RECAP AG'!$G$6:$DC$270,23,FALSE) -> 28.86 | N15: =VLOOKUP($E15,'RECAP AG'!$G$6:$DC$270,24,FALSE) -> 48% | O15: =VLOOKUP($E15,'RECAP AG'!$G$6:$DC$270,25,FALSE) -> 76 | P15: =VLOOKUP($E15,'RECAP AG'!$G$6:$DC$270,26,FALSE) -> 46 | Q15: =VLOOKUP($E15,'RECAP AG'!$G$6:$DC$270,27,FALSE) -> 4.94 | R15: =VLOOKUP($E15,'RECAP AG'!$G$6:$DC$270,28,FALSE) -> 83% | S15: =VLOOKUP($E15,'RECAP AG'!$G$6:$DC$270,29,FALSE) -> 118 | T15: =VLOOKUP($E15,'RECAP AG'!$G$6:$DC$270,30,FALSE) -> -14.22 | U15: =VLOOKUP($E15,'RECAP AG'!$G$6:$DC$270,31,FALSE) -> -1.53 | V15: =VLOOKUP($E15,'RECAP AG'!$G$6:$DC$270,32,FALSE) -> 63% | W15: =VLOOKUP($E15,'RECAP AG'!$G$6:$DC$270,33,FALSE) -> 164 | X15: =VLOOKUP($E15,'RECAP AG'!$G$6:$DC$270,34,FALSE) -> 62% | Y15: =VLOOKUP($E15,'RECAP AG'!$G$6:$DC$270,35,FALSE) -> 44% | Z15: =VLOOKUP($E15,'RECAP AG'!$G$6:$DC$270,36,FALSE) -> 113
A16: 50 | B16: AUBE HAUTE MARNE | C16: 21 | D16: CHAUMONT | E16: 451151 | F16: WASSY | G16: =VLOOKUP($E16,'RECAP AG'!$G$6:$DC$270,3,FALSE) -> 2.0 | H16: =VLOOKUP($E16,'RECAP AG'!$G$6:$DC$270,18,FALSE) -> 133.3 | I16: =VLOOKUP($E16,'RECAP AG'!$G$6:$DC$270,19,FALSE) -> 67.92 | J16: =VLOOKUP($E16,'RECAP AG'!$G$6:$DC$270,20,FALSE) -> 43% | K16: =VLOOKUP($E16,'RECAP AG'!$G$6:$DC$270,21,FALSE) -> 43 | L16: =VLOOKUP($E16,'RECAP AG'!$G$6:$DC$270,22,FALSE) -> 54 | M16: =VLOOKUP($E16,'RECAP AG'!$G$6:$DC$270,23,FALSE) -> 27.52 | N16: =VLOOKUP($E16,'RECAP AG'!$G$6:$DC$270,24,FALSE) -> 51% | O16: =VLOOKUP($E16,'RECAP AG'!$G$6:$DC$270,25,FALSE) -> 94 | P16: =VLOOKUP($E16,'RECAP AG'!$G$6:$DC$270,26,FALSE) -> 10 | Q16: =VLOOKUP($E16,'RECAP AG'!$G$6:$DC$270,27,FALSE) -> 5.10 | R16: =VLOOKUP($E16,'RECAP AG'!$G$6:$DC$270,28,FALSE) -> 82% | S16: =VLOOKUP($E16,'RECAP AG'!$G$6:$DC$270,29,FALSE) -> 113 | T16: =VLOOKUP($E16,'RECAP AG'!$G$6:$DC$270,30,FALSE) -> -2.08 | U16: =VLOOKUP($E16,'RECAP AG'!$G$6:$DC$270,31,FALSE) -> -1.06 | V16: =VLOOKUP($E16,'RECAP AG'!$G$6:$DC$270,32,FALSE) -> 37% | W16: =VLOOKUP($E16,'RECAP AG'!$G$6:$DC$270,33,FALSE) -> 64 | X16: =VLOOKUP($E16,'RECAP AG'!$G$6:$DC$270,34,FALSE) -> 49% | Y16: =VLOOKUP($E16,'RECAP AG'!$G$6:$DC$270,35,FALSE) -> 31% | Z16: =VLOOKUP($E16,'RECAP AG'!$G$6:$DC$270,36,FALSE) -> 34
A17: 50 | B17: AUBE HAUTE MARNE | C17: 14 | D17: TROYES | E17: 510530 | F17: ARCIS SUR AUBE | G17: =VLOOKUP($E17,'RECAP AG'!$G$6:$DC$270,3,FALSE) -> 3.9 | H17: =VLOOKUP($E17,'RECAP AG'!$G$6:$DC$270,18,FALSE) -> 215.3 | I17: =VLOOKUP($E17,'RECAP AG'!$G$6:$DC$270,19,FALSE) -> 54.60 | J17: =VLOOKUP($E17,'RECAP AG'!$G$6:$DC$270,20,FALSE) -> 54% | K17: =VLOOKUP($E17,'RECAP AG'!$G$6:$DC$270,21,FALSE) -> 73 | L17: =VLOOKUP($E17,'RECAP AG'!$G$6:$DC$270,22,FALSE) -> 74 | M17: =VLOOKUP($E17,'RECAP AG'!$G$6:$DC$270,23,FALSE) -> 18.77 | N17: =VLOOKUP($E17,'RECAP AG'!$G$6:$DC$270,24,FALSE) -> 66% | O17: =VLOOKUP($E17,'RECAP AG'!$G$6:$DC$270,25,FALSE) -> 237 | P17: =VLOOKUP($E17,'RECAP AG'!$G$6:$DC$270,26,FALSE) -> 18 | Q17: =VLOOKUP($E17,'RECAP AG'!$G$6:$DC$270,27,FALSE) -> 4.56 | R17: =VLOOKUP($E17,'RECAP AG'!$G$6:$DC$270,28,FALSE) -> 84% | S17: =VLOOKUP($E17,'RECAP AG'!$G$6:$DC$270,29,FALSE) -> 130 | T17: =VLOOKUP($E17,'RECAP AG'!$G$6:$DC$270,30,FALSE) -> -3.60 | U17: =VLOOKUP($E17,'RECAP AG'!$G$6:$DC$270,31,FALSE) -> -0.91 | V17: =VLOOKUP($E17,'RECAP AG'!$G$6:$DC$270,32,FALSE) -> 28% | W17: =VLOOKUP($E17,'RECAP AG'!$G$6:$DC$270,33,FALSE) -> 36 | X17: =VLOOKUP($E17,'RECAP AG'!$G$6:$DC$270,34,FALSE) -> 57% | Y17: =VLOOKUP($E17,'RECAP AG'!$G$6:$DC$270,35,FALSE) -> 39% | Z17: =VLOOKUP($E17,'RECAP AG'!$G$6:$DC$270,36,FALSE) -> 71
A18: 50 | B18: AUBE HAUTE MARNE | C18: 14 | D18: TROYES | E18: 410550 | F18: BAR SUR AUBE | G18: =VLOOKUP($E18,'RECAP AG'!$G$6:$DC$270,3,FALSE) -> 6.0 | H18: =VLOOKUP($E18,'RECAP AG'!$G$6:$DC$270,18,FALSE) -> 254.3 | I18: =VLOOKUP($E18,'RECAP AG'!$G$6:$DC$270,19,FALSE) -> 42.71 | J18: =VLOOKUP($E18,'RECAP AG'!$G$6:$DC$270,20,FALSE) -> 64% | K18: =VLOOKUP($E18,'RECAP AG'!$G$6:$DC$270,21,FALSE) -> 127 | L18: =VLOOKUP($E18,'RECAP AG'!$G$6:$DC$270,22,FALSE) -> 140 | M18: =VLOOKUP($E18,'RECAP AG'!$G$6:$DC$270,23,FALSE) -> 23.51 | N18: =VLOOKUP($E18,'RECAP AG'!$G$6:$DC$270,24,FALSE) -> 58% | O18: =VLOOKUP($E18,'RECAP AG'!$G$6:$DC$270,25,FALSE) -> 165 | P18: =VLOOKUP($E18,'RECAP AG'!$G$6:$DC$270,26,FALSE) -> 13 | Q18: =VLOOKUP($E18,'RECAP AG'!$G$6:$DC$270,27,FALSE) -> 2.18 | R18: =VLOOKUP($E18,'RECAP AG'!$G$6:$DC$270,28,FALSE) -> 92% | S18: =VLOOKUP($E18,'RECAP AG'!$G$6:$DC$270,29,FALSE) -> 220 | T18: =VLOOKUP($E18,'RECAP AG'!$G$6:$DC$270,30,FALSE) -> -6.08 | U18: =VLOOKUP($E18,'RECAP AG'!$G$6:$DC$270,31,FALSE) -> -1.02 | V18: =VLOOKUP($E18,'RECAP AG'!$G$6:$DC$270,32,FALSE) -> 35% | W18: =VLOOKUP($E18,'RECAP AG'!$G$6:$DC$270,33,FALSE) -> 54 | X18: =VLOOKUP($E18,'RECAP AG'!$G$6:$DC$270,34,FALSE) -> 63% | Y18: =VLOOKUP($E18,'RECAP AG'!$G$6:$DC$270,35,FALSE) -> 45% | Z18: =VLOOKUP($E18,'RECAP AG'!$G$6:$DC$270,36,FALSE) -> 119
A19: 50 | B19: AUBE HAUTE MARNE | C19: 14 | D19: TROYES | E19: 510556 | F19: BAR SUR SEINE | G19: =VLOOKUP($E19,'RECAP AG'!$G$6:$DC$270,3,FALSE) -> 3.4 | H19: =VLOOKUP($E19,'RECAP AG'!$G$6:$DC$270,18,FALSE) -> 158.4 | I19: =VLOOKUP($E19,'RECAP AG'!$G$6:$DC$270,19,FALSE) -> 46.73 | J19: =VLOOKUP($E19,'RECAP AG'!$G$6:$DC$270,20,FALSE) -> 61% | K19: =VLOOKUP($E19,'RECAP AG'!$G$6:$DC$270,21,FALSE) -> 104 | L19: =VLOOKUP($E19,'RECAP AG'!$G$6:$DC$270,22,FALSE) -> 91 | M19: =VLOOKUP($E19,'RECAP AG'!$G$6:$DC$270,23,FALSE) -> 26.84 | N19: =VLOOKUP($E19,'RECAP AG'!$G$6:$DC$270,24,FALSE) -> 52% | O19: =VLOOKUP($E19,'RECAP AG'!$G$6:$DC$270,25,FALSE) -> 101 | P19: =VLOOKUP($E19,'RECAP AG'!$G$6:$DC$270,26,FALSE) -> 22 | Q19: =VLOOKUP($E19,'RECAP AG'!$G$6:$DC$270,27,FALSE) -> 6.49 | R19: =VLOOKUP($E19,'RECAP AG'!$G$6:$DC$270,28,FALSE) -> 77% | S19: =VLOOKUP($E19,'RECAP AG'!$G$6:$DC$270,29,FALSE) -> 71 | T19: =VLOOKUP($E19,'RECAP AG'!$G$6:$DC$270,30,FALSE) -> -7.79 | U19: =VLOOKUP($E19,'RECAP AG'!$G$6:$DC$270,31,FALSE) -> -2.30 | V19: =VLOOKUP($E19,'RECAP AG'!$G$6:$DC$270,32,FALSE) -> 107% | W19: =VLOOKUP($E19,'RECAP AG'!$G$6:$DC$270,33,FALSE) -> 251 | X19: =VLOOKUP($E19,'RECAP AG'!$G$6:$DC$270,34,FALSE) -> 68% | Y19: =VLOOKUP($E19,'RECAP AG'!$G$6:$DC$270,35,FALSE) -> 50% | Z19: =VLOOKUP($E19,'RECAP AG'!$G$6:$DC$270,36,FALSE) -> 186
